Workbook

Sheet PLZ 2018-06 (hidden)
A1: PLZ | B1: Ort | C1: Bundesland | D1: gültig ab | E1: gültig bis | F1: NamePLZTyp | G1: intern_extern | H1: adressierbar | I1: Postfach | J1: PLZ | K1: Anleitung
A2: =J2*1 -> 1000 | B2: Wien | C2: W | D2: 01.08.2009 | F2: PLZ-Postfach | G2: extern | H2: Nein | I2: Ja | J2: 1000
A3: =J3*1 -> 1004 | B3: Wien | C3: W | D3: 01.01.1966 | F3: InteressentenPLZ | G3: extern | H3: Nein | I3: Ja | J3: 1004
A4: 1006 | B4: Wien | C4: W | D4: 01.02.2015 | F4: PLZ-Postfach | G4: extern | H4: Nein | I4: Ja | J4: 1006
A5: 1010 | B5: Wien | C5: W | D5: 01.01.1966 | F5: PLZ-Adressierung | G5: extern | H5: Ja | I5: Ja | J5: 1010
A6: 1011 | B6: Wien Postfach | C6: W | D6: 01.01.1966 | F6: PLZ-Postfach | G6: extern | H6: Nein | I6: Ja | J6: 1011
A7: 1015 | B7: Wien | C7: W | D7: 01.01.1966 | F7: PLZ-Postfach | G7: extern | H7: Nein | I7: Ja | J7: 1015
A8: 1016 | B8: Wien | C8: W | D8: 01.01.1966 | F8: PLZ-Postfach | G8: extern | H8: Nein | I8: Ja | J8: 1016
A9: 1017 | B9: Wien-Parlament | C9: W | D9: 22.04.2015 | F9: InteressentenPLZ | G9: extern | H9: Nein | I9: Ja | J9: 1017
A10: 1018 | B10: Wien | C10: W | D10: 01.01.1966 | F10: PLZ-Postfach | G10: extern | H10: Nein | I10: Ja | J10: 1018
A11: 1020 | B11: Wien | C11: W | D11: 01.01.1966 | F11: PLZ-Adressierung | G11: extern | H11: Ja | I11: Ja | J11: 1020
A12: 1021 | B12: Wien Postfach | C12: W | D12: 01.01.1966 | F12: PLZ-Postfach | G12: extern | H12: Nein | I12: Ja | J12: 1021
A13: 1022 | B13: Wien | C13: W | D13: 01.01.1966 | F13: PLZ-Postfach | G13: extern | H13: Nein | I13: Ja | J13: 1022
A14: 1023 | B14: Wien | C14: W | D14: 01.01.1966 | F14: PLZ-Postfach | G14: extern | H14: Nein | I14: Ja | J14: 1023
A15: 1024 | B15: Wien | C15: W | D15: 01.01.1966 | F15: PLZ-Postfach | G15: extern | H15: Nein | I15: Ja | J15: 1024
A16: 1025 | B16: Wien | C16: W | D16: 01.01.1966 | F16: PLZ-Postfach | G16: extern | H16: Nein | I16: Ja | J16: 1025
A17: 1026 | B17: Wien | C17: W | D17: 01.01.2012 | F17: PLZ-Postfach | G17: extern | H17: Nein | I17: Ja | J17: 1026
A18: 1029 | B18: Wien | C18: W | D18: 30.07.2004 | F18: InteressentenPLZ | G18: extern | H18: Nein | I18: Ja | J18: 1029
A19: 1030 | B19: Wien | C19: W | D19: 01.01.1966 | F19: PLZ-Adressierung | G19: extern | H19: Ja | I19: Ja | J19: 1030
A20: 1031 | B20: Wien Postfach | C20: W | D20: 01.01.1966 | F20: PLZ-Postfach | G20: extern | H20: Nein | I20: Ja | J20: 1031
A21: 1032 | B21: Wien | C21: W | D21: 22.08.2012 | F21: PLZ-Postfach | G21: extern | H21: Nein | I21: Ja | J21: 1032
A22: 1033 | B22: Wien | C22: W | D22: 01.01.1966 | F22: PLZ-Postfach | G22: extern | H22: Nein | I22: Ja | J22: 1033
A23: 1035 | B23: Wien | C23: W | D23: 01.01.1966 | F23: PLZ-Postfach | G23: extern | H23: Nein | I23: Ja | J23: 1035
A24: 1037 | B24: Wien | C24: W | D24: 01.01.1966 | F24: PLZ-Postfach | G24: extern | H24: Nein | I24: Ja | J24: 1037
A25: 1038 | B25: Wien | C25: W | D25: 01.01.1966 | F25: InteressentenPLZ | G25: extern | H25: Nein | I25: Ja | J25: 1038
A26: 1039 | B26: Wien | C26: W | D26: 01.08.2005 | F26: InteressentenPLZ | G26: extern | H26: Nein | I26: Ja | J26: 1039
A27: 1040 | B27: Wien | C27: W | D27: 01.01.1966 | F27: PLZ-Adressierung | G27: extern | H27: Ja | I27: Ja | J27: 1040
A28: 1041 | B28: Wien Postfach | C28: W | D28: 01.01.1966 | F28: PLZ-Postfach | G28: extern | H28: Nein | I28: Ja | J28: 1041
A29: 1042 | B29: Wien | C29: W | D29: 01.01.1966 | F29: PLZ-Postfach | G29: extern | H29: Nein | I29: Ja | J29: 1042
A30: 1043 | B30: Wien | C30: W | D30: 01.01.1966 | F30: PLZ-Postfach | G30: extern | H30: Nein | I30: Ja | J30: 1043
A31: 1045 | B31: Wien | C31: W | D31: 01.01.1966 | F31: InteressentenPLZ | G31: extern | H31: Nein | I31: Ja | J31: 1045
A32: 1047 | B32: Wien | C32: W | D32: 01.10.2011 | F32: PLZ-Postfach | G32: extern | H32: Nein | I32: Ja | J32: 1047
A33: 1050 | B33: Wien | C33: W | D33: 01.01.1966 | F33: PLZ-Adressierung | G33: extern | H33: Ja | I33: Ja | J33: 1050
A34: 1051 | B34: Wien Postfach | C34: W | D34: 01.01.1966 | F34: PLZ-Postfach | G34: extern | H34: Nein | I34: Ja | J34: 1051
A35: 1052 | B35: Wien | C35: W | D35: 01.01.1966 | F35: PLZ-Postfach | G35: extern | H35: Nein | I35: Ja | J35: 1052
A36: 1053 | B36: Wien | C36: W | D36: 01.01.1966 | F36: PLZ-Postfach | G36: extern | H36: Nein | I36: Ja | J36: 1053
A37: 1060 | B37: Wien | C37: W | D37: 01.01.1966 | F37: PLZ-Adressierung | G37: extern | H37: Ja | I37: Ja | J37: 1060
A38: 1061 | B38: Wien Postfach | C38: W | D38: 01.01.1966 | F38: PLZ-Postfach | G38: extern | H38: Nein | I38: Ja | J38: 1061
A39: 1062 | B39: Wien | C39: W | D39: 01.01.1966 | F39: PLZ-Postfach | G39: extern | H39: Nein | I39: Ja | J39: 1062
A40: 1063 | B40: Wien-VÖPh | C40: W | D40: 01.01.1966 | F40: InteressentenPLZ | G40: extern | H40: Nein | I40: Ja | J40: 1063
A41: 1064 | B41: Wien | C41: W | D41: 01.01.1966 | F41: PLZ-Postfach | G41: extern | H41: Nein | I41: Ja | J41: 1064
A42: 1065 | B42: Wien | C42: W | D42: 01.09.2012 | F42: PLZ-Postfach | G42: extern | H42: Nein | I42: Ja | J42: 1065
A43: 1070 | B43: Wien | C43: W | D43: 01.01.1966 | F43: PLZ-Adressierung | G43: extern | H43: Ja | I43: Ja | J43: 1070
A44: 1071 | B44: Wien Postfach | C44: W | D44: 01.01.1966 | F44: PLZ-Postfach | G44: extern | H44: Nein | I44: Ja | J44: 1071
A45: 1072 | B45: Wien | C45: W | D45: 01.01.1966 | F45: PLZ-Postfach | G45: extern | H45: Nein | I45: Ja | J45: 1072
A46: 1075 | B46: Wien | C46: W | D46: 01.09.2012 | F46: PLZ-Postfach | G46: extern | H46: Nein | I46: Ja | J46: 1075
A47: 1080 | B47: Wien | C47: W | D47: 01.01.1966 | F47: PLZ-Adressierung | G47: extern | H47: Ja | I47: Ja | J47: 1080
A48: 1081 | B48: Wien Postfach | C48: W | D48: 01.01.1966 | F48: PLZ-Postfach | G48: extern | H48: Nein | I48: Ja | J48: 1081
A49: 1082 | B49: Wien | C49: W | D49: 01.01.1966 | F49: PLZ-Postfach | G49: extern | H49: Nein | I49: Ja | J49: 1082
A50: 1090 | B50: Wien | C50: W | D50: 01.01.1966 | F50: PLZ-Adressierung | G50: extern | H50: Ja | I50: Ja | J50: 1090
A51: 1091 | B51: Wien Postfach | C51: W | D51: 01.01.1966 | F51: PLZ-Postfach | G51: extern | H51: Nein | I51: Ja | J51: 1091
A52: 1092 | B52: Wien | C52: W | D52: 01.01.1966 | F52: PLZ-Postfach | G52: extern | H52: Nein | I52: Ja | J52: 1092
A53: 1094 | B53: Wien | C53: W | D53: 01.01.1966 | F53: PLZ-Postfach | G53: extern | H53: Nein | I53: Ja | J53: 1094
A54: 1095 | B54: Wien | C54: W | D54: 01.01.1966 | F54: PLZ-Postfach | G54: extern | H54: Nein | I54: Ja | J54: 1095
A55: 1097 | B55: Wien | C55: W | D55: 01.01.1966 | F55: PLZ-Postfach | G55: extern | H55: Nein | I55: Ja | J55: 1097
A56: 1100 | B56: Wien | C56: W | D56: 01.01.1966 | F56: PLZ-Adressierung | G56: extern | H56: Ja | I56: Ja | J56: 1100
A57: 1101 | B57: Wien Postfach | C57: W | D57: 01.01.1966 | F57: PLZ-Postfach | G57: extern | H57: Nein | I57: Ja | J57: 1101
A58: 1102 | B58: Wien | C58: W | D58: 01.01.1966 | F58: PLZ-Postfach | G58: extern | H58: Nein | I58: Ja | J58: 1102
A59: 1103 | B59: Wien | C59: W | D59: 01.12.2012 | F59: PLZ-Postfach | G59: extern | H59: Nein | I59: Ja | J59: 1103
A60: 1104 | B60: Wien | C60: W | D60: 01.01.1966 | F60: PLZ-Postfach | G60: extern | H60: Nein | I60: Ja | J60: 1104
A61: 1105 | B61: Wien | C61: W | D61: 01.01.1966 | F61: PLZ-Postfach | G61: extern | H61: Nein | I61: Ja | J61: 1105
A62: 1106 | B62: Wien | C62: W | D62: 01.01.1966 | F62: PLZ-Postfach | G62: extern | H62: Nein | I62: Ja | J62: 1106
A63: 1107 | B63: Wien | C63: W | D63: 01.01.1966 | F63: PLZ-Postfach | G63: extern | H63: Nein | I63: Ja | J63: 1107
A64: 1108 | B64: Wien | C64: W | D64: 01.01.1966 | F64: PLZ-Postfach | G64: extern | H64: Nein | I64: Ja | J64: 1108
A65: 1109 | B65: Wien | C65: W | D65: 01.01.1966 | F65: PLZ-Postfach | G65: extern | H65: Nein | I65: Ja | J65: 1109
A66: 1110 | B66: Wien | C66: W | D66: 01.01.1966 | F66: PLZ-Adressierung | G66: extern | H66: Ja | I66: Ja | J66: 1110
A67: =J67*1 -> 1111 | B67: Wien Postfach | C67: W | D67: 01.01.1966 | F67: PLZ-Postfach | G67: extern | H67: Nein | I67: Ja | J67: 1111
A68: 1113 | B68: Wien | C68: W | D68: 01.01.1966 | F68: PLZ-Postfach | G68: extern | H68: Nein | I68: Ja | J68: 1113
A69: 1114 | B69: Wien | C69: W | D69: 01.10.2010 | F69: PLZ-Postfach | G69: extern | H69: Nein | I69: Ja | J69: 1114
A70: 1115 | B70: Wien | C70: W | D70: 01.07.2011 | F70: PLZ-Postfach | G70: extern | H70: Nein | I70: Ja | J70: 1115
A71: 1120 | B71: Wien | C71: W | D71: 01.01.1966 | F71: PLZ-Adressierung | G71: extern | H71: Ja | I71: Ja | J71: 1120
A72: 1121 | B72: Wien Postfach | C72: W | D72: 01.01.1966 | F72: PLZ-Postfach | G72: extern | H72: Nein | I72: Ja | J72: 1121
A73: 1122 | B73: Wien | C73: W | D73: 01.01.1966 | F73: PLZ-Postfach | G73: extern | H73: Nein | I73: Ja | J73: 1122
A74: 1124 | B74: Wien | C74: W | D74: 01.01.1966 | F74: PLZ-Postfach | G74: extern | H74: Nein | I74: Ja | J74: 1124
A75: 1125 | B75: Wien | C75: W | D75: 01.01.1966 | F75: PLZ-Postfach | G75: extern | H75: Nein | I75: Ja | J75: 1125
A76: 1127 | B76: Wien | C76: W | D76: 01.01.1966 | F76: PLZ-Postfach | G76: extern | H76: Nein | I76: Ja | J76: 1127
A77: 1128 | B77: Wien | C77: W | D77: 01.08.2012 | F77: PLZ-Postfach | G77: extern | H77: Nein | I77: Ja | J77: 1128
A78: 1130 | B78: Wien | C78: W | D78: 01.01.1966 | F78: PLZ-Adressierung | G78: extern | H78: Ja | I78: Ja | J78: 1130
A79: 1131 | B79: Wien Postfach | C79: W | D79: 01.01.1966 | F79: PLZ-Postfach | G79: extern | H79: Nein | I79: Ja | J79: 1131
A80: 1132 | B80: Wien | C80: W | D80: 01.01.1966 | F80: PLZ-Postfach | G80: extern | H80: Nein | I80: Ja | J80: 1132
A81: 1133 | B81: Wien | C81: W | D81: 01.01.1966 | F81: PLZ-Postfach | G81: extern | H81: Nein | I81: Ja | J81: 1133
A82: 1134 | B82: Wien | C82: W | D82: 01.01.1966 | F82: PLZ-Postfach | G82: extern | H82: Nein | I82: Ja | J82: 1134
A83: 1136 | B83: Wien | C83: W | D83: 01.01.1966 | F83: InteressentenPLZ | G83: extern | H83: Nein | I83: Ja | J83: 1136
A84: 1140 | B84: Wien | C84: W | D84: 01.01.1966 | F84: PLZ-Adressierung | G84: extern | H84: Ja | I84: Ja | J84: 1140
A85: 1141 | B85: Wien Postfach | C85: W | D85: 01.01.1966 | F85: PLZ-Postfach | G85: extern | H85: Nein | I85: Ja | J85: 1141
A86: 1142 | B86: Wien | C86: W | D86: 01.01.1966 | F86: PLZ-Postfach | G86: extern | H86: Nein | I86: Ja | J86: 1142
A87: 1143 | B87: Wien | C87: W | D87: 01.01.1966 | F87: PLZ-Postfach | G87: extern | H87: Nein | I87: Ja | J87: 1143
A88: 1146 | B88: Wien | C88: W | D88: 01.01.2012 | F88: PLZ-Postfach | G88: extern | H88: Nein | I88: Ja | J88: 1146
A89: 1147 | B89: Wien | C89: W | D89: 01.01.1966 | F89: PLZ-Postfach | G89: extern | H89: Nein | I89: Ja | J89: 1147
A90: 1148 | B90: Wien | C90: W | D90: 31.03.2003 | F90: InteressentenPLZ | G90: extern | H90: Nein | I90: Ja | J90: 1148
A91: 1150 | B91: Wien | C91: W | D91: 01.01.1966 | F91: PLZ-Adressierung | G91: extern | H91: Ja | I91: Ja | J91: 1150
A92: 1151 | B92: Wien Postfach | C92: W | D92: 01.01.1966 | F92: PLZ-Postfach | G92: extern | H92: Nein | I92: Ja | J92: 1151
A93: 1152 | B93: Wien | C93: W | D93: 01.01.1966 | F93: PLZ-Postfach | G93: extern | H93: Nein | I93: Ja | J93: 1152
A94: 1153 | B94: Wien | C94: W | D94: 01.01.1966 | F94: PLZ-Postfach | G94: extern | H94: Nein | I94: Ja | J94: 1153
A95: 1155 | B95: Wien | C95: W | D95: 01.10.2011 | F95: PLZ-Postfach | G95: extern | H95: Nein | I95: Ja | J95: 1155
A96: 1156 | B96: Wien | C96: W | D96: 01.03.2013 | F96: PLZ-Postfach | G96: extern | H96: Nein | I96: Ja | J96: 1156
A97: 1160 | B97: Wien | C97: W | D97: 01.01.1966 | F97: PLZ-Adressierung | G97: extern | H97: Ja | I97: Ja | J97: 1160
A98: 1161 | B98: Wien Postfach | C98: W | D98: 08.12.2005 | F98: PLZ-Postfach | G98: extern | H98: Nein | I98: Ja | J98: 1161
A99: 1163 | B99: Wien | C99: W | D99: 01.01.1966 | F99: PLZ-Postfach | G99: extern | H99: Nein | I99: Ja | J99: 1163
A100: 1165 | B100: Wien | C100: W | D100: 01.01.1966 | F100: PLZ-Postfach | G100: extern | H100: Nein | I100: Ja | J100: 1165
A101: 1166 | B101: Wien | C101: W | D101: 01.01.1966 | F101: PLZ-Postfach | G101: extern | H101: Nein | I101: Ja | J101: 1166
A102: 1170 | B102: Wien | C102: W | D102: 01.01.1966 | F102: PLZ-Adressierung | G102: extern | H102: Ja | I102: Ja | J102: 1170
A103: 1171 | B103: Wien Postfach | C103: W | D103: 01.01.1966 | F103: PLZ-Postfach | G103: extern | H103: Nein | I103: Ja | J103: 1171
A104: 1172 | B104: Wien | C104: W | D104: 01.01.1966 | F104: PLZ-Postfach | G104: extern | H104: Nein | I104: Ja | J104: 1172
A105: 1180 | B105: Wien | C105: W | D105: 01.01.1966 | F105: PLZ-Adressierung | G105: extern | H105: Ja | I105: Ja | J105: 1180
A106: 1181 | B106: Wien Postfach | C106: W | D106: 01.01.1966 | F106: PLZ-Postfach | G106: extern | H106: Nein | I106: Ja | J106: 1181
A107: 1182 | B107: Wien | C107: W | D107: 01.01.1966 | F107: PLZ-Postfach | G107: extern | H107: Nein | I107: Ja | J107: 1182
A108: 1183 | B108: Wien | C108: W | D108: 01.01.1966 | F108: PLZ-Postfach | G108: extern | H108: Nein | I108: Ja | J108: 1183
A109: 1190 | B109: Wien | C109: W | D109: 01.01.1966 | F109: PLZ-Adressierung | G109: extern | H109: Ja | I109: Ja | J109: 1190
A110: 1191 | B110: Wien Postfach | C110: W | D110: 01.01.1966 | F110: PLZ-Postfach | G110: extern | H110: Nein | I110: Ja | J110: 1191
A111: 1192 | B111: Wien | C111: W | D111: 01.01.1966 | F111: PLZ-Postfach | G111: extern | H111: Nein | I111: Ja | J111: 1192
A112: 1193 | B112: Wien | C112: W | D112: 01.01.1966 | F112: PLZ-Postfach | G112: extern | H112: Nein | I112: Ja | J112: 1193
A113: 1194 | B113: Wien | C113: W | D113: 01.01.1966 | F113: PLZ-Postfach | G113: extern | H113: Nein | I113: Ja | J113: 1194
A114: 1195 | B114: Wien | C114: W | D114: 01.01.1966 | F114: PLZ-Postfach | G114: extern | H114: Nein | I114: Ja | J114: 1195
A115: 1196 | B115: Wien | C115: W | D115: 01.01.1966 | F115: PLZ-Postfach | G115: extern | H115: Nein | I115: Ja | J115: 1196
A116: 1200 | B116: Wien | C116: W | D116: 01.01.1966 | F116: PLZ-Adressierung | G116: extern | H116: Ja | I116: Ja | J116: 1200
A117: 1201 | B117: Wien Postfach | C117: W | D117: 01.01.1966 | F117: PLZ-Postfach | G117: extern | H117: Nein | I117: Ja | J117: 1201
A118: 1203 | B118: Wien | C118: W | D118: 01.01.1966 | F118: PLZ-Postfach | G118: extern | H118: Nein | I118: Ja | J118: 1203
A119: 1205 | B119: Wien | C119: W | D119: 01.01.1966 | F119: PLZ-Postfach | G119: extern | H119: Nein | I119: Ja | J119: 1205
A120: 1208 | B120: Wien | C120: W | D120: 01.09.2012 | F120: PLZ-Postfach | G120: extern | H120: Nein | I120: Ja | J120: 1208
A121: 1210 | B121: Wien | C121: W | D121: 01.01.1966 | F121: PLZ-Adressierung | G121: extern | H121: Ja | I121: Ja | J121: 1210
A122: 1211 | B122: Wien Postfach | C122: W | D122: 01.01.1966 | F122: PLZ-Postfach | G122: extern | H122: Nein | I122: Ja | J122: 1211
A123: 1212 | B123: Wien | C123: W | D123: 01.01.1966 | F123: PLZ-Postfach | G123: extern | H123: Nein | I123: Ja | J123: 1212
A124: 1213 | B124: Wien | C124: W | D124: 01.01.1966 | F124: PLZ-Postfach | G124: extern | H124: Nein | I124: Ja | J124: 1213
A125: 1215 | B125: Wien | C125: W | D125: 01.01.1966 | F125: PLZ-Postfach | G125: extern | H125: Nein | I125: Ja | J125: 1215
A126: 1217 | B126: Wien | C126: W | D126: 01.01.1966 | F126: PLZ-Postfach | G126: extern | H126: Nein | I126: Ja | J126: 1217
A127: 1218 | B127: Wien | C127: W | D127: 01.01.1966 | F127: PLZ-Postfach | G127: extern | H127: Nein | I127: Ja | J127: 1218
A128: 1219 | B128: Wien | C128: W | D128: 01.01.2012 | F128: PLZ-Postfach | G128: extern | H128: Nein | I128: Ja | J128: 1219
A129: 1220 | B129: Wien | C129: W | D129: 01.01.1966 | F129: PLZ-Adressierung | G129: extern | H129: Ja | I129: Ja | J129: 1220
A130: 1221 | B130: Wien Postfach | C130: W | D130: 01.01.1966 | F130: PLZ-Postfach | G130: extern | H130: Nein | I130: Ja | J130: 1221
A131: =J131*1 -> 1222 | B131: Wien | C131: W | D131: 01.01.1966 | F131: PLZ-Postfach | G131: extern | H131: Nein | I131: Ja | J131: 1222
A132: 1223 | B132: Wien | C132: W | D132: 01.01.1966 | F132: PLZ-Postfach | G132: extern | H132: Nein | I132: Ja | J132: 1223
A133: 1224 | B133: Wien | C133: W | D133: 01.01.1966 | F133: PLZ-Postfach | G133: extern | H133: Nein | I133: Ja | J133: 1224
A134: 1225 | B134: Wien | C134: W | D134: 01.01.1966 | F134: PLZ-Postfach | G134: extern | H134: Nein | I134: Ja | J134: 1225
A135: 1228 | B135: Wien | C135: W | D135: 01.01.1966 | F135: PLZ-Postfach | G135: extern | H135: Nein | I135: Ja | J135: 1228
A136: 1229 | B136: Wien | C136: W | D136: 01.01.1966 | F136: PLZ-Postfach | G136: extern | H136: Nein | I136: Ja | J136: 1229
A137: 1230 | B137: Wien | C137: W | D137: 01.01.1966 | F137: PLZ-Adressierung | G137: extern | H137: Ja | I137: Ja | J137: 1230
A138: 1231 | B138: Wien Postfach | C138: W | D138: 01.01.1966 | F138: PLZ-Postfach | G138: extern | H138: Nein | I138: Ja | J138: 1231
A139: 1233 | B139: Wien | C139: W | D139: 01.01.1966 | F139: PLZ-Postfach | G139: extern | H139: Nein | I139: Ja | J139: 1233
A140: 1235 | B140: Wien | C140: W | D140: 01.01.1966 | F140: PLZ-Postfach | G140: extern | H140: Nein | I140: Ja | J140: 1235
A141: 1236 | B141: Wien | C141: W | D141: 01.01.1966 | F141: PLZ-Postfach | G141: extern | H141: Nein | I141: Ja | J141: 1236
A142: 1238 | B142: Wien | C142: W | D142: 01.01.1966 | F142: PLZ-Postfach | G142: extern | H142: Nein | I142: Ja | J142: 1238
A143: 1239 | B143: Wien | C143: W | D143: 01.01.1966 | F143: PLZ-Postfach | G143: extern | H143: Nein | I143: Ja | J143: 1239
A144: 1251 | B144: Wien | C144: W | D144: 01.09.2012 | F144: PLZ-Postfach | G144: extern | H144: Nein | I144: Ja | J144: 1251
A145: 1252 | B145: Wien | C145: W | D145: 01.12.2012 | F145: PLZ-Postfach | G145: extern | H145: Nein | I145: Ja | J145: 1252
A146: 1254 | B146: Wien | C146: W | D146: 01.11.2012 | F146: PLZ-Postfach | G146: extern | H146: Nein | I146: Ja | J146: 1254
A147: 1255 | B147: Wien | C147: W | D147: 01.01.2013 | F147: PLZ-Postfach | G147: extern | H147: Nein | I147: Ja | J147: 1255
A148: 1300 | B148: Wien-Flughafen | C148: W | D148: 01.01.1966 | F148: PLZ-Adressierung | G148: extern | H148: Ja | I148: Ja | J148: 1300
A149: 1310 | B149: Wien | C149: W | D149: 01.06.2012 | F149: PLZ-Postfach | G149: extern | H149: Nein | I149: Ja | J149: 1310
A150: 1321 | B150: Wien | C150: W | D150: 01.09.2012 | F150: PLZ-Postfach | G150: extern | H150: Nein | I150: Ja | J150: 1321
A151: 1400 | B151: Wien-Vereinte Nationen | C151: W | D151: 01.01.1966 | F151: PLZ-Postfach | G151: extern | H151: Nein | I151: Ja | J151: 1400
A152: 1402 | B152: Wien | C152: W | D152: 01.11.2005 | F152: PLZ-Postfach | G152: extern | H152: Nein | I152: Ja | J152: 1402
A153: 1423 | B153: Wien | C153: W | D153: 01.06.2005 | F153: PLZ-Postfach | G153: extern | H153: Nein | I153: Ja | J153: 1423
A154: 1500 | B154: UNDOF AUTCON | C154: W | D154: 01.01.1966 | F154: FeldPLZ | G154: extern | H154: Nein | I154: Ja | J154: 1500
A155: 1502 | B155: AUTCON EUFOR | C155: W | D155: 01.01.1966 | F155: FeldPLZ | G155: extern | H155: Nein | I155: Ja | J155: 1502
A156: 1503 | B156: AUTCON KFOR | C156: W | D156: 01.01.1966 | F156: FeldPLZ | G156: extern | H156: Nein | I156: Ja | J156: 1503
A157: 1600 | B157: Wien | C157: W | D157: 01.01.1966 | F157: InteressentenPLZ | G157: extern | H157: Nein | I157: Ja | J157: 1600
A158: 1601 | B158: Wien | C158: W | D158: 01.01.2012 | F158: PLZ-Postfach | G158: extern | H158: Nein | I158: Ja | J158: 1601
A159: 1810 | B159: Wien | C159: W | D159: 01.06.2012 | F159: PLZ-Postfach | G159: extern | H159: Nein | I159: Ja | J159: 1810
A160: 2000 | B160: Stockerau | C160: N | D160: 01.01.1966 | F160: PLZ-Adressierung | G160: extern | H160: Ja | I160: Ja | J160: 2000
A161: 2002 | B161: Großmugl | C161: N | D161: 01.01.1966 | F161: PLZ-Adressierung | G161: extern | H161: Ja | I161: Nein | J161: 2002
A162: 2003 | B162: Leitzersdorf | C162: N | D162: 01.01.1966 | F162: PLZ-Adressierung | G162: extern | H162: Ja | I162: Nein | J162: 2003
A163: 2004 | B163: Niederhollabrunn | C163: N | D163: 01.01.1966 | F163: PLZ-Adressierung | G163: extern | H163: Ja | I163: Nein | J163: 2004
A164: 2011 | B164: Sierndorf | C164: N | D164: 01.01.1966 | F164: PLZ-Adressierung | G164: extern | H164: Ja | I164: Ja | J164: 2011
A165: 2013 | B165: Göllersdorf | C165: N | D165: 01.01.1966 | F165: PLZ-Adressierung | G165: extern | H165: Ja | I165: Nein | J165: 2013
A166: 2014 | B166: Breitenwaida | C166: N | D166: 01.01.1966 | F166: PLZ-Adressierung | G166: extern | H166: Ja | I166: Ja | J166: 2014
A167: 2020 | B167: Hollabrunn | C167: N | D167: 01.01.1966 | F167: PLZ-Adressierung | G167: extern | H167: Ja | I167: Ja | J167: 2020
A168: 2022 | B168: Immendorf | C168: N | D168: 01.01.1966 | F168: PLZ-Adressierung | G168: extern | H168: Ja | I168: Ja | J168: 2022
A169: 2023 | B169: Nappersdorf | C169: N | D169: 01.01.1966 | F169: PLZ-Adressierung | G169: extern | H169: Ja | I169: Nein | J169: 2023
A170: 2024 | B170: Mailberg | C170: N | D170: 01.01.1966 | F170: PLZ-Adressierung | G170: extern | H170: Ja | I170: Nein | J170: 2024
A171: 2031 | B171: Eggendorf im Thale | C171: N | D171: 01.01.1966 | F171: PLZ-Adressierung | G171: extern | H171: Ja | I171: Nein | J171: 2031
A172: 2032 | B172: Enzersdorf im Thale | C172: N | D172: 01.01.1966 | F172: PLZ-Adressierung | G172: extern | H172: Ja | I172: Nein | J172: 2032
A173: 2033 | B173: Kammersdorf | C173: N | D173: 01.01.1966 | F173: PLZ-Adressierung | G173: extern | H173: Ja | I173: Nein | J173: 2033
A174: 2034 | B174: Großharras | C174: N | D174: 01.01.1966 | F174: PLZ-Adressierung | G174: extern | H174: Ja | I174: Ja | J174: 2034
A175: 2041 | B175: Wullersdorf | C175: N | D175: 01.01.1966 | F175: PLZ-Adressierung | G175: extern | H175: Ja | I175: Nein | J175: 2041
A176: 2042 | B176: Guntersdorf | C176: N | D176: 01.01.1966 | F176: PLZ-Adressierung | G176: extern | H176: Ja | I176: Nein | J176: 2042
A177: 2051 | B177: Zellerndorf | C177: N | D177: 01.01.1966 | F177: PLZ-Adressierung | G177: extern | H177: Ja | I177: Ja | J177: 2051
A178: 2052 | B178: Pernersdorf-Pfaffendorf | C178: N | D178: 01.01.1966 | F178: PLZ-Adressierung | G178: extern | H178: Ja | I178: Nein | J178: 2052
A179: 2053 | B179: Jetzelsdorf | C179: N | D179: 01.01.1966 | F179: PLZ-Adressierung | G179: extern | H179: Ja | I179: Nein | J179: 2053
A180: 2054 | B180: Haugsdorf | C180: N | D180: 01.01.1966 | F180: PLZ-Adressierung | G180: extern | H180: Ja | I180: Ja | J180: 2054
A181: 2061 | B181: Hadres | C181: N | D181: 01.01.1966 | F181: PLZ-Adressierung | G181: extern | H181: Ja | I181: Ja | J181: 2061
A182: 2062 | B182: Seefeld-Großkadolz | C182: N | D182: 01.01.1966 | F182: PLZ-Adressierung | G182: extern | H182: Ja | I182: Nein | J182: 2062
A183: 2063 | B183: Zwingendorf | C183: N | D183: 01.01.1966 | F183: PLZ-Adressierung | G183: extern | H183: Ja | I183: Nein | J183: 2063
A184: 2064 | B184: Wulzeshofen | C184: N | D184: 01.01.1966 | F184: PLZ-Adressierung | G184: extern | H184: Ja | I184: Nein | J184: 2064
A185: 2070 | B185: Retz | C185: N | D185: 01.01.1966 | F185: PLZ-Adressierung | G185: extern | H185: Ja | I185: Ja | J185: 2070
A186: 2073 | B186: Schrattenthal | C186: N | D186: 01.01.1966 | F186: PLZ-Adressierung | G186: extern | H186: Ja | I186: Nein | J186: 2073
A187: 2074 | B187: Unterretzbach | C187: N | D187: 01.01.1966 | F187: PLZ-Adressierung | G187: extern | H187: Ja | I187: Ja | J187: 2074
A188: 2081 | B188: Niederfladnitz | C188: N | D188: 01.01.1966 | F188: PLZ-Adressierung | G188: extern | H188: Ja | I188: Nein | J188: 2081
A189: 2082 | B189: Hardegg | C189: N | D189: 01.01.1966 | F189: PLZ-Adressierung | G189: extern | H189: Ja | I189: Nein | J189: 2082
A190: 2083 | B190: Pleißing | C190: N | D190: 01.01.1966 | F190: PLZ-Adressierung | G190: extern | H190: Ja | I190: Nein | J190: 2083
A191: 2084 | B191: Weitersfeld | C191: N | D191: 01.01.1966 | F191: PLZ-Adressierung | G191: extern | H191: Ja | I191: Ja | J191: 2084
A192: 2091 | B192: Langau | C192: N | D192: 01.01.1966 | F192: PLZ-Adressierung | G192: extern | H192: Ja | I192: Nein | J192: 2091
A193: 2092 | B193: Riegersburg | C193: N | D193: 01.01.1966 | F193: PLZ-Adressierung | G193: extern | H193: Ja | I193: Nein | J193: 2092
A194: 2093 | B194: Geras | C194: N | D194: 01.01.1966 | F194: PLZ-Adressierung | G194: extern | H194: Ja | I194: Ja | J194: 2093
A195: =J195*1 -> 2094 | B195: Zissersdorf | C195: N | D195: 01.01.1966 | F195: PLZ-Adressierung | G195: extern | H195: Ja | I195: Nein | J195: 2094
A196: 2095 | B196: Drosendorf | C196: N | D196: 01.01.1966 | F196: PLZ-Adressierung | G196: extern | H196: Ja | I196: Nein | J196: 2095
A197: 2100 | B197: Korneuburg | C197: N | D197: 01.01.1966 | F197: PLZ-Adressierung | G197: extern | H197: Ja | I197: Ja | J197: 2100
A198: 2102 | B198: Bisamberg | C198: N | D198: 01.01.1966 | F198: PLZ-Adressierung | G198: extern | H198: Ja | I198: Ja | J198: 2102
A199: 2103 | B199: Langenzersdorf | C199: N | D199: 01.01.1966 | F199: PLZ-Adressierung | G199: extern | H199: Ja | I199: Ja | J199: 2103
A200: 2104 | B200: Spillern | C200: N | D200: 01.01.1966 | F200: PLZ-Adressierung | G200: extern | H200: Ja | I200: Ja | J200: 2104
... 2386 more rows

Sheet A Cockpit (hidden)
A2: Hinweis: Wenn Zeilen in den Tabellenblättern eingefügt/gelöscht werden, in denen Zeilen ausgeblendet werden, müssen die neuen Zeilennummern im VBA korrigiert werden!
A3: Auf der Antragsseite müssen die Seitenumbrüche angepasst werden, falls ein Rechner aktiviert/deaktiviert wird.
B5: EFM-Rechner | F5: Gewählt
F6: Klauselpaket | G6: =IF(C7="an",C8,"") -> 
B7: Status | C7: aus
B8: Klauselpaket | C8: Es gilt die EFM/Safe7 Rahmenvereinbarung 12/2017.
B9: Ausgeblendete Zellen | C9: Antrag 206, 213, Elementar 116, 135

Sheet Grunddaten
B2: ="Schnellrechner Gewerbe Plus V"&Grunddaten!F3 -> Schnellrechner Gewerbe Plus V2026-01 | F2: Version Rechner
F3: 2026-01
B4: Kontaktdaten des Vermittlers
B5: Name
B6: Straße, Hausnummer
B7: PLZ, Ort
B8: Telefon
B9: E-Mail
B10: Webadresse
B11: Vermittlernummer
B13: NV-Code
C14: =IF(C13="","",IF(OR(C13=Kundendaten!C42,,C13=Kundendaten!D42),"","Rabattcode ungültig")) -> 
B17: Hinweis
B18: Das Rechenprogramm ist auf Excel 2007 aufwärts optimiert. Falls Sie eine ältere Version benutzen, werden grafische Effekte teilweise nicht richtig angezeigt, die Berechnungsergebnisse sind jedoch korrekt.
B20: Tipp:
B21: Geben Sie oben Ihre Kontaktdaten ein. Speichern Sie die Datei anschließend auf Ihrem Computer und aktivieren Sie den Schreibschutz (im Arbeitsplatz Rechtsklick auf die Datei > Eigenschaften > Reiter "Allgemein": Häkchen bei Schreibgeschützt setzen. Dadurch wird beim Speichern der Excel-Datei immer eine neue Kopie angelegt, d.h. im ursprünglichen Rechner fangen Sie immer mit einer "frischen" Berechnung an.
B23: Excel-Datei an NV versenden
B24: Diese Excel-Datei enthält Makros, welche für die Druckfunktion notwendig sind. Aus Sicherheitsgründen kann die NV jedoch per Mail keine Excel-Dateien mit Makros empfangen. Falls Sie uns die Datei zukommen lassen müssen, speichen Sie sie vorher als Excel ohne Makros:
B25: 1. Datei > Speichern unter
B26: 2. Dateityp "Excel-Arbeitsmappe" auswählen (.xlsx) - NICHT "Excel 97-2003"
B27: 3. Beim nachfolgenden Dialog "ja" wählen, Datei speichern und versenden
B30: Bedienungshinweise
B31: Alle hellblauen Felder sind befüllbar.
B32: Jeweils am oberen Rand finden Sie die Navigation, mit der Sie zwischen den einzelnen Blättern wechseln können.
B34: Als pdf drucken
B35: Um das Offert als PDF zu speichern, benüten Sie einen externen Pdf-Drucker nutzen, z. B. den PDF Creator:
B36: http://www.chip.de/downloads/PDFCreator_13009777.html
B37: Nach erfolgter Installation des Druckers können Sie das Angebot als pdf ausdrucken. Falls Sie die Deckungsübersicht für die Haushalts- und Eigenheimversicherung ebenfalls drucken wollen, setzten Sie ein Häkchen bei "inkl. Deckungsübersicht drucken".
B38: Sobald Sie auf den Button "Angebot/Antrag drucken" klicken, sehen Sie eine Druckvorschau. Klicken Sie oben auf "Drucken", wählen Sie den PDF-Creator aus und klicken auf OK. Im Menü des PDFCreator wählen Sie "speichern". Anschließend können Sie den Speicherort und Dateinamen festlegen.
B54: Kontaktdaten bei Niederösterreichischer Versicherung
B55: E-Mail-Adresse für Anträge | C55: stefan.helferstorfer@noevers.at

Sheet Notizen (hidden)
A3: Aufbau
A4: Check KTE max. 3.500.000 | G4: Technsiche Fragen
A5: Auswahl Gewerbe/reiner Vermieter | G5: Nicht benötige Deckungen ausblenden?
A6: Auswahl Branche | G6: Anfragepflichtige Sparten (z.B. Technik) ausblenden
A7: Angabe Risikoorte, Gebäude, KTE, Waren
A8: Spartenteil | G8: Versicherungsfragen
G9: Mehrere Branchen: Je Gebäude festgelegt? Immer jeweils höchster Satz?
G10: Durchschnittsprämiensatz
A11: Berechnungsabbruch bei | G11: Mindestprämie
A12: Keine Branche/mehr als 5 | B12: =IF(OR(Branche!A5>5,Branche!A5=0),1,0) -> 1 | G12: Kühlgut gilt immer für alle Risikoorte? | H12: ja
A13: Branchenverzeichnis VT | B13: ='Berechnung Grund'!F27 -> 0 | G13: Wie viele Branchen?
A14: ED-Sicherungen JT | B14: ='Berechnung Grund'!I27 -> 0 | G14: Sturm: Offenes Gebäude und weiches Dach Zuschlag kummuliert?
A15: ED-Sicherungen S | B15: ='Berechnung Grund'!P27 -> 0 | G15: Technik und Feuer EC je Risikoort wählbar? Technik Pauschal und indir. Blitz kombinierbar? | H15: entweswe
A16: Basisdaten unvollständig | B16: =41-COUNTBLANK(Basisdaten!S5:S45) -> 0 | G16: Technik indirekter Blitz gilt für alle Risikoorte?
G17: Geld im Sicherheitsbehältnis ER-Summe?
G18: EC: je Risikoort einzeln? Nebenkosten prämienfrei?
G19: EC-BU auch ohne Feuer-BU möglich?
G20: Berechnen sich NK anhand der Bruchteil oder Vollwertsumme?
G21: Botenberaubung Erhöhte VS: Zuschlag nur für Erhöhung oder alles?
G22: Glasbruch, Haftpflicht: Reiner Vermieter - wo erfolgt Typbestimmung? | H22: beide
G24: Hpfl: Welche HP bei mehreren Branchen? | H24: immer höhere
A25: Rabatte | G25: Hpfl: Bausteine ohne Prämie prämienfrei dabei?
A26: NÖ-Vorteil 10 % F, Glas, HHV, UV | G26: Hpfl: VS-Erhöhung auch für Zusatzbausteine?
A27: Nachlass 20 % EC, EC-BU, Technik, EDV, 10 % Kühlgut | G27: Hpfl: Deckungen Grundpaket obligat?
A28: Kein ZW-Nachlass | G28: Hpfl: Paket individuell?
A29: Steuer 11 %, F/BU 15 %, Kül/EDV 11,2 %, Transport 12,6% | G29: Hpfl: Auslandsdeckung Export/Import HP 4 Druckfehler?
A30: Bruchteilversicherung laut Staffel | G30: Familienbetriebe automatisch bei 0 EUR LuG | H30: weg
G31: Nachlässe/Zuschläge HPfl auch auf Erweiterungen?
A32: Gebäudebewertung | G32: Hpfl Export/Import 25 %-Grenze separat bestimmbar?
A33: Bauartklasse I oder II | G33: Hpfl: Welche Mindestprämie? Tabelle oder Paket? | M33: Beantwortet
A34: Dachung hart/nicht hart | M34: Anzahl Risikoorte, Gebäude je Ort
A35: Art: Wohn/Büro, Produktion | M35: Feuer Sicherungen: Je Gebäude oder je Betrieb? > Betrieb
A36: Gewerbliche Nutzfläche | M36: Bezeichung des Gebäudes angeben? > ja
G37: Maklerbetreuung Fragen | M37: Daten Kundenerfassung (GmbH etc., FBN, EU mit Geburtsdatum)
A38: Feuer | G38: Welche Gebäudebezeichnungen möglich? | M38: Bruchteil für KTE und Vorräte getrennt, Sparten einzeln bestimmbar? > ja
A39: Prämie laut Ba | G39: Mehrkosten/Mietentgang-BU unabhängige Sparte? | M39: Einzelne Gebäude aus Sparten ausschließen? > Sturm, LW je Gebäude, Glasbruch/Einbruch je Risikoort
A40: Behältnisse je Risikoort? | G40: Sicherungen einbauen?
A41: Zuschlag Dachung 50 % nur für betr. Gebäude | G41: Glasbruch: Je Risikoort einzeln wählbar? M² je Risikoort einzeln wählbar?
G42: Glas: Kabinenverglasung auch als Einzelsparte?
G43: Glas: Mieträumlichkeiten nur bei reiner Vermieter? Nachlass auf alle Erweiterungen?
A47: Eingabe | G47: Berechnung | M47: Antrag
A48: Erledigte Bausteine | B48: Gebäude | C48: KTE | D48: Vorräte | E48: Allgemein | F48: Erweit. | G48: Erledigte Bausteine | H48: Gebäude | I48: KTE | J48: Vorräte | K48: Allgemein | L48: Erweit. | M48: Erledigte Bausteine | N48: Gebäude | O48: KTE | P48: Vorräte | Q48: Allgemein | R48: Erweit.
A49: Feuer | B49: x | C49: x | D49: x | E49: x | F49: x | G49: =A49 -> Feuer | H49: x | I49: x | J49: x | K49: x | L49: x | M49: =G49 -> Feuer | N49: x | O49: x | P49: x | Q49: x | R49: x
A50: Feuer-EC | E50: x | F50: x | G50: =A50 -> Feuer-EC | K50: x | L50: x | M50: =G50 -> Feuer-EC | Q50: x | R50: x
A51: Feuer-BU | E51: x | F51: x | G51: Feuer-BU | K51: x | L51: x | M51: Feuer-BU | Q51: x | R51: x
A52: Mietentgang-BU | E52: x | F52: x | G52: Mietentgang-BU | K52: x | L52: x | M52: Mietentgang-BU
A53: Mehrkosten-BU | E53: x | F53: x | G53: Mehrkosten-BU | K53: x | L53: x | M53: Mehrkosten-BU
A54: EC-BU | E54: x | F54: x | G54: EC-BU | K54: x | L54: x | M54: EC-BU | Q54: x | R54: x
A55: EC-Mietentgang | E55: x | F55: x | G55: EC-Mietentgang | K55: x | L55: x | M55: EC-Mietentgang
A56: EC-Mehrkosetn | E56: x | F56: x | G56: EC-Mehrkosetn | K56: x | L56: x | M56: EC-Mehrkosetn
A57: ED | C57: x | D57: x | F57: x | G57: ED | I57: x | J57: x | L57: x | M57: ED | O57: x | P57: x | R57: x
A58: Botenberaubung | E58: x | F58: x | G58: Botenberaubung | K58: x | L58: x | M58: Botenberaubung | Q58: x | R58: x
A59: LW | B59: x | C59: x | D59: x | E59: x | F59: x | G59: LW | H59: x | I59: x | J59: x | K59: x | L59: x | M59: LW | N59: x | O59: x | P59: x | Q59: x | R59: x
A60: Glas | B60: x | C60: x | F60: x | G60: Glas | H60: x | I60: x | L60: x | M60: Glas | N60: x | O60: x | R60: x
A61: Sturm | B61: x | C61: x | D61: x | E61: x | F61: x | G61: Sturm | H61: x | I61: x | J61: x | K61: x | L61: x | M61: Sturm | N61: x | O61: x | P61: x | Q61: x | R61: x
A62: Katastrophenschutz | E62: x | G62: Katastrophenschutz | K62: x | M62: Katastrophenschutz
A63: Hpfl | B63: x | E63: x | F63: x | G63: Hpfl | H63: x | K63: x | L63: x | M63: Hpfl | N63: x | Q63: x | R63: x
A64: Hpfl Haus- und Grundbesitz | B64: x | G64: Hpfl Haus- und Grundbesitz | H64: x | M64: Hpfl Haus- und Grundbesitz
A65: RS | E65: x | F65: x | G65: RS | K65: x | L65: x | M65: RS | Q65: x | R65: x
A66: Technik | C66: x | F66: x | G66: Technik | I66: x | L66: x | M66: Technik | O66: x | R66: x
A67: EDV | C67: x | F67: x | G67: EDV | I67: x | L67: x | M67: EDV | O67: x | R67: x
A68: Kühlgut | E68: x | F68: x | G68: Kühlgut | K68: x | L68: x | M68: Kühlgut | Q68: x | R68: x
A69: Transport | E69: x | F69: x | G69: Transport | K69: x | L69: x | M69: Transport | Q69: x | R69: x
A72: Fehlende

Sheet Kundendaten
N2: Kundendaten
N3: Firmenbezeichnung (ohne Rechtsform) | Q3: =IF($H$33="nein","",IF(O3="","Fehlende Angabe","")) -> Fehlende Angabe
G4: Rechtsformen | N4: Rechtsform | Q4: =IF($H$33="nein","",IF(O4="","Fehlende Angabe","")) -> Fehlende Angabe
G5: Einzelunternehmen | N5: Firmenbuchnummer (optional)
G6: OG | N6: Geschlecht | Q6: =IF($H$33="nein","",IF(O6="","Fehlende Angabe","")) -> Fehlende Angabe
G7: KG | N7: Geburtsdatum | Q7: =IF($H$33="nein","",IF(O7="","Fehlende Angabe","")) -> Fehlende Angabe
G8: GmbH | N8: Straße, Hausnummer | Q8: =IF($H$33="nein","",IF(O8="","Fehlende Angabe","")) -> Fehlende Angabe
G9: GmbH und Co KG | N9: PLZ | Q9: =IF($H$33="nein","",IF(O9="","Fehlende Angabe","")) -> Fehlende Angabe
G10: Verein | N10: Ort | O10: =VLOOKUP(O9,PLZ,2,FALSE) -> 
D11: Varianten | E11: Gewählt | G11: Genossenschaft | N11: Ort (falls abweichende Gemeinde)
D12: Reiner Vermieter | E12: =IF(O15="",D12,O15) -> Betrieb | G12: AG
D13: Betrieb | E13: =IF(E12=D13,1,0) -> 1
N14: Berechnungsvariante
N15: Berechnung für | O15: Betrieb | Q15: =IF(O15="","Bitte auswählen","") -> 
D18: Prämienzahler | N18: Antragsdaten
D19: =IF(O25="",O3&" "&O4,O25) ->  | N19: Beginn (frühestens heute) | Q19: =IF($H$33="nein","",IF(I36="","Fehlende Angabe","")) -> 
D20: =IF(O25="",O8,O27) -> 0 | N20: HF verlegen auf anderen Monat: | O20: nein | Q20: =IF(O19<I36,"Beginn kann nicht in der Vergangenheit liegen, heutiges Datum wird herangezogen","") -> Beginn kann nicht in der Vergangenheit liegen, heutiges Datum wird herangezogen
D21: =IF(O25="",O9&" "&IF(O11="",O10,O11),O26) ->  | N21: Ablauf | O21: =IF(OR(O20="nein",O20=""),I37,IF(MONTH(I37)<O20,DATE(YEAR(I36)+10,O20,1),DATE(YEAR(I36)+11,O20,1))) -> 2036-03-23
H22: Zahlart | N22: Zahlungsart | O22: SEPA-Lastschrift | Q22: =IF($H$33="nein","",IF(O22="","Fehlende Angabe","")) -> 
H23: SEPA-Lastschrift | N23: BIC | Q23: =IF($H$33="nein","",IF(AND($O$22="Abbuchung",O23=""),"Fehlende Angabe","")) -> 
D24: Zahlweise | H24: Erlagschein | N24: IBAN | Q24: =IF($H$33="nein","",IF(AND($O$22="Abbuchung",O24=""),"Fehlende Angabe","")) -> 
D25: Jährlich | E25: 1 | H25: Gewählt | N25: Inhaber (falls vom VN abweichend)
D26: halbjährlich | E26: 2 | H26: =IF(O22="",H24,O22) -> SEPA-Lastschrift | N26: PLZ, Ort (falls andere Adresse als VN)
D27: vierteljährlich | E27: 4 | N27: Straße, Hausnummer (falls andere Adresse als VN)
D28: monatlich | E28: 12
D29: Gewählt | N29: Antragsfragen
D30: =IF(O43="",D25,O43) -> Jährlich | E30: =VLOOKUP(D30,D25:E28,2,FALSE) -> 1 | K30: TRUE | N30: Kündigung durch den Vorversicherer?
K31: FALSE | N31: Konvertierung NV-Vertrag?
N32: Vorpolizzennummer | Q32: =IF($H$33="nein","",IF(AND(H46="ja",O32=""),"Fehlende Angabe","")) -> 
B33: Konvert./Neugeschäft SR | N33: Sonderrabatt-Erhöhung bis zu 35 % | O33: Nein
B34: Nein
B35: Konvertierung Mehrprämie erreicht | C35: Mehrprämie bei Konvertierung erreicht | N35: Elektronische Kommunikation
B36: Neugeschäft, Schadensatz < 60 % | C36: Neugeschäft mit Schadensatz unter 60 % | H36: Beginn | I36: =MAX(TODAY(),O19) -> 2026-03-23 | N36: Elektronische Kommunikation gewünscht?
B37: Rabatt ja/nein | C37: =IF(OR(O33=B35,O33=B36),35%,0%) -> 0 | H37: Ablauf per | I37: =DATE(YEAR(I36)+10,MONTH(I36),DAY(I36)) -> 2036-03-23 | N37: E-Mail-Adresse
H39: Prämie
C41: Code: | N41: Zahlweise, Rabatte & Antrag
C42: NVAGRAR | D42: NVSPEZIAL | N42: Jahresbruttoprämie | O42: ='Übersicht und Druck'!R3 -> 
B43: Standard | C43: mit Code | D43: mit Code | E43: Maximal-Rabatt | F43: Rabatt-Angabe | G43: Für Berechnung | N43: Zahlweise | O43: Jährlich
A44: Sonderrabatt Gesamt | B44: 0.99 | C44: 0.3 | D44: 0.99 | E44: =MAX(C37,IF(Grunddaten!$C$13=$C$42,C44,IF(Grunddaten!$C$13=$D$42,D44,B44))) -> 0.99 | F44: =IF(O49="",0,O49/100) -> 0.5 | G44: =MIN(E44,F44) -> 0.5 | N44: Gewerbeoffensive 24 | Q44: =IF(F44>E44,"Maximalrabatt überschritten, für Berechnung werden "&G44*100&" % herangezogen","") -> 
H45: =IF(K30=TRUE,"ja","nein") -> ja | N45: =VLOOKUP(C62,C58:D61,2,FALSE) -> Bitte Branchen auswählen, damit Sie sehen, ob Anspruch auf die Gewerbe-Aktion besteht.
H46: =IF(K31=TRUE,"ja","nein") -> nein | K46: FALSE
B47: Deckungsübersicht | C47: TRUE
B49: El. Kommnikation | C49: FALSE | N49: Sonderrabatt in % (Maus hierher für Infos) | O49: 50
N50: Prämie laut Zahlweise | O50: ='Übersicht und Druck'!R5 -> 
C56: Farbe | D56: =IF(C62=C59,"grün",IF(C62=C60,"gelb","grau")) -> grau
C57: Gewerbe-Aktion | D57: Rabatt
C58: nein | D58: Keine Gewerbeoffensive für diese Branche möglich. Bei Vorliegen der allgemeinen Voraussetzungen (siehe Feld Sonderrabatt) können 35 % Rabatt vergeben werden.
C59: OK | D59: Gewerbeoffensive für diese Branche möglich. Bei Vorliegen der allgemeinen Voraussetzungen (siehe Feld Sonderrabatt) können 60 % Rabatt vergeben werden. Niedrigere Rabatt für Rechtsschutz (35 %) und Transport (20 %) werden automatisch berücksichtigt.
C60: ohne Haft | D60: Gewerbeoffensive für diese Branche möglich, außer Haftpflicht (Sparte anfragepflichtig). Bei Vorliegen der allgemeinen Voraussetzungen (siehe Feld Sonderrabatt) können 60 % Rabatt vergeben werden. Niedrigere Rabatt für Rechtsschutz (35 %) und Transport (20 %) werden automatisch berücksichtigt.
C61: Branche wählen | D61: Bitte Branchen auswählen, damit Sie sehen, ob Anspruch auf die Gewerbe-Aktion besteht.
C62: =Branche!I4 -> Branche wählen
C63: SNL RS Max | D63: 0.35
C64: SNL RS tatsächlich | D64: =MIN(D63,O49/100) -> 0.35
C66: SNL Transport Max | D66: 0.2
C67: SNL Transport tatsächlich | D67: =MIN(D66,O49/100) -> 0.2

Sheet Branche
D2: Anleitung: Klicken Sie auf das graue Kästchen mit dem Pfeil nach unten. Geben Sie im Suchfeld den gewünschten Begriff ein (z.B. Sport, Gastro…). Jede Branche, in welcher der Teilbegriff aufscheint, wird nun angezeigt. Falls die Branche versichert werden soll, ändern Sie die Spalte "Branche wählen" auf "beantragt".
A4: Gesamt | C4: Platz | D4: Gewählte Branchen | F4: Gewerbeoffensive möglich: | I4: =IF(SUM(N5:N7)=0,"Branche wählen",IF(N5>0,M5,IF(N7>0,M7,M6))) -> Branche wählen
A5: =B621 -> 0 | C5: 1 | D5: =IF(C5<=$A$5,VLOOKUP(C5,$C$12:$D$621,2,FALSE),"") ->  | F5: =IF(D5="","",VLOOKUP(D5,Branchenverzeichnis!$A$3:$S$623,19,FALSE)) ->  | M5: nein | N5: =COUNTIF($F$5:$F$9,M5) -> 0
C6: 2 | D6: =IF(C6<=$A$5,VLOOKUP(C6,$C$12:$D$621,2,FALSE),"") ->  | F6: =IF(D6="","",VLOOKUP(D6,Branchenverzeichnis!$A$3:$S$623,19,FALSE)) ->  | M6: OK | N6: =COUNTIF($F$5:$F$9,M6) -> 0
C7: 3 | D7: =IF(C7<=$A$5,VLOOKUP(C7,$C$12:$D$621,2,FALSE),"") ->  | F7: =IF(D7="","",VLOOKUP(D7,Branchenverzeichnis!$A$3:$S$623,19,FALSE)) ->  | M7: ohne Haft | N7: =COUNTIF($F$5:$F$9,M7) -> 0
C8: 4 | D8: =IF(C8<=$A$5,VLOOKUP(C8,$C$12:$D$621,2,FALSE),"") ->  | F8: =IF(D8="","",VLOOKUP(D8,Branchenverzeichnis!$A$3:$S$623,19,FALSE)) -> 
C9: 5 | D9: =IF(C9<=$A$5,VLOOKUP(C9,$C$12:$D$621,2,FALSE),"") ->  | F9: =IF(D9="","",VLOOKUP(D9,Branchenverzeichnis!$A$3:$S$623,19,FALSE)) -> 
D10: =IF(A5>5,"Mehr als 5 Branchen gewählt! Berechnung nicht möglich, bitte wenden Sie sich für ein Offert an die Maklerbetreuung.",IF(A5=0,"Bitte Branche auswählen","")) -> Bitte Branche auswählen
D11: Branchenverzeichnis
A12: Nummerierung | B12: Kummuliert | C12: Platz | D12: Hier klicken für Suche .
A13: =IF(E13="beantragt",1,0) -> 0 | B13: =A13 -> 0 | C13: =IF(A13=1,B13,0) -> 0 | D13: =Branchenverzeichnis!A3 -> Abbruchunternehmen | E13: nein
A14: =IF(E14="beantragt",1,0) -> 0 | B14: =B13+A14 -> 0 | C14: 0 | D14: =Branchenverzeichnis!A4 -> Abdichtunternehmen | E14: nein
A15: =IF(E15="beantragt",1,0) -> 0 | B15: =B14+A15 -> 0 | C15: 0 | D15: =Branchenverzeichnis!A5 -> Abfallsortieranlage | E15: nein
A16: 0 | B16: 0 | C16: 0 | D16: =Branchenverzeichnis!A6 -> Abwasserreinigung, Kläranlage | E16: nein
A17: 0 | B17: 0 | C17: 0 | D17: =Branchenverzeichnis!A7 -> Akkumulatorenerzeugung | E17: nein
A18: 0 | B18: 0 | C18: 0 | D18: =Branchenverzeichnis!A8 -> Aktenlogistik | E18: nein
A19: 0 | B19: 0 | C19: 0 | D19: =Branchenverzeichnis!A9 -> Alarmanlagenhandel mit Montage | E19: nein
A20: 0 | B20: 0 | C20: 0 | D20: =Branchenverzeichnis!A10 -> Alarmanlagenhandel ohne Montage | E20: nein
A21: 0 | B21: 0 | C21: 0 | D21: =Branchenverzeichnis!A11 -> Alkoholfreie Getränke Erzeugung | E21: nein
A22: 0 | B22: 0 | C22: 0 | D22: =Branchenverzeichnis!A12 -> Alt- u. Schwereisenhandel | E22: nein
A23: 0 | B23: 0 | C23: 0 | D23: =Branchenverzeichnis!A13 -> Alternative Heilpraxis | E23: nein
A24: 0 | B24: 0 | C24: 0 | D24: =Branchenverzeichnis!A14 -> Altstoffsammelzentrum-Müllumladestation | E24: nein
A25: 0 | B25: 0 | C25: 0 | D25: =Branchenverzeichnis!A15 -> Altwarenhandel (nicht Antiquitäten) | E25: nein
A26: 0 | B26: 0 | C26: 0 | D26: =Branchenverzeichnis!A16 -> Alu-Gießerei | E26: nein
A27: 0 | B27: 0 | C27: 0 | D27: =Branchenverzeichnis!A17 -> Andenkenartikelhandel | E27: nein
A28: 0 | B28: 0 | C28: 0 | D28: =Branchenverzeichnis!A18 -> Angler- und Fischereiartikelhandel | E28: nein
A29: 0 | B29: 0 | C29: 0 | D29: =Branchenverzeichnis!A19 -> Animateur | E29: nein
A30: 0 | B30: 0 | C30: 0 | D30: =Branchenverzeichnis!A20 -> Ankündigungsgewerbe | E30: nein
A31: 0 | B31: 0 | C31: 0 | D31: =Branchenverzeichnis!A21 -> Antiquitäten- u. Kunsthandlung | E31: nein
A32: 0 | B32: 0 | C32: 0 | D32: =Branchenverzeichnis!A22 -> Apotheke | E32: nein
A33: 0 | B33: 0 | C33: 0 | D33: =Branchenverzeichnis!A23 -> Appartements (ohne Bewirtung) | E33: nein
A34: 0 | B34: 0 | C34: 0 | D34: =Branchenverzeichnis!A24 -> Armaturenerzeugung | E34: nein
A35: 0 | B35: 0 | C35: 0 | D35: =Branchenverzeichnis!A25 -> Arzneimittelerzeugung | E35: nein
A36: 0 | B36: 0 | C36: 0 | D36: =Branchenverzeichnis!A26 -> Ärztl. Ordination | E36: nein
A37: 0 | B37: 0 | C37: 0 | D37: =Branchenverzeichnis!A27 -> Ärztl. Ordination, Ärzte ausschließlich in Laboratorien | E37: nein
A38: 0 | B38: 0 | C38: 0 | D38: =Branchenverzeichnis!A28 -> Ärztl. Ordination, Facharzt für Allgemeinmedizin (Praktischer Arzt) | E38: nein
A39: 0 | B39: 0 | C39: 0 | D39: =Branchenverzeichnis!A29 -> Ärztl. Ordination, Facharzt für Allgemeinmedizin und Lipolyse | E39: nein
A40: 0 | B40: 0 | C40: 0 | D40: =Branchenverzeichnis!A30 -> Ärztl. Ordination, Facharzt für Anästesiologie | E40: nein
A41: 0 | B41: 0 | C41: 0 | D41: =Branchenverzeichnis!A31 -> Ärztl. Ordination, Facharzt für Augenheilkunde | E41: nein
A42: 0 | B42: 0 | C42: 0 | D42: =Branchenverzeichnis!A32 -> Ärztl. Ordination, Facharzt für Chirurgie | E42: nein
A43: 0 | B43: 0 | C43: 0 | D43: =Branchenverzeichnis!A33 -> Ärztl. Ordination, Facharzt für Dermatologie | E43: nein
A44: 0 | B44: 0 | C44: 0 | D44: =Branchenverzeichnis!A34 -> Ärztl. Ordination, Facharzt für Gastroenterologie und Hepatologie | E44: nein
A45: 0 | B45: 0 | C45: 0 | D45: =Branchenverzeichnis!A35 -> Ärztl. Ordination, Facharzt für Gynäkologie | E45: nein
A46: 0 | B46: 0 | C46: 0 | D46: =Branchenverzeichnis!A36 -> Ärztl. Ordination, Facharzt für Hals, Nasen und Ohren | E46: nein
A47: 0 | B47: 0 | C47: 0 | D47: =Branchenverzeichnis!A37 -> Ärztl. Ordination, Facharzt für Haut- und Geschlechtskrankheiten | E47: nein
A48: 0 | B48: 0 | C48: 0 | D48: =Branchenverzeichnis!A38 -> Ärztl. Ordination, Facharzt für Innere Medizin | E48: nein
A49: 0 | B49: 0 | C49: 0 | D49: =Branchenverzeichnis!A39 -> Ärztl. Ordination, Facharzt für Intensivmedizin | E49: nein
A50: 0 | B50: 0 | C50: 0 | D50: =Branchenverzeichnis!A40 -> Ärztl. Ordination, Facharzt für Kardiologie | E50: nein
A51: 0 | B51: 0 | C51: 0 | D51: =Branchenverzeichnis!A41 -> Ärztl. Ordination, Facharzt für Lungenkrankheiten | E51: nein
A52: 0 | B52: 0 | C52: 0 | D52: =Branchenverzeichnis!A42 -> Ärztl. Ordination, Facharzt für Neurologie | E52: nein
A53: 0 | B53: 0 | C53: 0 | D53: =Branchenverzeichnis!A43 -> Ärztl. Ordination, Facharzt für Orthopädie u orthop. Chirurgie | E53: nein
A54: 0 | B54: 0 | C54: 0 | D54: =Branchenverzeichnis!A44 -> Ärztl. Ordination, Facharzt für Pädiatrie | E54: nein
A55: 0 | B55: 0 | C55: 0 | D55: =Branchenverzeichnis!A45 -> Ärztl. Ordination, Facharzt für Phatologie | E55: nein
A56: 0 | B56: 0 | C56: 0 | D56: =Branchenverzeichnis!A46 -> Ärztl. Ordination, Facharzt für physikalische Medizin | E56: nein
A57: 0 | B57: 0 | C57: 0 | D57: =Branchenverzeichnis!A47 -> Ärztl. Ordination, Facharzt für Psychiatrie, Psychologie | E57: nein
A58: 0 | B58: 0 | C58: 0 | D58: =Branchenverzeichnis!A48 -> Ärztl. Ordination, Facharzt für Radiologie und Röntgenologie | E58: nein
A59: 0 | B59: 0 | C59: 0 | D59: =Branchenverzeichnis!A49 -> Ärztl. Ordination, Facharzt für Urologie | E59: nein
A60: 0 | B60: 0 | C60: 0 | D60: =Branchenverzeichnis!A50 -> Ärztl. Ordination, Facharzt für Veterinär | E60: nein
A61: 0 | B61: 0 | C61: 0 | D61: =Branchenverzeichnis!A51 -> Ärztl. Ordination, Facharzt für Zahnheilkunde | E61: nein
A62: 0 | B62: 0 | C62: 0 | D62: =Branchenverzeichnis!A52 -> Arztzubehörhandel | E62: nein
A63: 0 | B63: 0 | C63: 0 | D63: =Branchenverzeichnis!A53 -> Asbestwarenerzeugung | E63: nein
A64: 0 | B64: 0 | C64: 0 | D64: =Branchenverzeichnis!A54 -> Asphalt u. Teerspliterzeugung | E64: nein
A65: 0 | B65: 0 | C65: 0 | D65: =Branchenverzeichnis!A55 -> Asphaltierer | E65: nein
A66: 0 | B66: 0 | C66: 0 | D66: =Branchenverzeichnis!A56 -> Atelier | E66: nein
A67: 0 | B67: 0 | C67: 0 | D67: =Branchenverzeichnis!A57 -> Ätherische Öle – Erzeugung | E67: nein
A68: 0 | B68: 0 | C68: 0 | D68: =Branchenverzeichnis!A58 -> Ätherische Öle – Handel | E68: nein
A69: 0 | B69: 0 | C69: 0 | D69: =Branchenverzeichnis!A59 -> Ätherische Öle- und Essenzenerzeugung | E69: nein
A70: 0 | B70: 0 | C70: 0 | D70: =Branchenverzeichnis!A60 -> Ätherische Öle- und Essenzenhandel | E70: nein
A71: 0 | B71: 0 | C71: 0 | D71: =Branchenverzeichnis!A61 -> Aufzüge u. Rolltreppen | E71: nein
A72: 0 | B72: 0 | C72: 0 | D72: =Branchenverzeichnis!A62 -> Aufzugerzeugung | E72: nein
A73: 0 | B73: 0 | C73: 0 | D73: =Branchenverzeichnis!A63 -> Aufzugsmonteur | E73: nein
A74: 0 | B74: 0 | C74: 0 | D74: =Branchenverzeichnis!A64 -> Auktionshaus | E74: nein
A75: 0 | B75: 0 | C75: 0 | D75: =Branchenverzeichnis!A65 -> Autobus- und Taxiunternehmen | E75: nein
A76: 0 | B76: 0 | C76: 0 | D76: =Branchenverzeichnis!A66 -> Automaten – Service, Reparatur | E76: nein
A77: 0 | B77: 0 | C77: =IF(A77=1,B77,0) -> 0 | D77: =Branchenverzeichnis!A67 -> Automatenbuffet | E77: nein
A78: 0 | B78: 0 | C78: 0 | D78: =Branchenverzeichnis!A68 -> Autoreifenhandel inkl. Montage | E78: nein
A79: =IF(E79="beantragt",1,0) -> 0 | B79: =B78+A79 -> 0 | C79: 0 | D79: =Branchenverzeichnis!A69 -> Autoreifenhandel ohne Montage und ohne Vulkanisierung | E79: nein
A80: 0 | B80: 0 | C80: 0 | D80: =Branchenverzeichnis!A70 -> Autowaschstraße | E80: nein
A81: 0 | B81: 0 | C81: 0 | D81: =Branchenverzeichnis!A71 -> Back- u. Konditorwarenhandel | E81: nein
A82: 0 | B82: 0 | C82: 0 | D82: =Branchenverzeichnis!A72 -> Bäckerei, Konditorei | E82: nein
A83: 0 | B83: 0 | C83: 0 | D83: =Branchenverzeichnis!A73 -> Baggerunternehmer | E83: nein
A84: 0 | B84: 0 | C84: 0 | D84: =Branchenverzeichnis!A74 -> Bandagist ohne Heilbehandlung | E84: nein
A85: 0 | B85: 0 | C85: 0 | D85: =Branchenverzeichnis!A75 -> Bastlerbedarfshandel | E85: nein
A86: 0 | B86: 0 | C86: 0 | D86: =Branchenverzeichnis!A76 -> Bauchtanzschule | E86: nein
A87: 0 | B87: 0 | C87: 0 | D87: =Branchenverzeichnis!A77 -> Baumarkt | E87: nein
A88: 0 | B88: 0 | C88: 0 | D88: =Branchenverzeichnis!A78 -> Baumeister, Bauunternehmung *****) | E88: nein
A89: 0 | B89: 0 | C89: 0 | D89: =Branchenverzeichnis!A79 -> Baumschnitt | E89: nein
A90: 0 | B90: 0 | C90: 0 | D90: =Branchenverzeichnis!A80 -> Baumschulen | E90: nein
A91: 0 | B91: 0 | C91: 0 | D91: =Branchenverzeichnis!A81 -> Baustofferzeugung | E91: nein
A92: 0 | B92: 0 | C92: 0 | D92: =Branchenverzeichnis!A82 -> Baustoffhandel | E92: nein
A93: 0 | B93: 0 | C93: 0 | D93: =Branchenverzeichnis!A83 -> Beleuchtungskörper-Erzeugung | E93: nein
A94: 0 | B94: 0 | C94: 0 | D94: =Branchenverzeichnis!A84 -> Beleuchtungskörperhandel | E94: nein
A95: 0 | B95: 0 | C95: 0 | D95: =Branchenverzeichnis!A85 -> Beleuchtungskörperhandel mit Montage | E95: nein
A96: 0 | B96: 0 | C96: 0 | D96: =Branchenverzeichnis!A86 -> Besamungstechniker | E96: nein
A97: 0 | B97: 0 | C97: 0 | D97: =Branchenverzeichnis!A87 -> Besen-, Bürsten- und Pinselerzeugung | E97: nein
A98: 0 | B98: 0 | C98: 0 | D98: =Branchenverzeichnis!A88 -> Besenhandel | E98: nein
A99: 0 | B99: 0 | C99: 0 | D99: =Branchenverzeichnis!A89 -> Beton- und Betonwarenerzeugung | E99: nein
A100: 0 | B100: 0 | C100: 0 | D100: =Branchenverzeichnis!A90 -> Bettdecken u. Bettwarenerzeugung | E100: nein
A101: 0 | B101: 0 | C101: 0 | D101: =Branchenverzeichnis!A91 -> Bettdeckenhandel | E101: nein
A102: 0 | B102: 0 | C102: 0 | D102: =Branchenverzeichnis!A92 -> Bettfedernreinigung | E102: nein
A103: 0 | B103: 0 | C103: 0 | D103: =Branchenverzeichnis!A93 -> Bettwarenhandel | E103: nein
A104: 0 | B104: 0 | C104: 0 | D104: =Branchenverzeichnis!A94 -> Bienenzucht | E104: nein
A105: 0 | B105: 0 | C105: 0 | D105: =Branchenverzeichnis!A95 -> Bijouteriewarenhandel | E105: nein
A106: 0 | B106: 0 | C106: 0 | D106: =Branchenverzeichnis!A96 -> Bilderrahmenerzeugung | E106: nein
A107: 0 | B107: 0 | C107: 0 | D107: =Branchenverzeichnis!A97 -> Bildhauer | E107: nein
A108: 0 | B108: 0 | C108: 0 | D108: =Branchenverzeichnis!A98 -> Binderwarenhandel | E108: nein
A109: 0 | B109: 0 | C109: 0 | D109: =Branchenverzeichnis!A99 -> Biocremen- und Ölehandel | E109: nein
A110: 0 | B110: 0 | C110: 0 | D110: =Branchenverzeichnis!A100 -> Biodieselerzeugung | E110: nein
A111: 0 | B111: 0 | C111: 0 | D111: =Branchenverzeichnis!A101 -> Biogasanlage | E111: nein
A112: 0 | B112: 0 | C112: 0 | D112: =Branchenverzeichnis!A102 -> Biologische Seifen, Reinigungsmittelerzeugung | E112: nein
A113: 0 | B113: 0 | C113: 0 | D113: =Branchenverzeichnis!A103 -> Biotopbau, Gartengestaltung | E113: nein
A114: 0 | B114: 0 | C114: 0 | D114: =Branchenverzeichnis!A104 -> Bleistifterzeugung | E114: nein
A115: 0 | B115: 0 | C115: 0 | D115: =Branchenverzeichnis!A105 -> Blitzschutzanlagenerzeugung und Montage | E115: nein
A116: 0 | B116: 0 | C116: 0 | D116: =Branchenverzeichnis!A106 -> Blumenhandlung | E116: nein
A117: 0 | B117: 0 | C117: 0 | D117: =Branchenverzeichnis!A107 -> Boden- u. Wandbelag – Handel | E117: nein
A118: 0 | B118: 0 | C118: 0 | D118: =Branchenverzeichnis!A108 -> Boden- u. Wandbelag – mit Verlegung | E118: nein
A119: 0 | B119: 0 | C119: 0 | D119: =Branchenverzeichnis!A109 -> Bodenbelägeerzeugung | E119: nein
A120: 0 | B120: 0 | C120: 0 | D120: =Branchenverzeichnis!A110 -> Bodenleger, eingeschränkt auf Estrichleger | E120: nein
A121: 0 | B121: 0 | C121: 0 | D121: =Branchenverzeichnis!A111 -> Bonbonerzeugung | E121: nein
A122: 0 | B122: 0 | C122: 0 | D122: =Branchenverzeichnis!A112 -> Bootsbau | E122: nein
A123: 0 | B123: 0 | C123: 0 | D123: =Branchenverzeichnis!A113 -> Bootshandel inkl. Zubehör | E123: nein
A124: 0 | B124: 0 | C124: 0 | D124: =Branchenverzeichnis!A114 -> Botendienst | E124: nein
A125: 0 | B125: 0 | C125: 0 | D125: =Branchenverzeichnis!A115 -> Boutique | E125: nein
A126: 0 | B126: 0 | C126: 0 | D126: =Branchenverzeichnis!A116 -> Brandschutzbeauftragter | E126: nein
A127: 0 | B127: 0 | C127: 0 | D127: =Branchenverzeichnis!A117 -> Brandschutztechnik, Handel und Montage | E127: nein
A128: 0 | B128: 0 | C128: 0 | D128: =Branchenverzeichnis!A118 -> Branntweinschenke | E128: nein
A129: 0 | B129: 0 | C129: 0 | D129: =Branchenverzeichnis!A119 -> Brauerei | E129: nein
A130: 0 | B130: 0 | C130: 0 | D130: =Branchenverzeichnis!A120 -> Brennholzzerkleinerung | E130: nein
A131: 0 | B131: 0 | C131: 0 | D131: =Branchenverzeichnis!A121 -> Brennmaterialienhandel | E131: nein
A132: 0 | B132: 0 | C132: 0 | D132: =Branchenverzeichnis!A122 -> Briefmarken- u. Münzhandel | E132: nein
A133: 0 | B133: 0 | C133: 0 | D133: =Branchenverzeichnis!A123 -> Brunnenbau *****) | E133: nein
A134: 0 | B134: 0 | C134: 0 | D134: =Branchenverzeichnis!A124 -> Brüterei | E134: nein
A135: 0 | B135: 0 | C135: 0 | D135: =Branchenverzeichnis!A125 -> Buch- und Musikalienhandel | E135: nein
A136: 0 | B136: 0 | C136: 0 | D136: =Branchenverzeichnis!A126 -> Buchbinderei | E136: nein
A137: 0 | B137: 0 | C137: 0 | D137: =Branchenverzeichnis!A127 -> Büchsenmacher | E137: nein
A138: 0 | B138: 0 | C138: 0 | D138: =Branchenverzeichnis!A128 -> Bühnenbauer | E138: nein
A139: 0 | B139: 0 | C139: 0 | D139: =Branchenverzeichnis!A129 -> Bühnendekorateur | E139: nein
A140: 0 | B140: 0 | C140: 0 | D140: =Branchenverzeichnis!A130 -> Buntmetallgießerei | E140: nein
A141: 0 | B141: 0 | C141: =IF(A141=1,B141,0) -> 0 | D141: =Branchenverzeichnis!A131 -> Bürobedarfshandel | E141: nein
A142: 0 | B142: 0 | C142: 0 | D142: =Branchenverzeichnis!A132 -> Bürobetrieb | E142: nein
A143: =IF(E143="beantragt",1,0) -> 0 | B143: =B142+A143 -> 0 | C143: 0 | D143: =Branchenverzeichnis!A133 -> Büromaschinen- u. EDV-Anlagenerzeugung | E143: nein
A144: 0 | B144: 0 | C144: 0 | D144: =Branchenverzeichnis!A134 -> Büromaschinen- u. EDV-Anlagenhandel | E144: nein
A145: 0 | B145: 0 | C145: 0 | D145: =Branchenverzeichnis!A135 -> Buschenschank | E145: nein
A146: 0 | B146: 0 | C146: 0 | D146: =Branchenverzeichnis!A136 -> Campingplatz | E146: nein
A147: 0 | B147: 0 | C147: 0 | D147: =Branchenverzeichnis!A137 -> Chemische Produktehandel | E147: nein
A148: 0 | B148: 0 | C148: 0 | D148: =Branchenverzeichnis!A138 -> Chemische Putzerei **) | E148: nein
A149: 0 | B149: 0 | C149: 0 | D149: =Branchenverzeichnis!A139 -> Christbaumschmuck u. Faschingsartikelerz. Ohne Feuerwerkskörper | E149: nein
A150: 0 | B150: 0 | C150: 0 | D150: =Branchenverzeichnis!A140 -> Computerhandel und Reparatur | E150: nein
A151: 0 | B151: 0 | C151: 0 | D151: =Branchenverzeichnis!A141 -> Computer-Reparaturwerkstätte | E151: nein
A152: 0 | B152: 0 | C152: 0 | D152: =Branchenverzeichnis!A142 -> Dachdecker | E152: nein
A153: 0 | B153: 0 | C153: 0 | D153: =Branchenverzeichnis!A143 -> Dachpappeerzeugung | E153: nein
A154: 0 | B154: 0 | C154: 0 | D154: =Branchenverzeichnis!A144 -> Deichgräber | E154: nein
A155: 0 | B155: 0 | C155: 0 | D155: =Branchenverzeichnis!A145 -> Dentalwarenhandel | E155: nein
A156: 0 | B156: 0 | C156: 0 | D156: =Branchenverzeichnis!A146 -> Detektivbüro | E156: nein
A157: 0 | B157: 0 | C157: 0 | D157: =Branchenverzeichnis!A147 -> Diätberater | E157: nein
A158: 0 | B158: 0 | C158: 0 | D158: =Branchenverzeichnis!A148 -> Dienstleistung im Agrarbereich | E158: nein
A159: 0 | B159: 0 | C159: 0 | D159: =Branchenverzeichnis!A149 -> Dienstleistungen in der automatischen Datenverarbeitung und Informationstechnik | E159: nein
A160: 0 | B160: 0 | C160: 0 | D160: =Branchenverzeichnis!A150 -> Drähte u. Kabelerz. – nicht isoliert | E160: nein
A161: 0 | B161: 0 | C161: 0 | D161: =Branchenverzeichnis!A151 -> Drähte u. Kabelerzeugung – isoliert | E161: nein
A162: 0 | B162: 0 | C162: 0 | D162: =Branchenverzeichnis!A153 -> Drechslerei – ohne Holzbearbeitung | E162: nein
A163: 0 | B163: 0 | C163: 0 | D163: =Branchenverzeichnis!A154 -> Drogerie | E163: nein
A164: 0 | B164: 0 | C164: 0 | D164: =Branchenverzeichnis!A155 -> Druck- und Gussbehälterhandel | E164: nein
A165: 0 | B165: 0 | C165: 0 | D165: =Branchenverzeichnis!A156 -> Druckerei | E165: nein
A166: 0 | B166: 0 | C166: 0 | D166: =Branchenverzeichnis!A157 -> Druckservice | E166: nein
A167: 0 | B167: 0 | C167: 0 | D167: =Branchenverzeichnis!A158 -> Druschunternehmen | E167: nein
A168: 0 | B168: 0 | C168: 0 | D168: =Branchenverzeichnis!A159 -> EDV Schule | E168: nein
A169: 0 | B169: 0 | C169: 0 | D169: =Branchenverzeichnis!A160 -> Einkaufszentrum | E169: nein
A170: 0 | B170: 0 | C170: 0 | D170: =Branchenverzeichnis!A161 -> Eisen- und Blechwarenerzeugung | E170: nein
A171: 0 | B171: 0 | C171: 0 | D171: =Branchenverzeichnis!A162 -> Eisengießereien | E171: nein
A172: 0 | B172: 0 | C172: 0 | D172: =Branchenverzeichnis!A163 -> Elektrizitätswerk | E172: nein
A173: 0 | B173: 0 | C173: 0 | D173: =Branchenverzeichnis!A164 -> Elektrogeräteerzeugung | E173: nein
A174: 0 | B174: 0 | C174: 0 | D174: =Branchenverzeichnis!A165 -> Elektrogerätehandel | E174: nein
A175: 0 | B175: 0 | C175: 0 | D175: =Branchenverzeichnis!A166 -> Elektrogerätehandel mit Reparatur | E175: nein
A176: 0 | B176: 0 | C176: 0 | D176: =Branchenverzeichnis!A167 -> Elektronische Mess- ,Kontroll- u. Regelgeräteerzeugung | E176: nein
A177: 0 | B177: 0 | C177: 0 | D177: =Branchenverzeichnis!A168 -> Energetiker | E177: nein
A178: 0 | B178: 0 | C178: 0 | D178: =Branchenverzeichnis!A169 -> Entrümpelung | E178: nein
A179: 0 | B179: 0 | C179: 0 | D179: =Branchenverzeichnis!A170 -> Erdbewegungsarbeiten | E179: nein
A180: 0 | B180: 0 | C180: 0 | D180: =Branchenverzeichnis!A171 -> Esoterische Artikelhandel | E180: nein
A181: 0 | B181: 0 | C181: 0 | D181: =Branchenverzeichnis!A172 -> Fahrrad- u. -zubehörhandel inkl. Service | E181: nein
A182: 0 | B182: 0 | C182: 0 | D182: =Branchenverzeichnis!A173 -> Fahrschule | E182: nein
A183: 0 | B183: 0 | C183: 0 | D183: =Branchenverzeichnis!A174 -> Fahrtechnikinstruktor | E183: nein
A184: 0 | B184: 0 | C184: 0 | D184: =Branchenverzeichnis!A175 -> Fallschirmerzeugung und Reparatur | E184: nein
A185: 0 | B185: 0 | C185: 0 | D185: =Branchenverzeichnis!A176 -> Farben- u. Lackehandel | E185: nein
A186: 0 | B186: 0 | C186: 0 | D186: =Branchenverzeichnis!A177 -> Farben- u. Lackerzeugung | E186: nein
A187: 0 | B187: 0 | C187: 0 | D187: =Branchenverzeichnis!A178 -> Färberei, Bleicherei | E187: nein
A188: 0 | B188: 0 | C188: 0 | D188: =Branchenverzeichnis!A180 -> Feng Shui-Berater | E188: nein
A189: 0 | B189: 0 | C189: 0 | D189: =Branchenverzeichnis!A181 -> Fenster u. Türenhandel | E189: nein
A190: 0 | B190: 0 | C190: 0 | D190: =Branchenverzeichnis!A182 -> Fenster u. Türenhandeln inkl. Montage | E190: nein
A191: 0 | B191: 0 | C191: 0 | D191: =Branchenverzeichnis!A183 -> Fernheizwerk | E191: nein
A192: 0 | B192: 0 | C192: 0 | D192: =Branchenverzeichnis!A184 -> Fernsehgerätehandel mit Reparatur | E192: nein
A193: 0 | B193: 0 | C193: 0 | D193: =Branchenverzeichnis!A185 -> Feuerlöschgeräteerzeugung | E193: nein
A194: 0 | B194: 0 | C194: 0 | D194: =Branchenverzeichnis!A186 -> Feuerwehrutensilienhandel | E194: nein
A195: 0 | B195: 0 | C195: 0 | D195: =Branchenverzeichnis!A187 -> Feuerzeugerzeugung | E195: nein
A196: 0 | B196: 0 | C196: 0 | D196: =Branchenverzeichnis!A188 -> Fiaker | E196: nein
A197: 0 | B197: 0 | C197: 0 | D197: =Branchenverzeichnis!A189 -> Filzwarenerzeugung | E197: nein
A198: 0 | B198: 0 | C198: 0 | D198: =Branchenverzeichnis!A190 -> Fischereibedarfshandel | E198: nein
A199: 0 | B199: 0 | C199: 0 | D199: =Branchenverzeichnis!A191 -> Fischzucht | E199: nein
A200: 0 | B200: 0 | C200: 0 | D200: =Branchenverzeichnis!A192 -> Fitnesszentrum | E200: nein
A201: 0 | B201: 0 | C201: 0 | D201: =Branchenverzeichnis!A193 -> Flaschenreinigung | E201: nein
A202: 0 | B202: 0 | C202: 0 | D202: =Branchenverzeichnis!A194 -> Fleischhauerei u. Wurstwarenerzeugung | E202: nein
... 419 more rows

Sheet Basisdaten
T1: Makrospalte
B3: Die Angabe von Risikoorten ist nicht erforderlich, falls nur Sparte Haftpflicht oder Rechtsschutz berechnet wird. | N3: Info Rohbauversicherung:
B4: Risikoort 1 | E4: =IF('Berechnung Grund'!I79>10000000,"Ab 10.000.000 KTE ist dieser Tarif nicht anwendbar.","") ->  | T4: TRUE
B5: Adresse wie VN | E5: PLZ | G5: Ort | K5: Straße | T5: TRUE | U5: Art | V5: Bauart | W5: ja/nein | X5: Gew. Fläche | Y5: Bezeichnung | Z5: Bruchteil
B6: Gebäude | D6: Versicherungs-summe | F6: Art des Gebäudes | H6: Bauart | I6: hartes Dach | J6: Gew. Fläche | K6: LW | L6: LW: 10 Zimmer | M6: Pool | N6: Sturm | O6: Sturm: Offen | P6: Bezeichnung | U6: Keine Prod. | V6: I | W6: ja | X6: bis 1/3 | Z6: nein
B7: Gebäude 1 | K7: ja | N7: ja | R7: =IF(AND(D7>0,COUNTA(F7:Q7)<10),"bitte alle Daten angeben","") ->  | U7: Produktion | V7: II | W7: nein | X7: 1/3-2/3 | Z7: ja, volle VS
B8: Gebäude 2 | K8: ja | N8: ja | X8: über 2/3 | Z8: ="Bruchteil "&'Berechnung Grund'!M5&"%" -> Bruchteil 40%
B9: Gebäude 3 | K9: ja | N9: ja | Z9: ="Bruchteil "&'Berechnung Grund'!M6&"%" -> Bruchteil 35%
B10: Gebäude 4 | K10: ja | N10: ja | Z10: ="Bruchteil "&'Berechnung Grund'!M7&"%" -> Bruchteil 30%
B11: Gebäude 5 | K11: ja | N11: ja | Z11: ="Bruchteil "&'Berechnung Grund'!M8&"%" -> Bruchteil 25%
B12: Gebäude 6 | K12: ja | N12: ja | Z12: ="Bruchteil "&'Berechnung Grund'!M9&"%" -> Bruchteil 20%
B13: Gebäude 7 | K13: ja | N13: ja | Z13: ="Bruchteil "&'Berechnung Grund'!M10&"%" -> Bruchteil 15%
B14: Gebäude 8 | K14: ja | N14: ja | Z14: ="Bruchteil "&'Berechnung Grund'!M11&"%" -> Bruchteil 10%
B15: Gebäude 9 | K15: ja | N15: ja | U15: Risikoort 1 - Adresse | Z15: ="Bruchteil "&'Berechnung Grund'!M12&"%" -> Bruchteil 5%
B16: Gebäude 10 | K16: ja | N16: ja | U16: PLZ | V16: =IF(T5=TRUE,Kundendaten!O9,Basisdaten!F5) -> 0 | Z16: ="Bruchteil "&'Berechnung Grund'!M13&"%" -> Bruchteil 4%
B17: Inhalt | D17: VS | F17: Einbruch | H17: Sturm | J17: LW | U17: Ort | V17: =IF(T5=TRUE,IF(Kundendaten!O11="",Kundendaten!O10,Kundendaten!O11),Basisdaten!H5) ->  | Z17: ="Bruchteil "&'Berechnung Grund'!M14&"%" -> Bruchteil 3%
B18: KTE | F18: ja, volle VS | H18: ja, volle VS | J18: ja, volle VS | U18: Straße | V18: =IF(T5=TRUE,Kundendaten!O8,Basisdaten!L5) -> 0 | Z18: ="Bruchteil "&'Berechnung Grund'!M15&"%" -> Bruchteil 2%
B19: Vorräte | F19: ja, volle VS | H19: ja, volle VS | J19: ja, volle VS | Z19: ="Bruchteil "&'Berechnung Grund'!M16&"%" -> Bruchteil 1%
B23: Risikoort 2 | E23: PLZ | G23: Ort | K23: Straße | T23: FALSE
B24: Gebäude | D24: Versicherungs-summe | F24: Art des Gebäudes | H24: Bauart | I24: hartes Dach | J24: Gew. Fläche | K24: LW | L24: LW: 10 Zimmer | M24: Pool | N24: Sturm | O24: Offen | P24: Bezeichnung | R24: =IF(AND(D24>0,COUNTA(F24:Q24)<10),"bitte alle Daten angeben","") -> 
B25: Gebäude 1
B26: Gebäude 2
B27: Gebäude 3
B28: Gebäude 4
B29: Gebäude 5
B30: Inhalt | D30: VS | F30: Einbruch | H30: Sturm | J30: LW
B31: KTE | F31: ja, volle VS | H31: ja, volle VS | J31: ja, volle VS
B32: Vorräte | F32: ja, volle VS | H32: ja, volle VS | J32: ja, volle VS
B33: =IF(S23=1,"Bitte Gebäude, KTE oder Vorräte anlegen","") -> 
B36: Risikoort 3 | E36: PLZ | G36: Ort | K36: Straße | T36: FALSE
B37: Gebäude | D37: Versicherungs-summe | F37: Art des Gebäudes | H37: Bauart | I37: hartes Dach | J37: Gew. Fläche | K37: LW | L37: LW: 10 Zimmer | M37: Pool | N37: Sturm | O37: Offen | P37: Bezeichnung | R37: =IF(AND(D37>0,COUNTA(F37:Q37)<10),"bitte alle Daten angeben","") -> 
B38: Gebäude 1
B39: Gebäude 2
B40: Gebäude 3
B41: Gebäude 4
B42: Gebäude 5
B43: Inhalt | D43: VS | F43: Einbruch | H43: Sturm | J43: LW
B44: KTE | F44: ja, volle VS | H44: ja, volle VS | J44: ja, volle VS
B45: Vorräte | F45: ja, volle VS | H45: ja, volle VS | J45: ja, volle VS
B46: =IF(S36=1,"Bitte Gebäude, KTE oder Vorräte anlegen","") -> 

Sheet Berechnung Grund (hidden)
L1: Bruchteilversicherung | S1: Art | T1: Bauart | U1: Dachung | V1: Gew. Fläche | W1: Bezeichnung | X1: Bruchteil
L2: Bezeichnung | M2: Bruchteil % | N2: Nachlass % | S2: Keine Prod. | T2: I | U2: ja | V2: bis 1/3
L3: nein | M3: 0 | N3: 100 | S3: Produktion | T3: II | U3: nein | V3: 1/3-2/3
L4: ja, volle VS | M4: 100 | N4: 0 | V4: über 2/3
C5: Sätze für BU | L5: ="Bruchteil "&'Berechnung Grund'!M5&"%" -> Bruchteil 40% | M5: 40 | N5: 10
C6: T-BU | D6: ED | E6: LW | F6: ST | L6: ="Bruchteil "&'Berechnung Grund'!M6&"%" -> Bruchteil 35% | M6: 35 | N6: 15
C7: =F30*1000 -> 0 | D7: =VLOOKUP($C$7,$F$22:$J$26,2,FALSE)/1000 ->  | E7: =VLOOKUP($C$7,$F$22:$J$26,4,FALSE)/1000 ->  | F7: =VLOOKUP($C$7,$F$22:$K$26,6,FALSE)/1000 ->  | L7: ="Bruchteil "&'Berechnung Grund'!M7&"%" -> Bruchteil 30% | M7: 30 | N7: 20
L8: ="Bruchteil "&'Berechnung Grund'!M8&"%" -> Bruchteil 25% | M8: 25 | N8: 25
L9: ="Bruchteil "&'Berechnung Grund'!M9&"%" -> Bruchteil 20% | M9: 20 | N9: 30
B10: Höchstprämiensatzminderung Feuer | L10: ="Bruchteil "&'Berechnung Grund'!M10&"%" -> Bruchteil 15% | M10: 15 | N10: 35
B11: Max. Satz | C11: =MAX(D22:D26) -> 0 | L11: ="Bruchteil "&'Berechnung Grund'!M11&"%" -> Bruchteil 10% | M11: 10 | N11: 40
B12: Min. Satz | C12: =MIN(D22:D26) -> 0 | L12: ="Bruchteil "&'Berechnung Grund'!M12&"%" -> Bruchteil 5% | M12: 5 | N12: 45
B13: Minderungsgrenze | C13: 0.6 | L13: ="Bruchteil "&'Berechnung Grund'!M13&"%" -> Bruchteil 4% | M13: 4 | N13: 50
B14: Minderungswert | C14: 0.2 | L14: ="Bruchteil "&'Berechnung Grund'!M14&"%" -> Bruchteil 3% | M14: 3 | N14: 55
B15: Minderung? | C15: =IF(C12/C11<C13,1,0) ->  | L15: ="Bruchteil "&'Berechnung Grund'!M15&"%" -> Bruchteil 2% | M15: 2 | N15: 60
B16: Promillesatz | C16: =C11*(1-C14*C15) ->  | L16: ="Bruchteil "&'Berechnung Grund'!M16&"%" -> Bruchteil 1% | M16: 1 | N16: 65
B18: Branchenindex | U18: Feuer-Promille | Y18: LW-Promille | AC18: Sturm Promille
B19: Spalte | C19: 2 | D19: 3 | E19: 4 | F19: 5 | G19: 6 | H19: 7 | I19: 8 | J19: 9 | K19: 10 | L19: 11 | M19: 12 | N19: 13 | O19: 14 | P19: 15 | Q19: 16 | R19: 17 | U19: Belegfl. | V19: Keine Produktion | Y19: Variante | Z19: 10 Zimmer | AA19: Normal | AC19: Bundesland | AD19: I | AE19: II
B20: Branchenverzeichnis | C20: HHS | D20: F | E20: BU | G20: ED | I20: LW | J20: G | K20: ST | L20: Haftpflicht | Q20: TP | R20: RS | V20: I | W20: II | Y20: A | Z20: =0.37/1000 -> 0.00037 | AA20: =0.25/1000 -> 0.00025 | AC20: Wien | AD20: =0.19/1000 -> 0.00019 | AE20: =0.5/1000 -> 0.0005 | AF20: Technik Promille
E21: F-BU | F21: T-BU | G21: ED | H21: SI | L21: LS | M21: MP | N21: UP | O21: UW | P21: Erw. P. | U21: bis 1/3 | V21: =0.22/1000 -> 0.00022 | W21: =0.66/1000 -> 0.00066 | Y21: C | Z21: =1.1/1000 -> 0.0011 | AA21: =0.75/1000 -> 0.00075 | AC21: Rest-Ö | AD21: =0.39/1000 -> 0.00039 | AE21: =0.9/1000 -> 0.0009
B22: =IF(Branche!D5="","",Branche!D5) ->  | C22: =IF($B22="","",VLOOKUP($B22,Branchenverzeichnis!$A$1:$Q$623,C$19,)) ->  | D22: =IF($B22="","",VLOOKUP($B22,Branchenverzeichnis!$A$1:$Q$623,D$19,)) ->  | E22: =IF($B22="","",VLOOKUP($B22,Branchenverzeichnis!$A$1:$Q$623,E$19,)) ->  | F22: =IF($B22="","",VLOOKUP($B22,Branchenverzeichnis!$A$1:$Q$623,F$19,)) ->  | G22: =IF($B22="","",VLOOKUP($B22,Branchenverzeichnis!$A$1:$Q$623,G$19,)) ->  | H22: =IF($B22="","",VLOOKUP($B22,Branchenverzeichnis!$A$1:$Q$623,H$19,)) ->  | I22: =IF($B22="","",VLOOKUP($B22,Branchenverzeichnis!$A$1:$Q$623,I$19,)) ->  | J22: =IF($B22="","",VLOOKUP($B22,Branchenverzeichnis!$A$1:$Q$623,J$19,)) ->  | K22: =IF($B22="","",VLOOKUP($B22,Branchenverzeichnis!$A$1:$Q$623,K$19,)) ->  | L22: =IF($B22="","",VLOOKUP($B22,Branchenverzeichnis!$A$1:$Q$623,L$19,)) ->  | M22: =IF($B22="","",VLOOKUP($B22,Branchenverzeichnis!$A$1:$Q$623,M$19,)) ->  | N22: =IF($B22="","",VLOOKUP($B22,Branchenverzeichnis!$A$1:$Q$623,N$19,)) ->  | O22: =IF($B22="","",VLOOKUP($B22,Branchenverzeichnis!$A$1:$Q$623,O$19,)) ->  | P22: =IF($B22="","",VLOOKUP($B22,Branchenverzeichnis!$A$1:$Q$623,P$19,)) ->  | Q22: =IF($B22="","",VLOOKUP($B22,Branchenverzeichnis!$A$1:$Q$623,Q$19,)) ->  | R22: =IF($B22="","",VLOOKUP($B22,Branchenverzeichnis!$A$1:$Q$623,R$19,)) ->  | U22: 1/3-2/3 | V22: =0.38/1000 -> 0.00038 | W22: =0.99/1000 -> 0.00099 | Y22: D | Z22: =1.3/1000 -> 0.0013 | AA22: =0.9/1000 -> 0.0009
B23: =IF(Branche!D6="","",Branche!D6) ->  | C23: =IF($B23="","",VLOOKUP($B23,Branchenverzeichnis!$A$1:$Q$623,C$19,)) ->  | D23: =IF($B23="","",VLOOKUP($B23,Branchenverzeichnis!$A$1:$Q$623,D$19,)) ->  | E23: =IF($B23="","",VLOOKUP($B23,Branchenverzeichnis!$A$1:$Q$623,E$19,)) ->  | F23: =IF($B23="","",VLOOKUP($B23,Branchenverzeichnis!$A$1:$Q$623,F$19,)) ->  | G23: =IF($B23="","",VLOOKUP($B23,Branchenverzeichnis!$A$1:$Q$623,G$19,)) ->  | H23: =IF($B23="","",VLOOKUP($B23,Branchenverzeichnis!$A$1:$Q$623,H$19,)) ->  | I23: =IF($B23="","",VLOOKUP($B23,Branchenverzeichnis!$A$1:$Q$623,I$19,)) ->  | J23: =IF($B23="","",VLOOKUP($B23,Branchenverzeichnis!$A$1:$Q$623,J$19,)) ->  | K23: =IF($B23="","",VLOOKUP($B23,Branchenverzeichnis!$A$1:$Q$623,K$19,)) ->  | L23: =IF($B23="","",VLOOKUP($B23,Branchenverzeichnis!$A$1:$Q$623,L$19,)) ->  | M23: =IF($B23="","",VLOOKUP($B23,Branchenverzeichnis!$A$1:$Q$623,M$19,)) ->  | N23: =IF($B23="","",VLOOKUP($B23,Branchenverzeichnis!$A$1:$Q$623,N$19,)) ->  | O23: =IF($B23="","",VLOOKUP($B23,Branchenverzeichnis!$A$1:$Q$623,O$19,)) ->  | P23: =IF($B23="","",VLOOKUP($B23,Branchenverzeichnis!$A$1:$Q$623,P$19,)) ->  | Q23: =IF($B23="","",VLOOKUP($B23,Branchenverzeichnis!$A$1:$Q$623,Q$19,)) ->  | R23: =IF($B23="","",VLOOKUP($B23,Branchenverzeichnis!$A$1:$Q$623,R$19,)) ->  | U23: über 2/3 | V23: =0.44/1000 -> 0.00044 | W23: =1.1/1000 -> 0.0011 | AC23: Zuschlag nicht hartes Dach | AE23: 0.5
B24: =IF(Branche!D7="","",Branche!D7) ->  | C24: =IF($B24="","",VLOOKUP($B24,Branchenverzeichnis!$A$1:$Q$623,C$19,)) ->  | D24: =IF($B24="","",VLOOKUP($B24,Branchenverzeichnis!$A$1:$Q$623,D$19,)) ->  | E24: =IF($B24="","",VLOOKUP($B24,Branchenverzeichnis!$A$1:$Q$623,E$19,)) ->  | F24: =IF($B24="","",VLOOKUP($B24,Branchenverzeichnis!$A$1:$Q$623,F$19,)) ->  | G24: =IF($B24="","",VLOOKUP($B24,Branchenverzeichnis!$A$1:$Q$623,G$19,)) ->  | H24: =IF($B24="","",VLOOKUP($B24,Branchenverzeichnis!$A$1:$Q$623,H$19,)) ->  | I24: =IF($B24="","",VLOOKUP($B24,Branchenverzeichnis!$A$1:$Q$623,I$19,)) ->  | J24: =IF($B24="","",VLOOKUP($B24,Branchenverzeichnis!$A$1:$Q$623,J$19,)) ->  | K24: =IF($B24="","",VLOOKUP($B24,Branchenverzeichnis!$A$1:$Q$623,K$19,)) ->  | L24: =IF($B24="","",VLOOKUP($B24,Branchenverzeichnis!$A$1:$Q$623,L$19,)) ->  | M24: =IF($B24="","",VLOOKUP($B24,Branchenverzeichnis!$A$1:$Q$623,M$19,)) ->  | N24: =IF($B24="","",VLOOKUP($B24,Branchenverzeichnis!$A$1:$Q$623,N$19,)) ->  | O24: =IF($B24="","",VLOOKUP($B24,Branchenverzeichnis!$A$1:$Q$623,O$19,)) ->  | P24: =IF($B24="","",VLOOKUP($B24,Branchenverzeichnis!$A$1:$Q$623,P$19,)) ->  | Q24: =IF($B24="","",VLOOKUP($B24,Branchenverzeichnis!$A$1:$Q$623,Q$19,)) ->  | R24: =IF($B24="","",VLOOKUP($B24,Branchenverzeichnis!$A$1:$Q$623,R$19,)) ->  | U24: Belegfl. | V24: Produktion | Y24: LW-Variante | Z24: =Sach!R170 -> A | AC24: Zuschlag offenes Gebäude | AE24: 1
B25: =IF(Branche!D8="","",Branche!D8) ->  | C25: =IF($B25="","",VLOOKUP($B25,Branchenverzeichnis!$A$1:$Q$623,C$19,)) ->  | D25: =IF($B25="","",VLOOKUP($B25,Branchenverzeichnis!$A$1:$Q$623,D$19,)) ->  | E25: =IF($B25="","",VLOOKUP($B25,Branchenverzeichnis!$A$1:$Q$623,E$19,)) ->  | F25: =IF($B25="","",VLOOKUP($B25,Branchenverzeichnis!$A$1:$Q$623,F$19,)) ->  | G25: =IF($B25="","",VLOOKUP($B25,Branchenverzeichnis!$A$1:$Q$623,G$19,)) ->  | H25: =IF($B25="","",VLOOKUP($B25,Branchenverzeichnis!$A$1:$Q$623,H$19,)) ->  | I25: =IF($B25="","",VLOOKUP($B25,Branchenverzeichnis!$A$1:$Q$623,I$19,)) ->  | J25: =IF($B25="","",VLOOKUP($B25,Branchenverzeichnis!$A$1:$Q$623,J$19,)) ->  | K25: =IF($B25="","",VLOOKUP($B25,Branchenverzeichnis!$A$1:$Q$623,K$19,)) ->  | L25: =IF($B25="","",VLOOKUP($B25,Branchenverzeichnis!$A$1:$Q$623,L$19,)) ->  | M25: =IF($B25="","",VLOOKUP($B25,Branchenverzeichnis!$A$1:$Q$623,M$19,)) ->  | N25: =IF($B25="","",VLOOKUP($B25,Branchenverzeichnis!$A$1:$Q$623,N$19,)) ->  | O25: =IF($B25="","",VLOOKUP($B25,Branchenverzeichnis!$A$1:$Q$623,O$19,)) ->  | P25: =IF($B25="","",VLOOKUP($B25,Branchenverzeichnis!$A$1:$Q$623,P$19,)) ->  | Q25: =IF($B25="","",VLOOKUP($B25,Branchenverzeichnis!$A$1:$Q$623,Q$19,)) ->  | R25: =IF($B25="","",VLOOKUP($B25,Branchenverzeichnis!$A$1:$Q$623,R$19,)) ->  | V25: I | W25: II | Z25: 10 Zimmer | AA25: Normal
B26: =IF(Branche!D9="","",Branche!D9) ->  | C26: =IF($B26="","",VLOOKUP($B26,Branchenverzeichnis!$A$1:$Q$623,C$19,)) ->  | D26: =IF($B26="","",VLOOKUP($B26,Branchenverzeichnis!$A$1:$Q$623,D$19,)) ->  | E26: =IF($B26="","",VLOOKUP($B26,Branchenverzeichnis!$A$1:$Q$623,E$19,)) ->  | F26: =IF($B26="","",VLOOKUP($B26,Branchenverzeichnis!$A$1:$Q$623,F$19,)) ->  | G26: =IF($B26="","",VLOOKUP($B26,Branchenverzeichnis!$A$1:$Q$623,G$19,)) ->  | H26: =IF($B26="","",VLOOKUP($B26,Branchenverzeichnis!$A$1:$Q$623,H$19,)) ->  | I26: =IF($B26="","",VLOOKUP($B26,Branchenverzeichnis!$A$1:$Q$623,I$19,)) ->  | J26: =IF($B26="","",VLOOKUP($B26,Branchenverzeichnis!$A$1:$Q$623,J$19,)) ->  | K26: =IF($B26="","",VLOOKUP($B26,Branchenverzeichnis!$A$1:$Q$623,K$19,)) ->  | L26: =IF($B26="","",VLOOKUP($B26,Branchenverzeichnis!$A$1:$Q$623,L$19,)) ->  | M26: =IF($B26="","",VLOOKUP($B26,Branchenverzeichnis!$A$1:$Q$623,M$19,)) ->  | N26: =IF($B26="","",VLOOKUP($B26,Branchenverzeichnis!$A$1:$Q$623,N$19,)) ->  | O26: =IF($B26="","",VLOOKUP($B26,Branchenverzeichnis!$A$1:$Q$623,O$19,)) ->  | P26: =IF($B26="","",VLOOKUP($B26,Branchenverzeichnis!$A$1:$Q$623,P$19,)) ->  | Q26: =IF($B26="","",VLOOKUP($B26,Branchenverzeichnis!$A$1:$Q$623,Q$19,)) ->  | R26: =IF($B26="","",VLOOKUP($B26,Branchenverzeichnis!$A$1:$Q$623,R$19,)) ->  | U26: bis 1/3 | V26: =0.33/1000 -> 0.00033 | W26: =0.82/1000 -> 0.00082 | Y26: Promille | Z26: =VLOOKUP(Z24,Y20:AA22,2,FALSE) -> 0.00037 | AA26: =VLOOKUP(Z24,Y20:AA22,3,FALSE) -> 0.00025
B27: Knockout-Kriterien | D27: Beliebig | E27: VT | F27: =COUNTIF($C$22:$R$26,E27) -> 0 | G27: ED-SI | H27: JT | I27: =COUNTIF($H$22:$H$26,H27) -> 0 | J27: S | K27: ED-SI | P27: =COUNTIF($H$22:$H$26,J27) -> 0 | U27: 1/3-2/3 | V27: =0.49/1000 -> 0.00049 | W27: =1.1/1000 -> 0.0011 | AC27: Berechnung Zuschläge/Nachlässe laut Mail Hofer 27.05.2020
U28: über 2/3 | V28: =D30*1.1 -> 0 | W28: =D30*1.32 -> 0 | Y28: Zuschlag Pool | Z28: 0.5 | AC28: Pool 50 % > nur auf Gebäude
B29: Prämiensätze für Berechnung | U29: Nachlass Wien | W29: 0.5 | Y29: Rohrreinigng | Z29: =Sach!$U$177*-1 -> 0 | AA29: Nachlass | AC29: Rohrreinigung 5 % Nachlass > nur auf Gebäude
C30: =MAX(C22:C26) -> 0 | D30: =IF(SUM(D22:D26)=0,0,C16/1000) -> 0 | E30: =MAX(E22:E26)/1000 -> 0 | F30: =MAX(F22:F26)/1000 -> 0 | G30: =MAX(G22:G26)/1000 -> 0 | I30: =MAX(I22:I26)/1000 -> 0 | J30: =MAX(J22:J26)/1000 -> 0 | K30: =MAX(K22:K26)/1000 -> 0 | L30: =MAX(L22:L26)/1000 -> 0 | M30: =MAX(M22:M26) -> 0 | N30: =MAX(N22:N26)/1000 -> 0 | O30: =MAX(O22:O26) -> 0 | P30: =MAX(P22:P26) -> 0 | Q30: =IF(COUNTIF(Q22:Q27,0)>0,0,MAX(Q22:Q26)) -> 0 | R30: =MAX(R22:R26) -> 0 | U30: Zuschlag Feuer: nicht hartes Dach | W30: 0.5 | Y30: Sprinkler | Z30: =Sach!U173 -> 0 | AC30: Sprinkleranlage Zuschlag > auf Gebäude, KTE und Vorräte, aber nicht Deckungserweiterungen
AC31: LW Var. D 15 Meter > Zuschlag auf gesamte Sparte (Berechnung erfolgt auf Seite "Berechnung Sparten)
B33: Risikoort 2 | C33: Vorhanden? | D33: =IF(Basisdaten!T4=TRUE,1,0) -> 1 | E33: PLZ | F33: =Basisdaten!V16 -> 0 | G33: Wien? | H33: =IF(F33<1999,1,0) -> 1 | I33: Prämie Feuer Gebäude | N33: Prämie LW Gebäude | T33: Prämie Sturm Gebäude | Z33: Sonstige Sparten
B34: Gebäude | D34: Versicherungs-summe | E34: Art des Gebäudes | F34: Bauart | G34: hartes Dach | H34: Gew. Fläche | I34: Promillesatz Feuer | J34: Zuschlag Dach | K34: Nachlass Wien | L34: Promille | M34: Prämie | N34: LW ja/nein | O34: LW: 10 Zimmer | P34: Pool | Q34: Promille | R34: Zuschläge | S34: Prämie | T34: Sturm ja/nein | U34: Offenes Gebäude | V34: Zuschlag offen | W34: Zuschlag Dach | X34: Promille | Y34: Prämie | Z34: Sparten | AA34: Deckung | AB34: Promille | AC34: Prämie | AE34: VS LW
B35: =Basisdaten!B7 -> Gebäude 1 | D35: =Basisdaten!D7*$D$33 -> 0 | E35: =Basisdaten!F7 -> 0 | F35: =Basisdaten!H7 -> 0 | G35: =Basisdaten!I7 -> 0 | H35: =Basisdaten!J7 -> 0 | I35: =IF(E35=$S$2,VLOOKUP(H35,$U$20:$W$23,MATCH(F35,$U$20:$W$20,0),FALSE),VLOOKUP(H35,$U$25:$W$28,MATCH(F35,$U$25:$W$25,0),FALSE)) ->  | J35: =IF(G35=$U$3,$W$30,0) -> 0 | K35: =IF(AND($H$33=1,H35=$V$2,E35=$S$2),$W$29,0) -> 0 | L35: =I35*(1+J35)*(1-K35) ->  | M35: =IF(D35>0,D35*L35,0) -> 0 | N35: =Basisdaten!K7 -> ja | O35: =Basisdaten!L7 -> 0 | P35: =Basisdaten!M7 -> 0 | Q35: =IF(O35="ja",$Z$26,$AA$26) -> 0.00025 | R35: =-$Z$29+$Z$30+IF(P35="ja",$Z$28,0) -> 0 | S35: =IF(AND(D35>0,N35="ja"),D35*Q35,0)*(1+R35) -> 0 | T35: =Basisdaten!N7 -> ja | U35: =Basisdaten!O7 -> 0 | V35: =IF(U35="ja",$AE$24,0) -> 0 | W35: =IF(G35=$U$3,$AE$23,0) -> 0 | X35: =IF($H$33=1,HLOOKUP(F35,$AD$19:$AE$21,2,FALSE),HLOOKUP(F35,$AD$19:$AE$21,3,FALSE))*(1+V35)*(1+W35) ->  | Y35: =IF(AND(D35>0,T35="ja"),D35*X35,0) -> 0 | Z35: Technik | AA35: =Basisdaten!O18 -> 0 | AE35: =IF(N35="ja",D35,0) -> 0
B36: =Basisdaten!B8 -> Gebäude 2 | D36: =Basisdaten!D8*$D$33 -> 0 | E36: =Basisdaten!F8 -> 0 | F36: =Basisdaten!H8 -> 0 | G36: =Basisdaten!I8 -> 0 | H36: =Basisdaten!J8 -> 0 | J36: 0 | K36: 0 | L36: =I36*(1+J36)*(1-K36) ->  | M36: =IF(D36>0,D36*L36,0) -> 0 | N36: =Basisdaten!K8 -> ja | O36: =Basisdaten!L8 -> 0 | P36: =Basisdaten!M8 -> 0 | Q36: =IF(O36="ja",$Z$26,$AA$26) -> 0.00025 | R36: =-$Z$29+$Z$30+IF(P36="ja",$Z$28,0) -> 0 | S36: =IF(AND(D36>0,N36="ja"),D36*Q36,0)*(1+R36) -> 0 | T36: =Basisdaten!N8 -> ja | U36: =Basisdaten!O8 -> 0 | V36: 0 | W36: 0 | Y36: 0 | Z36: Feuer-EC | AA36: =Basisdaten!O19 -> 0 | AE36: 0
B37: =Basisdaten!B9 -> Gebäude 3 | D37: =Basisdaten!D9*$D$33 -> 0 | E37: =Basisdaten!F9 -> 0 | F37: =Basisdaten!H9 -> 0 | G37: =Basisdaten!I9 -> 0 | H37: =Basisdaten!J9 -> 0 | J37: 0 | K37: 0 | M37: 0 | N37: =Basisdaten!K9 -> ja | O37: =Basisdaten!L9 -> 0 | P37: =Basisdaten!M9 -> 0 | Q37: 0.00025 | R37: 0 | S37: 0 | T37: =Basisdaten!N9 -> ja | U37: =Basisdaten!O9 -> 0 | V37: 0 | W37: 0 | Y37: 0 | Z37: EDV | AA37: =Basisdaten!Q18 -> 0 | AE37: 0
B38: =Basisdaten!B10 -> Gebäude 4 | D38: =Basisdaten!D10*$D$33 -> 0 | E38: =Basisdaten!F10 -> 0 | F38: =Basisdaten!H10 -> 0 | G38: =Basisdaten!I10 -> 0 | H38: =Basisdaten!J10 -> 0 | J38: 0 | K38: 0 | M38: 0 | N38: =Basisdaten!K10 -> ja | O38: =Basisdaten!L10 -> 0 | P38: =Basisdaten!M10 -> 0 | Q38: 0.00025 | R38: 0 | S38: 0 | T38: =Basisdaten!N10 -> ja | U38: =Basisdaten!O10 -> 0 | V38: 0 | W38: 0 | Y38: 0 | Z38: Glas | AA38: =Basisdaten!Q19 -> 0 | AE38: 0
B39: =Basisdaten!B11 -> Gebäude 5 | D39: =Basisdaten!D11*$D$33 -> 0 | E39: =Basisdaten!F11 -> 0 | F39: =Basisdaten!H11 -> 0 | G39: =Basisdaten!I11 -> 0 | H39: =Basisdaten!J11 -> 0 | J39: 0 | K39: 0 | M39: 0 | N39: =Basisdaten!K11 -> ja | O39: =Basisdaten!L11 -> 0 | P39: =Basisdaten!M11 -> 0 | Q39: 0.00025 | R39: 0 | S39: 0 | T39: =Basisdaten!N11 -> ja | U39: =Basisdaten!O11 -> 0 | V39: 0 | W39: 0 | Y39: 0 | AE39: 0
B40: =Basisdaten!B12 -> Gebäude 6 | D40: =Basisdaten!D12*$D$33 -> 0 | E40: =Basisdaten!F12 -> 0 | F40: =Basisdaten!H12 -> 0 | G40: =Basisdaten!I12 -> 0 | H40: =Basisdaten!J12 -> 0 | J40: 0 | K40: 0 | M40: 0 | N40: =Basisdaten!K12 -> ja | O40: =Basisdaten!L12 -> 0 | P40: =Basisdaten!M12 -> 0 | Q40: 0.00025 | R40: 0 | S40: 0 | T40: =Basisdaten!N12 -> ja | U40: =Basisdaten!O12 -> 0 | V40: 0 | W40: 0 | Y40: 0 | AE40: 0
B41: =Basisdaten!B13 -> Gebäude 7 | D41: =Basisdaten!D13*$D$33 -> 0 | E41: =Basisdaten!F13 -> 0 | F41: =Basisdaten!H13 -> 0 | G41: =Basisdaten!I13 -> 0 | H41: =Basisdaten!J13 -> 0 | J41: 0 | K41: 0 | M41: 0 | N41: =Basisdaten!K13 -> ja | O41: =Basisdaten!L13 -> 0 | P41: =Basisdaten!M13 -> 0 | Q41: 0.00025 | R41: 0 | S41: 0 | T41: =Basisdaten!N13 -> ja | U41: =Basisdaten!O13 -> 0 | V41: 0 | W41: 0 | Y41: 0 | AE41: 0
B42: =Basisdaten!B14 -> Gebäude 8 | D42: =Basisdaten!D14*$D$33 -> 0 | E42: =Basisdaten!F14 -> 0 | F42: =Basisdaten!H14 -> 0 | G42: =Basisdaten!I14 -> 0 | H42: =Basisdaten!J14 -> 0 | J42: 0 | K42: 0 | M42: 0 | N42: =Basisdaten!K14 -> ja | O42: =Basisdaten!L14 -> 0 | P42: =Basisdaten!M14 -> 0 | Q42: 0.00025 | R42: 0 | S42: 0 | T42: =Basisdaten!N14 -> ja | U42: =Basisdaten!O14 -> 0 | V42: 0 | W42: 0 | Y42: 0 | AE42: 0
B43: =Basisdaten!B15 -> Gebäude 9 | D43: =Basisdaten!D15*$D$33 -> 0 | E43: =Basisdaten!F15 -> 0 | F43: =Basisdaten!H15 -> 0 | G43: =Basisdaten!I15 -> 0 | H43: =Basisdaten!J15 -> 0 | J43: 0 | K43: 0 | M43: 0 | N43: =Basisdaten!K15 -> ja | O43: =Basisdaten!L15 -> 0 | P43: =Basisdaten!M15 -> 0 | Q43: 0.00025 | R43: 0 | S43: 0 | T43: =Basisdaten!N15 -> ja | U43: =Basisdaten!O15 -> 0 | V43: 0 | W43: 0 | Y43: 0 | AE43: 0
B44: =Basisdaten!B16 -> Gebäude 10 | D44: =Basisdaten!D16*$D$33 -> 0 | E44: =Basisdaten!F16 -> 0 | F44: =Basisdaten!H16 -> 0 | G44: =Basisdaten!I16 -> 0 | H44: =Basisdaten!J16 -> 0 | J44: 0 | K44: 0 | M44: 0 | N44: =Basisdaten!K16 -> ja | O44: =Basisdaten!L16 -> 0 | P44: =Basisdaten!M16 -> 0 | Q44: 0.00025 | R44: 0 | S44: 0 | T44: =Basisdaten!N16 -> ja | U44: =Basisdaten!O16 -> 0 | V44: 0 | W44: 0 | Y44: 0 | AA44: Falls Basisdaten leer - #NV-Fehler vermeiden | AE44: 0
B45: Inhalt | D45: Feuer | F45: Einbruch | J45: Sturm | N45: Leitungswasser | S45: Versicherungssummen | U45: Prämien | W45: ED | X45: =SUM(I47:I48)*D33 -> 0 | Y45: EDV | AA45: ja, volle VS
C46: VS | D46: Promillesatz | E46: Prämie | F46: Deckung | G46: Promille | H46: Nachlass Bruchteil | I46: Prämie | J46: Deckung | K46: Promille | L46: Nachlass Bruchteil | M46: Prämie | N46: Deckung | O46: Promille | P46: Nachlass Bruchteil | R46: Prämie | S46: Gebäude | T46: =SUM(D35:D44) -> 0 | U46: Feuer | V46: =SUM(M35:M44,E47:E48)*D33 -> 0 | W46: Glas | Y46: Kühlgut
B47: KTE | C47: =Basisdaten!D18*$D$33 -> 0 | D47: =$D$30 -> 0 | E47: =C47*D47 -> 0 | F47: =IF(Basisdaten!F18="",$AA$45,Basisdaten!F18) -> ja, volle VS | G47: =$G$30 -> 0 | H47: =VLOOKUP(F47,$L$3:$N$16,3,FALSE)/100 -> 0 | I47: =$C47*G47*(1-H47) -> 0 | J47: =IF(Basisdaten!H18="",$AA$45,Basisdaten!H18) -> ja, volle VS | K47: =$K$30 -> 0 | L47: =VLOOKUP(J47,$L$3:$N$16,3,FALSE)/100 -> 0 | M47: =$C47*K47*(1-L47) -> 0 | N47: =IF(Basisdaten!J18="",$AA$45,Basisdaten!J18) -> ja, volle VS | O47: =$I$30 -> 0 | P47: =VLOOKUP(N47,$L$3:$N$16,3,FALSE)/100 -> 0 | Q47: =$Z$30 -> 0 | R47: =$C47*O47*(1-P47)*(1+Q47) -> 0 | S47: Alles | T47: =SUM(D35:D44,C47:C48) -> 0 | U47: Sturm | V47: =SUM(Y35:Y44,M47:M48)*D33 -> 0 | W47: Feuer-EC
B48: Vorräte | C48: =Basisdaten!D19*$D$33 -> 0 | D48: =$D$30 -> 0 | E48: =C48*D48 -> 0 | F48: =IF(Basisdaten!F19="",$AA$45,Basisdaten!F19) -> ja, volle VS | G48: =$G$30 -> 0 | H48: =VLOOKUP(F48,$L$3:$N$16,3,FALSE)/100 -> 0 | I48: =$C48*G48*(1-H48) -> 0 | J48: =IF(Basisdaten!H19="",$AA$45,Basisdaten!H19) -> ja, volle VS | K48: =$K$30 -> 0 | L48: =VLOOKUP(J48,$L$3:$N$16,3,FALSE)/100 -> 0 | M48: =$C48*K48*(1-L48) -> 0 | N48: =IF(Basisdaten!J19="",$AA$45,Basisdaten!J19) -> ja, volle VS | O48: =$I$30 -> 0 | P48: =VLOOKUP(N48,$L$3:$N$16,3,FALSE)/100 -> 0 | Q48: =$Z$30 -> 0 | R48: =$C48*O48*(1-P48)*(1+Q48) -> 0 | U48: LW | V48: =SUM(S35:S44,R47:R48)*D33 -> 0 | W48: Technik
B51: Risikoort 2 | C51: Vorhanden? | D51: =IF(Basisdaten!T23=TRUE,1,0) -> 0 | E51: PLZ | F51: =Basisdaten!F23 -> 0 | G51: Wien? | H51: =IF(F51<1999,1,0) -> 1 | I51: Prämie Feuer Gebäude | N51: Prämie LW Gebäude | T51: Prämie Sturm Gebäude | AE51: =IF(N51="ja",D51,0) -> 0
B52: Gebäude | D52: Versicherungs-summe | E52: Art des Gebäudes | F52: Bauart | G52: hartes Dach | H52: Gew. Fläche | I52: Promillesatz Feuer | J52: Zuschlag Dach | K52: Nachlass Wien | L52: Promille | M52: Prämie | N52: LW ja/nein | O52: LW: 10 Zimmer | P52: Pool | Q52: Promille | R52: Zuschläge | S52: Prämie | T52: Sturm ja/nein | U52: Offenes Gebäude | V52: Zuschlag offen | W52: Zuschlag Dach | X52: Promille | Y52: Prämie | AE52: 0
B53: =Basisdaten!B25 -> Gebäude 1 | D53: =Basisdaten!D25*$D$51 -> 0 | E53: =Basisdaten!F25 -> 0 | F53: =Basisdaten!H25 -> 0 | G53: =Basisdaten!I25 -> 0 | H53: =Basisdaten!J25 -> 0 | I53: =IF(E53=$S$2,VLOOKUP(H53,$U$20:$W$23,MATCH(F53,$U$20:$W$20,0),FALSE),VLOOKUP(H53,$U$25:$W$28,MATCH(F53,$U$25:$W$25,0),FALSE)) ->  | J53: =IF(G53=$U$3,$W$30,0) -> 0 | K53: =IF(AND($H$51=1,H53=$V$2,E53=$S$2),$W$29,0) -> 0 | L53: =I53*(1+J53)*(1-K53) ->  | M53: =IF(D53>0,D53*L53,0)*$D$51 -> 0 | N53: =Basisdaten!K25 -> 0 | O53: =Basisdaten!L25 -> 0 | P53: =Basisdaten!M25 -> 0 | Q53: =IF(O53="ja",$Z$26,$AA$26) -> 0.00025 | R53: =-$Z$29+$Z$30+IF(P53="ja",$Z$28,0) -> 0 | S53: =IF(AND(D53>0,N53="ja"),D53*Q53,0)*(1+R53) -> 0 | T53: =Basisdaten!N25 -> 0 | U53: =Basisdaten!O25 -> 0 | V53: =IF(U53="ja",$AE$24,0) -> 0 | W53: =IF(G53=$U$3,$AE$23,0) -> 0 | X53: =IF($H$51=1,HLOOKUP(F53,$AD$19:$AE$21,2,FALSE),HLOOKUP(F53,$AD$19:$AE$21,3,FALSE))*(1+V53)*(1+W53) ->  | Y53: =IF(AND(D53>0,T53="ja"),D53*X53,0)*$D$51 -> 0 | AE53: 0
B54: =Basisdaten!B26 -> Gebäude 2 | D54: =Basisdaten!D26*$D$51 -> 0 | E54: =Basisdaten!F26 -> 0 | F54: =Basisdaten!H26 -> 0 | G54: =Basisdaten!I26 -> 0 | H54: =Basisdaten!J26 -> 0 | I54: =IF(E54=$S$2,VLOOKUP(H54,$U$20:$W$23,MATCH(F54,$U$20:$W$20,0),FALSE),VLOOKUP(H54,$U$25:$W$28,MATCH(F54,$U$25:$W$25,0),FALSE)) ->  | J54: =IF(G54=$U$3,$W$30,0) -> 0 | K54: =IF(AND($H$33=1,H54=$V$2,E54=$S$2),$W$29,0) -> 0 | L54: =I54*(1+J54)*(1-K54) ->  | M54: =IF(D54>0,D54*L54,0)*$D$51 -> 0 | N54: =Basisdaten!K26 -> 0 | O54: =Basisdaten!L26 -> 0 | P54: =Basisdaten!M26 -> 0 | Q54: =IF(O54="ja",$Z$26,$AA$26) -> 0.00025 | R54: =-$Z$29+$Z$30+IF(P54="ja",$Z$28,0) -> 0 | S54: =IF(AND(D54>0,N54="ja"),D54*Q54,0)*(1+R54) -> 0 | T54: =Basisdaten!N26 -> 0 | U54: =Basisdaten!O26 -> 0 | V54: =IF(U54="ja",$AE$24,0) -> 0 | W54: =IF(G54=$U$3,$AE$23,0) -> 0 | X54: =IF($H$51=1,HLOOKUP(F54,$AD$19:$AE$21,2,FALSE),HLOOKUP(F54,$AD$19:$AE$21,3,FALSE))*(1+V54)*(1+W54) ->  | Y54: =IF(AND(D54>0,T54="ja"),D54*X54,0)*$D$51 -> 0 | AE54: 0
B55: =Basisdaten!B27 -> Gebäude 3 | D55: =Basisdaten!D27*$D$51 -> 0 | E55: =Basisdaten!F27 -> 0 | F55: =Basisdaten!H27 -> 0 | G55: =Basisdaten!I27 -> 0 | H55: =Basisdaten!J27 -> 0 | I55: =IF(E55=$S$2,VLOOKUP(H55,$U$20:$W$23,MATCH(F55,$U$20:$W$20,0),FALSE),VLOOKUP(H55,$U$25:$W$28,MATCH(F55,$U$25:$W$25,0),FALSE)) ->  | J55: =IF(G55=$U$3,$W$30,0) -> 0 | K55: =IF(AND($H$33=1,H55=$V$2,E55=$S$2),$W$29,0) -> 0 | L55: =I55*(1+J55)*(1-K55) ->  | M55: =IF(D55>0,D55*L55,0)*$D$51 -> 0 | N55: =Basisdaten!K27 -> 0 | O55: =Basisdaten!L27 -> 0 | P55: =Basisdaten!M27 -> 0 | Q55: =IF(O55="ja",$Z$26,$AA$26) -> 0.00025 | R55: =-$Z$29+$Z$30+IF(P55="ja",$Z$28,0) -> 0 | S55: =IF(AND(D55>0,N55="ja"),D55*Q55,0)*(1+R55) -> 0 | T55: =Basisdaten!N27 -> 0 | U55: =Basisdaten!O27 -> 0 | V55: =IF(U55="ja",$AE$24,0) -> 0 | W55: =IF(G55=$U$3,$AE$23,0) -> 0 | X55: =IF($H$51=1,HLOOKUP(F55,$AD$19:$AE$21,2,FALSE),HLOOKUP(F55,$AD$19:$AE$21,3,FALSE))*(1+V55)*(1+W55) ->  | Y55: =IF(AND(D55>0,T55="ja"),D55*X55,0)*$D$51 -> 0 | AE55: 0
B56: =Basisdaten!B28 -> Gebäude 4 | D56: =Basisdaten!D28*$D$51 -> 0 | E56: =Basisdaten!F28 -> 0 | F56: =Basisdaten!H28 -> 0 | G56: =Basisdaten!I28 -> 0 | H56: =Basisdaten!J28 -> 0 | I56: =IF(E56=$S$2,VLOOKUP(H56,$U$20:$W$23,MATCH(F56,$U$20:$W$20,0),FALSE),VLOOKUP(H56,$U$25:$W$28,MATCH(F56,$U$25:$W$25,0),FALSE)) ->  | J56: =IF(G56=$U$3,$W$30,0) -> 0 | K56: =IF(AND($H$33=1,H56=$V$2,E56=$S$2),$W$29,0) -> 0 | L56: =I56*(1+J56)*(1-K56) ->  | M56: =IF(D56>0,D56*L56,0)*$D$51 -> 0 | N56: =Basisdaten!K28 -> 0 | O56: =Basisdaten!L28 -> 0 | P56: =Basisdaten!M28 -> 0 | Q56: =IF(O56="ja",$Z$26,$AA$26) -> 0.00025 | R56: =-$Z$29+$Z$30+IF(P56="ja",$Z$28,0) -> 0 | S56: =IF(AND(D56>0,N56="ja"),D56*Q56,0)*(1+R56) -> 0 | T56: =Basisdaten!N28 -> 0 | U56: =Basisdaten!O28 -> 0 | V56: =IF(U56="ja",$AE$24,0) -> 0 | W56: =IF(G56=$U$3,$AE$23,0) -> 0 | X56: =IF($H$51=1,HLOOKUP(F56,$AD$19:$AE$21,2,FALSE),HLOOKUP(F56,$AD$19:$AE$21,3,FALSE))*(1+V56)*(1+W56) ->  | Y56: =IF(AND(D56>0,T56="ja"),D56*X56,0)*$D$51 -> 0 | AE56: 0
B57: =Basisdaten!B29 -> Gebäude 5 | D57: =Basisdaten!D29*$D$51 -> 0 | E57: =Basisdaten!F29 -> 0 | F57: =Basisdaten!H29 -> 0 | G57: =Basisdaten!I29 -> 0 | H57: =Basisdaten!J29 -> 0 | I57: =IF(E57=$S$2,VLOOKUP(H57,$U$20:$W$23,MATCH(F57,$U$20:$W$20,0),FALSE),VLOOKUP(H57,$U$25:$W$28,MATCH(F57,$U$25:$W$25,0),FALSE)) ->  | J57: =IF(G57=$U$3,$W$30,0) -> 0 | K57: =IF(AND($H$33=1,H57=$V$2,E57=$S$2),$W$29,0) -> 0 | L57: =I57*(1+J57)*(1-K57) ->  | M57: =IF(D57>0,D57*L57,0)*$D$51 -> 0 | N57: =Basisdaten!K29 -> 0 | O57: =Basisdaten!L29 -> 0 | P57: =Basisdaten!M29 -> 0 | Q57: =IF(O57="ja",$Z$26,$AA$26) -> 0.00025 | R57: =-$Z$29+$Z$30+IF(P57="ja",$Z$28,0) -> 0 | S57: =IF(AND(D57>0,N57="ja"),D57*Q57,0)*(1+R57) -> 0 | T57: =Basisdaten!N29 -> 0 | U57: =Basisdaten!O29 -> 0 | V57: =IF(U57="ja",$AE$24,0) -> 0 | W57: =IF(G57=$U$3,$AE$23,0) -> 0 | X57: =IF($H$51=1,HLOOKUP(F57,$AD$19:$AE$21,2,FALSE),HLOOKUP(F57,$AD$19:$AE$21,3,FALSE))*(1+V57)*(1+W57) ->  | Y57: =IF(AND(D57>0,T57="ja"),D57*X57,0)*$D$51 -> 0 | AE57: 0
B58: Inhalt | D58: Feuer | F58: Einbruch | J58: Sturm | N58: Leitungswasser | S58: Versicherungssummen | U58: Prämien | W58: ED | X58: =SUM(I60:I61)*D51 -> 0 | Y58: EDV
C59: VS | D59: Promillesatz | E59: Prämie | F59: Deckung | G59: Promille | H59: Nachlass Bruchteil | I59: Prämie | J59: Deckung | K59: Promille | L59: Nachlass Bruchteil | M59: Prämie | N59: Deckung | O59: Promille | P59: Nachlass Bruchteil | R59: Prämie | S59: Gebäude | T59: =SUM(D53:D57)*D51 -> 0 | U59: Feuer | V59: =SUM(M53:M57,E60:E61)*D51 -> 0 | W59: Glas | Y59: Kühlgut
B60: KTE | C60: =Basisdaten!D31*$D$51 -> 0 | D60: =$D$30 -> 0 | E60: =C60*D60*D51 -> 0 | F60: =IF(Basisdaten!F31="",$AA$45,Basisdaten!F31) -> ja, volle VS | G60: =$G$30 -> 0 | H60: =VLOOKUP(F60,$L$3:$N$16,3,FALSE)/100 -> 0 | I60: =$C60*G60*(1-H60)*$D$51 -> 0 | J60: =IF(Basisdaten!H31="",$AA$45,Basisdaten!H31) -> ja, volle VS | K60: =$K$30 -> 0 | L60: =VLOOKUP(J60,$L$3:$N$16,3,FALSE)/100 -> 0 | M60: =$C60*K60*(1-L60)*$D$51 -> 0 | N60: =IF(Basisdaten!J31="",$AA$45,Basisdaten!J31) -> ja, volle VS | O60: =$I$30 -> 0 | P60: =VLOOKUP(N60,$L$3:$N$16,3,FALSE)/100 -> 0 | Q60: =$Z$30 -> 0 | R60: =$C60*O60*(1-P60)*$D$51*(1+Q60) -> 0 | S60: Alles | T60: =SUM(D53:D57,C60:C61)*D51 -> 0 | U60: Sturm | V60: =SUM(Y53:Y57,M60:M61)*D51 -> 0 | W60: Feuer-EC
B61: Vorräte | C61: =Basisdaten!D32*$D$51 -> 0 | D61: =$D$30 -> 0 | E61: =C61*D61*D51 -> 0 | F61: =IF(Basisdaten!F32="",$AA$45,Basisdaten!F32) -> ja, volle VS | G61: =$G$30 -> 0 | H61: =VLOOKUP(F61,$L$3:$N$16,3,FALSE)/100 -> 0 | I61: =$C61*G61*(1-H61)*$D$51 -> 0 | J61: =IF(Basisdaten!H32="",$AA$45,Basisdaten!H32) -> ja, volle VS | K61: =$K$30 -> 0 | L61: =VLOOKUP(J61,$L$3:$N$16,3,FALSE)/100 -> 0 | M61: =$C61*K61*(1-L61)*$D$51 -> 0 | N61: =IF(Basisdaten!J32="",$AA$45,Basisdaten!J32) -> ja, volle VS | O61: =$I$30 -> 0 | P61: =VLOOKUP(N61,$L$3:$N$16,3,FALSE)/100 -> 0 | Q61: =$Z$30 -> 0 | R61: =$C61*O61*(1-P61)*$D$51*(1+Q61) -> 0 | U61: LW | V61: =SUM(S53:S57,R60:R61)*D51 -> 0 | W61: Technik
B64: Risikoort 2 | C64: Vorhanden? | D64: =IF(Basisdaten!T36=TRUE,1,0) -> 0 | E64: PLZ | F64: =Basisdaten!F36 -> 0 | G64: Wien? | H64: =IF(F64<1999,1,0) -> 1 | I64: Prämie Feuer Gebäude | N64: Prämie LW Gebäude | T64: Prämie Sturm Gebäude
B65: Gebäude | D65: Versicherungs-summe | E65: Art des Gebäudes | F65: Bauart | G65: hartes Dach | H65: Gew. Fläche | I65: Promillesatz Feuer | J65: Zuschlag Dach | K65: Nachlass Wien | L65: Promille | M65: Prämie | N65: LW ja/nein | O65: LW: 10 Zimmer | P65: Pool | Q65: Promille | R65: Zuschläge | S65: Prämie | T65: Sturm ja/nein | U65: Offenes Gebäude | V65: Zuschlag offen | W65: Zuschlag Dach | X65: Promille | Y65: Prämie
B66: =Basisdaten!B38 -> Gebäude 1 | D66: =Basisdaten!D38*$D$64 -> 0 | E66: =Basisdaten!F38 -> 0 | F66: =Basisdaten!H38 -> 0 | G66: =Basisdaten!I38 -> 0 | H66: =Basisdaten!J38 -> 0 | I66: =IF(E66=$S$2,VLOOKUP(H66,$U$20:$W$23,MATCH(F66,$U$20:$W$20,0),FALSE),VLOOKUP(H66,$U$25:$W$28,MATCH(F66,$U$25:$W$25,0),FALSE)) ->  | J66: =IF(G66=$U$3,$W$30,0) -> 0 | K66: =IF(AND($H$64=1,H66=$V$2,E66=$S$2),$W$29,0) -> 0 | L66: =I66*(1+J66)*(1-K66) ->  | M66: =IF(D66>0,D66*L66,0)*$D$64 -> 0 | N66: =Basisdaten!K38 -> 0 | O66: =Basisdaten!L38 -> 0 | P66: =Basisdaten!M38 -> 0 | Q66: =IF(O66="ja",$Z$26,$AA$26) -> 0.00025 | R66: =-$Z$29+$Z$30+IF(P66="ja",$Z$28,0) -> 0 | S66: =IF(AND(D66>0,N66="ja"),D66*Q66,0)*(1+R66) -> 0 | T66: =Basisdaten!N38 -> 0 | U66: =Basisdaten!O38 -> 0 | V66: =IF(U66="ja",$AE$24,0) -> 0 | W66: =IF(G66=$U$3,$AE$23,0) -> 0 | X66: =IF($H$64=1,HLOOKUP(F66,$AD$19:$AE$21,2,FALSE),HLOOKUP(F66,$AD$19:$AE$21,3,FALSE))*(1+V66)*(1+W66) ->  | Y66: =IF(AND(D66>0,T66="ja"),D66*X66,0)*$D$64 -> 0 | AE66: =IF(N66="ja",D66,0) -> 0
B67: =Basisdaten!B39 -> Gebäude 2 | D67: =Basisdaten!D39*$D$64 -> 0 | E67: =Basisdaten!F39 -> 0 | F67: =Basisdaten!H39 -> 0 | G67: =Basisdaten!I39 -> 0 | H67: =Basisdaten!J39 -> 0 | I67: =IF(E67=$S$2,VLOOKUP(H67,$U$20:$W$23,MATCH(F67,$U$20:$W$20,0),FALSE),VLOOKUP(H67,$U$25:$W$28,MATCH(F67,$U$25:$W$25,0),FALSE)) ->  | J67: =IF(G67=$U$3,$W$30,0) -> 0 | K67: =IF(AND($H$64=1,H67=$V$2,E67=$S$2),$W$29,0) -> 0 | L67: =I67*(1+J67)*(1-K67) ->  | M67: =IF(D67>0,D67*L67,0)*$D$64 -> 0 | N67: =Basisdaten!K39 -> 0 | O67: =Basisdaten!L39 -> 0 | P67: =Basisdaten!M39 -> 0 | Q67: =IF(O67="ja",$Z$26,$AA$26) -> 0.00025 | R67: =-$Z$29+$Z$30+IF(P67="ja",$Z$28,0) -> 0 | S67: =IF(AND(D67>0,N67="ja"),D67*Q67,0)*(1+R67) -> 0 | T67: =Basisdaten!N39 -> 0 | U67: =Basisdaten!O39 -> 0 | V67: =IF(U67="ja",$AE$24,0) -> 0 | W67: =IF(G67=$U$3,$AE$23,0) -> 0 | X67: =IF($H$64=1,HLOOKUP(F67,$AD$19:$AE$21,2,FALSE),HLOOKUP(F67,$AD$19:$AE$21,3,FALSE))*(1+V67)*(1+W67) ->  | Y67: =IF(AND(D67>0,T67="ja"),D67*X67,0)*$D$64 -> 0 | AE67: =IF(N67="ja",D67,0) -> 0
B68: =Basisdaten!B40 -> Gebäude 3 | D68: =Basisdaten!D40*$D$64 -> 0 | E68: =Basisdaten!F40 -> 0 | F68: =Basisdaten!H40 -> 0 | G68: =Basisdaten!I40 -> 0 | H68: =Basisdaten!J40 -> 0 | I68: =IF(E68=$S$2,VLOOKUP(H68,$U$20:$W$23,MATCH(F68,$U$20:$W$20,0),FALSE),VLOOKUP(H68,$U$25:$W$28,MATCH(F68,$U$25:$W$25,0),FALSE)) ->  | J68: =IF(G68=$U$3,$W$30,0) -> 0 | K68: =IF(AND($H$64=1,H68=$V$2,E68=$S$2),$W$29,0) -> 0 | L68: =I68*(1+J68)*(1-K68) ->  | M68: =IF(D68>0,D68*L68,0)*$D$64 -> 0 | N68: =Basisdaten!K40 -> 0 | O68: =Basisdaten!L40 -> 0 | P68: =Basisdaten!M40 -> 0 | Q68: =IF(O68="ja",$Z$26,$AA$26) -> 0.00025 | R68: =-$Z$29+$Z$30+IF(P68="ja",$Z$28,0) -> 0 | S68: =IF(AND(D68>0,N68="ja"),D68*Q68,0)*(1+R68) -> 0 | T68: =Basisdaten!N40 -> 0 | U68: =Basisdaten!O40 -> 0 | V68: =IF(U68="ja",$AE$24,0) -> 0 | W68: =IF(G68=$U$3,$AE$23,0) -> 0 | X68: =IF($H$64=1,HLOOKUP(F68,$AD$19:$AE$21,2,FALSE),HLOOKUP(F68,$AD$19:$AE$21,3,FALSE))*(1+V68)*(1+W68) ->  | Y68: =IF(AND(D68>0,T68="ja"),D68*X68,0)*$D$64 -> 0 | AE68: =IF(N68="ja",D68,0) -> 0
B69: =Basisdaten!B41 -> Gebäude 4 | D69: =Basisdaten!D41*$D$64 -> 0 | E69: =Basisdaten!F41 -> 0 | F69: =Basisdaten!H41 -> 0 | G69: =Basisdaten!I41 -> 0 | H69: =Basisdaten!J41 -> 0 | I69: =IF(E69=$S$2,VLOOKUP(H69,$U$20:$W$23,MATCH(F69,$U$20:$W$20,0),FALSE),VLOOKUP(H69,$U$25:$W$28,MATCH(F69,$U$25:$W$25,0),FALSE)) ->  | J69: =IF(G69=$U$3,$W$30,0) -> 0 | K69: =IF(AND($H$64=1,H69=$V$2,E69=$S$2),$W$29,0) -> 0 | L69: =I69*(1+J69)*(1-K69) ->  | M69: =IF(D69>0,D69*L69,0)*$D$64 -> 0 | N69: =Basisdaten!K41 -> 0 | O69: =Basisdaten!L41 -> 0 | P69: =Basisdaten!M41 -> 0 | Q69: =IF(O69="ja",$Z$26,$AA$26) -> 0.00025 | R69: =-$Z$29+$Z$30+IF(P69="ja",$Z$28,0) -> 0 | S69: =IF(AND(D69>0,N69="ja"),D69*Q69,0)*(1+R69) -> 0 | T69: =Basisdaten!N41 -> 0 | U69: =Basisdaten!O41 -> 0 | V69: =IF(U69="ja",$AE$24,0) -> 0 | W69: =IF(G69=$U$3,$AE$23,0) -> 0 | X69: =IF($H$64=1,HLOOKUP(F69,$AD$19:$AE$21,2,FALSE),HLOOKUP(F69,$AD$19:$AE$21,3,FALSE))*(1+V69)*(1+W69) ->  | Y69: =IF(AND(D69>0,T69="ja"),D69*X69,0)*$D$64 -> 0 | AE69: =IF(N69="ja",D69,0) -> 0
B70: =Basisdaten!B42 -> Gebäude 5 | D70: =Basisdaten!D42*$D$64 -> 0 | E70: =Basisdaten!F42 -> 0 | F70: =Basisdaten!H42 -> 0 | G70: =Basisdaten!I42 -> 0 | H70: =Basisdaten!J42 -> 0 | I70: =IF(E70=$S$2,VLOOKUP(H70,$U$20:$W$23,MATCH(F70,$U$20:$W$20,0),FALSE),VLOOKUP(H70,$U$25:$W$28,MATCH(F70,$U$25:$W$25,0),FALSE)) ->  | J70: =IF(G70=$U$3,$W$30,0) -> 0 | K70: =IF(AND($H$64=1,H70=$V$2,E70=$S$2),$W$29,0) -> 0 | L70: =I70*(1+J70)*(1-K70) ->  | M70: =IF(D70>0,D70*L70,0)*$D$64 -> 0 | N70: =Basisdaten!K42 -> 0 | O70: =Basisdaten!L42 -> 0 | P70: =Basisdaten!M42 -> 0 | Q70: =IF(O70="ja",$Z$26,$AA$26) -> 0.00025 | R70: =-$Z$29+$Z$30+IF(P70="ja",$Z$28,0) -> 0 | S70: =IF(AND(D70>0,N70="ja"),D70*Q70,0)*(1+R70) -> 0 | T70: =Basisdaten!N42 -> 0 | U70: =Basisdaten!O42 -> 0 | V70: =IF(U70="ja",$AE$24,0) -> 0 | W70: =IF(G70=$U$3,$AE$23,0) -> 0 | X70: =IF($H$64=1,HLOOKUP(F70,$AD$19:$AE$21,2,FALSE),HLOOKUP(F70,$AD$19:$AE$21,3,FALSE))*(1+V70)*(1+W70) ->  | Y70: =IF(AND(D70>0,T70="ja"),D70*X70,0)*$D$64 -> 0 | AE70: =IF(N70="ja",D70,0) -> 0
B71: Inhalt | D71: Feuer | F71: Einbruch | J71: Sturm | N71: Leitungswasser | S71: Versicherungssummen | U71: Prämien | W71: ED | X71: =SUM(I73:I74)*D64 -> 0 | Y71: EDV
C72: VS | D72: Promillesatz | E72: Prämie | F72: Deckung | G72: Promille | H72: Nachlass Bruchteil | I72: Prämie | J72: Deckung | K72: Promille | L72: Nachlass Bruchteil | M72: Prämie | N72: Deckung | O72: Promille | P72: Nachlass Bruchteil | Q72: Zuschläge | R72: Prämie | S72: Gebäude | T72: =SUM(D66:D70)*D64 -> 0 | U72: Feuer | V72: =SUM(M66:M70,E73:E74)*D64 -> 0 | W72: Glas | Y72: Kühlgut
B73: KTE | C73: =Basisdaten!D44*$D$64 -> 0 | D73: =$D$30 -> 0 | E73: =C73*D73*D64 -> 0 | F73: =IF(Basisdaten!F44="",$AA$45,Basisdaten!F44) -> ja, volle VS | G73: =$G$30 -> 0 | H73: =VLOOKUP(F73,$L$3:$N$16,3,FALSE)/100 -> 0 | I73: =$C73*G73*(1-H73)*$D$64 -> 0 | J73: =IF(Basisdaten!H44="",$AA$45,Basisdaten!H44) -> ja, volle VS | K73: =$K$30 -> 0 | L73: =VLOOKUP(J73,$L$3:$N$16,3,FALSE)/100 -> 0 | M73: =$C73*K73*(1-L73)*$D$64 -> 0 | N73: =IF(Basisdaten!J44="",$AA$45,Basisdaten!J44) -> ja, volle VS | O73: =$I$30 -> 0 | P73: =VLOOKUP(N73,$L$3:$N$16,3,FALSE)/100 -> 0 | Q73: =$Z$30 -> 0 | R73: =$C73*O73*(1-P73)*$D$64*(1+Q73) -> 0 | S73: Alles | T73: =SUM(D66:D70,C73:C74)*D64 -> 0 | U73: Sturm | V73: =SUM(Y66:Y70,M73:M74)*D64 -> 0 | W73: Feuer-EC
B74: Vorräte | C74: =Basisdaten!D45*$D$64 -> 0 | D74: =$D$30 -> 0 | E74: =C74*D74*D64 -> 0 | F74: =IF(Basisdaten!F45="",$AA$45,Basisdaten!F45) -> ja, volle VS | G74: =$G$30 -> 0 | H74: =VLOOKUP(F74,$L$3:$N$16,3,FALSE)/100 -> 0 | I74: =$C74*G74*(1-H74)*$D$64 -> 0 | J74: =IF(Basisdaten!H45="",$AA$45,Basisdaten!H45) -> ja, volle VS | K74: =$K$30 -> 0 | L74: =VLOOKUP(J74,$L$3:$N$16,3,FALSE)/100 -> 0 | M74: =$C74*K74*(1-L74)*$D$64 -> 0 | N74: =IF(Basisdaten!J45="",$AA$45,Basisdaten!J45) -> ja, volle VS | O74: =$I$30 -> 0 | P74: =VLOOKUP(N74,$L$3:$N$16,3,FALSE)/100 -> 0 | Q74: =$Z$30 -> 0 | R74: =$C74*O74*(1-P74)*$D$64*(1+Q74) -> 0 | U74: LW | V74: =SUM(S66:S70,R73:R74)*D64 -> 0 | W74: Technik
B77: Gesamtprämien | D77: ED | E77: =SUM(X71,X58,X45) -> 0 | F77: EDV | H77: VS | J77: Feuer | K77: Sturm | L77: LW | M77: ED
B78: Feuer | C78: =SUM(V72,V59,V46) -> 0 | D78: Glas | E78: =SUM(X72,X59,X46) -> 0 | F78: Kühlgut | H78: Gebäude | I78: =T46+T59+T72 -> 0 | J78: =I78 -> 0 | K78: =Q90 -> 0 | L78: =SUM(AE35:AE70) -> 0 | P78: VS Sturm Gebäude
B79: Sturm | C79: =SUM(V73,V60,V47) -> 0 | D79: Feuer-EC | E79: =SUM(X73,X60,X47) -> 0 | H79: KTE | I79: =C47+C60+C73 -> 0 | J79: =I79 -> 0 | K79: =VLOOKUP(J47,$L$3:$M$16,2,FALSE)*C47/100+VLOOKUP(J60,$L$3:$M$16,2,FALSE)*C60/100+VLOOKUP(J73,$L$3:$M$16,2,FALSE)*C73/100 -> 0 | L79: =VLOOKUP(N47,$L$3:$M$16,2,FALSE)*C47/100+VLOOKUP(N60,$L$3:$M$16,2,FALSE)*C60/100+VLOOKUP(N73,$L$3:$M$16,2,FALSE)*C73/100 -> 0 | M79: =VLOOKUP(F47,$L$3:$M$16,2,FALSE)*C47/100+VLOOKUP(F60,$L$3:$M$16,2,FALSE)*C60/100+VLOOKUP(F73,$L$3:$M$16,2,FALSE)*C73/100 -> 0 | P79: VS Sturm | Q79: RO 1 | R79: RO2 | S79: RO3
B80: LW | C80: =SUM(V74,V61,V48) -> 0 | D80: Technik | E80: =SUM(X74,X61,X48) -> 0 | H80: Vorräte | I80: =C48+C61+C74 -> 0 | J80: =I80 -> 0 | K80: =VLOOKUP(J48,$L$3:$M$16,2,FALSE)*C48/100+VLOOKUP(J61,$L$3:$M$16,2,FALSE)*C61/100+VLOOKUP(J74,$L$3:$M$16,2,FALSE)*C74/100 -> 0 | L80: =VLOOKUP(N48,$L$3:$M$16,2,FALSE)*C48/100+VLOOKUP(N61,$L$3:$M$16,2,FALSE)*C61/100+VLOOKUP(N74,$L$3:$M$16,2,FALSE)*C74/100 -> 0 | M80: =VLOOKUP(F48,$L$3:$M$16,2,FALSE)*C48/100+VLOOKUP(F61,$L$3:$M$16,2,FALSE)*C61/100+VLOOKUP(F74,$L$3:$M$16,2,FALSE)*C74/100 -> 0 | P80: Gebäude 1 | Q80: =$D$33*IF(T35="ja",1,0)*D35 -> 0 | R80: =$D$51*IF(T53="ja",1,0)*D53 -> 0 | S80: =$D$64*IF(T66="ja",1,0)*D66 -> 0
H81: Alles | I81: =SUM(I78:I80) -> 0 | J81: =SUM(J78:J80) -> 0 | K81: =SUM(K78:K80) -> 0 | L81: =SUM(L78:L80) -> 0 | M81: =SUM(M78:M80) -> 0 | P81: Gebäude 2 | Q81: 0 | R81: =$D$51*IF(T54="ja",1,0)*D54 -> 0 | S81: =$D$64*IF(T67="ja",1,0)*D67 -> 0
I82: Investitionsdeckung | J82: =SUM(J78:J79)*0.2 -> 0 | K82: =SUM(K78:K79)*0.2 -> 0 | L82: =SUM(L78:L79)*0.2 -> 0 | M82: =SUM(M79)*0.2 -> 0 | P82: Gebäude 3 | Q82: 0 | R82: =$D$51*IF(T55="ja",1,0)*D55 -> 0 | S82: =$D$64*IF(T68="ja",1,0)*D68 -> 0
P83: Gebäude 4 | Q83: 0 | R83: =$D$51*IF(T56="ja",1,0)*D56 -> 0 | S83: =$D$64*IF(T69="ja",1,0)*D69 -> 0
P84: Gebäude 5 | Q84: 0 | R84: =$D$51*IF(T57="ja",1,0)*D57 -> 0 | S84: =$D$64*IF(T70="ja",1,0)*D70 -> 0
P85: Gebäude 6 | Q85: 0
P86: Gebäude 7 | Q86: 0
P87: Gebäude 8 | Q87: 0
P88: Gebäude 9 | Q88: 0
P89: Gebäude 10 | Q89: 0
P90: Gesamt | Q90: =SUM(Q80:S89) -> 0

Sheet Sach
M1: Möglich | N1: Sparte grau | O1: Makros | P1: Für Berechnung
B2: Sachversicherung gewünscht? | I2: Info grobe Fahrlässigkeit | M2: 1 | N2: 1 | O2: FALSE | P2: =IF(O2=TRUE,1,0)*M2 -> 0
B3: =IF(AND(Kundendaten!$E$13=1,'Berechnung Sparten'!$T$9=0),"Achtung: bei Basisdaten wurde keine KTE ausgewählt!","") -> Achtung: bei Basisdaten wurde keine KTE ausgewählt! | M3: 1 | N3: 1 | O3: FALSE
B4: Feuerversicherung | M4: ='Übersicht und Druck'!$E$12 -> 0 | N4: x | R4: Auswahl Nebenkosten
B5: Sparte gewählt | I5: Art | J5: Auswahl | K5: Prämie | M5: ='Übersicht und Druck'!$E$12 -> 0 | N5: x | O5: FALSE | P5: =IF(O5=TRUE,1,0)*M5 -> 0 | R5: VS für NK | S5: ='Berechnung Sparten'!X64 -> 0
B6: ='Berechnung Sparten'!B28 -> Grunddeckung (Gebäude, KTE gem. BB F9013, Vorräte) | I6: ='Berechnung Sparten'!W28 -> VS | J6: ja | K6: ='Berechnung Sparten'!U28 -> 0 | M6: ='Übersicht und Druck'!$E$12 -> 0 | N6: =$P$5 -> 0 | R6: 0.05 | S6: =$S$5*R6 -> 0
B7: ='Berechnung Sparten'!B29 -> Technische und kaufmännische Betriebseinrichtung sowie Vorräte (im Eigentum des Versicherungsnehmers) ständig außerhalb des Versicherungsortes jedoch innerhalb Österreichs | I7: ='Berechnung Sparten'!W29 -> ER | K7: ='Berechnung Sparten'!U29 -> 0 | M7: ='Übersicht und Druck'!$E$12 -> 0 | N7: 0 | P7: =J7 -> 0 | R7: 0.1 | S7: =$S$5*R7 -> 0
B8: ='Berechnung Sparten'!B30 -> Wiederherstellungskosten von Datenträgern (Geschäftsbücher, Akten, Pläne, elektronische Speichermedien, Typenscheine, kodierte KFZ-Schlüssel und dgl.) und den darauf befindlichen Daten | I8: ='Berechnung Sparten'!W30 -> ER 5000 inkl. | K8: ='Berechnung Sparten'!U30 -> 0 | M8: ='Übersicht und Druck'!$E$12 -> 0 | N8: 0 | P8: 0 | R8: 0.15 | S8: =$S$5*R8 -> 0
B9: ='Berechnung Sparten'!B31 -> Sachen der Betriebsinhaber und Dienstnehmer (ausgenommen jedoch Bargeld, Edelmetall-, Gold-, Silber- und Schmucksachen, Kraftfahrzeuge sowie in Wohnungen befindlicher Hausrat) | I9: ='Berechnung Sparten'!W31 -> NW 5000 inkl. | K9: ='Berechnung Sparten'!U31 -> 0 | M9: ='Übersicht und Druck'!$E$12 -> 0 | N9: 0 | P9: 0 | Q9: Gewählt | R9: 0.2 | S9: =VLOOKUP(R9,R6:S8,2,FALSE) ->  | T9: Seit 2020 fix 20 % prämienfrei, vorher optional
B10: ='Berechnung Sparten'!B32 -> Grundstücksbegrenzungen aller Art bis € 50.000,00 | K10: präm.frei | M10: ='Übersicht und Druck'!$E$12 -> 0 | N10: 0 | P10: 0
B11: ='Berechnung Sparten'!B33 -> Grundstücksbegrenzungen aller Art bis € 10.000,00 gegen Schäden durch fremde KFZ, sofern der Schädiger nicht eruiert werden kann (unverzügliche Anzeige bei der Sicherheitsbehörde erforderlich) | K11: präm.frei | M11: ='Übersicht und Druck'!$E$12 -> 0 | N11: 0 | P11: 0 | R11: Kfz
B12: ='Berechnung Sparten'!B34 -> Schäden an sämtlichen baulichen Außenanlagen (ausgenommen Gebäude) sowie Bepflanzungen am Versicherungsgrundstück (5000 inkl.) | I12: ER | K12: ='Berechnung Sparten'!U34 -> 0 | M12: ='Übersicht und Druck'!$E$12 -> 0 | N12: 0 | P12: 0 | R12: ER
B13: ='Berechnung Sparten'!B35 -> KFZ fahrend und ruhend wo immer befindlich gem. F9127 | I13: ER | K13: ='Berechnung Sparten'!U35 -> 0 | M13: ='Übersicht und Druck'!$E$12 -> 0 | N13: 0 | P13: 0 | R13: ZW
B14: ='Berechnung Sparten'!B36 -> KFZ fahrend und ruhend am Versicherungsort und auf Probefahrten gem. F0065 | I14: ER | K14: ='Berechnung Sparten'!U36 -> 0 | M14: ='Übersicht und Druck'!$E$12 -> 0 | N14: 0 | P14: 0
B15: ='Berechnung Sparten'!B37 -> KFZ fahrend und ruhend wo immer befindlich, inkl. Kabelschmorschäden gem. F3012 | I15: ER | K15: ='Berechnung Sparten'!U37 -> 0 | M15: ='Übersicht und Druck'!$E$12 -> 0 | N15: 0 | P15: 0
B16: ='Berechnung Sparten'!B38 -> KFZ fahrend und ruhend am Versicherungsort und auf Probefahrten, inkl. Kabelschmorschäden gem. F3065 | I16: ER | K16: ='Berechnung Sparten'!U38 -> 0 | M16: ='Übersicht und Druck'!$E$12 -> 0 | N16: 0 | P16: 0
B17: ='Berechnung Sparten'!B39 -> Anhänger fahrend und ruhend wo immer befindlich | I17: ER | K17: ='Berechnung Sparten'!U39 -> 0 | M17: ='Übersicht und Druck'!$E$12 -> 0 | N17: 0 | P17: 0
B18: ='Berechnung Sparten'!B40 -> Anhänger fahrend und ruhend am Versicherungsort und auf Probefahrten | I18: ER | K18: ='Berechnung Sparten'!U40 -> 0 | M18: ='Übersicht und Druck'!$E$12 -> 0 | N18: 0 | P18: 0 | R18: Mehrkosten max.
B19: ='Berechnung Sparten'!B41 -> Werkzeuge, Geräte und Vorräte in KFZ befindlich | I19: ='Berechnung Sparten'!W41 -> NW | K19: ='Berechnung Sparten'!U41 -> 0 | M19: ='Übersicht und Druck'!$E$12 -> 0 | N19: 0 | P19: 0 | R19: ='Berechnung Grund'!I81*0.2/2 -> 0
B20: ='Berechnung Sparten'!B42 -> Schaukästen, Vitrinen und Automaten samt Inhalt außerhalb des Versicherungsortes | I20: ='Berechnung Sparten'!W42 -> NW | K20: ='Berechnung Sparten'!U42 -> 0 | M20: ='Übersicht und Druck'!$E$12 -> 0 | N20: 0 | P20: 0
B21: ='Berechnung Sparten'!B43 -> Geld und Geldeswerte, Sparbücher, Wertpapiere, Urkunden, Schmuck-, Gold- und Platinsachen, Edelsteine, Edelmetalle und echte Perlen sowie Münzen- und Briefmarkensammlungen, Brief - und Stempelmarken, Vignetten, Kurzparkscheine, Lose und Telefonwertkarten unter festem Verschluss | I21: ='Berechnung Sparten'!W43 -> ER 5000 inkl. | K21: ='Berechnung Sparten'!U43 -> 0 | M21: ='Übersicht und Druck'!$E$12 -> 0 | N21: 0 | P21: 0
B22: ='Berechnung Sparten'!B44 -> Kaminbrand, Verpuffungs- und Verrußungsschäden | I22: ='Berechnung Sparten'!W44 -> ER | K22: ='Berechnung Sparten'!U44 -> 0 | L22: =IF(J22>R28,"Maximale VS 5.000","") ->  | M22: ='Übersicht und Druck'!$E$12 -> 0 | N22: 0 | P22: =IF(J22="",0,MIN(J22,R28)) -> 0 | R22: Außenanlagen
B23: ='Berechnung Sparten'!B45 -> Schwimmbecken im Freien samt Abdeckung am Versicherungsort | I23: ='Berechnung Sparten'!W45 -> NW | K23: ='Berechnung Sparten'!U45 -> 0 | M23: ='Übersicht und Druck'!$E$12 -> 0 | N23: 0 | P23: 0 | R23: ER
B24: ='Berechnung Sparten'!B46 -> Groß- und/oder Kleintiere | I24: ='Berechnung Sparten'!W46 -> WBS | K24: ='Berechnung Sparten'!U46 -> 0 | M24: ='Übersicht und Druck'!$E$12 -> 0 | N24: 0 | P24: 0 | R24: NW
B25: ='Berechnung Sparten'!B47 -> Räucherkammerinhalt gem. F0078 | I25: ='Berechnung Sparten'!W47 -> ER | K25: ='Berechnung Sparten'!U47 -> 0 | M25: ='Übersicht und Druck'!$E$12 -> 0 | N25: 0 | P25: 0
B26: ='Berechnung Sparten'!B48 -> 20 % Aufräumungs-, Abbruch-, Feuerlösch-, De- u. Remontagekosten, Bewegungs- u. Schutzkosten, Deponiekosten für nicht zu behandelnden Abfall. Im Rahmen dieser Summe gelten Mehrkosten durch die Behandlung von gefährlichem Abfall und/oder kontaminiertem Erdreich bis 50 % der Summe als mitversichert, gem. A3024. | K26: präm.frei | M26: ='Übersicht und Druck'!$E$12 -> 0 | N26: 0 | P26: =S9 -> 
B27: ='Berechnung Sparten'!B49 -> Mehrkosten durch die Behandlung von gefährlichem Abfall und/oder kontaminiertem Erdreich (A3024) | I27: ="ER (max. "&ROUND(R19,0)&")" -> ER (max. 0) | K27: ='Berechnung Sparten'!U49 -> 0 | M27: ='Übersicht und Druck'!$E$12 -> 0 | N27: 0 | P27: =IF(J27="",0,MIN(J27,R19)) -> 0 | R27: Kambinbrand max. VS
B28: ='Berechnung Sparten'!B50 -> Sachverständigenkosten gem. A4850 | I28: ='Berechnung Sparten'!W50 -> ER | K28: ='Berechnung Sparten'!U50 -> 0 | M28: ='Übersicht und Druck'!$E$12 -> 0 | N28: 0 | P28: =J28 -> 0 | R28: 5000
B29: ='Berechnung Sparten'!B51 -> Haftungserweiterung auf indirekte Blitzschlagschäden inkl. der Haustechnik gem. F4965 | I29: ='Berechnung Sparten'!W51 -> ER 5000 inkl. | K29: ='Berechnung Sparten'!U51 -> 0 | M29: ='Übersicht und Druck'!$E$12 -> 0 | N29: 0 | P29: 0
B30: ='Berechnung Sparten'!B52 -> Mehraufwand im Schadensfall (10 % gem. BB 4817) | K30: präm.frei | M30: ='Übersicht und Druck'!$E$12 -> 0 | N30: 0 | P30: 0
B31: ='Berechnung Sparten'!B53 -> Außenversicherung (10 % gem. BB 4924) | I31: prämienfrei | K31: präm.frei | M31: ='Übersicht und Druck'!$E$12 -> 0 | N31: 0 | P31: 0
B32: ='Berechnung Sparten'!B54 -> Verteurerung im Schadensfall (15 % gem. BB 4907) | I32: prämienfrei | K32: präm.frei | M32: ='Übersicht und Druck'!$E$12 -> 0 | N32: 0 | P32: 0
B33: ='Berechnung Sparten'!B55 -> Brandherd 50.000 (gem. N022) | I33: prämienfrei | K33: präm.frei | M33: ='Übersicht und Druck'!$E$12 -> 0 | N33: 0 | P33: 0
B34: ='Berechnung Sparten'!B56 -> Geld und Geldeswerte im Sicherheitsbehältnis | M34: ='Übersicht und Druck'!$E$12 -> 0 | N34: 0 | R34: Limits
B35: ='Berechnung Sparten'!B57 -> Sicherheitsgrad EN0 bzw. VSÖ IV (VS 15.000) | I35: ='Berechnung Sparten'!W57 -> ER | K35: ='Berechnung Sparten'!U57 -> 0 | M35: ='Übersicht und Druck'!$E$12 -> 0 | N35: 0 | O35: FALSE | P35: =IF(O35=TRUE,R35,0) -> 0 | R35: 15000
B36: ='Berechnung Sparten'!B58 -> Sicherheitsgrad EN1 bzw. VSÖ III/c 1-3 (VS 30.000) | I36: ='Berechnung Sparten'!W58 -> ER | K36: ='Berechnung Sparten'!U58 -> 0 | M36: ='Übersicht und Druck'!$E$12 -> 0 | N36: 0 | O36: FALSE | P36: =IF(O36=TRUE,R36,0) -> 0 | R36: 30000
B37: ='Berechnung Sparten'!B59 -> Sicherheitsgrad VSÖ III/b (VS 45.000) | I37: ='Berechnung Sparten'!W59 -> ER | K37: ='Berechnung Sparten'!U59 -> 0 | M37: ='Übersicht und Druck'!$E$12 -> 0 | N37: 0 | O37: FALSE | P37: 0 | R37: 45000
B38: ='Berechnung Sparten'!B60 -> Sicherheitsgrad EN2 bzw. VSÖ II/d (VS 75.000) | I38: ='Berechnung Sparten'!W60 -> ER | K38: ='Berechnung Sparten'!U60 -> 0 | M38: ='Übersicht und Druck'!$E$12 -> 0 | N38: 0 | O38: FALSE | P38: 0 | R38: 75000
B39: ='Berechnung Sparten'!B61 -> Sicherheitsgrad EN3 bzw. VSÖ II/c (VS 100.000) | I39: ='Berechnung Sparten'!W61 -> ER | K39: ='Berechnung Sparten'!U61 -> 0 | M39: ='Übersicht und Druck'!$E$12 -> 0 | N39: 0 | O39: FALSE | P39: 0 | R39: 100000
B40: ='Berechnung Sparten'!B62 -> Sicherheitsgrad EN4 (VS 150.000) | I40: ='Berechnung Sparten'!W62 -> ER | K40: ='Berechnung Sparten'!U62 -> 0 | M40: ='Übersicht und Druck'!$E$12 -> 0 | N40: 0 | O40: FALSE | P40: 0 | R40: 150000
B41: ='Berechnung Sparten'!B63 -> Sicherheitsgrad EN5 bzw. VSÖ II/b (VS 250.000) | I41: ='Berechnung Sparten'!W63 -> ER | K41: ='Berechnung Sparten'!U63 -> 0 | M41: ='Übersicht und Druck'!$E$12 -> 0 | N41: 0 | O41: FALSE | P41: 0 | R41: 250000
I42: Spartenprämie | K42: ='Berechnung Sparten'!U66 -> 0 | M42: ='Übersicht und Druck'!$E$12 -> 0 | N42: 0
B45: Betriebsunterbrechungsversicherung | M45: ='Übersicht und Druck'!$E$13 -> 0 | N45: x
B46: Sparte gewählt | M46: ='Übersicht und Druck'!$E$13 -> 0 | N46: x | O46: FALSE | P46: =IF(O46=TRUE,1,0)*P5*M46 -> 0 | Q46: Makros Feuer/Total-BU
B47: Jahresdeckungsbeitrag | F47: Haftungszeit | H47: 12 Monate | I47: =IF(H47="","bitte wählen","") ->  | K47: Prämie | M47: ='Übersicht und Druck'!$E$13 -> 0 | N47: =$P$46 -> 0 | Q47: =O46 -> FALSE | R47: =IF(Q47=TRUE,1,0) -> 0 | S47: Feuer | T47: Haftungszeit F/Total-BU | W47: Haftungszeit EC-BU
B48: Feuer | C48: Pflicht | D48: LW | F48: ED | H48: Sturm | K48: ='Berechnung Sparten'!U78 ->  | M48: ='Übersicht und Druck'!$E$13 -> 0 | N48: 0 | Q48: TRUE | R48: =IF(Q48=TRUE,1,0)*$R$47*P158 -> 0 | S48: LW | T48: 6 Monate | U48: -0.24 | W48: 6 Monate | X48: -0.24
B49: ='Berechnung Sparten'!B73 -> Prämienrückgewähr - und Vorsorge-Versicherung, Bes.Bed. BU950 | I49: ='Berechnung Sparten'!C73 -> inkludiert | K49: ='Berechnung Sparten'!U73 -> 0 | M49: ='Übersicht und Druck'!$E$13 -> 0 | N49: 0 | O49: FALSE | Q49: TRUE | R49: =IF(Q49=TRUE,1,0)*$R$47*P116 -> 0 | S49: ED | T49: 9 Monate | U49: -0.15 | W49: 9 Monate | X49: -0.15
B50: ='Berechnung Sparten'!B74 -> Mehrkosten für erhöhten Werbeaufwand | I50: ='Berechnung Sparten'!C74 -> ER | K50: ='Berechnung Sparten'!U74 ->  | M50: ='Übersicht und Druck'!$E$13 -> 0 | N50: 0 | P50: =J50 -> 0 | Q50: TRUE | R50: =IF(Q50=TRUE,1,0)*$R$47*P223 -> 0 | S50: Sturm | T50: 12 Monate | U50: 0 | W50: 12 Monate | X50: 0
B51: ='Berechnung Sparten'!B75 -> Rückwirkungsschäden (BU 960) | I51: ="ER (max. "&Q54&")" -> ER (max. 0) | K51: ='Berechnung Sparten'!U75 -> 0 | M51: ='Übersicht und Druck'!$E$13 -> 0 | N51: 0 | P51: =IF(J51="",0,MIN(J51,Q54)) -> 0 | T51: 15 Monate | U51: 0.2
I52: Spartenprämie | K52: ='Berechnung Sparten'!U78 ->  | M52: ='Übersicht und Druck'!$E$13 -> 0 | N52: 0 | T52: 18 Monate | U52: 0.4
Q53: Max. Rückwirkungsschäden | T53: 21 Monate | U53: 0.55
Q54: =IF(D47="",0,D47*0.1) -> 0 | T54: 24 Monate | U54: 0.65 | W54: Haftungszeit Mietentgang-BU
B55: Mietentgang-BU | M55: ='Übersicht und Druck'!$E$14 -> 0 | N55: x | W55: 6 Monate | X55: -0.24
B56: Sparte gewählt | M56: ='Übersicht und Druck'!$E$14 -> 0 | N56: x | O56: FALSE | P56: =IF(O56=TRUE,1,0)*P5*M56 -> 0 | Q56: Makros Mietentgang-BU | W56: 9 Monate | X56: -0.15
B57: Jahresmieteinnahmen | F57: Haftungszeit | H57: 12 Monate | I57: =IF(H57="","bitte wählen","") ->  | K57: Prämie | M57: ='Übersicht und Druck'!$E$14 -> 0 | N57: =$P$56 -> 0 | Q57: =O56 -> FALSE | R57: =IF(Q57=TRUE,1,0)*$P$56 -> 0 | S57: Feuer | W57: 12 Monate | X57: 0
B58: Feuer | C58: Pflicht | D58: LW | F58: ED | H58: Sturm | M58: ='Übersicht und Druck'!$E$14 -> 0 | N58: =$P$56 -> 0 | Q58: TRUE | R58: =IF(Q58=TRUE,1,0)*$P$56*P158 -> 0 | S58: LW | W58: 15 Monate | X58: 0.2
I59: Spartenprämie | K59: ='Berechnung Sparten'!U87 -> 0 | M59: ='Übersicht und Druck'!$E$14 -> 0 | N59: =$P$56 -> 0 | Q59: TRUE | R59: =IF(Q59=TRUE,1,0)*$P$56*P116 -> 0 | S59: ED | W59: 18 Monate | X59: 0.4
Q60: TRUE | R60: =IF(Q60=TRUE,1,0)*$P$56*P223 -> 0 | S60: Sturm | W60: 21 Monate | X60: 0.55
B61: Mehrkosten-BU | M61: ='Übersicht und Druck'!$E$15 -> 0 | N61: x | T61: Haftungszeit Mehrkosten-BU | W61: 24 Monate | X61: 0.65
B62: Sparte gewählt | M62: ='Übersicht und Druck'!$E$15 -> 0 | N62: x | O62: FALSE | P62: =IF(O62=TRUE,1,0)*P5*M62 -> 0 | Q62: Makros Mehrkosten | T62: Angabe | U62: Faktor | V62: VS
B63: Mehrkosten pro Monat | F63: Haftungszeit | H63: 3 Monate | I63: =IF(H63="","bitte wählen","") ->  | K63: Prämie | M63: ='Übersicht und Druck'!$E$15 -> 0 | N63: =$P$62 -> 0 | Q63: =O62 -> FALSE | R63: =IF(Q63=TRUE,1,0)*$P$62 -> 0 | S63: Feuer | T63: 1 Monat | U63: 11 | V63: 1
B64: Feuer | C64: Pflicht | D64: LW | F64: ED | H64: Sturm | M64: ='Übersicht und Druck'!$E$15 -> 0 | N64: =$P$62 -> 0 | Q64: TRUE | R64: =IF(Q64=TRUE,1,0)*$P$62*P158 -> 0 | S64: LW | T64: 2 Monate | U64: 5.6 | V64: 2
I65: Spartenprämie | K65: ='Berechnung Sparten'!U98 -> 0 | M65: ='Übersicht und Druck'!$E$15 -> 0 | N65: =$P$62 -> 0 | Q65: TRUE | R65: =IF(Q65=TRUE,1,0)*$P$62*P116 -> 0 | S65: ED | T65: 3 Monate | U65: 4 | V65: 3
Q66: TRUE | R66: =IF(Q66=TRUE,1,0)*$P$62*P223 -> 0 | S66: Sturm | T66: 6 Monate | U66: 2.2 | V66: 6
T67: 9 Monate | U67: 1.7 | V67: 9
B68: Extended Coverage Versicherung | M68: ='Übersicht und Druck'!$E$16*$P$5 -> 0 | N68: x | T68: 12 Monate | U68: 1.5 | V68: 12
B69: Sparte gewählt | M69: ='Übersicht und Druck'!$E$16*$P$5 -> 0 | N69: =P5 -> 0 | O69: FALSE | P69: =IF(O69=TRUE,1,0)*M69*P5 -> 0 | T69: Gewählt
B70: Versicherte Gefahren | M70: ='Übersicht und Druck'!$E$16*$P$5 -> 0 | N70: =$P$69 -> 0 | T70: =IF(H63="",T63,H63) -> 3 Monate | U70: =VLOOKUP(T70,T63:U68,2,FALSE) -> 4 | V70: =VLOOKUP(T70,T63:V68,3,FALSE) -> 3
B71: ='Berechnung Sparten'!AC108 -> 1.1 Innere Unruhen, böswillige Beschädigung, Streik, Aussperrung 1.2 Fahrzeuganprall, Rauch, Überschalldruckwelle | I71: ='Berechnung Sparten'!AD108*1000&" %o, SB "&'Berechnung Sparten'!AE108 -> 0,16 %o, SB 1000 | J71: ja | M71: ='Übersicht und Druck'!$E$16*$P$5 -> 0 | N71: 0 | P71: =P69 -> 0
B72: ='Berechnung Sparten'!AC109 -> 1.3 Sprinkler-Leckage | I72: ='Berechnung Sparten'!AD109*1000&" %o, SB "&'Berechnung Sparten'!AE109 -> 0,08 %o, SB 2000 | M72: ='Übersicht und Druck'!$E$16*$P$5 -> 0 | N72: 0 | O72: TRUE | P72: =IF(O72=TRUE,1,0)*$P$69 -> 0
B73: ='Berechnung Sparten'!AC110 -> 1.4 Überschwemmung: Anfrage Versicherungtechnik | I73: Anfrage | J73: nein | M73: ='Übersicht und Druck'!$E$16*$P$5 -> 0 | N73: 0 | P73: 0 | T73: Auswahl Nebenkosten
B74: ='Berechnung Sparten'!AC111 -> 1.5 Vermurung | I74: ='Berechnung Sparten'!AD111*1000&" %o, SB "&'Berechnung Sparten'!AE111 -> 0,03 %o, SB 2000 | M74: ='Übersicht und Druck'!$E$16*$P$5 -> 0 | N74: 0 | O74: TRUE | P74: =IF(O74=TRUE,1,0)*$P$69 -> 0 | T74: VS für NK | U74: ='Berechnung Sparten'!X116 -> 0
B75: ='Berechnung Sparten'!AC112 -> 1.6 Erdbeben | I75: ='Berechnung Sparten'!AD112*1000&" %o, SB "&'Berechnung Sparten'!AE112 -> 0,15 %o, SB 7500 | M75: ='Übersicht und Druck'!$E$16*$P$5 -> 0 | N75: 0 | O75: TRUE | P75: =IF(O75=TRUE,1,0)*$P$69 -> 0 | T75: 0.05 | U75: =U74*T75 -> 0
B76: ='Berechnung Sparten'!AC113 -> 1.7 Lawinen und Lawinenluftdruck | I76: ='Berechnung Sparten'!AD113*1000&" %o, SB "&'Berechnung Sparten'!AE113 -> 0,05 %o, SB 2000 | M76: ='Übersicht und Druck'!$E$16*$P$5 -> 0 | N76: 0 | O76: TRUE | P76: =IF(O76=TRUE,1,0)*$P$69 -> 0 | T76: 0.1 | U76: =U74*T76 -> 0
B77: ='Berechnung Sparten'!AC114 -> 1.8 Erdsenkung | I77: ='Berechnung Sparten'!AD114*1000&" %o, SB "&'Berechnung Sparten'!AE114 -> 0,05 %o, SB 2000 | M77: ='Übersicht und Druck'!$E$16*$P$5 -> 0 | N77: 0 | O77: TRUE | P77: =IF(O77=TRUE,1,0)*$P$69 -> 0 | T77: 0.15 | U77: =U74*T77 -> 0
B78: ='Berechnung Sparten'!AC115 -> 1.9 Unbenannte Gefahren | I78: ='Berechnung Sparten'!AD115*1000&" %o, SB "&'Berechnung Sparten'!AE115 -> 0,25 %o, SB 2000 | M78: ='Übersicht und Druck'!$E$16*$P$5 -> 0 | N78: 0 | O78: TRUE | P78: =IF(O78=TRUE,1,0)*$P$69 -> 0 | T78: 0.2 | U78: =U74*T78 -> 0
B79: Versicherte Sachen: Nur Sachen möglich, die auch in der Sparte Feuer gewählt wurden | M79: ='Übersicht und Druck'!$E$16*$P$5 -> 0 | N79: 0 | S79: Gewählt | T79: =IF(J86="",T75,J86) -> 0.05 | U79: =VLOOKUP(T79,T75:U78,2,FALSE) -> 0
B80: ='Berechnung Sparten'!B107 -> Grunddeckung (Gebäude, KTE, Vorräte) | I80: ='Berechnung Sparten'!G107 -> 0 | J80: ja | K80: ='Berechnung Sparten'!U107 -> 0 | M80: ='Übersicht und Druck'!$E$16*$P$5 -> 0 | N80: 0 | O80: TRUE | P80: =IF(O80=TRUE,1,0) -> 1
B81: ='Berechnung Sparten'!B108 -> Technische und kaufmännische Betriebseinrichtung sowie Vorräte (im Eigentum des Versicherungsnehmers) ständig außerhalb des Versicherungsortes jedoch innerhalb Österreichs | I81: ='Berechnung Sparten'!G108 -> 0 | K81: ='Berechnung Sparten'!U108 -> 0 | M81: ='Übersicht und Druck'!$E$16*$P$5 -> 0 | N81: 0 | O81: FALSE | P81: 0
B82: ='Berechnung Sparten'!B109 -> Wiederherstellungskosten von Datenträgern (Geschäftsbücher, Akten, Pläne, elektronische Speichermedien, Typenscheine, kodierte KFZ-Schlüssel und dgl.) und den darauf befindlichen Daten | I82: ='Berechnung Sparten'!G109 -> 0 | K82: ='Berechnung Sparten'!U109 -> 0 | M82: ='Übersicht und Druck'!$E$16*$P$5 -> 0 | N82: 0 | O82: FALSE | P82: 0
B83: ='Berechnung Sparten'!B110 -> Sachen der Betriebsinhaber und Dienstnehmer (ausgenommen jedoch Bargeld, Edelmetall-, Gold-, Silber- und Schmucksachen, Kraftfahrzeuge sowie in Wohnungen befindlicher Hausrat) | I83: ='Berechnung Sparten'!G110 -> 0 | K83: ='Berechnung Sparten'!U110 -> 0 | M83: ='Übersicht und Druck'!$E$16*$P$5 -> 0 | N83: 0 | O83: FALSE | P83: 0
B84: ='Berechnung Sparten'!B111 -> Geld und Geldeswerte, Sparbücher, Wertpapiere, Urkunden, Schmuck-, Gold- und Platinsachen, Edelsteine, Edelmetalle und echte Perlen sowie Münzen- und Briefmarkensammlungen, Brief - und Stempelmarken, Vignetten, Kurzparkscheine, Lose und Telefonwertkarten unter festem Verschluss | I84: ='Berechnung Sparten'!G111 -> 0 | K84: ='Berechnung Sparten'!U111 -> 0 | M84: ='Übersicht und Druck'!$E$16*$P$5 -> 0 | N84: 0 | O84: FALSE | P84: 0
B85: ='Berechnung Sparten'!B112 -> Groß- und/oder Kleintiere | I85: ='Berechnung Sparten'!G112 -> 0 | K85: ='Berechnung Sparten'!U112 -> 0 | M85: ='Übersicht und Druck'!$E$16*$P$5 -> 0 | N85: 0 | O85: FALSE | P85: 0
B86: ='Berechnung Sparten'!B113 -> 20 % Aufräumungs-, Abbruch-, Feuerlösch-, De- u. Remontagekosten, Bewegungs- u. Schutzkosten, Deponiekosten für nicht zu behandelnden Abfall. Im Rahmen dieser Summe gelten Mehrkosten durch die Behandlung von gefährlichem Abfall und/oder kontaminiertem Erdreich bis 50 % der Summe als mitversichert. | K86: präm.frei | M86: ='Übersicht und Druck'!$E$16*$P$5 -> 0 | N86: 0 | P86: =U79 -> 0
B87: ='Berechnung Sparten'!B114 -> Mehrkosten durch die Behandlung von gefährlichem Abfall und/oder kontaminiertem Erdreich | I87: ='Berechnung Sparten'!G114 -> 0 | K87: ='Berechnung Sparten'!U114 -> 0 | M87: ='Übersicht und Druck'!$E$16*$P$5 -> 0 | N87: 0 | O87: FALSE | P87: =IF(O87=TRUE,1,0) -> 0
B88: ='Berechnung Sparten'!B115 -> Sachverständigenkosten | I88: ='Berechnung Sparten'!G115 -> 0 | K88: ='Berechnung Sparten'!U115 -> 0 | M88: ='Übersicht und Druck'!$E$16*$P$5 -> 0 | N88: 0 | O88: FALSE | P88: =IF(O88=TRUE,1,0) -> 0
I89: Spartenprämie | K89: ='Berechnung Sparten'!U118 -> 0 | M89: ='Übersicht und Druck'!$E$16*$P$5 -> 0 | N89: 0
B92: Extended Coverage Betriebsunterbrechung | M92: =$P$69 -> 0 | N92: x
B93: Sparte gewählt | M93: 0 | N93: x | O93: FALSE | P93: =IF(O93=TRUE,1,0)*M93*P69 -> 0
B94: Versicherte Gefahren | M94: 0 | N94: =$P$93 -> 0 | T94: 0.19
B95: ='Berechnung Sparten'!AB126 -> 1.1 Innere Unruhen, böswillige Beschädigung, Streik, Aussperrung 1.2 Fahrzeuganprall, Rauch, Überschalldruckwelle | I95: ='Berechnung Sparten'!AC126*1000&" %o, SB "&'Berechnung Sparten'!AD126 -> 0,19 %o, SB 2 Tage | J95: ja | M95: 0 | N95: 0 | O95: TRUE | P95: =IF(O95=TRUE,1,0)*$P$93*P71 -> 0 | T95: 0.12
B96: ='Berechnung Sparten'!AB127 -> 1.3 Sprinkler-Leckage | I96: ='Berechnung Sparten'!AC127*1000&" %o, SB "&'Berechnung Sparten'!AD127 -> 0,12 %o, SB 2 Tage | M96: 0 | N96: 0 | O96: FALSE | P96: 0 | T96: 0.06
B97: ='Berechnung Sparten'!AB128 -> 1.4 Überschwemmung: Anfrage Versicherungtechnik | I97: Anfrage | J97: nein | M97: 0 | N97: 0 | P97: 0 | T97: 0.25
B98: ='Berechnung Sparten'!AB129 -> 1.5 Vermurung | I98: ='Berechnung Sparten'!AC129*1000&" %o, SB "&'Berechnung Sparten'!AD129 -> 0,06 %o, SB 2 Tage | M98: 0 | N98: 0 | O98: FALSE | P98: 0 | T98: 0.07
B99: ='Berechnung Sparten'!AB130 -> 1.6 Erdbeben | I99: ='Berechnung Sparten'!AC130*1000&" %o, SB "&'Berechnung Sparten'!AD130 -> 0,25 %o, SB 10 Tage | M99: 0 | N99: 0 | O99: FALSE | P99: 0 | T99: 0.08
B100: ='Berechnung Sparten'!AB131 -> 1.7 Lawinen und Lawinenluftdruck | I100: ='Berechnung Sparten'!AC131*1000&" %o, SB "&'Berechnung Sparten'!AD131 -> 0,07 %o, SB 2 Tage | M100: 0 | N100: 0 | O100: FALSE | P100: 0 | T100: 0.4
B101: ='Berechnung Sparten'!AB132 -> 1.8 Erdsenkung | I101: ='Berechnung Sparten'!AC132*1000&" %o, SB "&'Berechnung Sparten'!AD132 -> 0,08 %o, SB 2 Tage | M101: 0 | N101: 0 | O101: FALSE | P101: 0 | T101: =SUM(T94:T100)/1000 -> 0.00117
B102: ='Berechnung Sparten'!AB133 -> 1.9 Unbenannte Gefahren | I102: ='Berechnung Sparten'!AC133*1000&" %o, SB "&'Berechnung Sparten'!AD133 -> 0,4 %o, SB 2 Tage | M102: 0 | N102: 0 | O102: FALSE | P102: 0 | R102: Haftungszeit Mietentgang-BU | T102: Haftungszeit Mehrkosten-BU | V102: Faktor
B103: =IF(P46=0,"EC-Betriebsunterbrechung - Feuer/Total-BU notwendig","EC-Betriebsunterbrechung") -> EC-Betriebsunterbrechung - Feuer/Total-BU notwendig | I103: Sparte gewählt | M103: ='Übersicht und Druck'!$E$17 -> 0 | N103: 0 | O103: FALSE | P103: =IF(O103=TRUE,1,0)*$P$93*P46*M103 -> 0 | R103: 6 Monate | S103: -0.24 | T103: 1 Monat | U103: 1 | V103: 11
B104: Deckungsbeitrag (laut Feuer-BU): | E104: =D47 -> 0 | G104: Haftungszeit | J104: 12 Monate | M104: ='Übersicht und Druck'!$E$17 -> 0 | N104: =$P$93*$P$103 -> 0 | P104: =IF(J104="",R105,J104) -> 12 Monate | R104: 9 Monate | S104: -0.15 | T104: 2 Monate | U104: 2 | V104: 5.6
B105: ='Berechnung Sparten'!B124 -> EC-Betriebsunterbrechung | I105: Deckungsbeitrag | J105: ='Berechnung Sparten'!E124 -> 0 | K105: ='Berechnung Sparten'!U124 -> 0 | M105: ='Übersicht und Druck'!$E$17 -> 0 | N105: =$P$93*$P$103 -> 0 | R105: 12 Monate | S105: 0 | T105: 3 Monate | U105: 3 | V105: 4
B106: ='Berechnung Sparten'!B125 -> Prämienrückgewähr - und Vorsorge-Versicherung, Bes.Bed. BU950 | I106: ='Berechnung Sparten'!C125 -> inkludiert | M106: ='Übersicht und Druck'!$E$17 -> 0 | N106: =$P$93*$P$103 -> 0 | P106: 1 | R106: Gewählt BU | S106: =VLOOKUP(P104,R103:S105,2,FALSE) -> 0 | T106: 6 Monate | U106: 6 | V106: 2.2
B107: ='Berechnung Sparten'!B126 -> Mehrkosten für erhöhten Werbeaufwand | I107: ='Berechnung Sparten'!C126 -> ER | K107: ='Berechnung Sparten'!U126 -> 0 | M107: ='Übersicht und Druck'!$E$17 -> 0 | N107: =$P$93*$P$103 -> 0 | P107: =J107 -> 0 | R107: Gw. Mietentgang | S107: =VLOOKUP(P110,R103:S105,2,FALSE) -> 0 | T107: 9 Monate | U107: 9 | V107: 1.7
I108: Spartenprämie | K108: ='Berechnung Sparten'!U129 -> 0 | M108: ='Übersicht und Druck'!$E$17 -> 0 | N108: =$P$93*$P$103 -> 0 | R108: Gw. Mehrkosten | S108: =VLOOKUP(P112,R103:S105,2,FALSE) -> 0 | T108: 12 Monate | U108: 12 | V108: 1.5
B109: =IF(P56=0,"EC-Mietentgang-BU - Feuer/Total-Mietentgang-BU erforderlich","EC-Mietentgang-BU") -> EC-Mietentgang-BU - Feuer/Total-Mietentgang-BU erforderlich | I109: Sparte gewählt | M109: ='Übersicht und Druck'!$E$18 -> 0 | N109: =$P$93 -> 0 | O109: FALSE | P109: =IF(O109=TRUE,1,0)*$P$93*P56*M109 -> 0 | U109: =VLOOKUP(P112,T103:V108,2,FALSE) -> 12 | V109: =VLOOKUP(P112,T103:V108,3,FALSE) -> 1.5
B110: Jahresmieteinnahmen | D110: =D57 -> 0 | F110: Haftungszeit | H110: 12 Monate | I110: Spartenprämie | K110: ='Berechnung Sparten'!U138 -> 0 | M110: ='Übersicht und Druck'!$E$18 -> 0 | N110: =P109 -> 0 | P110: =IF(H110="",R105,H110) -> 12 Monate
B111: =IF(P62=0,"EC-Mehrkosten-BU - Feuer/Total-Mehrkosten-BU erforderlich","EC-Mehrkosten-BU") -> EC-Mehrkosten-BU - Feuer/Total-Mehrkosten-BU erforderlich | I111: Sparte gewählt | M111: ='Übersicht und Druck'!$E$19 -> 0 | N111: =$P$93 -> 0 | O111: FALSE | P111: =IF(O111=TRUE,1,0)*$P$93*P62*M111 -> 0
B112: Mehrkosten pro Monat | D112: =IF(D63="",0,MIN(D63,10000)) -> 0 | F112: Haftungszeit | H112: 12 Monate | I112: Spartenprämie | K112: ='Berechnung Sparten'!U147 -> 0 | L112: =IF(D112<D63,"max. 10.000","") ->  | M112: ='Übersicht und Druck'!$E$19 -> 0 | N112: =P111 -> 0 | P112: =IF(H112="",T108,H112) -> 12 Monate
B113: =IF(AND(O93=TRUE,SUM(P103,P109,P111)=0),"Bitte gewünschte EC-BU-Sparte auswählen","") -> 
B114: =IF(AND(Kundendaten!$E$13=1,'Berechnung Sparten'!$T$9=0),"Achtung: bei Basisdaten wurde keine KTE ausgewählt!","") -> Achtung: bei Basisdaten wurde keine KTE ausgewählt! | M114: 1 | N114: 1
B115: Einbruchdiebstahlversicherung | M115: ='Übersicht und Druck'!$E$20 -> 0 | N115: x
B116: Sparte gewählt | I116: Art | J116: Auswahl | K116: Prämie | M116: ='Übersicht und Druck'!$E$20 -> 0 | N116: x | O116: FALSE | P116: =IF(O116=TRUE,1,0)*M116 -> 0
B117: =IF(I117="","bitte auswählen!","") -> bitte auswählen! | G117: Risikooorte bewohnt? | M117: ='Übersicht und Druck'!$E$20 -> 0 | N117: =$P$116 -> 0
B118: ='Berechnung Sparten'!B164 -> KTE und Vorräte laut Risikoübersicht | I118: ='Berechnung Sparten'!W164 -> VS | J118: ja | K118: ='Berechnung Sparten'!U164 -> 0 | M118: ='Übersicht und Druck'!$E$20 -> 0 | N118: 0
B119: ='Berechnung Sparten'!B165 -> Technische und kaufmännische Betriebseinrichtung sowie Vorräte (im Eigentum des Versicherungsnehmers) ständig außerhalb des Versicherungsortes jedoch innerhalb Österreichs in versperrten massiv/harten Gebäuden (dies gilt nicht versichert in Bauhütten, Bau und Lagercontainern) | I119: ='Berechnung Sparten'!W165 -> ER | K119: ='Berechnung Sparten'!U165 -> 0 | M119: ='Übersicht und Druck'!$E$20 -> 0 | N119: 0 | P119: =J119 -> 0 | T119: Auswahl Nebenkosten
B120: ='Berechnung Sparten'!B166 -> Sachen in Bauhütten, Bau- oder Lagercontainern, Verkaufs - und Marktständen (am Versicherungsort bzw. innerhalb Österreichs), Selbstbehalt 20 % | I120: ='Berechnung Sparten'!W166 -> NW/WB | K120: ='Berechnung Sparten'!U166 -> 0 | M120: ='Übersicht und Druck'!$E$20 -> 0 | N120: 0 | P120: =J120 -> 0 | R120: Bewohnt | T120: VS für NK | U120: ='Berechnung Sparten'!X194 -> 0
B121: ='Berechnung Sparten'!B167 -> Wiederherstellungskosten von Datenträgern (Geschäftsbücher, Akten, Pläne, elektronische Speichermedien, Typenscheine, kodierte KFZ-Schlüssel udgl.) und den darauf befindlichen Daten | I121: ='Berechnung Sparten'!W167 -> ER (5000 inkl.) | K121: ='Berechnung Sparten'!U167 -> 0 | M121: ='Übersicht und Druck'!$E$20 -> 0 | N121: 0 | P121: =J121 -> 0 | R121: Alle Risikoorte bewohnt | T121: 0.05 | U121: =U120*T121 -> 0
B122: ='Berechnung Sparten'!B168 -> Sachen der Betriebsinhaber und Dienstnehmer (ausgenommen jedoch Bargeld, Edelmetall-, Gold-, Silber- und Schmucksachen, Kraftfahrzeuge sowie in Wohnungen befindlicher Hausrat) | I122: ='Berechnung Sparten'!W168 -> NW (5000 inkl.) | K122: ='Berechnung Sparten'!U168 -> 0 | M122: ='Übersicht und Druck'!$E$20 -> 0 | N122: 0 | P122: =J122 -> 0 | R122: mindestens ein Risikoort bewohnt | T122: 0.1 | U122: =U120*T122 -> 0
B123: ='Berechnung Sparten'!B169 -> Schäden an der Grundstücksbegrenzung bzw. am Einfahrtstor nach einem vollbrachten bzw. versuchten Einbruchdiebstahl an der Versicherungsräumlichkeit | I123: 5.000 auf ER | K123: ='Berechnung Sparten'!U169 -> 0 | M123: ='Übersicht und Druck'!$E$20 -> 0 | N123: 0 | O123: FALSE | P123: =IF(O123=TRUE,5000,0) -> 0 | R123: Alle Risikoorte unbewohnt | T123: 0.15 | U123: =U120*T123 -> 0
B124: ='Berechnung Sparten'!B170 -> Tische, Stühle, Sonnenschirme, Spielplatz-einrichtung im Freien (Schanigärten) – Teildiebstahl und Vandalismus gelten als nicht versichert. Selbstbehalt 20% gem. E9881 | I124: ='Berechnung Sparten'!W170 -> NW | K124: ='Berechnung Sparten'!U170 -> 0 | M124: ='Übersicht und Druck'!$E$20 -> 0 | N124: 0 | P124: =J124 -> 0 | T124: 0.2 | U124: =U120*T124 -> 0
B125: ='Berechnung Sparten'!B171 -> Groß- und/oder Kleintiere im Gebäude befindlich | I125: ='Berechnung Sparten'!W171 -> WB | K125: ='Berechnung Sparten'!U171 -> 0 | M125: ='Übersicht und Druck'!$E$20 -> 0 | N125: 0 | P125: 0 | S125: Gewählt | T125: =IF(J133="",T121,J133) -> 0.05 | U125: =VLOOKUP(T125,T121:U124,2,FALSE) -> 0
B126: ='Berechnung Sparten'!B172 -> Versperrte KFZ, Anhänger und landw. Maschinen im Freien am umzäunten Grundstück (Teildiebstahl und Vandalismus nicht versicherbar) E0081 | I126: ER | K126: ='Berechnung Sparten'!U172 -> 0 | M126: ='Übersicht und Druck'!$E$20 -> 0 | N126: 0 | P126: 0 | R126: Mehrkosten max.
B127: ='Berechnung Sparten'!B173 -> KFZ, Anhänger und landwirtschaftliche Maschinen im Gebäude befindlich | I127: ER | K127: ='Berechnung Sparten'!U173 -> 0 | M127: ='Übersicht und Druck'!$E$20 -> 0 | N127: 0 | P127: 0 | R127: =SUM('Berechnung Grund'!I79:I80)*0.2/2 -> 0
B128: ='Berechnung Sparten'!B174 -> Werkzeuge, Geräte und Vorräte in KFZ befindlich, Selbstbehalt 20 % | I128: ='Berechnung Sparten'!W174 -> NW/WB | K128: ='Berechnung Sparten'!U174 -> 0 | M128: ='Übersicht und Druck'!$E$20 -> 0 | N128: 0 | P128: 0
B129: ='Berechnung Sparten'!B175 -> Sachen in Schaukästen, Vitrinen und Automaten außerhalb der Geschäftsräumlichkeiten E0071 | I129: ='Berechnung Sparten'!W175 -> NW | K129: ='Berechnung Sparten'!U175 -> 0 | M129: ='Übersicht und Druck'!$E$20 -> 0 | N129: 0 | P129: 0
B130: ='Berechnung Sparten'!B176 -> Geld und Geldeswerte unter festem Verschluss E9891 | I130: 5.000 prämienfrei inkl. | K130: ='Berechnung Sparten'!U176 -> 0 | M130: ='Übersicht und Druck'!$E$20 -> 0 | N130: 0
B131: ='Berechnung Sparten'!B177 -> Öffnung von Behältnissen mittels geraubter Original- und Duplikatschlüssel E3038 | I131: ='Berechnung Sparten'!W177 -> ER | K131: ='Berechnung Sparten'!U177 -> 0 | M131: ='Übersicht und Druck'!$E$20 -> 0 | N131: 0 | P131: =J131 -> 0
B132: ='Berechnung Sparten'!B178 -> Beraubung innerhalb der Versicherungsräumlichkeiten inkl. Kundenberaubung E3062/E0062 | I132: ='Berechnung Sparten'!W178 -> ER (5000 inkl.) | K132: ='Berechnung Sparten'!U178 -> 0 | M132: ='Übersicht und Druck'!$E$20 -> 0 | N132: 0 | P132: =J132 -> 0
B133: ='Berechnung Sparten'!B179 -> 20 % Aufräumungs-, Abbruch-, De- u. Remontagekosten, Bewegungs- u. Schutzkosten, Deponiekosten für nicht zu behandelnden Abfall. Im Rahmen dieser Summe gelten Mehrkosten durch die Behandlung von gefährlichem Abfall und/oder kontaminierten Erdreich bis 50 % der Summe als versichert A3024 | K133: präm.frei | M133: ='Übersicht und Druck'!$E$20 -> 0 | N133: 0 | P133: =U125 -> 0 | R133: ER/VW
B134: ='Berechnung Sparten'!B180 -> Mehrkosten durch die Behandlung von gefährlichem Abfall und/oder kontaminiertem Erdreich | I134: ="ER (max. "&ROUND(R127,0)&")" -> ER (max. 0) | K134: ='Berechnung Sparten'!U180 -> 0 | M134: ='Übersicht und Druck'!$E$20 -> 0 | N134: 0 | P134: =IF(J134="",0,MIN(J134,R127)) -> 0 | R134: ER
B135: ='Berechnung Sparten'!B181 -> Zentralschlüsselanlage (Schlüsselverlust) gem. E9882 (Selbstbehalt 10 %) | I135: ='Berechnung Sparten'!W181 -> ER | K135: ='Berechnung Sparten'!U181 -> 0 | M135: ='Übersicht und Druck'!$E$20 -> 0 | N135: 0 | P135: =J135 -> 0 | R135: VW
B136: ='Berechnung Sparten'!B182 -> Schlossänderungskosten für Behältnisse E3033 | I136: ='Berechnung Sparten'!W182 -> ER | K136: ='Berechnung Sparten'!U182 -> 0 | M136: ='Übersicht und Druck'!$E$20 -> 0 | N136: 0 | P136: =J136 -> 0
B137: ='Berechnung Sparten'!B183 -> Telefonmissbrauch (5.000 gem. E9823) | K137: präm.frei | M137: ='Übersicht und Druck'!$E$20 -> 0 | N137: 0
B138: ='Berechnung Sparten'!B184 -> Mehraufwand im Schadensfall (10 % gem. BB 4817) | K138: präm.frei | M138: ='Übersicht und Druck'!$E$20 -> 0 | N138: 0
B139: ='Berechnung Sparten'!B185 -> Verteurerung im Schadensfall (15 % gem. BB 4907) | K139: präm.frei | M139: ='Übersicht und Druck'!$E$20 -> 0 | N139: 0
B140: Geld und Geldeswerte | M140: ='Übersicht und Druck'!$E$20 -> 0 | N140: 0
B141: ='Berechnung Sparten'!B187 -> Sicherheitsgrad EN0 bzw. VSÖ IV (VS 15.000) | I141: ='Berechnung Sparten'!W187 -> ER | K141: ='Berechnung Sparten'!U187 -> 0 | M141: ='Übersicht und Druck'!$E$20 -> 0 | N141: 0 | O141: FALSE | P141: =IF(O141=FALSE,0,R141) -> 0 | R141: 15000
B142: ='Berechnung Sparten'!B188 -> Sicherheitsgrad EN1 bzw. VSÖ III/c 1-3 (VS 30.000) | I142: ='Berechnung Sparten'!W188 -> ER | K142: ='Berechnung Sparten'!U188 -> 0 | M142: ='Übersicht und Druck'!$E$20 -> 0 | N142: 0 | O142: FALSE | P142: =IF(O142=FALSE,0,R142) -> 0 | R142: 30000
B143: ='Berechnung Sparten'!B189 -> Sicherheitsgrad VSÖ III/b (VS 45.000) | I143: ='Berechnung Sparten'!W189 -> ER | K143: ='Berechnung Sparten'!U189 -> 0 | M143: ='Übersicht und Druck'!$E$20 -> 0 | N143: 0 | O143: FALSE | P143: 0 | R143: 45000
B144: ='Berechnung Sparten'!B190 -> Sicherheitsgrad EN2 bzw. VSÖ II/d (VS 75.000) | I144: ='Berechnung Sparten'!W190 -> ER | K144: ='Berechnung Sparten'!U190 -> 0 | M144: ='Übersicht und Druck'!$E$20 -> 0 | N144: 0 | O144: FALSE | P144: 0 | R144: 75000
B145: ='Berechnung Sparten'!B191 -> Sicherheitsgrad EN3 bzw. VSÖ II/c (VS (100.000) | I145: ='Berechnung Sparten'!W191 -> ER | K145: ='Berechnung Sparten'!U191 -> 0 | M145: ='Übersicht und Druck'!$E$20 -> 0 | N145: 0 | O145: FALSE | P145: 0 | R145: 100000
B146: ='Berechnung Sparten'!B192 -> Sicherheitsgrad EN4 (VS 150.000) | I146: ='Berechnung Sparten'!W192 -> ER | K146: ='Berechnung Sparten'!U192 -> 0 | M146: ='Übersicht und Druck'!$E$20 -> 0 | N146: 0 | O146: FALSE | P146: 0 | R146: 150000
B147: ='Berechnung Sparten'!B193 -> Sicherheitsgrad EN5 bzw. VSÖ II/b (SV 250.000) | I147: ='Berechnung Sparten'!W193 -> ER | K147: ='Berechnung Sparten'!U193 -> 0 | M147: ='Übersicht und Druck'!$E$20 -> 0 | N147: 0 | O147: FALSE | P147: 0 | R147: 250000
I148: Spartenprämie | K148: ='Berechnung Sparten'!U196 -> 0 | M148: ='Übersicht und Druck'!$E$20 -> 0 | N148: 0
B150: =IF(AND(Kundendaten!$E$13=1,'Berechnung Sparten'!$T$9=0),"Achtung: bei Basisdaten wurde keine KTE ausgewählt!","") -> Achtung: bei Basisdaten wurde keine KTE ausgewählt! | M150: 1 | N150: 1 | R150: Begleitung
B151: Botenberaubungsversicherung | M151: ='Übersicht und Druck'!$E$21 -> 0 | N151: x | R151: Begleitung | S151: VS
B152: Sparte gewählt | M152: ='Übersicht und Druck'!$E$21 -> 0 | N152: x | O152: FALSE | P152: =IF(O152=TRUE,1,0)*M152 -> 0 | R152: Ohne Begleitung | S152: 100000
B153: Begleitung | C153: Ohne Begleitung | F153: VS | G153: ="max. "&S155 -> max. 100000 | J153: Ringbote | M153: ='Übersicht und Druck'!$E$21 -> 0 | N153: =$P$152 -> 0 | O153: TRUE | P153: =IF(O153=TRUE,1,0) -> 1 | R153: stets von einer Person begleitet | S153: 600000
I154: Spartenprämie | K154: ='Berechnung Sparten'!U205 -> 0 | M154: ='Übersicht und Druck'!$E$21 -> 0 | N154: =$P$152 -> 0 | R154: Gewählt | S154: =IF(C153="",R152,C153) -> Ohne Begleitung
R155: VS | S155: =VLOOKUP(S154,R152:S153,2,FALSE) -> 100000
R156: VS für Ber. | S156: =IF(I153="",0,MIN(S155,I153)) -> 0
B157: Leitungswasserversicherung | M157: ='Übersicht und Druck'!$E$22 -> 0 | N157: x
B158: Sparte gewählt | I158: Art | J158: Auswahl | K158: Prämie | M158: ='Übersicht und Druck'!$E$22 -> 0 | N158: x | O158: FALSE | P158: =IF(O158=TRUE,1,0)*M158 -> 0
B159: =IF(R172=0,"kein Gebäude für LW-Sparte gewählt, nur Variante A möglich","Leitungswasser-Variante") -> kein Gebäude für LW-Sparte gewählt, nur Variante A möglich | I159: C | M159: ='Übersicht und Druck'!$E$22 -> 0 | N159: =$P$158 -> 0
B160: Sprinkleranlage | G160: keine Sprinkleranlage | M160: ='Übersicht und Druck'!$E$22 -> 0 | N160: 0
B161: Erweiterung auf 15 Meter Rohrersatz gem. L9927 (nur bei Variante C oder D möglich) | K161: 5 % Zuschlag | M161: =IF(R170=R166,0,1) -> 0 | N161: 0 | O161: FALSE
B162: Rohrreinigungskostenübernahme bei Ableitungsrohren (nur bei Var. D) gem. L9924 | K162: 5 % Nachlass | M162: =IF(R170=R168,1,0) -> 0 | N162: 0 | O162: TRUE
B163: ='Berechnung Sparten'!B211 -> Grunddeckung (Gebäude, KTE, Vorräte laut Risikoübersicht) | I163: ='Berechnung Sparten'!W211 -> VS | K163: ='Berechnung Sparten'!U211 -> 0 | M163: ='Übersicht und Druck'!$E$22 -> 0 | N163: 0
B164: ='Berechnung Sparten'!B212 -> Technische und kaufmännische Betriebseinrichtung sowie Vorräte (im Eigentum des Versicherungsnehmers) ständig außerhalb des Versicherungsortes jedoch innerhalb Österreichs | I164: ='Berechnung Sparten'!W212 -> NW/WBS | K164: ='Berechnung Sparten'!U212 -> 0 | M164: ='Übersicht und Druck'!$E$22 -> 0 | N164: 0 | P164: =J164 -> 0 | W164: Auswahl Nebenkosten
B165: ='Berechnung Sparten'!B213 -> Wiederherstellungskosten von Datenträgern (Geschäftsbücher, Akten, Pläne, elektronische Speichermedien, Typenscheine, kodierte KFZ-Schlüssel und dgl.) und den darauf befindlichen Daten | I165: ='Berechnung Sparten'!W213 -> ER (5000 inkl.) | K165: ='Berechnung Sparten'!U213 -> 0 | M165: ='Übersicht und Druck'!$E$22 -> 0 | N165: 0 | P165: 0 | R165: LW-Var. | T165: Sprinkler | W165: VS für NK | X165: ='Berechnung Sparten'!X243 -> 0
B166: ='Berechnung Sparten'!B214 -> Sachen der Betriebsinhaber und Dienstnehmer (ausgenommen jedoch Bargeld, Edelmetall-, Gold-, Silber- und Schmucksachen, Kraftfahrzeuge sowie in Wohnungen befindlicher Hausrat) | I166: ='Berechnung Sparten'!W214 -> NW (5000 inkl.) | K166: ='Berechnung Sparten'!U214 -> 0 | M166: ='Übersicht und Druck'!$E$22 -> 0 | N166: 0 | P166: 0 | R166: ='Berechnung Grund'!Y20 -> A | T166: Vorhanden | U166: Zuschlag | W166: 0.05 | X166: =X165*W166 -> 0
B167: ='Berechnung Sparten'!B215&" auf ER" -> Behebungskosten nach Rohrgebrechen in gemieteten Räumlichkeiten inkl. Korrosionsschäden gem. L3018 auf ER | H167: inkl. Korrosionsschäden | K167: ='Berechnung Sparten'!U215 -> 0 | M167: ='Übersicht und Druck'!$E$22 -> 0 | N167: 0 | P167: 0 | R167: ='Berechnung Grund'!Y21 -> C | T167: keine Sprinkleranlage | U167: 0 | W167: 0.1 | X167: =X165*W167 -> 0
B168: ='Berechnung Sparten'!B216 -> Kosten für die Beseitigung von Verstopfungen der Ableitungsrohren der Gebäudeleitungs-wasserinstallation am Versicherungsort sowie der Wand- und Fußbodenheizung | I168: ='Berechnung Sparten'!W216 -> ER | K168: ='Berechnung Sparten'!U216 -> 0 | M168: ='Übersicht und Druck'!$E$22 -> 0 | N168: 0 | P168: 0 | Q168: Gebäude-VS für LW | R168: ='Berechnung Grund'!Y22 -> D | T168: bis 1/3 der gesamten gewerblichen Nutzfläche des Betriebes | U168: 0.1 | W168: 0.15 | X168: =X165*W168 -> 0
B169: =IF(R172=0,"[Baustein nur bei Gebäude-LW-Deckung vorhanden]",'Berechnung Sparten'!B217) -> [Baustein nur bei Gebäude-LW-Deckung vorhanden] | K169: präm.frei | M169: ='Übersicht und Druck'!$E$22 -> 0 | N169: 0 | P169: 0 | R169: Gewählt: | T169: bis 2/3 der gesamten gewerblichen Nutzfläche des Betriebes | U169: 0.15 | W169: 0.2 | X169: =X165*W169 -> 0
B170: ='Berechnung Sparten'!B218 -> Schäden an versicherten Gebäuden durch Austritt von Wasser aus Schwimmbecken am Versicherungsgrundstück sowie Gebrechensbehebung an Rohren der Filteranlage bzw. von Zu- und Ableitungen des Schwimmbeckens L3013 | I170: ='Berechnung Sparten'!W218 -> ER | K170: ='Berechnung Sparten'!U218 -> 0 | M170: ='Übersicht und Druck'!$E$22 -> 0 | N170: 0 | P170: 0 | R170: =IF(R172=0,R166,IF(I159="",R168,I159)) -> A | T170: über 2/3 der gesamten gewerblichen Nutzfläche des Betriebes | U170: 0.2 | V170: Gewählt | W170: =IF(J180="",W166,J180) -> 0.05 | X170: =VLOOKUP(W170,W166:X169,2,FALSE) -> 0
B171: =IF(R172=0,"[Baustein nur bei Gebäude-LW-Deckung vorhanden]",'Berechnung Sparten'!B219) -> [Baustein nur bei Gebäude-LW-Deckung vorhanden] | I171: ='Berechnung Sparten'!W219 -> 0 | J171: 20000 | K171: präm.frei | M171: ='Übersicht und Druck'!$E$22 -> 0 | N171: 0 | P171: =IF(R172=0,0,1) -> 0 | R171: Gebäude ja/nein?
B172: ='Berechnung Sparten'!B220 -> Schäden am Gebäude durch Austritt von Wasser aus innen liegenden Regenabflussrohren sowie Gebrechensbehebung an erdverlegten Regen-wasserkanälen am Versicherungsgrundstück | I172: ='Berechnung Sparten'!W220 -> ER | K172: ='Berechnung Sparten'!U220 -> 0 | M172: ='Übersicht und Druck'!$E$22 -> 0 | N172: 0 | P172: =J172 -> 0 | R172: ='Berechnung Grund'!L78 -> 0 | T172: Sprinkler | U172: =IF(G160="",T170,G160) -> keine Sprinkleranlage
B173: ='Berechnung Sparten'!B221 -> Folgeschäden am Gebäude bei Austritt aus im Gebäude befindlichen niederschlagswasserführenden Ableitungsssystemen (10.000 €) | I173: ='Berechnung Sparten'!W221 -> ER | K173: ='Berechnung Sparten'!U221 -> 0 | M173: ='Übersicht und Druck'!$E$22 -> 0 | N173: 0 | O173: FALSE | P173: =IF(O173=TRUE,10000,0)*M173 -> 0 | T173: Zuschlag für Sprinkler? | U173: =VLOOKUP(U172,T167:U170,2,FALSE) -> 0
B174: ='Berechnung Sparten'!B222 -> Erdwärmerohre am Versicherungsgrundstück inkl. Grabarbeiten L0820 | I174: ='Berechnung Sparten'!W222 -> ER | K174: ='Berechnung Sparten'!U222 -> 0 | M174: ='Übersicht und Druck'!$E$22 -> 0 | N174: 0 | P174: =J174 -> 0
B175: ='Berechnung Sparten'!B223 -> Wasserzu– und Ableitungsrohre außerhalb des Versicherungsgrundstückes | I175: ='Berechnung Sparten'!W223 -> ER | K175: ='Berechnung Sparten'!U223 -> 0 | M175: ='Übersicht und Druck'!$E$22 -> 0 | N175: 0 | P175: =J175 -> 0 | T175: Zuschlag/Nachlass gesamt für Berechnung (nur 15 Meter, Rest wird bei Grunddeckung berechnet) | U175: =IF(AND(O161=TRUE,OR(R170=R167,R170=R168)),5%,0) -> 0
B176: ='Berechnung Sparten'!B224 -> Gasleitungen € 10.000 (Selbstbehalt 20%, max. € 500) gem. L9928 | I176: ='Berechnung Sparten'!W224 -> ER | K176: ='Berechnung Sparten'!U224 -> 0 | M176: ='Übersicht und Druck'!$E$22 -> 0 | N176: 0 | O176: FALSE | P176: =IF(O176=TRUE,10000,0)*M176 -> 0 | R176: Mehrkosten max.
B177: ='Berechnung Sparten'!B225 -> Geld und Geldeswerte, Sparbücher, Wertpapiere, Urkunden, Schmuck-, Gold- und Platinsachen, Edelsteine, Edelmetalle und echte Perlen sowie Münzen- und Briefmarkensammlungen, Brief - und Stempelmarken, Vignetten, Kurzparkscheine, Lose und Telefonwertkarten unter festem Verschluss. | I177: ='Berechnung Sparten'!W225 -> ER (5000 inkl.) | K177: ='Berechnung Sparten'!U225 -> 0 | M177: ='Übersicht und Druck'!$E$22 -> 0 | N177: 0 | P177: =J177 -> 0 | R177: =R19 -> 0 | T177: Nachlass für Ableitungsreinigung? | U177: =IF(AND(O162=TRUE,R170=R168),-5%,0) -> 0
B178: ='Berechnung Sparten'!B226 -> Groß- und/oder Kleintiere | I178: ='Berechnung Sparten'!W226 -> WB | K178: ='Berechnung Sparten'!U226 -> 0 | M178: ='Übersicht und Druck'!$E$22 -> 0 | N178: 0 | P178: =J178 -> 0
B179: ='Berechnung Sparten'!B227 -> Suchkosten bei gerechtfertigter Schadenvermutung (€ 5.000 auf ER) | I179: ='Berechnung Sparten'!W227 -> ER | K179: präm.frei | M179: ='Übersicht und Druck'!$E$22 -> 0 | N179: 0
B180: ='Berechnung Sparten'!B228 -> 20 % Aufräumungs-, Abbruch-, De- und Remont- agekosten, Bewegungs- und Schutzkosten, Deponiekosten für nicht zu behandelnden Abfall. Im Rahmen dieser Versicherungssumme gelten Mehrkosten durch die Behandlung von gefährlichem Abfall und/oder kontaminiertem Erdreich bis 50 % der Versicherungssumme als mitversichert. A3024 | K180: präm.frei | M180: ='Übersicht und Druck'!$E$22 -> 0 | N180: 0 | P180: =X170 -> 0 | R180: Korrisionsschäden
B181: ='Berechnung Sparten'!B229 -> Mehrkosten durch die Behandlung von gefährlichem Abfall und/oder kontaminiertem Erdreich. A3024 | I181: ="ER (max. "&ROUND(R177,0)&")" -> ER (max. 0) | K181: ='Berechnung Sparten'!U229 -> 0 | M181: ='Übersicht und Druck'!$E$22 -> 0 | N181: 0 | P181: =IF(J181="",0,MIN(J181,R177)) -> 0 | R181: inkl. Korrosionsschäden
B182: ='Berechnung Sparten'!B230 -> Sachverständigenkosten A4850 | I182: ='Berechnung Sparten'!W230 -> ER | K182: ='Berechnung Sparten'!U230 -> 0 | M182: ='Übersicht und Druck'!$E$22 -> 0 | N182: 0 | P182: =J182 -> 0 | R182: exkl. Korrosionsschäden
B183: ='Berechnung Sparten'!B231 -> Wasserverlust nach gedecktem Schadenereignis L3050 | I183: ='Berechnung Sparten'!W231 -> ER (2000 inkl.) | K183: ='Berechnung Sparten'!U231 -> 0 | M183: ='Übersicht und Druck'!$E$22 -> 0 | N183: 0 | P183: =J183 -> 0 | R183: Gewählt
B184: ='Berechnung Sparten'!B232 -> Folgeschäden durch undichte Fugen L9929 | I184: ER (min. 5.000) | K184: ='Berechnung Sparten'!U232 -> 0 | L184: =IF(J184<P184,"min. 5.000","") ->  | M184: ='Übersicht und Druck'!$E$22 -> 0 | N184: 0 | P184: =IF(J184>0,MAX(J184,5000),0) -> 0 | R184: =IF(I167="",R181,I167) -> inkl. Korrosionsschäden
B185: ='Berechnung Sparten'!B233 -> Mehraufwand im Schadensfall (10 % gem. BB 4817) | K185: präm.frei | M185: ='Übersicht und Druck'!$E$22 -> 0 | N185: 0
B186: ='Berechnung Sparten'!B234 -> Verteuerung im Schadensfall (15 % gem. BB 4907) | I186: ='Berechnung Sparten'!W234 -> 0 | K186: präm.frei | M186: ='Übersicht und Druck'!$E$22 -> 0 | N186: 0
B187: Geld und Geldeswerte | M187: ='Übersicht und Druck'!$E$22 -> 0 | N187: 0
B188: ='Berechnung Sparten'!B236 -> Sicherheitsgrad EN0 bzw. VSÖ IV (VS. 15.000) | I188: ='Berechnung Sparten'!W236 -> ER | K188: ='Berechnung Sparten'!U236 -> 0 | M188: ='Übersicht und Druck'!$E$22 -> 0 | N188: 0 | O188: FALSE | P188: =IF(O188=FALSE,0,R188) -> 0 | R188: 15000
B189: ='Berechnung Sparten'!B237 -> Sicherheitsgrad EN1 bzw. VSÖ III/c 1-3 (VS 30.000) | I189: ='Berechnung Sparten'!W237 -> ER | K189: ='Berechnung Sparten'!U237 -> 0 | M189: ='Übersicht und Druck'!$E$22 -> 0 | N189: 0 | O189: FALSE | P189: =IF(O189=FALSE,0,R189) -> 0 | R189: 30000
B190: ='Berechnung Sparten'!B238 -> Sicherheitsgrad VSÖ III/b (VS 45.000) | I190: ='Berechnung Sparten'!W238 -> ER | K190: ='Berechnung Sparten'!U238 -> 0 | M190: ='Übersicht und Druck'!$E$22 -> 0 | N190: 0 | O190: FALSE | P190: 0 | R190: 45000
B191: ='Berechnung Sparten'!B239 -> Sicherheitsgrad EN2 bzw. VSÖ II/d (VS 75.000) | I191: ='Berechnung Sparten'!W239 -> ER | K191: ='Berechnung Sparten'!U239 -> 0 | M191: ='Übersicht und Druck'!$E$22 -> 0 | N191: 0 | O191: FALSE | P191: 0 | R191: 75000
B192: ='Berechnung Sparten'!B240 -> Sicherheitsgrad EN3 bzw. VSÖ II/c (VS (100.000) | I192: ='Berechnung Sparten'!W240 -> ER | K192: ='Berechnung Sparten'!U240 -> 0 | M192: ='Übersicht und Druck'!$E$22 -> 0 | N192: 0 | O192: FALSE | P192: 0 | R192: 100000
B193: ='Berechnung Sparten'!B241 -> Sicherheitsgrad EN4 (VS 150.000) | I193: ='Berechnung Sparten'!W241 -> ER | K193: ='Berechnung Sparten'!U241 -> 0 | M193: ='Übersicht und Druck'!$E$22 -> 0 | N193: 0 | O193: FALSE | P193: 0 | R193: 150000
B194: ='Berechnung Sparten'!B242 -> Sicherheitsgrad EN5 bzw. VSÖ II/b (VS 250.000) | I194: ='Berechnung Sparten'!W242 -> ER | K194: ='Berechnung Sparten'!U242 -> 0 | M194: ='Übersicht und Druck'!$E$22 -> 0 | N194: 0 | O194: FALSE | P194: 0 | R194: 250000
I195: Spartenprämie | K195: ='Berechnung Sparten'!U245 -> 0 | M195: ='Übersicht und Druck'!$E$22 -> 0 | N195: 0
B197: =IF(AND(Kundendaten!$E$13=1,'Berechnung Sparten'!$T$9=0),"Achtung: bei Basisdaten wurde keine KTE ausgewählt!","") -> Achtung: bei Basisdaten wurde keine KTE ausgewählt! | M197: 1 | N197: 1
B198: Glasbruchversicherung | M198: ='Übersicht und Druck'!$E$23 -> 0 | N198: x | AP198: Auswahl Nebenkosten
B199: Sparte gewählt | I199: Art | J199: Auswahl | K199: Prämie | M199: ='Übersicht und Druck'!$E$23 -> 0 | N199: x | O199: FALSE | P199: =IF(O199=TRUE,1,0)*M199 -> 0 | AP199: VS für NK | AQ199: ='Berechnung Sparten'!X314 -> 0
B200: ='Berechnung Sparten'!B251 -> Grunddeckung: sämtliche zum Betrieb gehörenden Scheiben inkl. Mehrscheibenisolierverglasungen und Kunststoffverglasungen bis zu nachfolgender Einzelgröße einer Scheibe, Lichtkuppeln und Scheiben in Solaranlagen aller Art inkl. Photovoltaikanlagen. Nicht versichert: Fassadenverkleidungen, Glasfliesen, Glas-/Gewächshäuser | I200: ='Berechnung Sparten'!W251 -> m² Einzelscheibe | J200: 6 m² | K200: ='Berechnung Sparten'!U251 -> 0 | M200: ='Übersicht und Druck'!$E$23 -> 0 | N200: =$P$199 -> 0 | R200: Auswahl Einzelscheibe | AP200: 0.05 | AQ200: =AQ199*AP200 -> 0
B201: ='Berechnung Sparten'!B252 -> Ausschluss von Glasschäden an Mieträumlichkeiten | K201: ='Berechnung Sparten'!U252 -> 0 | M201: =IF('Übersicht und Druck'!C4=0,0,'Übersicht und Druck'!E23) -> 0 | N201: 0 | O201: FALSE | P201: =IF(O201=TRUE,1,0)*M201 -> 0 | R201: m² | S201: Prämie | AP201: 0.1 | AQ201: =AQ199*AP201 -> 0
B202: ='Berechnung Sparten'!B253 -> Schäden durch Gewalttätigkeiten anlässlich einer öffentlichen Ansammlung oder Kundgebung GL005 | K202: ='Berechnung Sparten'!U253 -> 0 | M202: ='Übersicht und Druck'!$E$23 -> 0 | N202: 0 | O202: FALSE | P202: =IF(O202=TRUE,1,0)*M202 -> 0 | R202: 3 m² | S202: 0.8 | AP202: 0.15 | AQ202: =AQ199*AP202 -> 0
B203: ='Berechnung Sparten'!B254 -> Firmenschilder, unabhängig von der Glasart | I203: ='Berechnung Sparten'!W254 -> VW (1000 inkl.) | K203: ='Berechnung Sparten'!U254 -> 0 | M203: ='Übersicht und Druck'!$E$23 -> 0 | N203: 0 | P203: =J203*M203 -> 0 | R203: 6 m² | S203: 1 | AP203: 0.2 | AQ203: =AQ199*AP203 -> 0
B204: ='Berechnung Sparten'!B255 -> Blei-, Messing- und sonstige Kunstverglasungen, Folien oder Bemalungen | I204: ='Berechnung Sparten'!W255 -> VW (1000 inkl.) | K204: ='Berechnung Sparten'!U255 -> 0 | M204: ='Übersicht und Druck'!$E$23 -> 0 | N204: 0 | P204: =J204*M204 -> 0 | R204: 10 m² | S204: 1.7 | AO204: Gewählt | AP204: =IF(J245="",AP200,J245) -> 0.05 | AQ204: =VLOOKUP(AP204,AP200:AQ203,2,FALSE) -> 0
B205: ='Berechnung Sparten'!B256 -> Neonröhren GL010 | I205: ='Berechnung Sparten'!W256 -> VW | K205: ='Berechnung Sparten'!U256 -> 0 | M205: ='Übersicht und Druck'!$E$23 -> 0 | N205: 0 | P205: =J205*M205 -> 0 | R205: Gewählt
B206: ='Berechnung Sparten'!B257 -> Folgeschäden durch Glasbruch gem. GL924/GL925 | I206: ='Berechnung Sparten'!W257 -> ER (5000 inkl.) | K206: ='Berechnung Sparten'!U257 -> 0 | M206: ='Übersicht und Druck'!$E$23 -> 0 | N206: 0 | P206: =J206*M206 -> 0 | R206: =IF(J200="",R203,J200) -> 6 m² | S206: =VLOOKUP(R206,R202:S204,2,FALSE) -> 1
... 103 more rows

Sheet Berechnung Sparten (hidden)
B2: Promillesätze/Deckungen
B3: Branchenverzeichnis | C3: HHS | D3: F | E3: BU | G3: ED | I3: LW | J3: G | K3: ST | L3: Haftpflicht | Q3: TP | R3: RS
E4: F-BU | F4: T-BU | G4: ED | H4: SI | L4: LS | M4: MP | N4: UP | O4: UW | P4: ErwP
C5: ='Berechnung Grund'!C30 -> 0 | D5: ='Berechnung Grund'!D30 -> 0 | E5: ='Berechnung Grund'!E30 -> 0 | F5: ='Berechnung Grund'!F30 -> 0 | G5: ='Berechnung Grund'!G30 -> 0 | H5: ='Berechnung Grund'!H30 -> 0 | I5: ='Berechnung Grund'!I30 -> 0 | J5: ='Berechnung Grund'!J30 -> 0 | K5: ='Berechnung Grund'!K30 -> 0 | L5: ='Berechnung Grund'!L30 -> 0 | M5: ='Berechnung Grund'!M30 -> 0 | N5: ='Berechnung Grund'!N30 -> 0 | O5: ='Berechnung Grund'!O30 -> 0 | P5: ='Berechnung Grund'!P30 -> 0 | Q5: ='Berechnung Grund'!Q30 -> 0 | R5: ='Berechnung Grund'!R30 -> 0
B7: Rabatte | M7: Gesamtprämien | O7: ED | P7: ='Berechnung Grund'!E77 -> 0 | Q7: EDV | S7: VS | U7: Feuer | V7: Sturm | W7: LW | X7: ED
B8: NÖ-Vorteil (außer F) | C8: 0.1 | D8: Glas, HHV, UV | M8: Feuer | N8: ='Berechnung Grund'!C78 -> 0 | O8: ='Berechnung Grund'!D78 -> Glas | P8: ='Berechnung Grund'!E78 -> 0 | Q8: Kühlgut | S8: Gebäude | T8: ='Berechnung Grund'!I78 -> 0 | U8: ='Berechnung Grund'!J78 -> 0 | V8: ='Berechnung Grund'!K78 -> 0 | W8: ='Berechnung Grund'!L78 -> 0 | X8: ='Berechnung Grund'!M78 -> 0
B9: Laufzeit-Nachlass | C9: 0.2 | D9: EC, EC-BU, Technik, EDV, Kühlgut | E9: 0.1 | M9: Sturm | N9: ='Berechnung Grund'!C79 -> 0 | O9: ='Berechnung Grund'!D79 -> Feuer-EC | P9: ='Berechnung Grund'!E79 -> 0 | S9: KTE | T9: ='Berechnung Grund'!I79 -> 0 | U9: ='Berechnung Grund'!J79 -> 0 | V9: ='Berechnung Grund'!K79 -> 0 | W9: ='Berechnung Grund'!L79 -> 0 | X9: ='Berechnung Grund'!M79 -> 0
B10: Steuer | C10: Normal | D10: 0.11 | E10: Feuer, BU | F10: 0.15 | G10: Kühlgut, EDV | H10: 0.112 | I10: Transport | J10: 0.126 | M10: LW | N10: ='Berechnung Grund'!C80 -> 0 | O10: ='Berechnung Grund'!D80 -> Technik | P10: ='Berechnung Grund'!E80 -> 0 | S10: Vorräte | T10: ='Berechnung Grund'!I80 -> 0 | U10: ='Berechnung Grund'!J80 -> 0 | V10: ='Berechnung Grund'!K80 -> 0 | W10: ='Berechnung Grund'!L80 -> 0 | X10: ='Berechnung Grund'!M80 -> 0
B11: Sondernachlass | C11: =Kundendaten!G44 -> 0.5 | S11: Alles | T11: ='Berechnung Grund'!I81 -> 0 | U11: ='Berechnung Grund'!J81 -> 0 | V11: ='Berechnung Grund'!K81 -> 0 | W11: ='Berechnung Grund'!L81 -> 0 | X11: ='Berechnung Grund'!M81 -> 0
T12: Investitionsdeckung | U12: ='Berechnung Grund'!J82 -> 0 | V12: ='Berechnung Grund'!K82 -> 0 | W12: ='Berechnung Grund'!L82 -> 0 | X12: ='Berechnung Grund'!M82 -> 0
B13: Sparte gewählt
M14: Nachlässe | R14: Zuschläge
B15: VORLAGE | C15: Art | D15: %o-Satz | E15: VS gewählt | F15: VS inkludiert | G15: VS Anzeige | H15: VS Berechnung | K15: Tarifprämie | L15: Sparte gewählt | M15: ='Berechnung Sparten'!$B$8 -> NÖ-Vorteil (außer F) | N15: ='Berechnung Sparten'!$B$9 -> Laufzeit-Nachlass | O15: Risikonachlass | Q15: Sondernachlass | R15: ='Berechnung Sparten'!$B$10 -> Steuer | U15: Zahlprämie | W15: Anzeige Art | AB15: Grundpromille ohne ER-Zuschlag
B16: Grunddeckung (Gebäude, KTE, Vorräte) | C16: VS | G16: =#REF! ->  | N16: =$C$9 -> 0.2 | Q16: =$C$11 -> 0.5 | R16: =$D$10 -> 0.11 | U16: =K16*L16*(1-M16)*(1-N16)*(1-O16)*(1-P16)*(1-Q16)*(1+R16)*(1+S16)*(1+T16) -> 0 | W16: =IF(F16="",C16,C16&" ("&F16&" inkl.)") -> VS | AB16: =3.5/1000 -> 0.0035
C17: ER | G17: =MAX(E17:F17)*B14 -> 0 | H17: =MAX(0,E17-F17) -> 0 | K17: =H17*D17 -> 0 | N17: =$C$9 -> 0.2 | Q17: =$C$11 -> 0.5 | R17: =$D$10 -> 0.11 | U17: =K17*L17*(1-M17)*(1-N17)*(1-O17)*(1-P17)*(1-Q17)*(1+R17)*(1+S17)*(1+T17) -> 0 | W17: =IF(F17="",C17,C17&" ("&F17&" inkl.)") -> ER | AB17: =2/1000 -> 0.002
J18: Gesamt | N18: =$C$9 -> 0.2 | Q18: =$C$11 -> 0.5 | R18: =$D$10 -> 0.11 | U18: =K18*L18*(1-M18)*(1-N18)*(1-O18)*(1-P18)*(1-Q18)*(1+R18)*(1+S18)*(1+T18) -> 0 | AB18: =4/1000 -> 0.004
J19: MP | K19: 20 | N19: =$C$9 -> 0.2 | Q19: =$C$11 -> 0.5 | R19: =$D$10 -> 0.11 | U19: =K19*L19*(1-M19)*(1-N19)*(1-O19)*(1-P19)*(1-Q19)*(1+R19)*(1+S19)*(1+T19) -> 0 | AB19: =2.5/1000 -> 0.0025
J20: für Antrag | K20: =MAX(K18:K19)*L20 -> 0 | N20: =$C$9 -> 0.2 | U20: =MAX(U18:U19) -> 0 | AB20: =1.5/1000 -> 0.0015
AB21: =1/1000 -> 0.001
B25: Sparte gewählt
B26: =Sach!P5 -> 0 | C26: Inhaltssatz | D26: =$D$5 -> 0 | M26: Nachlässe | R26: Zuschläge
A27: Feuerversicherung | B27: =IF(B26=1,A27,A27&": Sparte nicht gewählt") -> Feuerversicherung: Sparte nicht gewählt | C27: Art | D27: %o-Satz | E27: VS gewählt | F27: VS inkludiert | G27: VS Anzeige | H27: VS Berechnung | K27: Tarifprämie | L27: Sparte gewählt | M27: ='Berechnung Sparten'!$B$8 -> NÖ-Vorteil (außer F) | N27: ='Berechnung Sparten'!$B$9 -> Laufzeit-Nachlass | O27: Risikonachlass | Q27: Sondernachlass | R27: ='Berechnung Sparten'!$B$10 -> Steuer | U27: Zahlprämie | W27: Anzeige Art | X27: VS für NK
B28: Grunddeckung (Gebäude, KTE gem. BB F9013, Vorräte) | C28: VS | G28: =T11*B26 -> 0 | K28: ='Berechnung Grund'!C78 -> 0 | L28: =$B$26 -> 0 | M28: 0.05 | N28: =$C$9 -> 0.2 | Q28: =$C$11 -> 0.5 | R28: =$F$10 -> 0.15 | U28: =K28*L28*(1-M28)*(1-N28)*(1-O28)*(1-P28)*(1-Q28)*(1+R28)*(1+S28)*(1+T28) -> 0 | W28: =IF(F28="",C28,C28&" ("&F28&" inkl.)") -> VS | X28: =U11+U12 -> 0
B29: Technische und kaufmännische Betriebseinrichtung sowie Vorräte (im Eigentum des Versicherungsnehmers) ständig außerhalb des Versicherungsortes jedoch innerhalb Österreichs | C29: ER | D29: =D26+'Berechnung Grund'!C11/1000 -> 0 | E29: =Sach!P7 -> 0 | G29: =MAX(E29:F29)*$B$26 -> 0 | H29: =MAX(0,E29-F29) -> 0 | K29: =H29*D29 -> 0 | L29: 0 | M29: =$M$28 -> 0.05 | N29: =$C$9 -> 0.2 | Q29: =$C$11 -> 0.5 | R29: =$F$10 -> 0.15 | U29: 0 | W29: =IF(F29="",C29,C29&" "&F29&" inkl.") -> ER | X29: =G29 -> 0
B30: Wiederherstellungskosten von Datenträgern (Geschäftsbücher, Akten, Pläne, elektronische Speichermedien, Typenscheine, kodierte KFZ-Schlüssel und dgl.) und den darauf befindlichen Daten | C30: ER | D30: =2.5/1000 -> 0.0025 | E30: =Sach!P8 -> 0 | F30: 5000 | G30: 0 | H30: 0 | K30: 0 | L30: 0 | M30: =$M$28 -> 0.05 | N30: 0.2 | Q30: 0.5 | R30: 0.15 | U30: 0 | W30: =IF(F30="",C30,C30&" "&F30&" inkl.") -> ER 5000 inkl. | X30: 0
B31: Sachen der Betriebsinhaber und Dienstnehmer (ausgenommen jedoch Bargeld, Edelmetall-, Gold-, Silber- und Schmucksachen, Kraftfahrzeuge sowie in Wohnungen befindlicher Hausrat) | C31: NW | D31: =D26 -> 0 | E31: =Sach!P9 -> 0 | F31: 5000 | G31: 0 | H31: 0 | K31: 0 | L31: 0 | M31: 0.05 | N31: 0.2 | Q31: 0.5 | R31: 0.15 | U31: 0 | W31: =IF(F31="",C31,C31&" "&F31&" inkl.") -> NW 5000 inkl. | X31: 0
B32: Grundstücksbegrenzungen aller Art bis € 50.000,00 | E32: =Sach!P10 -> 0 | G32: 0 | H32: 0 | K32: 0 | L32: 0 | M32: 0.05 | N32: 0.2 | Q32: 0.5 | R32: 0.15 | U32: 0 | W32: =IF(F32="",C32,C32&" "&F32&" inkl.") -> 0 | X32: 0
B33: Grundstücksbegrenzungen aller Art bis € 10.000,00 gegen Schäden durch fremde KFZ, sofern der Schädiger nicht eruiert werden kann (unverzügliche Anzeige bei der Sicherheitsbehörde erforderlich) | E33: =Sach!P22 -> 0 | G33: 0 | H33: 0 | K33: 0 | L33: 0 | M33: 0.05 | N33: 0.2 | Q33: 0.5 | R33: 0.15 | U33: 0 | W33: =IF(F33="",C33,C33&" "&F33&" inkl.") -> 0 | X33: 0
B34: ="Schäden an sämtlichen baulichen Außenanlagen (ausgenommen Gebäude) sowie Bepflanzungen am Versicherungsgrundstück ("&F34&" inkl.)" -> Schäden an sämtlichen baulichen Außenanlagen (ausgenommen Gebäude) sowie Bepflanzungen am Versicherungsgrundstück (5000 inkl.) | C34: =IF(Sach!I12="NW","NW","ER") -> ER | D34: =IF(C34="NW",D26,D26*1.5) -> 0 | E34: =Sach!P12 -> 0 | F34: 5000 | G34: 0 | H34: 0 | K34: 0 | L34: 0 | M34: 0.05 | N34: 0.2 | Q34: 0.5 | R34: 0.15 | U34: 0 | W34: =C34 -> ER | X34: 0
B35: KFZ fahrend und ruhend wo immer befindlich gem. F9127 | C35: =IF(Sach!I13="ZW","ZW","ER") -> ER | D35: =IF(C35="ZW",AB16,AB16*1.5) -> 0.00525 | E35: =Sach!P13 -> 0 | G35: 0 | H35: 0 | K35: 0 | L35: 0 | M35: 0.05 | N35: 0.2 | Q35: 0.5 | R35: 0.15 | U35: 0 | W35: =IF(F35="",C35,C35&" "&F35&" inkl.") -> ER | X35: 0
B36: KFZ fahrend und ruhend am Versicherungsort und auf Probefahrten gem. F0065 | C36: =IF(Sach!I14="ZW","ZW","ER") -> ER | D36: 0.003 | E36: =Sach!P14 -> 0 | G36: 0 | H36: 0 | K36: 0 | L36: 0 | M36: 0.05 | N36: 0.2 | Q36: 0.5 | R36: 0.15 | U36: 0 | W36: ER | X36: 0
B37: KFZ fahrend und ruhend wo immer befindlich, inkl. Kabelschmorschäden gem. F3012 | C37: =IF(Sach!I15="ZW","ZW","ER") -> ER | D37: 0.006 | E37: =Sach!P15 -> 0 | G37: 0 | H37: 0 | K37: 0 | L37: 0 | M37: 0.05 | N37: 0.2 | Q37: 0.5 | R37: 0.15 | U37: 0 | W37: ER | X37: 0
B38: KFZ fahrend und ruhend am Versicherungsort und auf Probefahrten, inkl. Kabelschmorschäden gem. F3065 | C38: =IF(Sach!I16="ZW","ZW","ER") -> ER | D38: 0.00375 | E38: =Sach!P16 -> 0 | G38: 0 | H38: 0 | K38: 0 | L38: 0 | M38: 0.05 | N38: 0.2 | Q38: 0.5 | R38: 0.15 | U38: 0 | W38: ER | X38: 0
B39: Anhänger fahrend und ruhend wo immer befindlich | C39: =IF(Sach!I17="ZW","ZW","ER") -> ER | D39: 0.00225 | E39: =Sach!P17 -> 0 | G39: 0 | H39: 0 | K39: 0 | L39: 0 | M39: 0.05 | N39: 0.2 | Q39: 0.5 | R39: 0.15 | U39: 0 | W39: ER | X39: 0
B40: Anhänger fahrend und ruhend am Versicherungsort und auf Probefahrten | C40: =IF(Sach!I18="ZW","ZW","ER") -> ER | D40: 0.0015 | E40: =Sach!P18 -> 0 | G40: 0 | H40: 0 | K40: 0 | L40: 0 | M40: 0.05 | N40: 0.2 | Q40: 0.5 | R40: 0.15 | U40: 0 | W40: ER | X40: 0
B41: Werkzeuge, Geräte und Vorräte in KFZ befindlich | C41: NW | D41: =3.5/1000 -> 0.0035 | E41: =Sach!P19 -> 0 | G41: 0 | H41: 0 | K41: 0 | L41: 0 | M41: 0.05 | N41: 0.2 | Q41: 0.5 | R41: 0.15 | U41: 0 | W41: NW | X41: 0
B42: Schaukästen, Vitrinen und Automaten samt Inhalt außerhalb des Versicherungsortes | C42: NW | D42: =D26 -> 0 | E42: =Sach!P20 -> 0 | G42: 0 | H42: 0 | K42: 0 | L42: 0 | M42: 0.05 | N42: 0.2 | Q42: 0.5 | R42: 0.15 | U42: 0 | W42: NW | X42: 0
B43: Geld und Geldeswerte, Sparbücher, Wertpapiere, Urkunden, Schmuck-, Gold- und Platinsachen, Edelsteine, Edelmetalle und echte Perlen sowie Münzen- und Briefmarkensammlungen, Brief - und Stempelmarken, Vignetten, Kurzparkscheine, Lose und Telefonwertkarten unter festem Verschluss | C43: ER | D43: =0.75/1000 -> 0.00075 | E43: =Sach!P21 -> 0 | F43: 5000 | G43: 0 | H43: 0 | K43: 0 | L43: 0 | M43: 0.05 | N43: 0.2 | Q43: 0.5 | R43: 0.15 | U43: 0 | W43: ER 5000 inkl. | X43: 0
B44: Kaminbrand, Verpuffungs- und Verrußungsschäden | C44: ER | D44: =2/1000 -> 0.002 | E44: =Sach!P22 -> 0 | G44: 0 | H44: 0 | K44: 0 | L44: 0 | M44: 0.05 | N44: 0.2 | Q44: 0.5 | R44: 0.15 | U44: 0 | W44: ER | X44: 0
B45: Schwimmbecken im Freien samt Abdeckung am Versicherungsort | C45: NW | D45: =1/1000 -> 0.001 | E45: =Sach!P23 -> 0 | G45: 0 | H45: 0 | K45: 0 | L45: 0 | M45: 0.05 | N45: 0.2 | Q45: 0.5 | R45: 0.15 | U45: 0 | W45: NW | X45: 0
B46: Groß- und/oder Kleintiere | C46: WBS | D46: =D26 -> 0 | E46: =Sach!P24 -> 0 | G46: 0 | H46: 0 | K46: 0 | L46: 0 | M46: 0.05 | N46: 0.2 | Q46: 0.5 | R46: 0.15 | U46: 0 | W46: WBS | X46: 0
B47: Räucherkammerinhalt gem. F0078 | C47: ER | D47: =10/1000 -> 0.01 | E47: =Sach!P25 -> 0 | G47: 0 | H47: 0 | K47: 0 | L47: 0 | M47: 0.05 | N47: 0.2 | Q47: 0.5 | R47: 0.15 | U47: 0 | W47: ER | X47: 0
B48: 20 % Aufräumungs-, Abbruch-, Feuerlösch-, De- u. Remontagekosten, Bewegungs- u. Schutzkosten, Deponiekosten für nicht zu behandelnden Abfall. Im Rahmen dieser Summe gelten Mehrkosten durch die Behandlung von gefährlichem Abfall und/oder kontaminiertem Erdreich bis 50 % der Summe als mitversichert, gem. A3024. | C48: ER | H48: 0 | K48: 0 | L48: 0 | M48: 0.05 | N48: 0.2 | Q48: 0.5 | R48: 0.15 | U48: 0 | W48: ="20 % prämienfrei inkl. ("&F48&")" -> 20 % prämienfrei inkl. ()
B49: Mehrkosten durch die Behandlung von gefährlichem Abfall und/oder kontaminiertem Erdreich (A3024) | C49: ER | D49: =D26 -> 0 | E49: =Sach!P27 -> 0 | G49: =MAX(E49:F49)*$B$26 -> 0 | H49: =MAX(0,E49-F49) -> 0 | K49: =H49*D49 -> 0 | L49: 0 | M49: 0.05 | N49: 0.2 | Q49: 0.5 | R49: 0.15 | U49: 0 | W49: =IF(F49="",C49,C49&" "&F49&" inkl.") -> ER
B50: Sachverständigenkosten gem. A4850 | C50: ER | D50: =2.5/1000 -> 0.0025 | E50: =Sach!P28 -> 0 | G50: =MAX(E50:F50)*$B$26 -> 0 | H50: =MAX(0,E50-F50) -> 0 | K50: 0 | L50: 0 | M50: 0.05 | N50: 0.2 | Q50: 0.5 | R50: 0.15 | U50: 0 | W50: =IF(F50="",C50,C50&" "&F50&" inkl.") -> ER
B51: Haftungserweiterung auf indirekte Blitzschlagschäden inkl. der Haustechnik gem. F4965 | C51: ER | D51: =15/1000 -> 0.015 | E51: =Sach!P29 -> 0 | F51: 5000 | G51: =MAX(E51:F51)*$B$26 -> 0 | H51: =MAX(0,E51-F51) -> 0 | K51: 0 | L51: 0 | M51: 0.05 | N51: 0.2 | Q51: 0.5 | R51: 0.15 | U51: 0 | W51: =IF(F51="",C51,C51&" "&F51&" inkl.") -> ER 5000 inkl.
B52: Mehraufwand im Schadensfall (10 % gem. BB 4817) | K52: 0 | L52: 0 | M52: 0.05 | N52: 0.2 | Q52: 0.5 | R52: 0.15 | U52: 0 | W52: =IF(F52="",C52,C52&" "&F52&" inkl.") -> 0 | X52: =G52 -> 0
B53: Außenversicherung (10 % gem. BB 4924) | K53: 0 | L53: 0 | M53: 0.05 | N53: 0.2 | Q53: 0.5 | R53: 0.15 | U53: 0 | W53: =IF(F53="",C53,C53&" "&F53&" inkl.") -> 0 | X53: =G53 -> 0
B54: Verteurerung im Schadensfall (15 % gem. BB 4907) | K54: 0 | L54: 0 | M54: 0.05 | N54: 0.2 | Q54: 0.5 | R54: 0.15 | U54: 0 | W54: =IF(F54="",C54,C54&" "&F54&" inkl.") -> 0 | X54: =G54 -> 0
B55: Brandherd 50.000 (gem. N022) | K55: 0 | L55: 0 | M55: 0.05 | N55: 0.2 | Q55: 0.5 | R55: 0.15 | U55: 0 | W55: =IF(F55="",C55,C55&" "&F55&" inkl.") -> 0 | X55: =G55 -> 0
B56: Geld und Geldeswerte im Sicherheitsbehältnis | M56: 0.05 | N56: 0.2 | W56: 0 | X56: =G56 -> 0
B57: Sicherheitsgrad EN0 bzw. VSÖ IV (VS 15.000) | C57: ER | D57: =0.3/1000 -> 0.0003 | E57: =Sach!P35 -> 0 | G57: 0 | H57: =MAX(0,E57-F57) -> 0 | K57: =H57*D57 -> 0 | L57: 0 | M57: 0.05 | N57: 0.2 | Q57: 0.5 | R57: 0.15 | U57: =K57*L57*(1-M57)*(1-N57)*(1-O57)*(1-P57)*(1-Q57)*(1+R57)*(1+S57)*(1+T57) -> 0 | W57: ER | X57: 0
B58: Sicherheitsgrad EN1 bzw. VSÖ III/c 1-3 (VS 30.000) | C58: ER | D58: =0.25/1000 -> 0.00025 | E58: =Sach!P36 -> 0 | G58: 0 | H58: 0 | K58: 0 | L58: 0 | M58: 0.05 | N58: 0.2 | Q58: 0.5 | R58: 0.15 | U58: 0 | W58: ER | X58: 0
B59: Sicherheitsgrad VSÖ III/b (VS 45.000) | C59: ER | D59: =0.25/1000 -> 0.00025 | E59: =Sach!P37 -> 0 | G59: 0 | H59: 0 | K59: 0 | L59: 0 | M59: 0.05 | N59: 0.2 | Q59: 0.5 | R59: 0.15 | U59: 0 | W59: ER | X59: 0
B60: Sicherheitsgrad EN2 bzw. VSÖ II/d (VS 75.000) | C60: ER | D60: =0.15/1000 -> 0.00015 | E60: =Sach!P38 -> 0 | G60: 0 | H60: 0 | K60: 0 | L60: 0 | M60: 0.05 | N60: 0.2 | Q60: 0.5 | R60: 0.15 | U60: 0 | W60: ER | X60: 0
B61: Sicherheitsgrad EN3 bzw. VSÖ II/c (VS 100.000) | C61: ER | D61: =0.15/1000 -> 0.00015 | E61: =Sach!P39 -> 0 | G61: 0 | H61: 0 | K61: 0 | L61: 0 | M61: 0.05 | N61: 0.2 | Q61: 0.5 | R61: 0.15 | U61: 0 | W61: ER | X61: 0
B62: Sicherheitsgrad EN4 (VS 150.000) | C62: ER | D62: =0.1/1000 -> 0.0001 | E62: =Sach!P40 -> 0 | G62: 0 | H62: 0 | K62: 0 | L62: 0 | M62: 0.05 | N62: 0.2 | Q62: 0.5 | R62: 0.15 | U62: 0 | W62: ER | X62: 0
B63: Sicherheitsgrad EN5 bzw. VSÖ II/b (VS 250.000) | C63: ER | D63: =0.1/1000 -> 0.0001 | E63: =Sach!P41 -> 0 | G63: 0 | H63: 0 | K63: 0 | L63: 0 | M63: 0.05 | N63: 0.2 | Q63: 0.5 | R63: 0.15 | U63: 0 | W63: ER | X63: 0
J64: Gesamt | K64: =SUM(K28:K63) -> 0 | L64: 0 | M64: 0.05 | N64: 0.2 | Q64: 0.5 | R64: 0.15 | U64: =SUM(U28:U63) -> 0 | X64: =SUM(X28:X63) -> 0
J65: MP | K65: 20 | L65: 0 | M65: 0.05 | N65: 0.2 | R65: 0.15 | U65: =K65*L65*(1-M65)*(1-N65)*(1-O65)*(1-P65)*(1-Q65)*(1+R65)*(1+S65)*(1+T65) -> 0
J66: für Antrag | K66: =MAX(K64:K65)*L66 -> 0 | L66: 0 | M66: 0.05 | N66: 0.2 | U66: =MAX(U64:U65) -> 0
B69: Sparte gewählt
B70: =Sach!P46 -> 0 | C70: F-Satz | D70: =E5 -> 0 | E70: Total-Satz | F70: =F5 -> 0 | G70: St | H70: ='Berechnung Grund'!F7 ->  | I70: LW | J70: ='Berechnung Grund'!E7 ->  | K70: ED | L70: ='Berechnung Grund'!D7 ->  | M70: Nachlässe | R70: Zuschläge
A71: =IF(SUM('Berechnung Sparten'!AC74:AC76)=3,"Feuer-Betriebsunterbrechung","Kombinierte Betriebsunterbrechung (Total-BU)") -> Feuer-Betriebsunterbrechung | B71: =IF(B70=1,A71,A71&": Sparte nicht gewählt") -> Feuer-Betriebsunterbrechung: Sparte nicht gewählt | C71: Art | D71: %o-Satz | E71: VS gewählt | F71: VS inkludiert | G71: VS Anzeige | H71: VS Berechnung | K71: Tarifprämie | L71: Sparte gewählt | M71: ='Berechnung Sparten'!$B$8 -> NÖ-Vorteil (außer F) | N71: ='Berechnung Sparten'!$B$9 -> Laufzeit-Nachlass | O71: Risikonachlass | Q71: Sondernachlass | R71: ='Berechnung Sparten'!$B$10 -> Steuer | U71: Zahlprämie | W71: Anzeige Art | AB71: Promillesatz | AF71: Haftungszeit F/Total-BU | AI71: Risiken für Antrag
B72: =AI77 -> Feuer | C72: VS | D72: =AD79 ->  | E72: =Sach!D47 -> 0 | G72: =E72*B70 -> 0 | H72: =G72 -> 0 | K72: =H72*D72 ->  | L72: =$B$70 -> 0 | N72: =$C$9 -> 0.2 | Q72: =$C$11 -> 0.5 | R72: =$F$10 -> 0.15 | U72: =K72*L72*(1-M72)*(1-N72)*(1-O72)*(1-P72)*(1-Q72)*(1+R72)*(1+S72)*(1+T72) ->  | W72: ="Haftung "&AG79&", Jahres-Deckungsbeitrag:" -> Haftung 12 Monate, Jahres-Deckungsbeitrag: | AB72: Sparten | AC72: Ausschluss | AD72: Nachlass | AF72: 6 Monate | AG72: -0.24
B73: Prämienrückgewähr - und Vorsorge-Versicherung, Bes.Bed. BU950 | C73: inkludiert | G73: ja | H73: 0 | K73: =H73*D73 -> 0 | L73: 0 | N73: 0.2 | Q73: =$C$11 -> 0.5 | R73: 0.15 | U73: 0 | W73: =IF(F73="",C73,C73&" "&F73&" inkl.") -> inkludiert | AB73: Feuer | AC73: =Sach!R47 -> 0 | AF73: 9 Monate | AG73: -0.15 | AI73: =AB73 -> Feuer
B74: Mehrkosten für erhöhten Werbeaufwand | C74: ER | D74: =AD77*2 ->  | E74: =Sach!P50 -> 0 | G74: =E74*B70 -> 0 | H74: =G74 -> 0 | K74: =H74*D74 ->  | L74: 0 | N74: 0.2 | Q74: =$C$11 -> 0.5 | R74: 0.15 | W74: =IF(F74="",C74,C74&" "&F74&" inkl.") -> ER | AB74: LW | AC74: =IF(Sach!R48=1,0,1) -> 1 | AD74: =J70*0.5*AC74 ->  | AF74: 12 Monate | AG74: 0 | AI74: =IF(AC74=0,", Leitungswasser","") -> 
B75: Rückwirkungsschäden (BU 960) | C75: ER | D75: =D70*4 -> 0 | E75: =Sach!P51 -> 0 | G75: =E75*B70 -> 0 | H75: =G75 -> 0 | K75: =H75*D75 -> 0 | L75: 0 | N75: 0.2 | Q75: =$C$11 -> 0.5 | R75: 0.15 | U75: 0 | W75: =IF(F75="",C75,C75&" "&F75&" inkl.") -> ER | AB75: ED | AC75: =IF(Sach!R49=1,0,1) -> 1 | AD75: =L70*0.4*AC75 ->  | AF75: 15 Monate | AG75: 0.2 | AI75: =IF(AC75=0,", Einbruchdiebstahl","") -> 
J76: Gesamt | K76: =IF(B70=0,0,SUM(K72:K75)) -> 0 | L76: 0 | N76: 0.2 | Q76: =$C$11 -> 0.5 | R76: 0.15 | U76: =SUM(U72:U75) ->  | AB76: Sturm | AC76: =IF(Sach!R50=1,0,1) -> 1 | AD76: =H70*0.5*AC76 ->  | AF76: 18 Monate | AG76: 0.4 | AI76: =IF(AC76=0,", Sturm","") -> 
D77: =1.413*1.4 -> 1.9782 | J77: MP | K77: 20 | L77: 0 | N77: 0.2 | R77: 0.15 | U77: 0 | AB77: Promille | AD77: =IF(SUM(AC73:AC76)=4,D70,F70-SUM(AD74:AD76)) ->  | AF77: 21 Monate | AG77: 0.55 | AI77: =AI73&AI74&AI75&AI76 -> Feuer
J78: für Antrag | K78: =MAX(K76:K77)*L78 -> 0 | L78: 0 | N78: 0.2 | U78: =MAX(U76:U77) ->  | AB78: Haftungszeit | AC78: Nachlass Haftungszeit | AD78: =VLOOKUP(AG79,AF72:AG78,2,FALSE) -> 0 | AF78: 24 Monate | AG78: 0.65
AB79: Promille für Berechnung | AD79: =AD77*(1+AD78) ->  | AF79: Gewählt | AG79: =IF(Sach!H47="",Sach!T50,Sach!H47) -> 12 Monate
B81: Sparte gewählt
B82: =Sach!P56 -> 0 | C82: F-Satz | D82: =D70 -> 0 | E82: =E70 -> Total-Satz | F82: 0 | G82: St | I82: LW | K82: ED | M82: Nachlässe | R82: Zuschläge | AB82: Promillesatz | AF82: Haftungszeit F/Total-BU
A83: Mietentgang-Betriebsunterbrechung | B83: =IF(B82=1,A83,A83&": Sparte nicht gewählt") -> Mietentgang-Betriebsunterbrechung: Sparte nicht gewählt | C83: Art | D83: %o-Satz | E83: VS gewählt | F83: VS inkludiert | G83: VS Anzeige | H83: VS Berechnung | K83: Tarifprämie | L83: Sparte gewählt | M83: ='Berechnung Sparten'!$B$8 -> NÖ-Vorteil (außer F) | N83: ='Berechnung Sparten'!$B$9 -> Laufzeit-Nachlass | O83: Risikonachlass | Q83: Sondernachlass | R83: ='Berechnung Sparten'!$B$10 -> Steuer | U83: Zahlprämie | W83: Anzeige Art | AB83: Sparten | AC83: Ausschluss | AD83: Nachlass | AF83: 6 Monate | AG83: -0.24
B84: ="Versicherte Gefahren: "&AI88&". Entgang an Mieteinnahmen bei gänzlicher oder teilweiser Unterbrechung des Betriebes nach einem gedeckten, versicherten Sachschaden. Bes.Bed. BU952" -> Versicherte Gefahren: Feuer. Entgang an Mieteinnahmen bei gänzlicher oder teilweiser Unterbrechung des Betriebes nach einem gedeckten, versicherten Sachschaden. Bes.Bed. BU952 | C84: VS | D84: =AD90 -> 0 | E84: =Sach!D57 -> 0 | G84: =E84*B82 -> 0 | H84: =G84 -> 0 | K84: =H84*D84 -> 0 | L84: =$B$82 -> 0 | N84: =$C$9 -> 0.2 | Q84: =$C$11 -> 0.5 | R84: =$F$10 -> 0.15 | U84: =K84*L84*(1-M84)*(1-N84)*(1-O84)*(1-P84)*(1-Q84)*(1+R84)*(1+S84)*(1+T84) -> 0 | W84: ="Haftung "&AG90&", Jahres-Mieteinnahmen:" -> Haftung 12 Monate, Jahres-Mieteinnahmen: | AB84: Feuer | AC84: =Sach!R57 -> 0 | AF84: 9 Monate | AG84: -0.15 | AI84: =AB84 -> Feuer
J85: Gesamt | K85: =IF(B82=0,0,K84) -> 0 | L85: =$B$82 -> 0 | N85: =$C$9 -> 0.2 | Q85: =$C$11 -> 0.5 | R85: =$F$10 -> 0.15 | U85: =SUM(U84) -> 0 | AB85: LW | AC85: =IF(Sach!R58=1,0,1) -> 1 | AD85: =J81*0.5*AC85 -> 0 | AF85: 12 Monate | AG85: 0 | AI85: =IF(AC85=0,", Leitungswasser","") -> 
J86: MP | K86: 20 | L86: =$B$82 -> 0 | N86: =$C$9 -> 0.2 | R86: =$F$10 -> 0.15 | U86: =K86*L86*(1-M86)*(1-N86)*(1-O86)*(1-P86)*(1-Q86)*(1+R86)*(1+S86)*(1+T86) -> 0 | AB86: ED | AC86: =IF(Sach!R59=1,0,1) -> 1 | AD86: =L81*0.4*AC86 -> 0 | AF86: 15 Monate | AG86: 0.2 | AI86: =IF(AC86=0,", Einbruchdiebstahl","") -> 
J87: für Antrag | K87: =MAX(K85:K86)*L87 -> 0 | L87: =$B$82 -> 0 | N87: =$C$9 -> 0.2 | U87: =MAX(U85:U86) -> 0 | AB87: Sturm | AC87: =IF(Sach!R60=1,0,1) -> 1 | AD87: =H81*0.5*AC87 -> 0 | AF87: 18 Monate | AG87: 0.4 | AI87: =IF(AC87=0,", Sturm","") -> 
AB88: Promille | AD88: =IF(SUM(AC84:AC87)=4,D82,F82-SUM(AD85:AD87)) -> 0 | AF88: 21 Monate | AG88: 0.55 | AI88: =AI84&AI85&AI86&AI87 -> Feuer
AB89: Haftungszeit | AC89: Nachlass Haftungszeit | AD89: =VLOOKUP(AG90,AF83:AG89,2,FALSE) -> 0 | AF89: 24 Monate | AG89: 0.65
AB90: Promille für Berechnung | AD90: =AD88*(1+AD89) -> 0 | AF90: Gewählt | AG90: =IF(Sach!H57="",Sach!W57,Sach!H57) -> 12 Monate
B92: Sparte gewählt
B93: =Sach!P62 -> 0 | C93: F-Satz | D93: =D82 -> 0 | E93: =E82 -> Total-Satz | F93: 0 | G93: St | I93: LW | K93: ED | M93: Nachlässe | R93: Zuschläge | AB93: Promillesatz | AF93: Haftungszeit Mehrkosten-BU
A94: Mehrkosten-Betriebsunterbrechung | B94: =IF(B93=1,A94,A94&": Sparte nicht gewählt") -> Mehrkosten-Betriebsunterbrechung: Sparte nicht gewählt | C94: Art | D94: %o-Satz | E94: VS gewählt | F94: VS inkludiert | G94: VS Anzeige | H94: VS Berechnung | K94: Tarifprämie | L94: Sparte gewählt | M94: ='Berechnung Sparten'!$B$8 -> NÖ-Vorteil (außer F) | N94: ='Berechnung Sparten'!$B$9 -> Laufzeit-Nachlass | O94: Risikonachlass | Q94: Sondernachlass | R94: ='Berechnung Sparten'!$B$10 -> Steuer | U94: Zahlprämie | W94: Anzeige Art | AB94: Sparten | AC94: Ausschluss | AD94: Nachlass | AF94: 1 Monat | AG94: 11
B95: ="Versicherte Gefahren: "&AI99&". Mehrkosten, die bei einer Betriebsunterbrechung infolge eines ersatzpflichtigen Sachschadens dadurch anfallen, dass der Betrieb an einem anderen Ort ganz oder teilweise weitergeführt wird. Bes.Bed. BU843" -> Versicherte Gefahren: Feuer. Mehrkosten, die bei einer Betriebsunterbrechung infolge eines ersatzpflichtigen Sachschadens dadurch anfallen, dass der Betrieb an einem anderen Ort ganz oder teilweise weitergeführt wird. Bes.Bed. BU843 | C95: VS | D95: =AD101 -> 0 | E95: =Sach!D63 -> 0 | G95: =E95*AG101*B93 -> 0 | H95: =G95 -> 0 | K95: =H95*D95 -> 0 | L95: =$B$93 -> 0 | N95: =$C$9 -> 0.2 | Q95: =$C$11 -> 0.5 | R95: =$F$10 -> 0.15 | U95: =K95*L95*(1-M95)*(1-N95)*(1-O95)*(1-P95)*(1-Q95)*(1+R95)*(1+S95)*(1+T95) -> 0 | W95: ="Haftung "&AG100&", Mehrkosten:" -> Haftung 3 Monate, Mehrkosten: | AB95: Feuer | AC95: =Sach!R63 -> 0 | AF95: 2 Monate | AG95: 5.6 | AI95: =AB95 -> Feuer
J96: Gesamt | K96: =IF(B93=0,0,K95) -> 0 | L96: =$B$93 -> 0 | N96: =$C$9 -> 0.2 | Q96: =$C$11 -> 0.5 | R96: =$F$10 -> 0.15 | U96: =U95 -> 0 | AB96: LW | AC96: =IF(Sach!R64=1,0,1) -> 1 | AD96: =J92*0.5*AC96 -> 0 | AF96: 3 Monate | AG96: 4 | AI96: =IF(AC96=0,", Leitungswasser","") -> 
J97: MP | K97: 20 | L97: =$B$93 -> 0 | N97: =$C$9 -> 0.2 | R97: =$F$10 -> 0.15 | U97: =K97*L97*(1-M97)*(1-N97)*(1-O97)*(1-P97)*(1-Q97)*(1+R97)*(1+S97)*(1+T97) -> 0 | AB97: ED | AC97: =IF(Sach!R65=1,0,1) -> 1 | AD97: =L92*0.4*AC97 -> 0 | AF97: 6 Monate | AG97: 2.2 | AI97: =IF(AC97=0,", Einbruchdiebstahl","") -> 
J98: für Antrag | K98: =MAX(K96:K97)*L98 -> 0 | L98: =$B$93 -> 0 | N98: =$C$9 -> 0.2 | U98: =MAX(U96:U97) -> 0 | AB98: Sturm | AC98: =IF(Sach!R66=1,0,1) -> 1 | AD98: =H92*0.5*AC98 -> 0 | AF98: 9 Monate | AG98: 1.7 | AI98: =IF(AC98=0,", Sturm","") -> 
AB99: Promille | AD99: =IF(SUM(AC95:AC98)=4,D93,F93-SUM(AD96:AD98)) -> 0 | AF99: 12 Monate | AG99: 1.5 | AI99: =AI95&AI96&AI97&AI98 -> Feuer
AB100: Haftungszeit | AC100: Nachlass Haftungszeit | AD100: =VLOOKUP(AG100,AF94:AG99,2,FALSE) -> 4 | AF100: Gewählt | AG100: =IF(Sach!H63="",Sach!T65,Sach!H63) -> 3 Monate
AB101: Promille für Berechnung | AD101: =AD99*AD100 -> 0 | AF101: Monate | AG101: =Sach!V70 -> 3
B104: Sparte gewählt
B105: =Sach!P69 -> 0 | M105: Nachlässe | R105: Zuschläge
A106: EC-Versicherung (Extended Coverage) | B106: =IF(B105=1,A106,A106&": Sparte nicht gewählt") -> EC-Versicherung (Extended Coverage): Sparte nicht gewählt | C106: Art | D106: %o-Satz | E106: VS möglich | F106: VS inkludiert | G106: VS Anzeige | H106: VS Berechnung | K106: Tarifprämie | L106: Sparte gewählt | M106: ='Berechnung Sparten'!$B$8 -> NÖ-Vorteil (außer F) | N106: ='Berechnung Sparten'!$B$9 -> Laufzeit-Nachlass | O106: Risikonachlass | Q106: Sondernachlass | R106: ='Berechnung Sparten'!$B$10 -> Steuer | U106: Zahlprämie | W106: Anzeige Art | X106: VS für NK | AC106: EC-Deckung
B107: Grunddeckung (Gebäude, KTE, Vorräte) | C107: VS | D107: =$AG$116 -> 0 | G107: =G28*B105 -> 0 | H107: =G107*Sach!P80 -> 0 | K107: =H107*D107 -> 0 | L107: =$B$105 -> 0 | N107: =$E$9 -> 0.1 | Q107: =$C$11 -> 0.5 | R107: =$D$10 -> 0.11 | U107: =K107*L107*(1-M107)*(1-N107)*(1-O107)*(1-P107)*(1-Q107)*(1+R107)*(1+S107)*(1+T107) -> 0 | W107: =IF(F107="",C107,C107&" ("&F107&" inkl.)") -> VS | X107: =U11+U12 -> 0 | AC107: Deckung | AD107: Promille | AE107: SB | AF107: Gewählt | AG107: Promille gewählt
B108: Technische und kaufmännische Betriebseinrichtung sowie Vorräte (im Eigentum des Versicherungsnehmers) ständig außerhalb des Versicherungsortes jedoch innerhalb Österreichs | C108: NW/WBS | D108: 0 | G108: =G29*B105 -> 0 | H108: =G108*Sach!P81 -> 0 | K108: 0 | L108: 0 | N108: =$E$9 -> 0.1 | Q108: =$C$11 -> 0.5 | R108: =$D$10 -> 0.11 | U108: 0 | W108: NW/WBS | X108: =H108 -> 0 | AC108: 1.1 Innere Unruhen, böswillige Beschädigung, Streik, Aussperrung 1.2 Fahrzeuganprall, Rauch, Überschalldruckwelle | AD108: =0.16/1000 -> 0.00016 | AE108: 1000 | AF108: =Sach!P69 -> 0 | AG108: =AD108*AF108 -> 0
B109: Wiederherstellungskosten von Datenträgern (Geschäftsbücher, Akten, Pläne, elektronische Speichermedien, Typenscheine, kodierte KFZ-Schlüssel und dgl.) und den darauf befindlichen Daten | C109: ER | D109: 0 | G109: =G30*B105 -> 0 | H109: =G109*Sach!P82 -> 0 | K109: 0 | L109: 0 | N109: 0.1 | Q109: 0.5 | R109: 0.11 | U109: 0 | W109: ER | X109: =H109 -> 0 | AC109: 1.3 Sprinkler-Leckage | AD109: =0.08/1000 -> 8e-05 | AE109: 2000 | AF109: =Sach!P72 -> 0 | AG109: 0
B110: Sachen der Betriebsinhaber und Dienstnehmer (ausgenommen jedoch Bargeld, Edelmetall-, Gold-, Silber- und Schmucksachen, Kraftfahrzeuge sowie in Wohnungen befindlicher Hausrat) | C110: ER | D110: 0 | G110: =G31*B105 -> 0 | H110: =G110*Sach!P83 -> 0 | K110: 0 | L110: 0 | N110: 0.1 | Q110: 0.5 | R110: 0.11 | U110: 0 | W110: ER | X110: =H110 -> 0 | AC110: 1.4 Überschwemmung: Anfrage Versicherungtechnik | AF110: =Sach!P73 -> 0 | AG110: 0
B111: Geld und Geldeswerte, Sparbücher, Wertpapiere, Urkunden, Schmuck-, Gold- und Platinsachen, Edelsteine, Edelmetalle und echte Perlen sowie Münzen- und Briefmarkensammlungen, Brief - und Stempelmarken, Vignetten, Kurzparkscheine, Lose und Telefonwertkarten unter festem Verschluss | C111: ER | D111: 0 | G111: =G43*B105 -> 0 | H111: =G111*Sach!P84 -> 0 | K111: 0 | L111: 0 | N111: 0.1 | Q111: 0.5 | R111: 0.11 | U111: 0 | W111: ER | X111: =H111 -> 0 | AC111: 1.5 Vermurung | AD111: =0.03/1000 -> 3e-05 | AE111: 2000 | AF111: =Sach!P74 -> 0 | AG111: 0
B112: Groß- und/oder Kleintiere | C112: WBS | D112: 0 | G112: =G46*B105 -> 0 | H112: =G112*Sach!P85 -> 0 | K112: 0 | L112: 0 | N112: 0.1 | Q112: 0.5 | R112: 0.11 | U112: 0 | W112: WBS | X112: =H112 -> 0 | AC112: 1.6 Erdbeben | AD112: =0.15/1000 -> 0.00015 | AE112: 7500 | AF112: =Sach!P75 -> 0 | AG112: 0
B113: 20 % Aufräumungs-, Abbruch-, Feuerlösch-, De- u. Remontagekosten, Bewegungs- u. Schutzkosten, Deponiekosten für nicht zu behandelnden Abfall. Im Rahmen dieser Summe gelten Mehrkosten durch die Behandlung von gefährlichem Abfall und/oder kontaminiertem Erdreich bis 50 % der Summe als mitversichert. | C113: ER | D113: 0 | F113: =X116*0.05 -> 0 | G113: =Sach!T79 -> 0.05 | H113: 0 | K113: 0 | L113: 0 | N113: 0.1 | Q113: 0.5 | R113: 0.11 | U113: 0 | W113: ="5 % inkl. ("&F113&")" -> 5 % inkl. (0) | AC113: 1.7 Lawinen und Lawinenluftdruck | AD113: =0.05/1000 -> 5e-05 | AE113: 2000 | AF113: =Sach!P76 -> 0 | AG113: 0
B114: Mehrkosten durch die Behandlung von gefährlichem Abfall und/oder kontaminiertem Erdreich | C114: ER | D114: =$AG$116 -> 0 | G114: =G49*B105 -> 0 | H114: =G114*Sach!P87 -> 0 | K114: 0 | L114: 0 | N114: 0.1 | Q114: 0.5 | R114: 0.11 | U114: 0 | W114: =IF(F114="",C114,C114&" ("&F114&" inkl.)") -> ER | X114: =H114 -> 0 | AC114: 1.8 Erdsenkung | AD114: =0.05/1000 -> 5e-05 | AE114: 2000 | AF114: =Sach!P77 -> 0 | AG114: 0
B115: Sachverständigenkosten | C115: ER | D115: =$AG$116 -> 0 | G115: =G50*B105 -> 0 | H115: =G115*Sach!P88 -> 0 | K115: 0 | L115: 0 | N115: 0.1 | Q115: 0.5 | R115: 0.11 | U115: 0 | W115: =IF(F115="",C115,C115&" ("&F115&" inkl.)") -> ER | X115: =H115 -> 0 | AC115: 1.9 Unbenannte Gefahren | AD115: =0.25/1000 -> 0.00025 | AE115: 2000 | AF115: =Sach!P78 -> 0 | AG115: 0
J116: Gesamt | K116: =SUM(K107:K115) -> 0 | L116: 0 | N116: 0.1 | Q116: 0.5 | R116: 0.11 | U116: =SUM(U107:U115) -> 0 | X116: =SUM(X107:X115) -> 0 | AF116: Gesamt | AG116: =SUM(AG108:AG115) -> 0
J117: MP | K117: 20 | L117: 0 | N117: 0.1 | R117: 0.11 | U117: =K117*L117*(1-M117)*(1-N117)*(1-O117)*(1-P117)*(1-Q117)*(1+R117)*(1+S117)*(1+T117) -> 0
J118: für Antrag | K118: =MAX(K116:K117)*L118 -> 0 | L118: 0 | N118: 0.1 | U118: =MAX(U116:U117) -> 0 | X118: =639000/0.2 -> 3195000
X119: =X118-X116 -> 3195000
B121: Sparte gewählt
B122: =Sach!P103 -> 0 | M122: Nachlässe | R122: Zuschläge
A123: EC-BU (Entgang Deckungsbeitrag nach ersatzpflichtigem Sachschaden) | B123: =IF(B122=1,A123,A123&": Sparte nicht gewählt") -> EC-BU (Entgang Deckungsbeitrag nach ersatzpflichtigem Sachschaden): Sparte nicht gewählt | C123: Art | D123: %o-Satz | E123: VS gewählt | F123: VS inkludiert | G123: VS Anzeige | H123: VS Berechnung | K123: Tarifprämie | L123: Sparte gewählt | M123: ='Berechnung Sparten'!$B$8 -> NÖ-Vorteil (außer F) | N123: ='Berechnung Sparten'!$B$9 -> Laufzeit-Nachlass | O123: Risikonachlass | Q123: Sondernachlass | R123: ='Berechnung Sparten'!$B$10 -> Steuer | U123: Zahlprämie | W123: Anzeige Art
B124: EC-Betriebsunterbrechung | C124: Deckungsbeitrag | D124: =AF136 -> 0 | E124: =Sach!E104 -> 0 | G124: =E124*B122 -> 0 | H124: =G124 -> 0 | K124: =H124*D124 -> 0 | L124: =$B$122 -> 0 | N124: =$E$9 -> 0.1 | Q124: =$C$11 -> 0.5 | R124: =$D$10 -> 0.11 | U124: =K124*L124*(1-M124)*(1-N124)*(1-O124)*(1-P124)*(1-Q124)*(1+R124)*(1+S124)*(1+T124) -> 0 | W124: ="Haftung "&AF137&", Jahres-Deckungsbeitrag:" -> Haftung 12 Monate, Jahres-Deckungsbeitrag: | AE124: EC-BU | AG124: EC-Mietentgang | AI124: EC-Mehrkosten
B125: Prämienrückgewähr - und Vorsorge-Versicherung, Bes.Bed. BU950 | C125: inkludiert | G125: ja | H125: 0 | K125: =H125*D125 -> 0 | L125: 0 | N125: 0.1 | Q125: =$C$11 -> 0.5 | R125: =$D$10 -> 0.11 | U125: =K125*L125*(1-M125)*(1-N125)*(1-O125)*(1-P125)*(1-Q125)*(1+R125)*(1+S125)*(1+T125) -> 0 | W125: =IF(F125="",C125,C125&" ("&F125&" inkl.)") -> inkludiert | AB125: Deckung | AC125: Promille | AD125: SB | AE125: Gewählt | AF125: Promille gewählt | AG125: Gewählt | AH125: Promille gewählt | AI125: Gewählt | AJ125: Promille gewählt
B126: Mehrkosten für erhöhten Werbeaufwand | C126: ER | D126: =D124*2 -> 0 | E126: =Sach!P107 -> 0 | G126: =E126*B122 -> 0 | H126: =G126 -> 0 | K126: =H126*D126 -> 0 | L126: 0 | N126: 0.1 | Q126: =$C$11 -> 0.5 | R126: =$D$10 -> 0.11 | U126: =K126*L126*(1-M126)*(1-N126)*(1-O126)*(1-P126)*(1-Q126)*(1+R126)*(1+S126)*(1+T126) -> 0 | W126: =IF(F126="",C126,C126&" ("&F126&" inkl.)") -> ER | AB126: 1.1 Innere Unruhen, böswillige Beschädigung, Streik, Aussperrung 1.2 Fahrzeuganprall, Rauch, Überschalldruckwelle | AC126: =0.19/1000 -> 0.00019 | AD126: 2 Tage | AE126: =Sach!P95 -> 0 | AF126: =AC126*AE126 -> 0 | AH126: =AF126 -> 0 | AJ126: =AH126 -> 0
J127: Gesamt | K127: =SUM(K124:K126) -> 0 | L127: 0 | N127: 0.1 | Q127: =$C$11 -> 0.5 | R127: =$D$10 -> 0.11 | U127: =SUM(U124:U126) -> 0 | AB127: 1.3 Sprinkler-Leckage | AC127: =0.12/1000 -> 0.00012 | AD127: 2 Tage | AE127: =Sach!P96 -> 0 | AF127: =AC127*AE127 -> 0 | AH127: =AF127 -> 0 | AJ127: =AH127 -> 0
J128: MP | K128: 20 | L128: 0 | N128: 0.1 | R128: =$D$10 -> 0.11 | U128: =K128*L128*(1-M128)*(1-N128)*(1-O128)*(1-P128)*(1-Q128)*(1+R128)*(1+S128)*(1+T128) -> 0 | AB128: 1.4 Überschwemmung: Anfrage Versicherungtechnik | AE128: =Sach!P97 -> 0 | AF128: 0 | AH128: 0 | AJ128: 0
J129: für Antrag | K129: =MAX(K127:K128)*L129 -> 0 | L129: 0 | N129: 0.1 | U129: =MAX(U127:U128) -> 0 | AB129: 1.5 Vermurung | AC129: =0.06/1000 -> 6e-05 | AD129: 2 Tage | AE129: =Sach!P98 -> 0 | AF129: 0 | AH129: 0 | AJ129: 0
AB130: 1.6 Erdbeben | AC130: =0.25/1000 -> 0.00025 | AD130: 10 Tage | AE130: =Sach!P99 -> 0 | AF130: 0 | AH130: 0 | AJ130: 0
AB131: 1.7 Lawinen und Lawinenluftdruck | AC131: =0.07/1000 -> 7e-05 | AD131: 2 Tage | AE131: =Sach!P100 -> 0 | AF131: 0 | AH131: 0 | AJ131: 0
B132: Sparte gewählt | AB132: 1.8 Erdsenkung | AC132: =0.08/1000 -> 8e-05 | AD132: 2 Tage | AE132: =Sach!P101 -> 0 | AF132: 0 | AH132: 0 | AJ132: 0 | AL132: VS Mehrksoten
B133: =Sach!P109 -> 0 | M133: Nachlässe | R133: Zuschläge | AB133: 1.9 Unbenannte Gefahren | AC133: =0.4/1000 -> 0.0004 | AD133: 2 Tage | AE133: =Sach!P102 -> 0 | AF133: 0 | AH133: 0 | AJ133: 0
A134: EC-Mietentgang-BU | B134: =IF(B133=1,A134,A134&": Sparte nicht gewählt") -> EC-Mietentgang-BU: Sparte nicht gewählt | C134: Art | D134: %o-Satz | E134: VS gewählt | F134: VS inkludiert | G134: VS Anzeige | H134: VS Berechnung | K134: Tarifprämie | L134: Sparte gewählt | M134: ='Berechnung Sparten'!$B$8 -> NÖ-Vorteil (außer F) | N134: ='Berechnung Sparten'!$B$9 -> Laufzeit-Nachlass | O134: Risikonachlass | Q134: Sondernachlass | R134: ='Berechnung Sparten'!$B$10 -> Steuer | U134: Zahlprämie | W134: Anzeige Art | AE134: Gesamt | AF134: =SUM(AF126:AF133) -> 0 | AG134: Gesamt | AH134: =SUM(AH126:AH133) -> 0 | AI134: Gesamt | AJ134: =SUM(AJ126:AJ133) -> 0
B135: EC-Mietentgang | C135: =Sach!D110 -> 0 | D135: =AH136 -> 0 | E135: =C135 -> 0 | G135: =E135*B133 -> 0 | H135: =G135 -> 0 | K135: =H135*D135 -> 0 | L135: =$B$133 -> 0 | N135: =$E$9 -> 0.1 | Q135: =$C$11 -> 0.5 | R135: =$D$10 -> 0.11 | U135: =K135*L135*(1-M135)*(1-N135)*(1-O135)*(1-P135)*(1-Q135)*(1+R135)*(1+S135)*(1+T135) -> 0 | W135: ="Haftung "&AH137&", Jahres-Mieteinnahmen:" -> Haftung 12 Monate, Jahres-Mieteinnahmen: | AE135: Haftung Naclass | AF135: =Sach!S106 -> 0 | AG135: Haftung Naclass | AH135: =Sach!S107 -> 0 | AI135: Faktor | AJ135: =Sach!V109 -> 1.5
J136: Gesamt | K136: =SUM(K135:K135) -> 0 | L136: =$B$133 -> 0 | N136: =$E$9 -> 0.1 | Q136: =$C$11 -> 0.5 | R136: =$D$10 -> 0.11 | U136: =U135 -> 0 | AE136: Gesamt | AF136: =AF134*(1-AF135) -> 0 | AG136: Gesamt | AH136: =AH134*(1-AH135) -> 0 | AI136: Gesamt | AJ136: =AJ134*AJ135 -> 0
J137: MP | K137: 20 | L137: =$B$133 -> 0 | N137: =$E$9 -> 0.1 | R137: =$D$10 -> 0.11 | U137: =K137*L137*(1-M137)*(1-N137)*(1-O137)*(1-P137)*(1-Q137)*(1+R137)*(1+S137)*(1+T137) -> 0 | AE137: Haftung | AF137: =Sach!P104 -> 12 Monate | AG137: Haftung | AH137: =Sach!P110 -> 12 Monate | AI137: Haftung | AJ137: =Sach!P112 -> 12 Monate
J138: für Antrag | K138: =MAX(K136:K137)*L138 -> 0 | L138: =$B$133 -> 0 | N138: =$E$9 -> 0.1 | U138: =MAX(U136:U137) -> 0
B141: Sparte gewählt
B142: =Sach!P111 -> 0 | M142: Nachlässe | R142: Zuschläge
A143: EC-Mehrkosten-BU | B143: =IF(B142=1,A143,A143&": Sparte nicht gewählt") -> EC-Mehrkosten-BU: Sparte nicht gewählt | C143: Art | D143: %o-Satz | E143: VS gewählt | F143: VS inkludiert | G143: VS Anzeige | H143: VS Berechnung | K143: Tarifprämie | L143: Sparte gewählt | M143: ='Berechnung Sparten'!$B$8 -> NÖ-Vorteil (außer F) | N143: ='Berechnung Sparten'!$B$9 -> Laufzeit-Nachlass | O143: Risikonachlass | Q143: Sondernachlass | R143: ='Berechnung Sparten'!$B$10 -> Steuer | U143: Zahlprämie | W143: Anzeige Art
B144: EC-Mehrkosten | C144: =Sach!D112 -> 0 | D144: =AJ136 -> 0 | E144: =C144*X145 -> 0 | G144: =E144*B142 -> 0 | H144: =G144 -> 0 | K144: =H144*D144 -> 0 | L144: =$B$142 -> 0 | N144: =$E$9 -> 0.1 | Q144: =$C$11 -> 0.5 | R144: =$D$10 -> 0.11 | U144: =K144*L144*(1-M144)*(1-N144)*(1-O144)*(1-P144)*(1-Q144)*(1+R144)*(1+S144)*(1+T144) -> 0 | W144: ="Haftung "&AJ137&", Mehrkosten:" -> Haftung 12 Monate, Mehrkosten:
J145: Gesamt | K145: =SUM(K144:K144) -> 0 | L145: =$B$142 -> 0 | N145: =$E$9 -> 0.1 | Q145: =$C$11 -> 0.5 | R145: =$D$10 -> 0.11 | U145: =SUM(U144) -> 0 | W145: Monate: | X145: =Sach!U109 -> 12
J146: MP | K146: 20 | L146: =$B$142 -> 0 | N146: =$E$9 -> 0.1 | R146: =$D$10 -> 0.11 | U146: =K146*L146*(1-M146)*(1-N146)*(1-O146)*(1-P146)*(1-Q146)*(1+R146)*(1+S146)*(1+T146) -> 0
J147: für Antrag | K147: =MAX(K145:K146)*L147 -> 0 | L147: =$B$142 -> 0 | N147: =$E$9 -> 0.1 | U147: =MAX(U145:U146) -> 0
B161: Sparte gewählt | C161: Durchschnittsatz
B162: =Sach!P116 -> 0 | C162: Inhaltssatz | D162: =G5 -> 0 | M162: Nachlässe | R162: Zuschläge | U162: =288+374.4+104+93.6 -> 860
A163: Einbruchdiebstahl | B163: =IF(B162=1,A163,A163&": Sparte nicht gewählt") -> Einbruchdiebstahl: Sparte nicht gewählt | C163: Art | D163: %o-Satz | E163: VS gewählt | F163: VS inkludiert | G163: VS Anzeige | H163: VS Berechnung | I163: Zuschlag bewohnt | K163: Tarifprämie | L163: Sparte gewählt | M163: ='Berechnung Sparten'!$B$8 -> NÖ-Vorteil (außer F) | N163: ='Berechnung Sparten'!$B$9 -> Laufzeit-Nachlass | O163: Risikonachlass | Q163: Sondernachlass | R163: ='Berechnung Sparten'!$B$10 -> Steuer | U163: Zahlprämie | W163: Anzeige Art | X163: VS für NK | Y163: Prämie NK | AA163: Risikoort
B164: KTE und Vorräte laut Risikoübersicht | C164: VS | G164: =X11*B162 -> 0 | I164: =$AB$169 -> 1 | J164: x | K164: ='Berechnung Grund'!E77*(1+I164) -> 0 | L164: =$B$162 -> 0 | N164: =$C$9 -> 0.2 | Q164: =$C$11 -> 0.5 | R164: =$D$10 -> 0.11 | U164: =K164*L164*(1-M164)*(1-N164)*(1-O164)*(1-P164)*(1-Q164)*(1+R164)*(1+S164)*(1+T164) -> 0 | W164: =IF(F164="",C164,C164&" ("&F164&" inkl.)") -> VS | X164: =X9+X10+X12 -> 0 | Y164: =IF(X164=0,0,K164) -> 0 | AA164: Bewohnt | AB164: Zuschlag | AF164: =Y164 -> 0
B165: Technische und kaufmännische Betriebseinrichtung sowie Vorräte (im Eigentum des Versicherungsnehmers) ständig außerhalb des Versicherungsortes jedoch innerhalb Österreichs in versperrten massiv/harten Gebäuden (dies gilt nicht versichert in Bauhütten, Bau und Lagercontainern) | C165: ER | D165: =D162*2 -> 0 | E165: =Sach!P119 -> 0 | G165: =MAX(E165:F165)*$B$162 -> 0 | H165: =MAX(0,E165-F165) -> 0 | K165: =H165*D165*(1+I165) -> 0 | L165: =$B$162 -> 0 | N165: =$C$9 -> 0.2 | Q165: =$C$11 -> 0.5 | R165: =$D$10 -> 0.11 | U165: 0 | W165: ER | X165: =G165 -> 0 | Y165: =IF(X165=0,0,K165) -> 0 | AA165: Alle Risikoorte bewohnt | AB165: 0 | AD165: Grundpromille ohne ER-Zuschlag
B166: Sachen in Bauhütten, Bau- oder Lagercontainern, Verkaufs - und Marktständen (am Versicherungsort bzw. innerhalb Österreichs), Selbstbehalt 20 % | C166: NW/WB | D166: =150/1000 -> 0.15 | E166: =Sach!P120 -> 0 | G166: 0 | H166: 0 | J166: x | K166: 0 | L166: 0 | N166: 0.2 | Q166: 0.5 | R166: 0.11 | U166: 0 | W166: NW/WB | X166: 0 | Y166: =IF(X166=0,0,K166) -> 0 | AA166: mindestens ein Risikoort bewohnt | AB166: 0.5 | AD166: =3/1000 -> 0.003 | AF166: =Y166 -> 0
B167: Wiederherstellungskosten von Datenträgern (Geschäftsbücher, Akten, Pläne, elektronische Speichermedien, Typenscheine, kodierte KFZ-Schlüssel udgl.) und den darauf befindlichen Daten | C167: ER | D167: =2/1000 -> 0.002 | E167: =Sach!P121 -> 0 | F167: 5000 | G167: 0 | H167: 0 | I167: =$AB$169 -> 1 | K167: 0 | L167: 0 | N167: 0.2 | Q167: 0.5 | R167: 0.11 | U167: 0 | W167: ER (5000 inkl.) | X167: 0 | AA167: Alle Risikoorte unbewohnt | AB167: 1 | AF167: 0
B168: Sachen der Betriebsinhaber und Dienstnehmer (ausgenommen jedoch Bargeld, Edelmetall-, Gold-, Silber- und Schmucksachen, Kraftfahrzeuge sowie in Wohnungen befindlicher Hausrat) | C168: NW | D168: =D162 -> 0 | E168: =Sach!P122 -> 0 | F168: 5000 | G168: 0 | H168: 0 | I168: =$AB$169 -> 1 | K168: 0 | L168: 0 | N168: 0.2 | Q168: 0.5 | R168: 0.11 | U168: 0 | W168: NW (5000 inkl.) | X168: 0 | AA168: Gewählt | AB168: =IF(Sach!I117="",Sach!R123,Sach!I117) -> Alle Risikoorte unbewohnt | AF168: 0
B169: Schäden an der Grundstücksbegrenzung bzw. am Einfahrtstor nach einem vollbrachten bzw. versuchten Einbruchdiebstahl an der Versicherungsräumlichkeit | C169: ER | D169: =10/1000 -> 0.01 | E169: =Sach!P123 -> 0 | G169: 0 | H169: 0 | J169: x | K169: 0 | L169: 0 | N169: 0.2 | Q169: 0.5 | R169: 0.11 | U169: 0 | W169: ER | X169: 0 | Y169: =IF(X169=0,0,K169) -> 0 | AA169: Zuschlag | AB169: =VLOOKUP(AB168,AA165:AB167,2,FALSE) -> 1 | AF169: 0
B170: Tische, Stühle, Sonnenschirme, Spielplatz-einrichtung im Freien (Schanigärten) – Teildiebstahl und Vandalismus gelten als nicht versichert. Selbstbehalt 20% gem. E9881 | C170: NW | D170: =100/1000 -> 0.1 | E170: =Sach!P124 -> 0 | G170: 0 | H170: 0 | J170: x | K170: 0 | L170: =$B$162 -> 0 | N170: =$C$9 -> 0.2 | Q170: =$C$11 -> 0.5 | R170: =$D$10 -> 0.11 | U170: 0 | W170: NW | X170: 0 | AF170: 0
B171: Groß- und/oder Kleintiere im Gebäude befindlich | C171: WB | D171: =D162 -> 0 | E171: =Sach!P125 -> 0 | G171: 0 | H171: 0 | I171: =$AB$169 -> 1 | K171: 0 | L171: 0 | N171: 0.2 | Q171: 0.5 | R171: 0.11 | U171: 0 | W171: WB | X171: 0 | Y171: =IF(X171=0,0,K171) -> 0 | AF171: 0
B172: Versperrte KFZ, Anhänger und landw. Maschinen im Freien am umzäunten Grundstück (Teildiebstahl und Vandalismus nicht versicherbar) E0081 | C172: =IF(Sach!I126=Sach!R135,Sach!R135,Sach!R134) -> ER | D172: =IF(C172="ER",AD166*2,AD166) -> 0.006 | E172: =Sach!P126 -> 0 | G172: 0 | H172: 0 | J172: x | K172: 0 | L172: 0 | N172: 0.2 | Q172: 0.5 | R172: 0.11 | U172: 0 | W172: ER | X172: 0 | Y172: 0 | AF172: 0
B173: KFZ, Anhänger und landwirtschaftliche Maschinen im Gebäude befindlich | C173: =IF(Sach!I127=Sach!R135,Sach!R135,Sach!R134) -> ER | D173: =IF(C173="ER",D162*1.5,D162) -> 0 | E173: =Sach!P127 -> 0 | G173: 0 | H173: 0 | I173: =$AB$169 -> 1 | J173: x | K173: 0 | L173: =$B$162 -> 0 | N173: =$C$9 -> 0.2 | Q173: =$C$11 -> 0.5 | R173: =$D$10 -> 0.11 | U173: 0 | W173: ER | X173: 0 | Y173: 0 | AF173: 0
B174: Werkzeuge, Geräte und Vorräte in KFZ befindlich, Selbstbehalt 20 % | C174: NW/WB | D174: =75/1000 -> 0.075 | E174: =Sach!P128 -> 0 | G174: 0 | H174: 0 | K174: 0 | L174: 0 | N174: 0.2 | Q174: 0.5 | R174: 0.11 | U174: 0 | W174: NW/WB | X174: 0 | Y174: 0 | AF174: 0
B175: Sachen in Schaukästen, Vitrinen und Automaten außerhalb der Geschäftsräumlichkeiten E0071 | C175: NW | D175: =30/1000 -> 0.03 | E175: =Sach!P129 -> 0 | G175: 0 | H175: 0 | K175: 0 | L175: 0 | N175: 0.2 | Q175: 0.5 | R175: 0.11 | U175: 0 | W175: NW | X175: 0 | Y175: 0 | AF175: 0
B176: Geld und Geldeswerte unter festem Verschluss E9891 | C176: ER | E176: =Sach!P130 -> 0 | F176: 5000 | G176: 0 | H176: 0 | I176: =$AB$169 -> 1 | K176: 0 | L176: =$B$162 -> 0 | N176: =$C$9 -> 0.2 | Q176: =$C$11 -> 0.5 | R176: =$D$10 -> 0.11 | U176: 0 | W176: ER (5000 inkl.) | X176: 0 | Y176: 0 | AF176: 0
B177: Öffnung von Behältnissen mittels geraubter Original- und Duplikatschlüssel E3038 | C177: ER | D177: =1.2/1000 -> 0.0012 | E177: =Sach!P131 -> 0 | G177: 0 | H177: 0 | J177: x | K177: 0 | L177: =$B$162 -> 0 | N177: =$C$9 -> 0.2 | Q177: =$C$11 -> 0.5 | R177: =$D$10 -> 0.11 | U177: 0 | W177: ER | AF177: 0
B178: Beraubung innerhalb der Versicherungsräumlichkeiten inkl. Kundenberaubung E3062/E0062 | C178: ER | D178: =3/1000 -> 0.003 | E178: =Sach!P132 -> 0 | F178: 5000 | G178: 0 | H178: 0 | J178: x | K178: 0 | L178: 0 | N178: 0.2 | Q178: 0.5 | R178: 0.11 | U178: 0 | W178: ER (5000 inkl.) | AF178: 0
B179: 20 % Aufräumungs-, Abbruch-, De- u. Remontagekosten, Bewegungs- u. Schutzkosten, Deponiekosten für nicht zu behandelnden Abfall. Im Rahmen dieser Summe gelten Mehrkosten durch die Behandlung von gefährlichem Abfall und/oder kontaminierten Erdreich bis 50 % der Summe als versichert A3024 | C179: ER | D179: =Sach!T125-Sach!T121 -> 0 | E179: =Sach!P133 -> 0 | F179: =X194*0.05 -> 0 | G179: =Sach!T125 -> 0.05 | H179: =Y194 -> 0 | K179: 0 | L179: 0 | N179: 0.2 | Q179: 0.5 | R179: 0.11 | U179: 0 | W179: ="20 % inkl. ("&F179&")" -> 20 % inkl. (0) | AF179: =Y179 -> 0
B180: Mehrkosten durch die Behandlung von gefährlichem Abfall und/oder kontaminiertem Erdreich | C180: ER | D180: =D162 -> 0 | E180: =Sach!P134 -> 0 | G180: =MAX(E180:F180)*$B$162 -> 0 | H180: =MAX(0,E180-F180) -> 0 | I180: =$AB$169 -> 1 | K180: =H180*D180*(1+I180) -> 0 | L180: 0 | N180: 0.2 | Q180: 0.5 | R180: 0.11 | U180: 0 | W180: =IF(F180="",C180,C180&" ("&F180&" inkl.)") -> ER | AF180: 0
B181: Zentralschlüsselanlage (Schlüsselverlust) gem. E9882 (Selbstbehalt 10 %) | C181: ER | D181: =90/1000 -> 0.09 | E181: =Sach!P135 -> 0 | G181: 0 | H181: =MAX(0,E181-F181) -> 0 | J181: x | K181: 0 | L181: 0 | N181: 0.2 | Q181: 0.5 | R181: 0.11 | U181: 0 | W181: =IF(F181="",C181,C181&" ("&F181&" inkl.)") -> ER
B182: Schlossänderungskosten für Behältnisse E3033 | C182: ER | D182: =9.5/1000 -> 0.0095 | E182: =Sach!P136 -> 0 | G182: 0 | H182: =MAX(0,E182-F182) -> 0 | J182: x | K182: 0 | L182: =$B$162 -> 0 | N182: =$C$9 -> 0.2 | Q182: =$C$11 -> 0.5 | R182: =$D$10 -> 0.11 | U182: 0 | W182: =IF(F182="",C182,C182&" ("&F182&" inkl.)") -> ER
B183: Telefonmissbrauch (5.000 gem. E9823)
B184: Mehraufwand im Schadensfall (10 % gem. BB 4817)
B185: Verteurerung im Schadensfall (15 % gem. BB 4907)
B186: Geld und Geldeswerte im Sicherheitsbehältnis | I186: =$AB$169 -> 1 | K186: 0 | X186: =G186 -> 0 | Y186: =IF(X186=0,0,K186) -> 0 | AF186: 0
B187: Sicherheitsgrad EN0 bzw. VSÖ IV (VS 15.000) | C187: ER | D187: =0.5/1000 -> 0.0005 | E187: =Sach!P141 -> 0 | G187: 0 | H187: =MAX(0,E187-F187) -> 0 | I187: 1 | K187: 0 | L187: =$B$162 -> 0 | N187: =$C$9 -> 0.2 | Q187: =$C$11 -> 0.5 | R187: =$D$10 -> 0.11 | U187: =K187*L187*(1-M187)*(1-N187)*(1-O187)*(1-P187)*(1-Q187)*(1+R187)*(1+S187)*(1+T187) -> 0 | W187: =IF(F187="",C187,C187&" ("&F187&" inkl.)") -> ER | X187: 0 | Y187: 0 | AF187: 0
B188: Sicherheitsgrad EN1 bzw. VSÖ III/c 1-3 (VS 30.000) | C188: ER | D188: =0.4/1000 -> 0.0004 | E188: =Sach!P142 -> 0 | G188: 0 | H188: 0 | I188: 1 | K188: 0 | L188: 0 | N188: 0.2 | Q188: 0.5 | R188: 0.11 | U188: 0 | W188: ER | X188: 0 | Y188: 0 | AF188: 0
B189: Sicherheitsgrad VSÖ III/b (VS 45.000) | C189: ER | D189: =0.4/1000 -> 0.0004 | E189: =Sach!P143 -> 0 | G189: 0 | H189: 0 | I189: 1 | K189: 0 | L189: 0 | N189: 0.2 | Q189: 0.5 | R189: 0.11 | U189: 0 | W189: ER | X189: 0 | Y189: 0 | AF189: 0
B190: Sicherheitsgrad EN2 bzw. VSÖ II/d (VS 75.000) | C190: ER | D190: =0.3/1000 -> 0.0003 | E190: =Sach!P144 -> 0 | G190: 0 | H190: 0 | I190: 1 | K190: 0 | L190: 0 | N190: 0.2 | Q190: 0.5 | R190: 0.11 | U190: 0 | W190: ER | X190: 0 | Y190: 0 | AF190: 0
B191: Sicherheitsgrad EN3 bzw. VSÖ II/c (VS (100.000) | C191: ER | D191: =0.2/1000 -> 0.0002 | E191: =Sach!P145 -> 0 | G191: 0 | H191: 0 | I191: 1 | K191: 0 | L191: 0 | N191: 0.2 | Q191: 0.5 | R191: 0.11 | U191: 0 | W191: ER | X191: 0 | Y191: 0 | AF191: 0
B192: Sicherheitsgrad EN4 (VS 150.000) | C192: ER | D192: =0.2/1000 -> 0.0002 | E192: =Sach!P146 -> 0 | G192: 0 | H192: 0 | I192: 1 | K192: 0 | L192: 0 | N192: 0.2 | Q192: 0.5 | R192: 0.11 | U192: 0 | W192: ER | X192: 0 | Y192: 0 | AF192: 0
B193: Sicherheitsgrad EN5 bzw. VSÖ II/b (SV 250.000) | C193: ER | D193: =0.2/1000 -> 0.0002 | E193: =Sach!P147 -> 0 | G193: 0 | H193: 0 | I193: 1 | K193: 0 | L193: 0 | N193: 0.2 | Q193: 0.5 | R193: 0.11 | U193: 0 | W193: ER | X193: 0 | Y193: 0 | AF193: 0
J194: Gesamt | K194: =SUM(K164:K193) -> 0 | L194: 0 | N194: 0.2 | Q194: 0.5 | R194: 0.11 | U194: =SUM(U164:U193) -> 0 | X194: =SUM(X164:X193) -> 0 | Y194: =SUM(Y164:Y193) -> 0 | AF194: =SUM(AF164:AF193) -> 0 | AG194: =AF194-AF195 -> -4121.21
J195: MP | K195: 50 | L195: 0 | N195: 0.2 | R195: 0.11 | U195: =K195*L195*(1-M195)*(1-N195)*(1-O195)*(1-P195)*(1-Q195)*(1+R195)*(1+S195)*(1+T195) -> 0 | X195: =112340*5 -> 561700 | Y195: =760.6/0.15 -> 5070.666667 | AF195: 4121.21
J196: für Antrag | K196: =MAX(K194:K195)*L196 -> 0 | L196: 0 | N196: 0.2 | U196: =MAX(U194:U195) -> 0 | X196: =X194-X195 -> -561700 | Y196: =Y194-Y195 -> -5070.666667
B199: Sparte gewählt | C199: Durchschnittsatz
B200: =Sach!P152 -> 0 | C200: Inhaltssatz | M200: Nachlässe | R200: Zuschläge | W200: Anzeige Art
A201: Botenberaubung | B201: =IF(B200=1,A201,A201&": Sparte nicht gewählt") -> Botenberaubung: Sparte nicht gewählt | C201: Art | D201: %o-Satz | E201: VS gewählt | F201: VS inkludiert | G201: VS Anzeige | H201: VS Berechnung | I201: Zuschlag Ringbote | K201: Tarifprämie | L201: Sparte gewählt | M201: ='Berechnung Sparten'!$B$8 -> NÖ-Vorteil (außer F) | N201: ='Berechnung Sparten'!$B$9 -> Laufzeit-Nachlass | O201: Risikonachlass | Q201: Sondernachlass | R201: ='Berechnung Sparten'!$B$10 -> Steuer | U201: Zahlprämie
B202: Botenberaubung | C202: VS | D202: =3.75/1000 -> 0.00375 | E202: =Sach!S156 -> 0 | G202: =E202*B200 -> 0 | H202: =MAX(0,E202-F202) -> 0 | I202: =IF(E202>300000,100%,0) -> 0 | J202: =Sach!P153 -> 1 | K202: =H202*D202*(1+I202)*(1+J202) -> 0 | L202: =$B$200 -> 0 | N202: =$C$9 -> 0.2 | Q202: =$C$11 -> 0.5 | R202: =$D$10 -> 0.11 | U202: =K202*L202*(1-M202)*(1-N202)*(1-O202)*(1-P202)*(1-Q202)*(1+R202)*(1+S202)*(1+T202) -> 0 | W202: =Sach!S154&", "&IF(Sach!O153=FALSE,"ohne Ringbotenklausel","mit Ringbotenklausel") -> Ohne Begleitung, mit Ringbotenklausel
J203: Gesamt | K203: =K202 -> 0 | L203: =$B$200 -> 0 | N203: =$C$9 -> 0.2 | Q203: =$C$11 -> 0.5 | R203: =$D$10 -> 0.11 | U203: =U202 -> 0
J204: MP | K204: 20 | L204: =$B$200 -> 0 | N204: =$C$9 -> 0.2 | R204: =$D$10 -> 0.11 | U204: =K204*L204*(1-M204)*(1-N204)*(1-O204)*(1-P204)*(1-Q204)*(1+R204)*(1+S204)*(1+T204) -> 0
J205: für Antrag | K205: =MAX(K203:K204)*L205 -> 0 | L205: =$B$200 -> 0 | N205: =$C$9 -> 0.2 | U205: =MAX(U203:U204) -> 0
B208: Sparte gewählt | C208: Durchschnittsatz | K208: =1395+1365+115.5+115.5+38.5+38.5 -> 3068
B209: =Sach!P158 -> 0 | C209: Inhaltssatz | D209: =I5 -> 0 | M209: Nachlässe | R209: Zuschläge
A210: Leitungswasser | B210: =IF(B209=1,A210,A210&": Sparte nicht gewählt") -> Leitungswasser: Sparte nicht gewählt | C210: Art | D210: %o-Satz | E210: VS gewählt | F210: VS inkludiert | G210: VS Anzeige | H210: VS Berechnung | K210: Tarifprämie | L210: Sparte gewählt | M210: ='Berechnung Sparten'!$B$8 -> NÖ-Vorteil (außer F) | N210: ='Berechnung Sparten'!$B$9 -> Laufzeit-Nachlass | O210: Risikonachlass | Q210: Sondernachlass | R210: ='Berechnung Sparten'!$B$10 -> Steuer | S210: 15 Meter | U210: Zahlprämie | W210: Anzeige Art | X210: VS für NK | Y210: Prämie NK
B211: Grunddeckung (Gebäude, KTE, Vorräte laut Risikoübersicht) | C211: VS | G211: =W11*B209 -> 0 | K211: ='Berechnung Grund'!C80*(1+I211) -> 0 | L211: =$B$209 -> 0 | N211: =$C$9 -> 0.2 | Q211: =$C$11 -> 0.5 | R211: =$D$10 -> 0.11 | S211: =Sach!$U$175 -> 0 | U211: =K211*L211*(1-M211)*(1-N211)*(1-O211)*(1-P211)*(1-Q211)*(1+R211)*(1+S211)*(1+T211) -> 0 | W211: =IF(F211="",C211,C211&" ("&F211&" inkl.)") -> VS | X211: =W11+W12 -> 0 | Y211: =IF(X211=0,0,K211) -> 0
B212: Technische und kaufmännische Betriebseinrichtung sowie Vorräte (im Eigentum des Versicherungsnehmers) ständig außerhalb des Versicherungsortes jedoch innerhalb Österreichs | C212: NW/WBS | D212: =D209*2 -> 0 | E212: =Sach!P164 -> 0 | G212: =MAX(E212:F212)*$B$209 -> 0 | H212: =MAX(0,E212-F212) -> 0 | K212: =H212*D212*(1+I212) -> 0 | L212: =$B$209 -> 0 | N212: =$C$9 -> 0.2 | Q212: =$C$11 -> 0.5 | R212: =$D$10 -> 0.11 | S212: =Sach!$U$175 -> 0 | U212: 0 | W212: NW/WBS | X212: =G212 -> 0 | Y212: =IF(X212=0,0,K212) -> 0 | AC212: Korrisionsschäden
B213: Wiederherstellungskosten von Datenträgern (Geschäftsbücher, Akten, Pläne, elektronische Speichermedien, Typenscheine, kodierte KFZ-Schlüssel und dgl.) und den darauf befindlichen Daten | C213: ER | D213: =2.5/1000 -> 0.0025 | E213: =Sach!P165 -> 0 | F213: 5000 | G213: 0 | H213: 0 | K213: =H213*D213*(1+I213) -> 0 | L213: 0 | N213: 0.2 | Q213: 0.5 | R213: 0.11 | S213: =Sach!$U$175 -> 0 | U213: 0 | W213: ER (5000 inkl.) | X213: =G213 -> 0 | Y213: =IF(X213=0,0,K213) -> 0 | AC213: =Sach!R182 -> exkl. Korrosionsschäden | AD213: Behebungskosten nach Rohrgebrechen in gemieteten Räumlichkeiten gem. L3017 | AE213: =5/1000 -> 0.005
B214: Sachen der Betriebsinhaber und Dienstnehmer (ausgenommen jedoch Bargeld, Edelmetall-, Gold-, Silber- und Schmucksachen, Kraftfahrzeuge sowie in Wohnungen befindlicher Hausrat) | C214: NW | D214: =D209 -> 0 | E214: =Sach!P166 -> 0 | F214: 5000 | G214: 0 | H214: 0 | K214: 0 | L214: 0 | N214: 0.2 | Q214: 0.5 | R214: 0.11 | S214: =Sach!$U$175 -> 0 | U214: 0 | W214: NW (5000 inkl.) | X214: =G214 -> 0 | Y214: =IF(X214=0,0,K214) -> 0 | AC214: =Sach!R181 -> inkl. Korrosionsschäden | AD214: Behebungskosten nach Rohrgebrechen in gemieteten Räumlichkeiten inkl. Korrosionsschäden gem. L3018 | AE214: =15/1000 -> 0.015
B215: =AD216 -> Behebungskosten nach Rohrgebrechen in gemieteten Räumlichkeiten inkl. Korrosionsschäden gem. L3018 | C215: ER | D215: =AE216 -> 0.015 | E215: =Sach!P167 -> 0 | G215: 0 | H215: 0 | K215: 0 | L215: 0 | N215: 0.2 | Q215: 0.5 | R215: 0.11 | S215: =Sach!$U$175 -> 0 | U215: 0 | W215: ER | X215: =G215 -> 0 | Y215: =IF(X215=0,0,K215) -> 0 | AC215: Gewählt
B216: Kosten für die Beseitigung von Verstopfungen der Ableitungsrohren der Gebäudeleitungs-wasserinstallation am Versicherungsort sowie der Wand- und Fußbodenheizung | C216: ER | D216: =60/1000 -> 0.06 | E216: =Sach!P168 -> 0 | G216: 0 | H216: 0 | K216: 0 | L216: 0 | N216: 0.2 | Q216: 0.5 | R216: 0.11 | S216: =Sach!$U$175 -> 0 | U216: 0 | W216: ER | X216: =G216 -> 0 | AC216: =Sach!R184 -> inkl. Korrosionsschäden | AD216: =VLOOKUP(AC216,AC213:AE214,2,FALSE) -> Behebungskosten nach Rohrgebrechen in gemieteten Räumlichkeiten inkl. Korrosionsschäden gem. L3018 | AE216: =VLOOKUP(AC216,AC213:AE214,3,FALSE) -> 0.015
B217: Schäden durch Flüssigkeitsaustritt aus Fußboden- oder Wandheizungen, Solaranlagen zur Wasseraufbereitung und Klimaanlagen, sowie Gebrechensbehebungen an den Rohrleitungen dieser Anlagen (im Rahmen der Gebäude-VS prämienfrei) | E217: =Sach!P169 -> 0 | G217: 0 | H217: 0 | K217: 0 | L217: 0 | N217: 0.2 | Q217: 0.5 | R217: 0.11 | S217: =Sach!$U$175 -> 0 | U217: 0 | W217: 0
B218: Schäden an versicherten Gebäuden durch Austritt von Wasser aus Schwimmbecken am Versicherungsgrundstück sowie Gebrechensbehebung an Rohren der Filteranlage bzw. von Zu- und Ableitungen des Schwimmbeckens L3013 | C218: ER | D218: =4/1000 -> 0.004 | E218: =Sach!P170 -> 0 | G218: 0 | H218: 0 | K218: 0 | L218: 0 | N218: 0.2 | Q218: 0.5 | R218: 0.11 | S218: =Sach!$U$175 -> 0 | U218: 0 | W218: ER | X218: =G218 -> 0
B219: Schäden am Gebäude durch Austritt von Wasser aus Aquarien oder Wasserbetten (im Rahmen der Gebäude-VS prämienfrei) L0819 | E219: =Sach!P171 -> 0 | G219: =IF(E219=1,"ja","nein") -> nein | H219: 0 | K219: 0 | L219: 0 | N219: 0.2 | Q219: 0.5 | R219: 0.11 | S219: =Sach!$U$175 -> 0 | U219: 0 | W219: 0
B220: Schäden am Gebäude durch Austritt von Wasser aus innen liegenden Regenabflussrohren sowie Gebrechensbehebung an erdverlegten Regen-wasserkanälen am Versicherungsgrundstück | C220: ER | D220: =4/1000 -> 0.004 | E220: =Sach!P172 -> 0 | G220: =MAX(E220:F220)*$B$209 -> 0 | H220: 0 | K220: 0 | L220: 0 | N220: 0.2 | Q220: 0.5 | R220: 0.11 | S220: =Sach!$U$175 -> 0 | U220: 0 | W220: ER | X220: =G220 -> 0
B221: Folgeschäden am Gebäude bei Austritt aus im Gebäude befindlichen niederschlagswasserführenden Ableitungsssystemen (10.000 €) | C221: ER | D221: =25/1000 -> 0.025 | E221: =Sach!P173 -> 0 | G221: 0 | H221: 0 | K221: 0 | L221: 0 | N221: 0.2 | Q221: 0.5 | R221: 0.11 | S221: =Sach!$U$175 -> 0 | U221: 0 | W221: ER | X221: 0
B222: Erdwärmerohre am Versicherungsgrundstück inkl. Grabarbeiten L0820 | C222: ER | D222: =5/1000 -> 0.005 | E222: =Sach!P174 -> 0 | G222: 0 | H222: 0 | K222: 0 | L222: 0 | N222: 0.2 | Q222: 0.5 | R222: 0.11 | S222: =Sach!$U$175 -> 0 | U222: 0 | W222: ER | X222: 0 | Y222: =IF(X222=0,0,K222) -> 0
B223: Wasserzu– und Ableitungsrohre außerhalb des Versicherungsgrundstückes | C223: ER | D223: =25/1000 -> 0.025 | E223: =Sach!P175 -> 0 | G223: 0 | H223: 0 | K223: 0 | L223: 0 | N223: 0.2 | Q223: 0.5 | R223: 0.11 | S223: =Sach!$U$175 -> 0 | U223: 0 | W223: ER | X223: 0 | Y223: 0
B224: Gasleitungen € 10.000 (Selbstbehalt 20%, max. € 500) gem. L9928 | C224: ER | D224: =30/1000 -> 0.03 | E224: =Sach!P176 -> 0 | G224: 0 | H224: 0 | K224: 0 | L224: 0 | N224: 0.2 | Q224: 0.5 | R224: 0.11 | S224: =Sach!$U$175 -> 0 | U224: 0 | W224: ER | X224: 0 | Y224: 0
B225: Geld und Geldeswerte, Sparbücher, Wertpapiere, Urkunden, Schmuck-, Gold- und Platinsachen, Edelsteine, Edelmetalle und echte Perlen sowie Münzen- und Briefmarkensammlungen, Brief - und Stempelmarken, Vignetten, Kurzparkscheine, Lose und Telefonwertkarten unter festem Verschluss. | C225: ER | D225: =0.25/1000 -> 0.00025 | E225: =Sach!P177 -> 0 | F225: 5000 | G225: 0 | H225: 0 | K225: 0 | L225: 0 | N225: 0.2 | Q225: 0.5 | R225: 0.11 | S225: =Sach!$U$175 -> 0 | U225: 0 | W225: ER (5000 inkl.) | X225: 0 | Y225: 0
B226: Groß- und/oder Kleintiere | C226: WB | D226: =D209 -> 0 | E226: =Sach!P178 -> 0 | G226: 0 | H226: 0 | K226: 0 | L226: 0 | N226: 0.2 | Q226: 0.5 | R226: 0.11 | S226: =Sach!$U$175 -> 0 | U226: 0 | W226: WB | X226: 0 | Y226: 0
B227: Suchkosten bei gerechtfertigter Schadenvermutung (€ 5.000 auf ER) | C227: ER | E227: =Sach!P185 -> 0 | G227: 0 | H227: 0 | K227: 0 | L227: 0 | N227: 0.2 | Q227: 0.5 | R227: 0.11 | S227: =Sach!$U$175 -> 0 | U227: 0 | W227: ER | X227: 0 | Y227: 0
B228: 20 % Aufräumungs-, Abbruch-, De- und Remont- agekosten, Bewegungs- und Schutzkosten, Deponiekosten für nicht zu behandelnden Abfall. Im Rahmen dieser Versicherungssumme gelten Mehrkosten durch die Behandlung von gefährlichem Abfall und/oder kontaminiertem Erdreich bis 50 % der Versicherungssumme als mitversichert. A3024 | C228: ER | H228: 0 | L228: 0 | N228: 0.2 | Q228: 0.5 | R228: 0.11 | S228: =Sach!$U$175 -> 0 | U228: 0 | W228: ="5 % inkl. ("&F228&")" -> 5 % inkl. ()
B229: Mehrkosten durch die Behandlung von gefährlichem Abfall und/oder kontaminiertem Erdreich. A3024 | C229: ER | D229: =D209 -> 0 | E229: =Sach!P181 -> 0 | G229: =MAX(E229:F229)*$B$209 -> 0 | H229: =MAX(0,E229-F229) -> 0 | K229: =H229*D229*(1+I229) -> 0 | L229: 0 | N229: 0.2 | Q229: 0.5 | R229: 0.11 | S229: =Sach!$U$175 -> 0 | U229: 0 | W229: =IF(F229="",C229,C229&" ("&F229&" inkl.)") -> ER
B230: Sachverständigenkosten A4850 | C230: ER | D230: =2.5/1000 -> 0.0025 | E230: =Sach!P182 -> 0 | G230: =MAX(E230:F230)*$B$209 -> 0 | H230: =MAX(0,E230-F230) -> 0 | K230: =H230*D230*(1+I230) -> 0 | L230: 0 | N230: 0.2 | Q230: 0.5 | R230: 0.11 | S230: =Sach!$U$175 -> 0 | U230: 0 | W230: =IF(F230="",C230,C230&" ("&F230&" inkl.)") -> ER
B231: Wasserverlust nach gedecktem Schadenereignis L3050 | C231: ER | D231: =5/1000 -> 0.005 | E231: =Sach!P183 -> 0 | F231: 2000 | G231: =MAX(E231:F231)*$B$209 -> 0 | H231: =MAX(0,E231-F231) -> 0 | K231: =H231*D231*(1+I231) -> 0 | L231: 0 | N231: 0.2 | Q231: 0.5 | R231: 0.11 | S231: =Sach!$U$175 -> 0 | U231: 0 | W231: =IF(F231="",C231,C231&" ("&F231&" inkl.)") -> ER (2000 inkl.) | X231: =G231 -> 0 | Y231: =IF(X231=0,0,K231) -> 0
... 252 more rows

Sheet Hpfl
M1: Spart möglich | N1: Sparte Grau
B3: Haftpflichtversicherung gewünscht? | M3: 1 | N3: 1 | O3: FALSE | P3: =IF(O3=TRUE,1,0)*M3 -> 0
B5: Haus- und Grundbesitzhaftpflicht | M5: ='Übersicht und Druck'!$E$27 -> 0 | N5: x | R5: VS Gewählt | S5: Zuschlag
B6: Sparte gewählt | I6: VS | J6: 1500000 | M6: ='Übersicht und Druck'!$E$27 -> 0 | N6: =M6 -> 0 | O6: TRUE | P6: =IF(O6=TRUE,1,0)*M6 -> 0 | R6: =IF(J6="",Hpfl!Q96,J6) -> 1500000 | S6: =VLOOKUP(R6,Hpfl!Q95:R112,2,FALSE) -> 0
B7: Auswahlbausteine | J7: Auswahl | K7: Prämie | M7: ='Übersicht und Druck'!$E$27 -> 0 | N7: =M7 -> 0
B8: ='Berechnung Sparten'!B397 -> Sachschäden durch Umweltstörung inkl. Umweltsanierungskosten (USK) H4631, H2630 | K8: ='Berechnung Sparten'!U397 -> 0 | M8: ='Übersicht und Druck'!$E$27 -> 0 | N8: =M8 -> 0 | O8: FALSE | P8: =IF(O8=TRUE,1,0)*P6 -> 0
I9: Spartenprämie | K9: ='Berechnung Sparten'!U400 -> 0 | M9: ='Übersicht und Druck'!$E$27 -> 0 | N9: =M9 -> 0
B12: Haftpflicht | M12: ='Übersicht und Druck'!$E$26 -> 0 | N12: x
B13: Sparte gewählt | M13: ='Übersicht und Druck'!$E$26 -> 0 | N13: x | O13: TRUE | P13: =IF(O13=TRUE,1,0)*M13 -> 0
B14: Versicherungsumme | D14: 1500000 | F14: Umsatz | I14: Lohn-summe | M14: ='Übersicht und Druck'!$E$26 -> 0 | N14: =$P$13 -> 0
B15: Örtlicher Geltungsbereich | F15: Import | G15: Export | I15: Keine Erweiterung | M15: ='Übersicht und Druck'!$E$26 -> 0 | N15: 0
F16: Export | G16: Import | I16: Keine Erweiterung | M16: ='Übersicht und Druck'!$E$26 -> 0 | N16: 0
F17: Antei am Gesamtumsatz | I17: Bis 25 % des Umsatzes | M17: ='Übersicht und Druck'!$E$26 -> 0 | N17: 0
G18: SB 10 max. 1.000 min: | H18: VS | J18: Auswahl | K18: Prämie | M18: ='Übersicht und Druck'!$E$26 -> 0 | N18: 0
B19: Grunddeckung AHVB und allfälliger Zuschlag für Mindestprämie | K19: ='Berechnung Sparten'!U335+'Berechnung Sparten'!U336 -> 0 | M19: ='Übersicht und Druck'!$E$26 -> 0 | N19: 0
B20: Prämienfreie Zusatzdeckungen | M20: 1 | N20: 1
B21: ='Berechnung Sparten'!B337 -> Auslandsdeckung für Länder der EU inkl. unbewusster Export gesamte Erde (ausgenommen USA, Kanada u. Australien) H3700 | G21: ='Berechnung Sparten'!D337 -> kein SB | H21: ='Berechnung Sparten'!E337 -> 1500000 | K21: ='Berechnung Sparten'!U337 -> 0 | M21: ='Übersicht und Druck'!$E$26 -> 0 | N21: 0 | P21: =IF(OR(I21="ja",O21=TRUE),1,0) -> 0
B22: ='Berechnung Sparten'!B338 -> Reine Vermögensschäden H1016 | G22: ='Berechnung Sparten'!D338 -> 100 | H22: ='Berechnung Sparten'!E338 -> 750000 | K22: ='Berechnung Sparten'!U338 -> 0 | M22: ='Übersicht und Druck'!$E$26 -> 0 | N22: 0 | P22: 0
B23: ='Berechnung Sparten'!B339 -> Arbeitnehmergarderoben H3718 | G23: ='Berechnung Sparten'!D339 -> kein SB | H23: ='Berechnung Sparten'!E339 -> 1500000 | K23: ='Berechnung Sparten'!U339 -> 0 | M23: ='Übersicht und Druck'!$E$26 -> 0 | N23: 0 | P23: 0
B24: ='Berechnung Sparten'!B340 -> genormte Vertragshaftungen H1002 | G24: ='Berechnung Sparten'!D340 -> 100 | H24: ='Berechnung Sparten'!E340 -> 1500000 | K24: ='Berechnung Sparten'!U340 -> 0 | M24: ='Übersicht und Druck'!$E$26 -> 0 | N24: 0 | P24: 0
B25: ='Berechnung Sparten'!B341 -> Grundstücke, Gebäude od. Räumlichkeiten die Fremdzwecken dienen (vermietet) - ausgenommen Mietwohnhäuser H1712 | G25: ='Berechnung Sparten'!D341 -> kein SB | H25: ='Berechnung Sparten'!E341 -> 1500000 | K25: ='Berechnung Sparten'!U341 -> 0 | M25: ='Übersicht und Druck'!$E$26 -> 0 | N25: 0 | P25: 0
B26: ='Berechnung Sparten'!B342 -> gewerbsmäßige Vermietung/Verleihung - ausgenommen reine Verleihbetriebe H3713 | G26: ='Berechnung Sparten'!D342 -> kein SB | H26: ='Berechnung Sparten'!E342 -> 1500000 | K26: ='Berechnung Sparten'!U342 -> 0 | M26: ='Übersicht und Druck'!$E$26 -> 0 | N26: 0 | P26: 0
B27: ='Berechnung Sparten'!B343 -> Bauherrnhaftpflicht - Bauvorhaben bis 1.000.000 H1746 | G27: ='Berechnung Sparten'!D343 -> kein SB | H27: ='Berechnung Sparten'!E343 -> 1500000 | K27: ='Berechnung Sparten'!U343 -> 0 | M27: ='Übersicht und Druck'!$E$26 -> 0 | N27: 0 | P27: 0
B28: ='Berechnung Sparten'!B344 -> Erweiterte Privathaftpflicht (subsidiär) für den Betriebsinhaber, bei Gesellschaften für den jeweiligen Geschäftsführer | G28: ='Berechnung Sparten'!D344 -> kein SB | H28: ='Berechnung Sparten'!E344 -> 1500000 | K28: ='Berechnung Sparten'!U344 -> 0 | M28: ='Übersicht und Druck'!$E$26 -> 0 | N28: 0 | P28: 0
B29: ='Berechnung Sparten'!B345 -> Anschlussbahnen und gemietete bahneigene Lagerplätze H3751 | G29: ='Berechnung Sparten'!D345 -> kein SB | H29: ='Berechnung Sparten'!E345 -> 1500000 | K29: ='Berechnung Sparten'!U345 -> 0 | M29: ='Übersicht und Druck'!$E$26 -> 0 | N29: 0
B30: ='Berechnung Sparten'!B346 -> Schadenersatzverpflichtungen nach dem Wasserrechtsgesetz H1017 | G30: ='Berechnung Sparten'!D346 -> kein SB | H30: ='Berechnung Sparten'!E346 -> 1500000 | K30: ='Berechnung Sparten'!U346 -> 0 | M30: ='Übersicht und Druck'!$E$26 -> 0 | N30: 0
B31: ='Berechnung Sparten'!B347 -> Erweiterte Produktehaftpflicht (örtlicher Geltungsbereich EU) H1029 | G31: ='Berechnung Sparten'!D347 -> 300 | H31: ='Berechnung Sparten'!E347 -> 100000 | K31: ='Berechnung Sparten'!U347 -> 0 | M31: ='Übersicht und Druck'!$E$26 -> 0 | N31: 0
B32: ='Berechnung Sparten'!B348 -> Cross-Liability N031 | G32: ='Berechnung Sparten'!D348 -> kein SB | H32: ='Berechnung Sparten'!E348 -> 1500000 | K32: ='Berechnung Sparten'!U348 -> 0 | M32: ='Übersicht und Druck'!$E$26 -> 0 | N32: 0
B33: ='Berechnung Sparten'!B349 -> Ansprüche der gesetzlichen Vertreter N013 | G33: ='Berechnung Sparten'!D349 -> kein SB | H33: ='Berechnung Sparten'!E349 -> 1500000 | K33: ='Berechnung Sparten'!U349 -> 0 | M33: ='Übersicht und Druck'!$E$26 -> 0 | N33: 0
B34: ='Berechnung Sparten'!B350 -> Arbeitsunfälle unter gleichgestellten Mitarbeitern N014 | G34: ='Berechnung Sparten'!D350 -> kein SB | H34: ='Berechnung Sparten'!E350 -> 1500000 | K34: ='Berechnung Sparten'!U350 -> 0 | M34: ='Übersicht und Druck'!$E$26 -> 0 | N34: 0
B35: ='Berechnung Sparten'!B351 -> Isotopenrisiko | G35: ='Berechnung Sparten'!D351 -> kein SB | H35: ='Berechnung Sparten'!E351 -> 1500000 | K35: ='Berechnung Sparten'!U351 -> 0 | M35: ='Übersicht und Druck'!$E$26 -> 0 | N35: 0
B36: ='Berechnung Sparten'!B352 -> Arbeitsmaschinen – Fahrtrisiko auf öffentlichen Verkehrsflächen N016 | G36: ='Berechnung Sparten'!D352 -> kein SB | H36: ='Berechnung Sparten'!E352 -> 1500000 | K36: ='Berechnung Sparten'!U352 -> 0 | M36: ='Übersicht und Druck'!$E$26 -> 0 | N36: 0
B37: ='Berechnung Sparten'!B353 -> Pauschalreisegesetz H5793 | G37: ='Berechnung Sparten'!D353 -> kein SB | H37: ='Berechnung Sparten'!E353 -> 375000 | K37: ='Berechnung Sparten'!U353 -> 0 | M37: ='Übersicht und Druck'!$E$26 -> 0 | N37: 0
B38: ='Berechnung Sparten'!B354 -> Hunde(e) H1771, H1695 | G38: ='Berechnung Sparten'!D354 -> kein SB | H38: ='Berechnung Sparten'!E354 -> 1500000 | K38: ='Berechnung Sparten'!U354 -> 0 | M38: ='Übersicht und Druck'!$E$26 -> 0 | N38: 0
B39: Prämienpflichtige Zusatzdeckungen | M39: 1 | N39: 1
B40: ='Berechnung Sparten'!B355 -> Mietsachschäden (Feuer- oder Leitungswasserschaden) - Regresshaftung H1092 | G40: ='Berechnung Sparten'!D355 -> 100 | H40: ='Berechnung Sparten'!E355 -> 1500000 | K40: ='Berechnung Sparten'!U355 -> 0 | M40: ='Übersicht und Druck'!$E$26 -> 0 | N40: 0 | O40: FALSE | P40: 0
B41: ='Berechnung Sparten'!B356 -> Tätigkeit an unbeweglichen Sachen H1015 | G41: ='Berechnung Sparten'!D356 -> 100 | H41: ='Berechnung Sparten'!E356 -> 750000 | K41: ='Berechnung Sparten'!U356 -> 0 | M41: ='Übersicht und Druck'!$E$26 -> 0 | N41: 0 | O41: FALSE | P41: 0
B42: ='Berechnung Sparten'!B357 -> Sachschäden durch Umweltstörung inkl. Umweltsanierungskosten (USK) H2630, H2830, H2802 | G42: ='Berechnung Sparten'!D357 -> lt. Klausel | H42: wählbar | I42: VS wählen | J42: Nicht versichert | K42: ='Berechnung Sparten'!U357 -> 0 | M42: ='Übersicht und Druck'!$E$26 -> 0 | N42: 0 | O42: FALSE | P42: =IF(Q86=Q82,0,1) -> 0
B43: ='Berechnung Sparten'!B358 -> Subunternehmer H1404 | G43: ='Berechnung Sparten'!D358 -> kein SB | H43: ='Berechnung Sparten'!E358 -> 1500000 | K43: ='Berechnung Sparten'!U358 -> 0 | M43: ='Übersicht und Druck'!$E$26 -> 0 | N43: 0 | O43: FALSE | P43: 0
B44: ='Berechnung Sparten'!B359 -> Eingestellte Fahrzeuge von Arbeitnehmern und Besuchern H1019 | G44: ='Berechnung Sparten'!D359 -> 100 | H44: ='Berechnung Sparten'!E359 -> 375000 | K44: ='Berechnung Sparten'!U359 -> 0 | M44: ='Übersicht und Druck'!$E$26 -> 0 | N44: 0 | O44: FALSE | P44: 0
B45: ='Berechnung Sparten'!B360 -> Be- und Entladung von fremden Fahrzeugen sowie Containern H1011 | G45: ='Berechnung Sparten'!D360 -> 100 | H45: ='Berechnung Sparten'!E360 -> 375000 | K45: ='Berechnung Sparten'!U360 -> 0 | M45: ='Übersicht und Druck'!$E$26 -> 0 | N45: 0 | O45: FALSE | P45: 0
B46: ='Berechnung Sparten'!B361 -> Allmählichkeit H1096 | G46: ='Berechnung Sparten'!D361 -> 100 | H46: ='Berechnung Sparten'!E361 -> 375000 | K46: ='Berechnung Sparten'!U361 -> 0 | M46: ='Übersicht und Druck'!$E$26 -> 0 | N46: 0 | O46: FALSE | P46: 0
B47: ='Berechnung Sparten'!B362 -> Verwahrung von beweglichen Sachen H1014 | G47: ='Berechnung Sparten'!D362 -> 100 | H47: ='Berechnung Sparten'!E362 -> 375000 | K47: ='Berechnung Sparten'!U362 -> 0 | M47: ='Übersicht und Druck'!$E$26 -> 0 | N47: 0 | O47: FALSE | P47: 0
B48: ='Berechnung Sparten'!B363 -> Nachbesserungs-Begleitschäden H1091 | G48: ='Berechnung Sparten'!D363 -> 100 | H48: ='Berechnung Sparten'!E363 -> 375000 | K48: ='Berechnung Sparten'!U363 -> 0 | M48: ='Übersicht und Druck'!$E$26 -> 0 | N48: 0 | O48: FALSE | P48: 0
B49: ='Berechnung Sparten'!B364 -> Automatische Waschanlagen H1025 | G49: ='Berechnung Sparten'!D364 -> 100 | H49: ='Berechnung Sparten'!E364 -> 375000 | K49: ='Berechnung Sparten'!U364 -> 0 | M49: ='Übersicht und Druck'!$E$26 -> 0 | N49: 0 | O49: FALSE | P49: 0
B50: ='Berechnung Sparten'!B365 -> Abhol- und Zustelldienst von Fahrzeugen H1027 | G50: ='Berechnung Sparten'!D365 -> 100 | H50: ='Berechnung Sparten'!E365 -> 375000 | K50: ='Berechnung Sparten'!U365 -> 0 | M50: ='Übersicht und Druck'!$E$26 -> 0 | N50: 0 | O50: FALSE | P50: 0
B51: ='Berechnung Sparten'!B366 -> Hebebühne(n) H1098 | G51: ='Berechnung Sparten'!D366 -> 100 | H51: ='Berechnung Sparten'!E366 -> 375000 | K51: ='Berechnung Sparten'!U366 -> 0 | M51: ='Übersicht und Druck'!$E$26 -> 0 | N51: 0 | O51: FALSE | P51: 0
B52: ='Berechnung Sparten'!B367 -> Schäden an Kundenfahrzeugen außerhalb der Betriebsstätte H1023 | G52: ='Berechnung Sparten'!D367 -> 100 | H52: ='Berechnung Sparten'!E367 -> 375000 | K52: ='Berechnung Sparten'!U367 -> 0 | M52: ='Übersicht und Druck'!$E$26 -> 0 | N52: 0 | O52: FALSE | P52: =IF(OR(I52="ja",O52=TRUE),1,0) -> 0
B53: ='Berechnung Sparten'!B368 -> Diebstahl oder Raub in Verwahrung genommener Fahrzeuge H1024 | G53: ='Berechnung Sparten'!D368 -> 100 | H53: ='Berechnung Sparten'!E368 -> 375000 | K53: ='Berechnung Sparten'!U368 -> 0 | M53: ='Übersicht und Druck'!$E$26 -> 0 | N53: 0 | O53: FALSE | P53: 0
B54: ='Berechnung Sparten'!B369 -> Verlust oder Abhandenkommen eingebrachter Sachen der Beherbergungsgäste (ausgenommen Kraft- u. Wasserfahrzeuge) H4735 | G54: ='Berechnung Sparten'!D369 -> kein SB | H54: ='Berechnung Sparten'!E369 -> lt. Klausel | I54: prämienfreie Zusatz-Deckungen, möglich für Gastro-Betriebe | K54: ='Berechnung Sparten'!U369 -> 0 | M54: ='Übersicht und Druck'!$E$26 -> 0 | N54: 0 | O54: FALSE | P54: 0
B55: ='Berechnung Sparten'!B370 -> Beschädigung, Vernichtung, Verlust oder Abhandenkommen von Kraftfahrzeugen, Anhängern u. Wasserfahrzeugen der Beherbergungsgäste H1036 | G55: ='Berechnung Sparten'!D370 -> 100 | H55: ='Berechnung Sparten'!E370 -> 1500000 | K55: ='Berechnung Sparten'!U370 -> 0 | M55: ='Übersicht und Druck'!$E$26 -> 0 | N55: 0 | O55: FALSE | P55: 0
B56: ='Berechnung Sparten'!B371 -> Bewachte Garderoben H3763 | G56: ='Berechnung Sparten'!D371 -> kein SB | H56: ='Berechnung Sparten'!E371 -> lt. Klausel | K56: ='Berechnung Sparten'!U371 -> 0 | M56: ='Übersicht und Druck'!$E$26 -> 0 | N56: =$P$13 -> 0 | O56: FALSE | P56: 0
B57: ='Berechnung Sparten'!B372 -> Schäden an Kundenfahrzeugen - Servicestationen u. Garagen H1020 | G57: ='Berechnung Sparten'!D372 -> 100 | H57: ='Berechnung Sparten'!E372 -> 375000 | K57: ='Berechnung Sparten'!U372 -> 0 | M57: ='Übersicht und Druck'!$E$26 -> 0 | N57: 0 | O57: FALSE | P57: 0
B58: ='Berechnung Sparten'!B373 -> Schäden an Kundenfahrzeugen - Reifenhandel H1021 | G58: ='Berechnung Sparten'!D373 -> 100 | H58: ='Berechnung Sparten'!E373 -> 375000 | K58: ='Berechnung Sparten'!U373 -> 0 | M58: ='Übersicht und Druck'!$E$26 -> 0 | N58: 0 | O58: FALSE | P58: 0
B59: ='Berechnung Sparten'!B374 -> Schäden an Kundenfahrzeugen - Tankstellen ohne Servicetätigkeiten H1022 | G59: ='Berechnung Sparten'!D374 -> 100 | H59: ='Berechnung Sparten'!E374 -> 375000 | K59: ='Berechnung Sparten'!U374 -> 0 | M59: ='Übersicht und Druck'!$E$26 -> 0 | N59: 0 | O59: FALSE | P59: 0
B60: ='Berechnung Sparten'!B375 -> Schadenersatzverpflichtung wegen Schäden an Kfz bei Überprüfung nach § 57a KFG H1065 | G60: ='Berechnung Sparten'!D375 -> 300 | H60: ='Berechnung Sparten'!E375 -> 375000 | K60: ='Berechnung Sparten'!U375 -> 0 | M60: ='Übersicht und Druck'!$E$26 -> 0 | N60: 0 | O60: FALSE | P60: 0
B61: ='Berechnung Sparten'!B376 -> Tätigkeit an beweglichen Sachen H1030 | G61: ='Berechnung Sparten'!D376 -> 300 | H61: ='Berechnung Sparten'!E376 -> 375000 | K61: ='Berechnung Sparten'!U376 -> 0 | M61: ='Übersicht und Druck'!$E$26 -> 0 | N61: 0 | O61: FALSE | P61: 0
B62: ='Berechnung Sparten'!B377 -> Verlust, Abhandenkommen und Diebstahl von - zur Durchführung von Reinigungsarbeiten - in Verwahrung genommener Schlüssel. | G62: ='Berechnung Sparten'!D377 -> kein SB | H62: ='Berechnung Sparten'!E377 -> wählbar | I62: freie VS | K62: ='Berechnung Sparten'!U377 -> 0 | M62: ='Übersicht und Druck'!$E$26 -> 0 | N62: 0 | P62: =J62 -> 0
B63: ='Berechnung Sparten'!B378 -> Berge- und Abschleppschäden an fremden Kraftfahrzeugen H1052 | G63: ='Berechnung Sparten'!D378 -> 300 | H63: ='Berechnung Sparten'!E378 -> 375000 | K63: ='Berechnung Sparten'!U378 -> 0 | M63: ='Übersicht und Druck'!$E$26 -> 0 | N63: 0 | O63: FALSE | P63: =IF(OR(I63="ja",O63=TRUE),1,0) -> 0
B64: ='Berechnung Sparten'!B379 -> Reit- bzw. Fahrlehrer H1693 | G64: ='Berechnung Sparten'!D379 -> kein SB | H64: ='Berechnung Sparten'!E379 -> 1500000 | I64: Anzahl | K64: ='Berechnung Sparten'!U379 -> 0 | M64: ='Übersicht und Druck'!$E$26 -> 0 | N64: 0 | O64: =IF(J64="",FALSE,TRUE) -> FALSE | P64: =J64 -> 0
B65: ='Berechnung Sparten'!B380 -> Gaststallung H1737 | G65: ='Berechnung Sparten'!D380 -> kein SB | H65: ='Berechnung Sparten'!E380 -> wählbar | I65: freie VS | K65: ='Berechnung Sparten'!U380 -> 0 | M65: ='Übersicht und Druck'!$E$26 -> 0 | N65: 0 | O65: TRUE | P65: =J65 -> 0
B66: ='Berechnung Sparten'!B381 -> eigene(s) Pferd(e) inkl. Kutschenfahrten H1695 | G66: ='Berechnung Sparten'!D381 -> kein SB | H66: ='Berechnung Sparten'!E381 -> 1500000 | I66: Anzahl | K66: ='Berechnung Sparten'!U381 -> 0 | M66: ='Übersicht und Druck'!$E$26 -> 0 | N66: 0 | O66: =IF(J66="",FALSE,TRUE) -> FALSE | P66: =J66 -> 0
B67: ='Berechnung Sparten'!B382 -> fremde(s) Pferd(e) inkl. Kutschenfahrten H1695 | G67: ='Berechnung Sparten'!D382 -> kein SB | H67: ='Berechnung Sparten'!E382 -> 1500000 | I67: Anzahl | K67: ='Berechnung Sparten'!U382 -> 0 | M67: ='Übersicht und Druck'!$E$26 -> 0 | N67: 0 | O67: =IF(J67="",FALSE,TRUE) -> FALSE | P67: =J67 -> 0
B68: ='Berechnung Sparten'!B383 -> Auslandsdeckung für die gesamte Erde (ausgenommen USA, Kanada u. Australien) H3701 | G68: ='Berechnung Sparten'!D383 -> kein SB | H68: ='Berechnung Sparten'!E383 -> 1500000 | J68: =U84 -> nein | K68: ='Berechnung Sparten'!U383 -> 0 | M68: ='Übersicht und Druck'!$E$26 -> 0 | N68: 0 | O68: TRUE | P68: =IF(OR(I68="ja",J68="ja"),1,0) -> 0
B69: ='Berechnung Sparten'!B384 -> Import aus allen Ländern der Erde H3750 | G69: ='Berechnung Sparten'!D384 -> kein SB | H69: ='Berechnung Sparten'!E384 -> 1500000 | J69: =U80 -> nein | K69: ='Berechnung Sparten'!U384 -> 0 | M69: ='Übersicht und Druck'!$E$26 -> 0 | N69: 0 | O69: TRUE | P69: =IF(OR(I69="ja",J69="ja"),1,0) -> 0
B70: ='Berechnung Sparten'!B385 -> Erweiterte Produktehaftpflicht (örtlicher Geltungsbereich EU) - Höherversicherung | G70: ='Berechnung Sparten'!D385 -> 300 | H70: ='Berechnung Sparten'!E385 -> wählbar | J70: keine Erhöhung | K70: ='Berechnung Sparten'!U385 -> 0 | M70: ='Übersicht und Druck'!$E$26 -> 0 | N70: 0 | P70: =IF(T101=T95,0,1) -> 0
B71: ='Berechnung Sparten'!B386 -> Erweiterte Produktehaftpflicht - Bewusster Export - Auslandsdeckung für gesamte Erde (ausgenommen USA, Kanada, Australien) | G71: ='Berechnung Sparten'!D386 -> 300 | H71: ='Berechnung Sparten'!E386 -> wählbar | K71: ='Berechnung Sparten'!U386 -> 0 | L71: =IF(AND(N71=0,O71=TRUE),"Nur möglich bei Höherversicherung (min. 200.000 VS)","") ->  | M71: ='Übersicht und Druck'!$E$26 -> 0 | N71: =IF(K70=0,0,1) -> 0 | O71: FALSE | P71: =IF(OR(I71="ja",O71=TRUE),1,0)*N71 -> 0
B72: ='Berechnung Sparten'!B387 -> Erweiterte Mietsachschäden H1192 | G72: ='Berechnung Sparten'!D387 -> 300 | H72: ='Berechnung Sparten'!E387 -> 100000 | K72: ='Berechnung Sparten'!U387 -> 0 | M72: ='Übersicht und Druck'!$E$26 -> 0 | N72: 0 | O72: FALSE | P72: =IF(OR(I72="ja",O72=TRUE),1,0) -> 0
I73: Spartenprämie | K73: ='Berechnung Sparten'!U390 -> 0 | M73: ='Übersicht und Druck'!$E$26 -> 0 | N73: 0
T79: Import | U79: Gewählt
T80: Keine Erweiterung | U80: =IF(I15=T81,"ja","nein") -> nein
Q81: Umweltstörung | T81: Alle Länder der Erde
Q82: Nicht versichert
Q83: 600000 | T83: Export | U83: Gewählt
Q84: 1000000 | T84: Keine Erweiterung | U84: =IF(I16=T85,"ja","nein") -> nein
Q85: Gewählt | T85: Gesamte Erde (ausg. USA, CAN, AUS)
Q86: =IF(J42="",Q82,J42) -> Nicht versichert
T87: Umsatzanteil | U87: Gewählt
T88: Bis 25 % des Umsatzes | U88: =IF(I17=T88,T88,T89) -> Bis 25 % des Umsatzes
T89: Über 25 % des Umsatzes
Q92: Achtung, Deckung ist Text und keine Formel in dieser Zeile!
Q94: Versicherungsumme | T94: Erw. PH | U94: Zuschlag
Q95: 1000000 | R95: -0.05 | T95: keine Erhöhung | U95: 0
Q96: 1500000 | R96: 0 | T96: 200000 | U96: 0
Q97: 2000000 | R97: 0.1 | T97: 300000 | U97: 0.5
Q98: 2500000 | R98: 0.18 | T98: 400000 | U98: 0.8
Q99: 3000000 | R99: 0.25 | T99: 500000 | U99: 1.1
Q100: 3500000 | R100: 0.3 | T100: Gewählt
Q101: 4000000 | R101: 0.34 | T101: =IF(OR(J70="",J70=T95),T95,J70) -> keine Erhöhung | U101: =IF(T101=T95,U95:Z95,VLOOKUP(T101,T95:U99,2,FALSE)) -> 0
Q102: 5000000 | R102: 0.4
Q103: 6000000 | R103: 0.46
Q104: 7000000 | R104: 0.51
Q105: 8000000 | R105: 0.56
Q106: 9000000 | R106: 0.61
Q107: 10000000 | R107: 0.65
Q108: 11000000 | R108: 0.69
Q109: 12000000 | R109: 0.73
Q110: 13000000 | R110: 0.77
Q111: 14000000 | R111: 0.81
Q112: 15000000 | R112: 0.85
Q113: Gewählt
Q114: =IF(D14="",Q96,D14) -> 1500000 | R114: =VLOOKUP(Q114,Q95:R112,2,FALSE) -> 0

Sheet RS
P1: Möglich | Q1: Spalte grau | R1: Makros | S1: für Berechnung
B3: Rechtsschutzversicherung gewünscht? | P3: 1 | Q3: 1 | R3: FALSE | S3: =IF(R3=TRUE,1,0)*P3 -> 0
B5: Firmen-Rechtsschutz | P5: ='Übersicht und Druck'!$E$28 -> 0 | Q5: 1
B6: Sparte gewählt | E6: Allgemeine Deckungsübersicht | I6: =IF(Z28=6,"Kfz-Betrieb - spezielle Deckungsübersicht","") ->  | P6: ='Übersicht und Druck'!$E$28 -> 0 | Q6: 1 | R6: FALSE | S6: =IF(R6=TRUE,1,0)*P6 -> 0
B7: Anzahl der Beschäftigten (max. 100) | F7: Erweiterung EU-Deckung | I7: Versicherungssumme | K7: ='Berechnung Sparten'!E456 -> 141000 | P7: ='Übersicht und Druck'!$E$28 -> 0 | Q7: =$S$6 -> 0 | R7: FALSE
B8: =W40 -> Der Privatbereich gilt für: | P8: ='Übersicht und Druck'!$E$28 -> 0 | Q8: =$S$6 -> 0
B9: Deckung | J9: Auswahl | K9: Prämie | P9: ='Übersicht und Druck'!$E$28 -> 0 | Q9: 0
B10: ='Berechnung Sparten'!B456 -> Grunddeckung für Betrieb, Dienstnehmer und Betriebsinhaber | J10: ja | K10: ='Berechnung Sparten'!U456 -> 0 | P10: ='Übersicht und Druck'!$E$28 -> 0 | Q10: 0
B11: ='Berechnung Sparten'!B457 -> LMG-Gegenprobenziehung gem. RV849 | G11: =IF(OR(Z28=2,Z28=3),"Für diese Branche prämienfrei inkludiert","") ->  | K11: ='Berechnung Sparten'!U457 -> 0 | P11: ='Übersicht und Druck'!$E$28 -> 0 | Q11: 0 | R11: FALSE | S11: =IF(OR(Z28=2,Z28=3),1,IF(R11=TRUE,1,0))*P11*K7*S6 -> 0 | AC11: =IF(AB35="ja","inklusive Kfz-Handel","exklusive Kfz-Handel") -> inklusive Kfz-Handel
B12: ='Berechnung Sparten'!B458 -> Allgemeiner Vertrags-Rechtsschutz | F12: Inkl. Kfz-Handel | H12: ja | I12: Streitwert | K12: ='Berechnung Sparten'!U458 -> 0 | L12: =IF(AND(S12=1,J12=""),"bitte Streitwert wählen",IF(J12<Y41,"Streitwert zu niedrig für diese Branche - auf 10.000 erhöht","")) ->  | P12: ='Übersicht und Druck'!$E$28 -> 0 | Q12: 0 | R12: FALSE | S12: =IF(R12=TRUE,1,0)*P12*S6 -> 0
B13: ='Berechnung Sparten'!B459 -> Streitigkeiten aus dem Bereich des Handelsvertreterrechts | G13: =IF(Z28=5,"Für diese Branche prämienfrei inkludiert","") ->  | K13: ='Berechnung Sparten'!U459 -> 0 | L13: =IF(AND(R13=TRUE,K12=0),"AVRS erforderlich","") ->  | P13: ='Übersicht und Druck'!$E$28 -> 0 | Q13: 0 | R13: FALSE | S13: =IF(Z28=5,1,IF(R13=TRUE,1,0))*P13*S12*K7 -> 0
B14: =IF(S12*S6=1,"Achtung: AVRS ist anfragepflichtig","") ->  | I14: Spartenprämie | K14: ='Berechnung Sparten'!U462 -> 0 | P14: ='Übersicht und Druck'!$E$28 -> 0 | Q14: 0
T16: Gewählt
B17: Fahrzeug-und Lenkerrechtsschutz | P17: ='Übersicht und Druck'!$E$30 -> 0 | Q17: 1
B18: Sparte gewählt | E18: =IF(AND(S6=1,S18=1,Z28=6),"Achtung: Fahrzeuge sind ev. schon in Grunddeckung für Kfz-Betriebe inkludiert!","") ->  | P18: ='Übersicht und Druck'!$E$30 -> 0 | Q18: 1 | R18: FALSE | S18: =IF(R18=TRUE,1,0)*P18 -> 0
C19: Variante | D19: Kfz-Flotten-Rechtsschutz | H19: =IF(D19="","Bitte Variante auswählen",IF(AND(V47=V45,SUM(G21:G23,G25:G34)<5),"erst ab 5 Kfz möglich","")) -> erst ab 5 Kfz möglich | P19: ='Übersicht und Druck'!$E$30 -> 0 | Q19: =$S$18 -> 0
B20: Art des Fahrzeugs | G20: Anzahl | H20: =W47 -> alle Kennzeichen | K20: Prämie | P20: ='Übersicht und Druck'!$E$30 -> 0 | Q20: 0
B21: ='RS Grunddeckung'!I168 -> Motor(fahr)räder, vierrädrige Leichtfahrzeuge | K21: ='Berechnung Sparten'!U468 -> 0 | P21: ='Übersicht und Druck'!$E$30 -> 0 | Q21: 0 | S21: =G21 -> 0
B22: ='RS Grunddeckung'!I169 -> Pkw/Kombi Normaltarif | K22: ='Berechnung Sparten'!U469 -> 0 | P22: ='Übersicht und Druck'!$E$30 -> 0 | Q22: 0 | S22: =G22 -> 0
B23: ='RS Grunddeckung'!I170 -> Pkw/Kombi mit gewerbsmäßiger Selbstfahrvermietung | K23: ='Berechnung Sparten'!U470 -> 0 | P23: ='Übersicht und Druck'!$E$30 -> 0 | Q23: 0 | S23: 0
B24: ='RS Grunddeckung'!I171 -> Pkw/Kombi: Taxi | G24: Anfrage an VT erforderlich | P24: ='Übersicht und Druck'!$E$30 -> 0 | Q24: 0 | S24: Anfrage an VT erforderlich
B25: ='RS Grunddeckung'!I172 -> Omnibusse | K25: ='Berechnung Sparten'!U472 -> 0 | P25: ='Übersicht und Druck'!$E$30 -> 0 | Q25: 0 | S25: 0
B26: ='RS Grunddeckung'!I173 -> Lkw bis 1,5 to Nutzlast | K26: ='Berechnung Sparten'!U473 -> 0 | P26: ='Übersicht und Druck'!$E$30 -> 0 | Q26: 0 | S26: 0
B27: ='RS Grunddeckung'!I174 -> Lkw über 1,5 to Nutzlast, Sattelzugfahrzeuge | K27: ='Berechnung Sparten'!U474 -> 0 | P27: ='Übersicht und Druck'!$E$30 -> 0 | Q27: 0 | S27: 0
B28: ='RS Grunddeckung'!I175 -> Zugmaschinen | K28: ='Berechnung Sparten'!U475 -> 0 | P28: ='Übersicht und Druck'!$E$30 -> 0 | Q28: 0 | S28: 0 | Y28: RS-Gruppe | Z28: ='Berechnung Grund'!R30 -> 0
B29: ='RS Grunddeckung'!I176 -> Anhänger für Pkw/Kombi (außer Wohnwagen) | K29: ='Berechnung Sparten'!U476 -> 0 | P29: ='Übersicht und Druck'!$E$30 -> 0 | Q29: 0 | S29: 0 | U29: Privatbereich | V29: Rechtsform | W29: =Kundendaten!O4 -> 0 | Z29: Wert
B30: ='RS Grunddeckung'!I177 -> Wohnwagenanhänger | K30: ='Berechnung Sparten'!U477 -> 0 | P30: ='Übersicht und Druck'!$E$30 -> 0 | Q30: 0 | S30: 0 | U30: Rechtsformen | V30: Namensnennung? | Y30: Streitwert | Z30: 5000
B31: ='RS Grunddeckung'!I178 -> Sonstige Anhänger (auch Sattelanhänger) | K31: ='Berechnung Sparten'!U478 -> 0 | P31: ='Übersicht und Druck'!$E$30 -> 0 | Q31: 0 | S31: 0 | U31: 0 | V31: ja | W31: Der Privatbereich gilt für: | Y31: =IF($Z$28>3,Z31,Z30) -> 5000 | Z31: 10000 | AB31: 3500 Nur bei Gruppe 1, 2, 3
B32: ='RS Grunddeckung'!I179 -> Motorkarren | K32: ='Berechnung Sparten'!U479 -> 0 | P32: ='Übersicht und Druck'!$E$30 -> 0 | Q32: 0 | S32: 0 | U32: Einzelunternehmen | V32: nein | W32: Der Privatbereich gilt für den Einzelnunternehmer. | Y32: 10000 | Z32: 15000
B33: ='RS Grunddeckung'!I180 -> Selbstfahrende Arbeitsmaschinen | K33: ='Berechnung Sparten'!U480 -> 0 | P33: ='Übersicht und Druck'!$E$30 -> 0 | Q33: 0 | S33: 0 | U33: OG | V33: ja | W33: Der Privatbereich gilt für folgenden Gesellschafter: | Y33: 15000 | Z33: 20000
B34: ='RS Grunddeckung'!I181 -> Probefahrkennzeichen | K34: ='Berechnung Sparten'!U481 -> 0 | P34: ='Übersicht und Druck'!$E$30 -> 0 | Q34: 0 | S34: 0 | U34: KG | V34: ja | W34: Der Privatbereich gilt für folgenden Geschäftsführer: | Y34: 20000 | Z34: 30000 | AB34: Kfz-Handel
B35: ='Berechnung Sparten'!B482 -> Lenker-Rechtsschutz (fremde Fahrzeuge) | I35: ja/nein | K35: ='Berechnung Sparten'!U482 -> 0 | P35: ='Übersicht und Druck'!$E$30 -> 0 | Q35: 0 | R35: FALSE | S35: =IF(R35=TRUE,1,0)*P35 -> 0 | U35: GmbH | V35: ja | W35: Der Privatbereich gilt für folgenden Geschäftsführer: | Y35: 30000 | Z35: 40000 | AB35: =IF(H12="","nein",H12) -> ja
I36: Spartenprämie | K36: ='Berechnung Sparten'!U485 -> 0 | P36: ='Übersicht und Druck'!$E$30 -> 0 | Q36: 0 | U36: GmbH und Co KG | V36: ja | W36: Der Privatbereich gilt für folgenden Geschäftsführer: | Y36: 40000 | Z36: 50000
U37: Verein | V37: ja | W37: Der Privatbereich gilt für: | Y37: 50000 | Z37: 75000 | AB37: Für Antrag
U38: Genossenschaft | V38: ja | W38: Der Privatbereich gilt für: | Y38: 75000 | Z38: 100000 | AB38: ="Allgemeiner Vertrags-Rechtsschutz "&IF(Z28=6,AC11,"") -> Allgemeiner Vertrags-Rechtsschutz
B39: Rechtsschutz für Grundstückseigentum und Miete | P39: ='Übersicht und Druck'!$E$29 -> 0 | Q39: 1 | U39: AG | V39: ja | W39: Der Privatbereich gilt für folgenden Vorstand: | Y39: =IF($Z$28>3,"",Z38) -> 100000
B40: Sparte gewählt | E40: Allgemeine Deckungsübersicht | P40: ='Übersicht und Druck'!$E$29 -> 0 | Q40: 1 | R40: FALSE | S40: =IF(R40=TRUE,1,0)*P40 -> 0 | U40: =W29 -> 0 | V40: =VLOOKUP(W29,U31:W39,2,FALSE) -> ja | W40: =VLOOKUP(W29,U31:W39,3,FALSE) -> Der Privatbereich gilt für: | Y40: Gewählt
B41: Art des Objekts | F41: Berechnungsgrundlage | H41: Adresse(n) | K41: Prämie | P41: ='Übersicht und Druck'!$E$29 -> 0 | Q41: =$S$40 -> 0 | U41: Für Antrag | V41: =IF(V40="ja",W40&" "&G8,W40) -> Der Privatbereich gilt für: | Y41: =IF(J12="",0,IF(AND(Z28>3,J12=Z30),Z31,J12))*S12 -> 0
B42: Selbstnutzung (Eigentümer, Mieter, Pächter, dinglich Nutzungsberechtigter) | P42: ='Übersicht und Druck'!$E$29 -> 0 | Q42: =$S$40 -> 0 | V42: Variante
B43: ='Berechnung Sparten'!B491 -> Wohneinheit | F43: ='Berechnung Sparten'!C491 -> Anzahl | K43: ='Berechnung Sparten'!U491 -> 0 | P43: ='Übersicht und Druck'!$E$29 -> 0 | Q43: 0 | S43: =G43*P43 -> 0 | V43: Einzelrisken mit geschäftlich befördertem Gut | W43: Kennzeichen, Marke, Type
B44: ='Berechnung Sparten'!B492 -> Einzelgarage oder Abstellplatz | F44: ='Berechnung Sparten'!C492 -> Anzahl | K44: ='Berechnung Sparten'!U492 -> 0 | P44: ='Übersicht und Druck'!$E$29 -> 0 | Q44: 0 | S44: =G44*P44 -> 0 | V44: Einzelrisken ohne geschäftlich befördertem Gut | W44: Kennzeichen, Marke, Type
B45: ='Berechnung Sparten'!B493 -> Unbebautes Grundstück | F45: ='Berechnung Sparten'!C493 -> Fläche m² | K45: ='Berechnung Sparten'!U493 -> 0 | P45: ='Übersicht und Druck'!$E$29 -> 0 | Q45: 0 | S45: 0 | V45: Kfz-Flotten-Rechtsschutz | W45: alle Kennzeichen
B46: ='Berechnung Sparten'!B494 -> Gewerbliche Einheit als Mieter | F46: ='Berechnung Sparten'!C494 -> Jahresbruttomiete | K46: ='Berechnung Sparten'!U494 -> 0 | P46: ='Übersicht und Druck'!$E$29 -> 0 | Q46: 0 | S46: 0 | V46: Gewählt
B47: ='Berechnung Sparten'!B495 -> Gewerbliche Einheit als Eigentümer | F47: ='Berechnung Sparten'!C495 -> überdachte Fläche m² | K47: ='Berechnung Sparten'!U495 -> 0 | P47: ='Übersicht und Druck'!$E$29 -> 0 | Q47: 0 | S47: 0 | V47: =IF(D19="",V45,D19) -> Kfz-Flotten-Rechtsschutz | W47: =VLOOKUP(V47,V43:W45,2,FALSE) -> alle Kennzeichen
B48: Fremdnutzung (Vermieter, Verpächter) | P48: ='Übersicht und Druck'!$E$29 -> 0 | Q48: 0
B49: ='Berechnung Sparten'!B496 -> Wohneinheit | F49: ='Berechnung Sparten'!C496 -> Anzahl | K49: ='Berechnung Sparten'!U496 -> 0 | P49: ='Übersicht und Druck'!$E$29 -> 0 | Q49: 0 | S49: 0
B50: ='Berechnung Sparten'!B497 -> Einzelgarage oder Abstellplatz | F50: ='Berechnung Sparten'!C497 -> Anzahl | K50: ='Berechnung Sparten'!U497 -> 0 | P50: ='Übersicht und Druck'!$E$29 -> 0 | Q50: 0 | S50: 0
B51: ='Berechnung Sparten'!B498 -> Unbebautes Grundstück (nicht landw. Genutzt) | F51: ='Berechnung Sparten'!C498 -> Fläche m² | K51: ='Berechnung Sparten'!U498 -> 0 | P51: ='Übersicht und Druck'!$E$29 -> 0 | Q51: 0 | S51: 0
B52: ='Berechnung Sparten'!B499 -> Gewerbliche Einheit als Vermieter | F52: ='Berechnung Sparten'!C499 -> Jahresbruttomiete | K52: ='Berechnung Sparten'!U499 -> 0 | P52: ='Übersicht und Druck'!$E$29 -> 0 | Q52: 0 | S52: 0
I53: Spartenprämie | K53: ='Berechnung Sparten'!U502 -> 0 | P53: ='Übersicht und Druck'!$E$29 -> 0 | Q53: 0

Sheet Druck
A2: =IF(COUNTBLANK(('Berechnung Grund'!B22:B26))=5,"Achtung: Keine Branche gewählt, Berechnung nicht möglich!","") -> Achtung: Keine Branche gewählt, Berechnung nicht möglich!
A3: Kundendaten
A4: Name | B4: =Antrag!C15 -> 0 | F4: Rechtsform | G4: =Antrag!L15 -> 0
A5: Straße | B5: =Antrag!C16 -> 0 | F5: PLZ, Ort | G5: =Antrag!L16 -> 
A6: Art des Betriebs | C6: =Antrag!I22 -> Betrieb
A7: Branchen | B7: =IF(Antrag!B25="","",Antrag!B25) -> 
B8: =IF(Antrag!B26="","",Antrag!B26) -> 
B9: =IF(Antrag!B27="","",Antrag!B27) -> 
B10: =IF(Antrag!B28="","",Antrag!B28) -> 
B11: =IF(Antrag!B29="","",Antrag!B29) -> 
A12: Vertragsdaten
A13: Beginn | B13: =Antrag!D19 -> 2026-03-23 | C13: Ablauf | D13: =Antrag!H19 -> 2036-03-23 | E13: =Antrag!J19 -> Prämie Jährlich per SEPA-Lastschrift | H13: =Antrag!O19 -> 
A14: Übersicht Sparten und Jahresprämien
A15: ='Übersicht und Druck'!B12 -> Feuer | D15: ='Übersicht und Druck'!H12 -> nicht gewählt | E15: ='Übersicht und Druck'!B24 -> Sturm | H15: ='Übersicht und Druck'!H24 -> nicht gewählt
A16: ='Übersicht und Druck'!B13 -> Feuer/Total-Betriebsunterbrechung | D16: ='Übersicht und Druck'!H13 ->  | E16: ='Übersicht und Druck'!B25 -> Katastrophenschutz | H16: ='Übersicht und Druck'!H25 -> nicht gewählt
A17: ='Übersicht und Druck'!B14 -> Mietentgang-BU | D17: ='Übersicht und Druck'!H14 -> nicht gewählt | E17: ='Übersicht und Druck'!B26 -> Haftpflicht | H17: ='Übersicht und Druck'!H26 -> nicht gewählt
A18: ='Übersicht und Druck'!B15 -> Mehrkosten-BU | D18: ='Übersicht und Druck'!H15 -> nicht gewählt | E18: ='Übersicht und Druck'!B27 -> Reine Haus- und Grundbesitz-Haftpflicht | H18: ='Übersicht und Druck'!H27 -> nicht möglich
A19: ='Übersicht und Druck'!B16 -> Feuer-EC | D19: ='Übersicht und Druck'!H16 -> nicht gewählt | E19: ='Übersicht und Druck'!B28 -> Firmenrechtsschutz | H19: ='Übersicht und Druck'!H28 -> nicht gewählt
A20: ='Übersicht und Druck'!B17 -> EC-Betriebsunterbrechung | D20: ='Übersicht und Druck'!H17 -> nicht gewählt | E20: ='Übersicht und Druck'!B29 -> Grundstückseigentums- und Mietrechtsschutz | H20: ='Übersicht und Druck'!H29 -> nicht gewählt
A21: ='Übersicht und Druck'!B18 -> EC-Mietentgang-BU | D21: ='Übersicht und Druck'!H18 -> nicht gewählt | E21: ='Übersicht und Druck'!B30 -> Fahrzeug- und Lenkerrechtsschutz | H21: ='Übersicht und Druck'!H30 -> nicht gewählt
A22: ='Übersicht und Druck'!B19 -> EC-Mehrkosten-BU | D22: ='Übersicht und Druck'!H19 -> nicht gewählt | E22: ='Übersicht und Druck'!B31 -> Technik Pauschal | H22: ='Übersicht und Druck'!H31 -> nicht möglich
A23: ='Übersicht und Druck'!B20 -> Einbruchdiebstahl | D23: ='Übersicht und Druck'!H20 -> nicht möglich | E23: ='Übersicht und Druck'!B32 -> Technik Indirekter Blitz | H23: ='Übersicht und Druck'!H32 -> nicht möglich
A24: ='Übersicht und Druck'!B21 -> Botenberaubung | D24: ='Übersicht und Druck'!H21 -> nicht möglich | E24: ='Übersicht und Druck'!B33 -> EDV | H24: ='Übersicht und Druck'!H33 -> nicht möglich
A25: ='Übersicht und Druck'!B22 -> Leitungswasser | D25: ='Übersicht und Druck'!H22 -> nicht gewählt | E25: ='Übersicht und Druck'!B34 -> Kühlgut | H25: ='Übersicht und Druck'!H34 -> nicht gewählt
A26: ='Übersicht und Druck'!B23 -> Glas | D26: ='Übersicht und Druck'!H23 -> nicht möglich | E26: ='Übersicht und Druck'!B35 -> Transport | H26: ='Übersicht und Druck'!H35 -> nicht möglich
A27: ='Übersicht und Druck'!B36 -> Gewerbe-Soforthilfe | D27: ='Übersicht und Druck'!H36 -> nicht gewählt
A28: Gesamtjahresprämie | E28: ='Übersicht und Druck'!R3 -> 
A30: =IF(Kundendaten!G44>0,"Achtung: Sonderrabatt muss von Maklerbetreuung genehmigt werden!","") -> Achtung: Sonderrabatt muss von Maklerbetreuung genehmigt werden!
A31: =Antrag!B11 -> 
D32: Produktinformationsblätter mitdrucken

Sheet Übersicht und Druck (hidden)
B2: Betriebsart | H2: Ganze Sparte gewählt? | J2: Sach | K2: =Sach!P2 -> 0 | M2: KTE-Multiplikator | N2: =IF('Berechnung Sparten'!T9=0,0,1) -> 0
B3: =Kundendaten!E12 -> Betrieb | C3: =Kundendaten!E13 -> 1 | J3: Hpfl | K3: =Hpfl!P3 -> 0 | P3: Gesamt | R3: =SUM(G12:G36) -> 
B4: Vermieter | C4: =IF(C3=1,0,1) -> 0 | J4: RS | K4: =RS!S3 -> 0 | P4: ZW | R4: =Kundendaten!E30 -> 1
P5: Prämie ZW | R5: =R3/R4 -> 
C6: Betrieb | D6: Vermieter | E6: Ausgrauen | F6: Sparte möglich? | G6: Prämie | H6: Bezeichnung | I6: Zeile Beginn | J6: Zeile Ende | K6: Anzeigen
B7: Kundendaten | I7: 1 | J7: =I8-1 -> 48 | K7: 1
B8: Datenschutz | I8: =ROW(Antrag!B49) -> 49 | J8: 156 | K8: 1
B9: SEPA-Mandat | I9: =ROW(Antrag!B157) -> 157 | J9: 210 | K9: =IF(Kundendaten!H26=Kundendaten!H23,1,0) -> 1
B10: El. Zustellung | I10: =ROW(Antrag!B211) -> 211 | J10: 236 | K10: =IF(Kundendaten!C49=TRUE,1,0) -> 0
B11: Riskooorte | I11: =ROW(Antrag!B237) -> 237 | J11: 291 | K11: =K2 -> 0
A12: Berechnung | B12: Feuer | C12: 1 | D12: 1 | E12: =F12*$K$2 -> 0 | F12: =IF($C$3=1,C12,D12) -> 1 | G12: ='Berechnung Sparten'!U66 -> 0 | H12: =IF(F12=0,"nicht möglich",IF(G12=0,"nicht gewählt",G12)) -> nicht gewählt | I12: =ROW(Antrag!B292) -> 292 | J12: 333 | K12: =IF(G12>0,1,0) -> 0
B13: Feuer/Total-Betriebsunterbrechung | C13: 1 | D13: 0 | E13: =F13*$K$2 -> 0 | F13: =IF($C$3=1,C13,D13) -> 1 | G13: ='Berechnung Sparten'!U78 ->  | H13: =IF(F13=0,"nicht möglich",IF(G13=0,"nicht gewählt",G13)) ->  | I13: =ROW(Antrag!B334) -> 334 | J13: =I14-1 -> 342 | K13: =IF(G13>0,1,0) -> 
B14: Mietentgang-BU | C14: 1 | D14: 1 | E14: 0 | F14: 1 | G14: ='Berechnung Sparten'!U87 -> 0 | H14: nicht gewählt | I14: =ROW(Antrag!B343) -> 343 | J14: 348 | K14: 0
B15: Mehrkosten-BU | C15: 1 | D15: 0 | E15: 0 | F15: 1 | G15: ='Berechnung Sparten'!U98 -> 0 | H15: nicht gewählt | I15: =ROW(Antrag!B349) -> 349 | J15: 354 | K15: 0
B16: Feuer-EC | C16: 1 | D16: 1 | E16: 0 | F16: 1 | G16: ='Berechnung Sparten'!U118 -> 0 | H16: nicht gewählt | I16: =ROW(Antrag!B355) -> 355 | J16: 377 | K16: 0
B17: EC-Betriebsunterbrechung | C17: 1 | D17: 0 | E17: 0 | F17: 1 | G17: ='Berechnung Sparten'!U129 -> 0 | H17: nicht gewählt | I17: =ROW(Antrag!B378) -> 378 | J17: =I20-1 -> 400 | K17: =IF(SUM($G$17:$G$19)>0,1,0) -> 0
B18: EC-Mietentgang-BU | C18: 1 | D18: 1 | E18: 0 | F18: 1 | G18: ='Berechnung Sparten'!U138 -> 0 | H18: nicht gewählt | I18: =I17 -> 378 | J18: =I20-1 -> 400 | K18: =IF(SUM($G$17:$G$19)>0,1,0) -> 0
B19: EC-Mehrkosten-BU | C19: 1 | D19: 0 | E19: 0 | F19: 1 | G19: ='Berechnung Sparten'!U147 -> 0 | H19: nicht gewählt | I19: =I18 -> 378 | J19: =I20-1 -> 400 | K19: =IF(SUM($G$17:$G$19)>0,1,0) -> 0
B20: Einbruchdiebstahl | C20: =$N$2 -> 0 | D20: 0 | E20: 0 | F20: 0 | G20: ='Berechnung Sparten'!U196 -> 0 | H20: nicht möglich | I20: =ROW(Antrag!B401) -> 401 | J20: 438 | K20: 0
B21: Botenberaubung | C21: =$N$2 -> 0 | D21: 0 | E21: 0 | F21: 0 | G21: ='Berechnung Sparten'!U205 -> 0 | H21: nicht möglich | I21: =ROW(Antrag!B439) -> 439 | J21: 444 | K21: 0 | M21: =VLOOKUP(534,'Übersicht und Druck'!$I$7:$K$53,3,TRUE) -> 0
B22: Leitungswasser | C22: 1 | D22: 1 | E22: 0 | F22: 1 | G22: ='Berechnung Sparten'!U245 -> 0 | H22: nicht gewählt | I22: =ROW(Antrag!B445) -> 445 | J22: 484 | K22: 0
B23: Glas | C23: =$N$2 -> 0 | D23: 1 | E23: 0 | F23: 0 | G23: ='Berechnung Sparten'!U271 -> 0 | H23: nicht möglich | I23: =ROW(Antrag!B485) -> 485 | J23: 508 | K23: 0
B24: Sturm | C24: 1 | D24: 1 | E24: 0 | F24: 1 | G24: ='Berechnung Sparten'!U316 -> 0 | H24: nicht gewählt | I24: =ROW(Antrag!B509) -> 509 | J24: 552 | K24: 0
B25: Katastrophenschutz | C25: 1 | D25: 1 | E25: 0 | F25: 1 | G25: ='Berechnung Sparten'!U326 -> 0 | H25: nicht gewählt | I25: =ROW(Antrag!B553) -> 553 | J25: 558 | K25: 0
B26: Haftpflicht | C26: 1 | D26: 0 | E26: =F26*$K$3 -> 0 | F26: 1 | G26: ='Berechnung Sparten'!U390 -> 0 | H26: nicht gewählt | I26: =ROW(Antrag!B559) -> 559 | J26: 619 | K26: 0
B27: Reine Haus- und Grundbesitz-Haftpflicht | C27: 0 | D27: 1 | E27: =F27*$K$3 -> 0 | F27: 0 | G27: ='Berechnung Sparten'!U400 -> 0 | H27: nicht möglich | I27: =ROW(Antrag!B620) -> 620 | J27: =I28-1 -> 626 | K27: 0
B28: Firmenrechtsschutz | C28: 1 | D28: 0 | E28: =F28*$K$4 -> 0 | F28: 1 | G28: ='Berechnung Sparten'!U462 -> 0 | H28: nicht gewählt | I28: =ROW(Antrag!A627) -> 627 | J28: =I29-1 -> 670 | K28: 0
B29: Grundstückseigentums- und Mietrechtsschutz | C29: 1 | D29: 1 | E29: =F29*$K$4 -> 0 | F29: 1 | G29: ='Berechnung Sparten'!U502 -> 0 | H29: nicht gewählt | I29: =ROW(Antrag!A671) -> 671 | J29: =I30-1 -> 687 | K29: 0
B30: Fahrzeug- und Lenkerrechtsschutz | C30: 1 | D30: 1 | E30: =F30*$K$4 -> 0 | F30: 1 | G30: ='Berechnung Sparten'!U485 -> 0 | H30: nicht gewählt | I30: =ROW(Antrag!A688) -> 688 | J30: =I31-1 -> 708 | K30: 0
B31: Technik Pauschal | C31: =$N$2 -> 0 | D31: 0 | E31: 0 | F31: =IF(C3=1,C31,D31)*IF('Berechnung Sparten'!Q5=0,0,1) -> 0 | G31: ='Berechnung Sparten'!U409 -> 0 | H31: nicht möglich | I31: =ROW(Antrag!B709) -> 709 | J31: 717 | K31: 0
B32: Technik Indirekter Blitz | C32: =$N$2 -> 0 | D32: 0 | E32: 0 | F32: 0 | G32: ='Berechnung Sparten'!U418 -> 0 | H32: nicht möglich | I32: =ROW(Antrag!B718) -> 718 | J32: 724 | K32: 0
B33: EDV | C33: =$N$2 -> 0 | D33: 0 | E33: 0 | F33: 0 | G33: ='Berechnung Sparten'!U434 -> 0 | H33: nicht möglich | I33: =ROW(Antrag!B725) -> 725 | J33: 737 | K33: 0
B34: Kühlgut | C34: 1 | D34: 0 | E34: 0 | F34: 1 | G34: ='Berechnung Sparten'!U443 -> 0 | H34: nicht gewählt | I34: =ROW(Antrag!B738) -> 738 | J34: 743 | K34: 0
B35: Transport | C35: =$N$2 -> 0 | D35: 0 | E35: 0 | F35: 0 | G35: ='Berechnung Sparten'!U452 -> 0 | H35: nicht möglich | I35: =ROW(Antrag!B744) -> 744 | J35: =I36-1 -> 749 | K35: 0
B36: Gewerbe-Soforthilfe | C36: 1 | D36: 1 | E36: 0 | F36: 1 | G36: ='Berechnung Sparten'!U509 -> 0 | H36: nicht gewählt | I36: =ROW(Antrag!A750) -> 750 | J36: =I37-1 -> 755 | K36: 0
A37: Beipackzettel | B37: Feuer | I37: =ROW(Antrag!A756) -> 756 | J37: 814 | K37: =K12*$A$39 -> 0
A38: An/aus | B38: F-BU | C38: alle BU | I38: =ROW(Antrag!A815) -> 815 | J38: 873 | K38: =SUM(K13:K15)*$A$39 -> 
A39: =IF(A40=TRUE,1,0) -> 1 | B39: EC | I39: =ROW(Antrag!A874) -> 874 | J39: 991 | K39: =K16*$A$39 -> 0
A40: TRUE | B40: EC-BU | C40: alle EC-BU | I40: =ROW(Antrag!A992) -> 992 | J40: 1109 | K40: =SUM(K17:K19)*$A$39 -> 0
B41: ED | I41: =ROW(Antrag!A1110) -> 1110 | J41: 1168 | K41: =K20*$A$39 -> 0
B42: Botenberaubung | I42: =ROW(Antrag!A1169) -> 1169 | J42: 1227 | K42: =K21*$A$39 -> 0
B43: LW | I43: =ROW(Antrag!A1228) -> 1228 | J43: 1286 | K43: =K22*$A$39 -> 0
B44: Glas | I44: =ROW(Antrag!A1287) -> 1287 | J44: 1345 | K44: =K23*$A$39 -> 0
B45: Sturm | I45: =ROW(Antrag!A1346) -> 1346 | J45: 1404 | K45: =K24*$A$39 -> 0
B46: Hpfl | C46: Beide Hpfl | I46: =ROW(Antrag!A1405) -> 1405 | J46: 1463 | K46: =SUM(K26:K27)*$A$39 -> 0
B47: RS | C47: alle RS | I47: =ROW(Antrag!A1464) -> 1464 | J47: 1581 | K47: =SUM(K28:K30)*$A$39 -> 0
B48: Maschinenbruch | C48: Technik Pauschal | I48: =ROW(Antrag!A1582) -> 1582 | J48: 1640 | K48: =K31*$A$39 -> 0
B49: Elektro | C49: Technik Pauschal, EDV | I49: =ROW(Antrag!A1641) -> 1641 | J49: 1699 | K49: =SUM(K31,K33)*$A$39 -> 0
B50: Kühlgut | I50: =ROW(Antrag!A1700) -> 1700 | J50: 1758 | K50: =K34*$A$39 -> 0
B51: Transport | I51: =ROW(Antrag!A1759) -> 1759 | J51: 1817 | K51: =K35*$A$39 -> 0
B52: Gewerbe-Soforthilfe | I52: =ROW(Antrag!$A$1818) -> 1818 | J52: 1870 | K52: =K36*$A$39 -> 0
H53: Ende | I53: =ROW(Antrag!$A$1871) -> 1871 | J53: =I53 -> 1871 | K53: 0

Sheet Antrag
A1: =VLOOKUP(ROW(),'Übersicht und Druck'!$I$7:$K$53,3,TRUE) -> 1 | B1: ="Kurzoffert/Antrag für "&Kundendaten!$O$4&" "&Kundendaten!$O$3 -> Kurzoffert/Antrag für | P1: =TODAY() -> 2026-03-23
A2: =VLOOKUP(ROW(),'Übersicht und Druck'!$I$7:$K$53,3,TRUE) -> 1 | B2: Kurzoffert/Antrag
A3: =VLOOKUP(ROW(),'Übersicht und Druck'!$I$7:$K$53,3,TRUE) -> 1 | B3: Gewerbe Plus
A4: =VLOOKUP(ROW(),'Übersicht und Druck'!$I$7:$K$53,3,TRUE) -> 1 | B4: Aktion: Gewerbeoffensive 25
A5: =VLOOKUP(ROW(),'Übersicht und Druck'!$I$7:$K$53,3,TRUE) -> 1 | P5: Offertersteller:
A6: =VLOOKUP(ROW(),'Übersicht und Druck'!$I$7:$K$53,3,TRUE) -> 1 | B6: =IF(Kundendaten!H46="nein","","Konvertierung zu "&Kundendaten!O32) ->  | P6: =Grunddaten!C5 -> 0
A7: =VLOOKUP(ROW(),'Übersicht und Druck'!$I$7:$K$53,3,TRUE) -> 1 | B7: =IF(OR(Kundendaten!O33="",Kundendaten!O33="nein"),"",VLOOKUP(Kundendaten!O33,Kundendaten!B34:C36,2,FALSE)) ->  | P7: ="Werber-Nr.: "&Grunddaten!C11 -> Werber-Nr.:
A8: =VLOOKUP(ROW(),'Übersicht und Druck'!$I$7:$K$53,3,TRUE) -> 1 | P8: =Grunddaten!C6&", "&Grunddaten!C7 -> ,
A9: =VLOOKUP(ROW(),'Übersicht und Druck'!$I$7:$K$53,3,TRUE) -> 1 | P9: ="Tel.: "&Grunddaten!C8 -> Tel.:
A10: =VLOOKUP(ROW(),'Übersicht und Druck'!$I$7:$K$53,3,TRUE) -> 1 | B10: =Druck!A30 -> Achtung: Sonderrabatt muss von Maklerbetreuung genehmigt werden! | P10: ="Mail: "&Grunddaten!C9 -> Mail:
A11: =VLOOKUP(ROW(),'Übersicht und Druck'!$I$7:$K$53,3,TRUE) -> 1 | B11: =IF(RS!S12*RS!S6*RS!S3=1,"Achtung: der allgemeine Vertragsrechtsschutz ist anfragepflichtig!","") ->  | P11: =Grunddaten!C10 -> 0
A12: =VLOOKUP(ROW(),'Übersicht und Druck'!$I$7:$K$53,3,TRUE) -> 1 | B12: Wir danken für Ihre Anfrage und erlauben uns, diesbezüglich ein darauf basiertes, unverbindliches Offert zu unterbreiten. Der Deckungsumfang richtet sich nach den der jeweiligen Versicherungssparte zugrundeliegenden Allgemeinen und Besonderen Bedingungen. Die genannte Gesamtprämie ist auf Basis einer 10-jährigen Vertragslaufzeit berechnet und beinhaltet bereits sämtliche Nachlässe sowie die derzeit gültigen Steuern. Die Hauptversammlung beschließt alljährlich in den Sparten Feuer (Zivil und Landwirtschaft), Allgemeine Unfall, Glasbruch und in Bündelpolizzen integrierter Haushalt Versicherung nach einem günstigen Schadenverlauf pro Sparte für das Folgejahr einen Gewinnanteil - den NV Vorteil - der in der Erstprämie bereits berücksichtigt ist. Dieser Anteil beträgt in der Sparte Feuer 5%, in den anderen genannten Sparten 10%. Auf diesen NV Vorteil besteht kein Rechtsanspruch. Der in der Polizze ausgewiesene NV Vorteil kann in der Folgeprämienvorschreibung nur dann gewährt werden, wenn die Hauptversammlung dies bei gutem Schadenverlauf auch in den Folgejahren neuerlich beschließt.
A13: =VLOOKUP(ROW(),'Übersicht und Druck'!$I$7:$K$53,3,TRUE) -> 1
A14: =VLOOKUP(ROW(),'Übersicht und Druck'!$I$7:$K$53,3,TRUE) -> 1 | B14: Kunden und Vertragsaten
A15: =VLOOKUP(ROW(),'Übersicht und Druck'!$I$7:$K$53,3,TRUE) -> 1 | B15: Firma | C15: =Kundendaten!O3 -> 0 | J15: Rechtsform | L15: =Kundendaten!O4 -> 0
A16: =VLOOKUP(ROW(),'Übersicht und Druck'!$I$7:$K$53,3,TRUE) -> 1 | B16: Straße | C16: =Kundendaten!O8 -> 0 | J16: PLZ, Ort | L16: =Kundendaten!O9&" "&IF(Kundendaten!O11="",Kundendaten!O10,Kundendaten!O11) -> 
A17: =VLOOKUP(ROW(),'Übersicht und Druck'!$I$7:$K$53,3,TRUE) -> 1 | B17: FN | C17: =Kundendaten!O5 -> 0 | E17: Geschlecht | G17: =IF(Kundendaten!O4=Kundendaten!G5,Kundendaten!O6,"") ->  | J17: Geburtsdatum | L17: =IF(Kundendaten!O4=Kundendaten!G5,Kundendaten!O7,"") -> 
A18: =VLOOKUP(ROW(),'Übersicht und Druck'!$I$7:$K$53,3,TRUE) -> 1 | B18: Wurde zu den beantragten Sparten bereits eine Versicherung gekündigt/einvernehmlich aufgelöst? | O18: =Kundendaten!H45 -> ja
A19: =VLOOKUP(ROW(),'Übersicht und Druck'!$I$7:$K$53,3,TRUE) -> 1 | B19: Beginn | D19: =Kundendaten!I36 -> 2026-03-23 | F19: Ablauf | H19: =Kundendaten!O21 -> 2036-03-23 | J19: ="Prämie "&Kundendaten!O43&" per "&Kundendaten!O22 -> Prämie Jährlich per SEPA-Lastschrift | O19: ='Übersicht und Druck'!R5 -> 
A20: =VLOOKUP(ROW(),'Übersicht und Druck'!$I$7:$K$53,3,TRUE) -> 1 | B20: Elektronische Kommunikation: | G20: =IF(Kundendaten!C49=TRUE,"ja: "&Kundendaten!O37,"nein") -> nein
A21: =VLOOKUP(ROW(),'Übersicht und Druck'!$I$7:$K$53,3,TRUE) -> 1
A22: =VLOOKUP(ROW(),'Übersicht und Druck'!$I$7:$K$53,3,TRUE) -> 1 | B22: Art des versicherten Risikos | I22: =Kundendaten!E12 -> Betrieb
A23: =VLOOKUP(ROW(),'Übersicht und Druck'!$I$7:$K$53,3,TRUE) -> 1
A24: =VLOOKUP(ROW(),'Übersicht und Druck'!$I$7:$K$53,3,TRUE) -> 1 | B24: Versicherte Branchen
A25: =VLOOKUP(ROW(),'Übersicht und Druck'!$I$7:$K$53,3,TRUE) -> 1 | B25: =Branche!D5 -> 
A26: =VLOOKUP(ROW(),'Übersicht und Druck'!$I$7:$K$53,3,TRUE) -> 1 | B26: =Branche!D6 -> 
A27: =VLOOKUP(ROW(),'Übersicht und Druck'!$I$7:$K$53,3,TRUE) -> 1 | B27: =Branche!D7 -> 
A28: =VLOOKUP(ROW(),'Übersicht und Druck'!$I$7:$K$53,3,TRUE) -> 1 | B28: =Branche!D8 -> 
A29: =VLOOKUP(ROW(),'Übersicht und Druck'!$I$7:$K$53,3,TRUE) -> 1 | B29: =Branche!D9 -> 
A30: =VLOOKUP(ROW(),'Übersicht und Druck'!$I$7:$K$53,3,TRUE) -> 1
A31: =VLOOKUP(ROW(),'Übersicht und Druck'!$I$7:$K$53,3,TRUE) -> 1 | B31: Spartenübersicht inkl. Jahresprämien
A32: =VLOOKUP(ROW(),'Übersicht und Druck'!$I$7:$K$53,3,TRUE) -> 1 | B32: ='Übersicht und Druck'!B12 -> Feuer | G32: ='Übersicht und Druck'!H12 -> nicht gewählt | I32: ='Übersicht und Druck'!B24 -> Sturm | O32: ='Übersicht und Druck'!H24 -> nicht gewählt
A33: =VLOOKUP(ROW(),'Übersicht und Druck'!$I$7:$K$53,3,TRUE) -> 1 | B33: ='Übersicht und Druck'!B13 -> Feuer/Total-Betriebsunterbrechung | G33: ='Übersicht und Druck'!H13 ->  | I33: ='Übersicht und Druck'!B25 -> Katastrophenschutz | O33: ='Übersicht und Druck'!H25 -> nicht gewählt
A34: =VLOOKUP(ROW(),'Übersicht und Druck'!$I$7:$K$53,3,TRUE) -> 1 | B34: ='Übersicht und Druck'!B14 -> Mietentgang-BU | G34: ='Übersicht und Druck'!H14 -> nicht gewählt | I34: ='Übersicht und Druck'!B26 -> Haftpflicht | O34: ='Übersicht und Druck'!H26 -> nicht gewählt
A35: =VLOOKUP(ROW(),'Übersicht und Druck'!$I$7:$K$53,3,TRUE) -> 1 | B35: ='Übersicht und Druck'!B15 -> Mehrkosten-BU | G35: ='Übersicht und Druck'!H15 -> nicht gewählt | I35: ='Übersicht und Druck'!B27 -> Reine Haus- und Grundbesitz-Haftpflicht | O35: ='Übersicht und Druck'!H27 -> nicht möglich
A36: =VLOOKUP(ROW(),'Übersicht und Druck'!$I$7:$K$53,3,TRUE) -> 1 | B36: ='Übersicht und Druck'!B16 -> Feuer-EC | G36: ='Übersicht und Druck'!H16 -> nicht gewählt | I36: ='Übersicht und Druck'!B28 -> Firmenrechtsschutz | O36: ='Übersicht und Druck'!H28 -> nicht gewählt
A37: =VLOOKUP(ROW(),'Übersicht und Druck'!$I$7:$K$53,3,TRUE) -> 1 | B37: ='Übersicht und Druck'!B17 -> EC-Betriebsunterbrechung | G37: ='Übersicht und Druck'!H17 -> nicht gewählt | I37: ='Übersicht und Druck'!B29 -> Grundstückseigentums- und Mietrechtsschutz | O37: ='Übersicht und Druck'!H29 -> nicht gewählt
A38: =VLOOKUP(ROW(),'Übersicht und Druck'!$I$7:$K$53,3,TRUE) -> 1 | B38: ='Übersicht und Druck'!B18 -> EC-Mietentgang-BU | G38: ='Übersicht und Druck'!H18 -> nicht gewählt | I38: ='Übersicht und Druck'!B30 -> Fahrzeug- und Lenkerrechtsschutz | O38: ='Übersicht und Druck'!H30 -> nicht gewählt
A39: =VLOOKUP(ROW(),'Übersicht und Druck'!$I$7:$K$53,3,TRUE) -> 1 | B39: ='Übersicht und Druck'!B19 -> EC-Mehrkosten-BU | G39: ='Übersicht und Druck'!H19 -> nicht gewählt | I39: ='Übersicht und Druck'!B31 -> Technik Pauschal | O39: ='Übersicht und Druck'!H31 -> nicht möglich
A40: =VLOOKUP(ROW(),'Übersicht und Druck'!$I$7:$K$53,3,TRUE) -> 1 | B40: ='Übersicht und Druck'!B20 -> Einbruchdiebstahl | G40: ='Übersicht und Druck'!H20 -> nicht möglich | I40: ='Übersicht und Druck'!B32 -> Technik Indirekter Blitz | O40: ='Übersicht und Druck'!H32 -> nicht möglich
A41: =VLOOKUP(ROW(),'Übersicht und Druck'!$I$7:$K$53,3,TRUE) -> 1 | B41: ='Übersicht und Druck'!B21 -> Botenberaubung | G41: ='Übersicht und Druck'!H21 -> nicht möglich | I41: ='Übersicht und Druck'!B33 -> EDV | O41: ='Übersicht und Druck'!H33 -> nicht möglich
A42: =VLOOKUP(ROW(),'Übersicht und Druck'!$I$7:$K$53,3,TRUE) -> 1 | B42: ='Übersicht und Druck'!B22 -> Leitungswasser | G42: ='Übersicht und Druck'!H22 -> nicht gewählt | I42: ='Übersicht und Druck'!B34 -> Kühlgut | O42: ='Übersicht und Druck'!H34 -> nicht gewählt
A43: =VLOOKUP(ROW(),'Übersicht und Druck'!$I$7:$K$53,3,TRUE) -> 1 | B43: ='Übersicht und Druck'!B23 -> Glas | G43: ='Übersicht und Druck'!H23 -> nicht möglich | I43: ='Übersicht und Druck'!B35 -> Transport | O43: ='Übersicht und Druck'!H35 -> nicht möglich
A44: 1 | B44: ='Übersicht und Druck'!B36 -> Gewerbe-Soforthilfe | G44: ='Übersicht und Druck'!H36 -> nicht gewählt
A45: =VLOOKUP(ROW(),'Übersicht und Druck'!$I$7:$K$53,3,TRUE) -> 1 | B45: =Druck!A28 -> Gesamtjahresprämie | I45: =Druck!E28 -> 
A46: =VLOOKUP(ROW(),'Übersicht und Druck'!$I$7:$K$53,3,TRUE) -> 1
A47: =VLOOKUP(ROW(),'Übersicht und Druck'!$I$7:$K$53,3,TRUE) -> 1
A48: =VLOOKUP(ROW(),'Übersicht und Druck'!$I$7:$K$53,3,TRUE) -> 1 | B48: ="NV-Rechner Gewerbe Plus, V"&Grunddaten!F3&"/"&Kundendaten!G44*100 -> NV-Rechner Gewerbe Plus, V2026-01/50 | L48: Gewerbeaktion 2021: | O48: =Branche!F5 -> 
A49: =VLOOKUP(ROW(),'Übersicht und Druck'!$I$7:$K$53,3,TRUE) -> 1
A50: =VLOOKUP(ROW(),'Übersicht und Druck'!$I$7:$K$53,3,TRUE) -> 1
A51: =VLOOKUP(ROW(),'Übersicht und Druck'!$I$7:$K$53,3,TRUE) -> 1
A52: =VLOOKUP(ROW(),'Übersicht und Druck'!$I$7:$K$53,3,TRUE) -> 1
A53: =VLOOKUP(ROW(),'Übersicht und Druck'!$I$7:$K$53,3,TRUE) -> 1
A54: =VLOOKUP(ROW(),'Übersicht und Druck'!$I$7:$K$53,3,TRUE) -> 1
A55: =VLOOKUP(ROW(),'Übersicht und Druck'!$I$7:$K$53,3,TRUE) -> 1
A56: =VLOOKUP(ROW(),'Übersicht und Druck'!$I$7:$K$53,3,TRUE) -> 1
A57: =VLOOKUP(ROW(),'Übersicht und Druck'!$I$7:$K$53,3,TRUE) -> 1
A58: =VLOOKUP(ROW(),'Übersicht und Druck'!$I$7:$K$53,3,TRUE) -> 1
A59: =VLOOKUP(ROW(),'Übersicht und Druck'!$I$7:$K$53,3,TRUE) -> 1
A60: =VLOOKUP(ROW(),'Übersicht und Druck'!$I$7:$K$53,3,TRUE) -> 1
A61: =VLOOKUP(ROW(),'Übersicht und Druck'!$I$7:$K$53,3,TRUE) -> 1
A62: =VLOOKUP(ROW(),'Übersicht und Druck'!$I$7:$K$53,3,TRUE) -> 1
A63: =VLOOKUP(ROW(),'Übersicht und Druck'!$I$7:$K$53,3,TRUE) -> 1
A64: =VLOOKUP(ROW(),'Übersicht und Druck'!$I$7:$K$53,3,TRUE) -> 1
A65: =VLOOKUP(ROW(),'Übersicht und Druck'!$I$7:$K$53,3,TRUE) -> 1
A66: =VLOOKUP(ROW(),'Übersicht und Druck'!$I$7:$K$53,3,TRUE) -> 1
A67: =VLOOKUP(ROW(),'Übersicht und Druck'!$I$7:$K$53,3,TRUE) -> 1
A68: =VLOOKUP(ROW(),'Übersicht und Druck'!$I$7:$K$53,3,TRUE) -> 1
A69: =VLOOKUP(ROW(),'Übersicht und Druck'!$I$7:$K$53,3,TRUE) -> 1
A70: =VLOOKUP(ROW(),'Übersicht und Druck'!$I$7:$K$53,3,TRUE) -> 1
A71: =VLOOKUP(ROW(),'Übersicht und Druck'!$I$7:$K$53,3,TRUE) -> 1
A72: =VLOOKUP(ROW(),'Übersicht und Druck'!$I$7:$K$53,3,TRUE) -> 1
A73: =VLOOKUP(ROW(),'Übersicht und Druck'!$I$7:$K$53,3,TRUE) -> 1
A74: =VLOOKUP(ROW(),'Übersicht und Druck'!$I$7:$K$53,3,TRUE) -> 1
A75: =VLOOKUP(ROW(),'Übersicht und Druck'!$I$7:$K$53,3,TRUE) -> 1
A76: =VLOOKUP(ROW(),'Übersicht und Druck'!$I$7:$K$53,3,TRUE) -> 1
A77: =VLOOKUP(ROW(),'Übersicht und Druck'!$I$7:$K$53,3,TRUE) -> 1
A78: =VLOOKUP(ROW(),'Übersicht und Druck'!$I$7:$K$53,3,TRUE) -> 1
A79: =VLOOKUP(ROW(),'Übersicht und Druck'!$I$7:$K$53,3,TRUE) -> 1
A80: =VLOOKUP(ROW(),'Übersicht und Druck'!$I$7:$K$53,3,TRUE) -> 1
A81: =VLOOKUP(ROW(),'Übersicht und Druck'!$I$7:$K$53,3,TRUE) -> 1
A82: =VLOOKUP(ROW(),'Übersicht und Druck'!$I$7:$K$53,3,TRUE) -> 1
A83: =VLOOKUP(ROW(),'Übersicht und Druck'!$I$7:$K$53,3,TRUE) -> 1
A84: =VLOOKUP(ROW(),'Übersicht und Druck'!$I$7:$K$53,3,TRUE) -> 1
A85: =VLOOKUP(ROW(),'Übersicht und Druck'!$I$7:$K$53,3,TRUE) -> 1
A86: =VLOOKUP(ROW(),'Übersicht und Druck'!$I$7:$K$53,3,TRUE) -> 1
A87: =VLOOKUP(ROW(),'Übersicht und Druck'!$I$7:$K$53,3,TRUE) -> 1
A88: =VLOOKUP(ROW(),'Übersicht und Druck'!$I$7:$K$53,3,TRUE) -> 1
A89: =VLOOKUP(ROW(),'Übersicht und Druck'!$I$7:$K$53,3,TRUE) -> 1
A90: =VLOOKUP(ROW(),'Übersicht und Druck'!$I$7:$K$53,3,TRUE) -> 1
A91: =VLOOKUP(ROW(),'Übersicht und Druck'!$I$7:$K$53,3,TRUE) -> 1
A92: =VLOOKUP(ROW(),'Übersicht und Druck'!$I$7:$K$53,3,TRUE) -> 1
A93: =VLOOKUP(ROW(),'Übersicht und Druck'!$I$7:$K$53,3,TRUE) -> 1
A94: =VLOOKUP(ROW(),'Übersicht und Druck'!$I$7:$K$53,3,TRUE) -> 1
A95: =VLOOKUP(ROW(),'Übersicht und Druck'!$I$7:$K$53,3,TRUE) -> 1
A96: =VLOOKUP(ROW(),'Übersicht und Druck'!$I$7:$K$53,3,TRUE) -> 1
A97: =VLOOKUP(ROW(),'Übersicht und Druck'!$I$7:$K$53,3,TRUE) -> 1
A98: =VLOOKUP(ROW(),'Übersicht und Druck'!$I$7:$K$53,3,TRUE) -> 1
A99: =VLOOKUP(ROW(),'Übersicht und Druck'!$I$7:$K$53,3,TRUE) -> 1
A100: =VLOOKUP(ROW(),'Übersicht und Druck'!$I$7:$K$53,3,TRUE) -> 1
A101: =VLOOKUP(ROW(),'Übersicht und Druck'!$I$7:$K$53,3,TRUE) -> 1
A102: =VLOOKUP(ROW(),'Übersicht und Druck'!$I$7:$K$53,3,TRUE) -> 1
A103: =VLOOKUP(ROW(),'Übersicht und Druck'!$I$7:$K$53,3,TRUE) -> 1
A104: =VLOOKUP(ROW(),'Übersicht und Druck'!$I$7:$K$53,3,TRUE) -> 1
A105: =VLOOKUP(ROW(),'Übersicht und Druck'!$I$7:$K$53,3,TRUE) -> 1
A106: =VLOOKUP(ROW(),'Übersicht und Druck'!$I$7:$K$53,3,TRUE) -> 1
A107: =VLOOKUP(ROW(),'Übersicht und Druck'!$I$7:$K$53,3,TRUE) -> 1
A108: =VLOOKUP(ROW(),'Übersicht und Druck'!$I$7:$K$53,3,TRUE) -> 1
A109: =VLOOKUP(ROW(),'Übersicht und Druck'!$I$7:$K$53,3,TRUE) -> 1
A110: =VLOOKUP(ROW(),'Übersicht und Druck'!$I$7:$K$53,3,TRUE) -> 1
A111: =VLOOKUP(ROW(),'Übersicht und Druck'!$I$7:$K$53,3,TRUE) -> 1
A112: =VLOOKUP(ROW(),'Übersicht und Druck'!$I$7:$K$53,3,TRUE) -> 1
A113: =VLOOKUP(ROW(),'Übersicht und Druck'!$I$7:$K$53,3,TRUE) -> 1
A114: =VLOOKUP(ROW(),'Übersicht und Druck'!$I$7:$K$53,3,TRUE) -> 1
A115: =VLOOKUP(ROW(),'Übersicht und Druck'!$I$7:$K$53,3,TRUE) -> 1
A116: =VLOOKUP(ROW(),'Übersicht und Druck'!$I$7:$K$53,3,TRUE) -> 1
A117: =VLOOKUP(ROW(),'Übersicht und Druck'!$I$7:$K$53,3,TRUE) -> 1
A118: =VLOOKUP(ROW(),'Übersicht und Druck'!$I$7:$K$53,3,TRUE) -> 1
A119: =VLOOKUP(ROW(),'Übersicht und Druck'!$I$7:$K$53,3,TRUE) -> 1
A120: =VLOOKUP(ROW(),'Übersicht und Druck'!$I$7:$K$53,3,TRUE) -> 1
A121: =VLOOKUP(ROW(),'Übersicht und Druck'!$I$7:$K$53,3,TRUE) -> 1
A122: =VLOOKUP(ROW(),'Übersicht und Druck'!$I$7:$K$53,3,TRUE) -> 1
A123: =VLOOKUP(ROW(),'Übersicht und Druck'!$I$7:$K$53,3,TRUE) -> 1
A124: =VLOOKUP(ROW(),'Übersicht und Druck'!$I$7:$K$53,3,TRUE) -> 1
A125: =VLOOKUP(ROW(),'Übersicht und Druck'!$I$7:$K$53,3,TRUE) -> 1
A126: =VLOOKUP(ROW(),'Übersicht und Druck'!$I$7:$K$53,3,TRUE) -> 1
A127: =VLOOKUP(ROW(),'Übersicht und Druck'!$I$7:$K$53,3,TRUE) -> 1
A128: =VLOOKUP(ROW(),'Übersicht und Druck'!$I$7:$K$53,3,TRUE) -> 1
A129: =VLOOKUP(ROW(),'Übersicht und Druck'!$I$7:$K$53,3,TRUE) -> 1
A130: =VLOOKUP(ROW(),'Übersicht und Druck'!$I$7:$K$53,3,TRUE) -> 1
A131: =VLOOKUP(ROW(),'Übersicht und Druck'!$I$7:$K$53,3,TRUE) -> 1
A132: =VLOOKUP(ROW(),'Übersicht und Druck'!$I$7:$K$53,3,TRUE) -> 1
A133: =VLOOKUP(ROW(),'Übersicht und Druck'!$I$7:$K$53,3,TRUE) -> 1
A134: =VLOOKUP(ROW(),'Übersicht und Druck'!$I$7:$K$53,3,TRUE) -> 1
A135: =VLOOKUP(ROW(),'Übersicht und Druck'!$I$7:$K$53,3,TRUE) -> 1
A136: =VLOOKUP(ROW(),'Übersicht und Druck'!$I$7:$K$53,3,TRUE) -> 1
A137: =VLOOKUP(ROW(),'Übersicht und Druck'!$I$7:$K$53,3,TRUE) -> 1
A138: =VLOOKUP(ROW(),'Übersicht und Druck'!$I$7:$K$53,3,TRUE) -> 1
A139: =VLOOKUP(ROW(),'Übersicht und Druck'!$I$7:$K$53,3,TRUE) -> 1
A140: =VLOOKUP(ROW(),'Übersicht und Druck'!$I$7:$K$53,3,TRUE) -> 1
A141: =VLOOKUP(ROW(),'Übersicht und Druck'!$I$7:$K$53,3,TRUE) -> 1
A142: =VLOOKUP(ROW(),'Übersicht und Druck'!$I$7:$K$53,3,TRUE) -> 1
A143: =VLOOKUP(ROW(),'Übersicht und Druck'!$I$7:$K$53,3,TRUE) -> 1
A144: =VLOOKUP(ROW(),'Übersicht und Druck'!$I$7:$K$53,3,TRUE) -> 1
A145: =VLOOKUP(ROW(),'Übersicht und Druck'!$I$7:$K$53,3,TRUE) -> 1
A146: =VLOOKUP(ROW(),'Übersicht und Druck'!$I$7:$K$53,3,TRUE) -> 1
A147: =VLOOKUP(ROW(),'Übersicht und Druck'!$I$7:$K$53,3,TRUE) -> 1
A148: =VLOOKUP(ROW(),'Übersicht und Druck'!$I$7:$K$53,3,TRUE) -> 1
A149: =VLOOKUP(ROW(),'Übersicht und Druck'!$I$7:$K$53,3,TRUE) -> 1
A150: =VLOOKUP(ROW(),'Übersicht und Druck'!$I$7:$K$53,3,TRUE) -> 1
A151: =VLOOKUP(ROW(),'Übersicht und Druck'!$I$7:$K$53,3,TRUE) -> 1
A152: =VLOOKUP(ROW(),'Übersicht und Druck'!$I$7:$K$53,3,TRUE) -> 1
A153: =VLOOKUP(ROW(),'Übersicht und Druck'!$I$7:$K$53,3,TRUE) -> 1
A154: =VLOOKUP(ROW(),'Übersicht und Druck'!$I$7:$K$53,3,TRUE) -> 1 | B154: Information zur Vergütung:
A155: =VLOOKUP(ROW(),'Übersicht und Druck'!$I$7:$K$53,3,TRUE) -> 1 | B155: Art der Vergütung: Provision
A156: =VLOOKUP(ROW(),'Übersicht und Druck'!$I$7:$K$53,3,TRUE) -> 1
A157: =VLOOKUP(ROW(),'Übersicht und Druck'!$I$7:$K$53,3,TRUE) -> 1
A158: =VLOOKUP(ROW(),'Übersicht und Druck'!$I$7:$K$53,3,TRUE) -> 1
A159: =VLOOKUP(ROW(),'Übersicht und Druck'!$I$7:$K$53,3,TRUE) -> 1
A160: =VLOOKUP(ROW(),'Übersicht und Druck'!$I$7:$K$53,3,TRUE) -> 1
A161: =VLOOKUP(ROW(),'Übersicht und Druck'!$I$7:$K$53,3,TRUE) -> 1 | B161: SEPA-MANDAT
A162: =VLOOKUP(ROW(),'Übersicht und Druck'!$I$7:$K$53,3,TRUE) -> 1
A163: =VLOOKUP(ROW(),'Übersicht und Druck'!$I$7:$K$53,3,TRUE) -> 1 | B163: Die Europäische Union hat sich per Stichtag 01.02.2014 zum Ziel gesetzt einen einheitlichen europäischen Zahlungsverkehrsraum zu schaffen. Ab diesem Zeitpunkt ersetzt die SEPA Lastschrift das bis dahin gebräuchliche Lastschriftverfahren.
A164: =VLOOKUP(ROW(),'Übersicht und Druck'!$I$7:$K$53,3,TRUE) -> 1
A165: =VLOOKUP(ROW(),'Übersicht und Druck'!$I$7:$K$53,3,TRUE) -> 1
A166: =VLOOKUP(ROW(),'Übersicht und Druck'!$I$7:$K$53,3,TRUE) -> 1
A167: =VLOOKUP(ROW(),'Übersicht und Druck'!$I$7:$K$53,3,TRUE) -> 1 | B167: Falls Sie den Einzug der anfallenden Prämien von Ihrem Konto wünschen, sind wir verpflichtet ein unterschriebenes SEPA-Mandat vom Kunden einzufordern. Wir ersuchen Sie daher das ausgefüllte SEPA-Lastschrift-Mandat zu unterschreiben und an uns zu schicken.
A168: =VLOOKUP(ROW(),'Übersicht und Druck'!$I$7:$K$53,3,TRUE) -> 1
A169: =VLOOKUP(ROW(),'Übersicht und Druck'!$I$7:$K$53,3,TRUE) -> 1
A170: =VLOOKUP(ROW(),'Übersicht und Druck'!$I$7:$K$53,3,TRUE) -> 1
A171: =VLOOKUP(ROW(),'Übersicht und Druck'!$I$7:$K$53,3,TRUE) -> 1
A172: =VLOOKUP(ROW(),'Übersicht und Druck'!$I$7:$K$53,3,TRUE) -> 1 | B172: Danke für die Erledigung.
A173: =VLOOKUP(ROW(),'Übersicht und Druck'!$I$7:$K$53,3,TRUE) -> 1
A174: =VLOOKUP(ROW(),'Übersicht und Druck'!$I$7:$K$53,3,TRUE) -> 1
A175: =VLOOKUP(ROW(),'Übersicht und Druck'!$I$7:$K$53,3,TRUE) -> 1
A176: =VLOOKUP(ROW(),'Übersicht und Druck'!$I$7:$K$53,3,TRUE) -> 1 | B176: Name und Anschrift des Auftraggebers
A177: =VLOOKUP(ROW(),'Übersicht und Druck'!$I$7:$K$53,3,TRUE) -> 1 | B177: =Kundendaten!D19 -> 
A178: =VLOOKUP(ROW(),'Übersicht und Druck'!$I$7:$K$53,3,TRUE) -> 1 | B178: =Kundendaten!D20 -> 0
A179: =VLOOKUP(ROW(),'Übersicht und Druck'!$I$7:$K$53,3,TRUE) -> 1
A180: =VLOOKUP(ROW(),'Übersicht und Druck'!$I$7:$K$53,3,TRUE) -> 1 | B180: IBAN
A181: =VLOOKUP(ROW(),'Übersicht und Druck'!$I$7:$K$53,3,TRUE) -> 1 | B181: =IF(Kundendaten!O24="","",Kundendaten!O24) -> 
A182: =VLOOKUP(ROW(),'Übersicht und Druck'!$I$7:$K$53,3,TRUE) -> 1
A183: =VLOOKUP(ROW(),'Übersicht und Druck'!$I$7:$K$53,3,TRUE) -> 1 | B183: BIC | L183: Creditor ID: AT73ZZZ00000003278
A184: =VLOOKUP(ROW(),'Übersicht und Druck'!$I$7:$K$53,3,TRUE) -> 1 | B184: =IF(Kundendaten!O23="","",Kundendaten!O23) ->  | L184: Die Niederösterreichische Versicherung AG
A185: =VLOOKUP(ROW(),'Übersicht und Druck'!$I$7:$K$53,3,TRUE) -> 1 | L185: Neue Herrengasse 10
A186: =VLOOKUP(ROW(),'Übersicht und Druck'!$I$7:$K$53,3,TRUE) -> 1 | B186: Mandatsreferenz (Polizzennummer) | L186: 3100 St. Pölten
A187: =VLOOKUP(ROW(),'Übersicht und Druck'!$I$7:$K$53,3,TRUE) -> 1
A188: =VLOOKUP(ROW(),'Übersicht und Druck'!$I$7:$K$53,3,TRUE) -> 1
A189: =VLOOKUP(ROW(),'Übersicht und Druck'!$I$7:$K$53,3,TRUE) -> 1
A190: =VLOOKUP(ROW(),'Übersicht und Druck'!$I$7:$K$53,3,TRUE) -> 1
A191: =VLOOKUP(ROW(),'Übersicht und Druck'!$I$7:$K$53,3,TRUE) -> 1 | B191: SEPA-Lastschrift-Mandat (Ermächtigung)
A192: =VLOOKUP(ROW(),'Übersicht und Druck'!$I$7:$K$53,3,TRUE) -> 1
A193: =VLOOKUP(ROW(),'Übersicht und Druck'!$I$7:$K$53,3,TRUE) -> 1 | B193: Ich ermächtige/Wir ermächtigen die Niederösterreichische Versicherung AG, Zahlungen von meinem/unserem Konto mittels SEPA-Lastschrift einzuziehen. Zugleich weise ich mein/weisen wir unser Kreditinstitut an, die von der Niederösterreichischen Versicherung AG auf mein/unser Konto gezogenen SEPA-Lastschriften wiederkehrend einzulösen.
A194: =VLOOKUP(ROW(),'Übersicht und Druck'!$I$7:$K$53,3,TRUE) -> 1
A195: =VLOOKUP(ROW(),'Übersicht und Druck'!$I$7:$K$53,3,TRUE) -> 1
A196: =VLOOKUP(ROW(),'Übersicht und Druck'!$I$7:$K$53,3,TRUE) -> 1
A197: =VLOOKUP(ROW(),'Übersicht und Druck'!$I$7:$K$53,3,TRUE) -> 1
A198: =VLOOKUP(ROW(),'Übersicht und Druck'!$I$7:$K$53,3,TRUE) -> 1 | B198: Ich kann/wir können innerhalb von acht Wochen, beginnend mit dem Belastungsdatum, die Erstattung des belasteten Betrages verlangen. Es gelten dabei die mit meinem/unserem Kreditinstitut vereinbarten Bedingungen.
A199: =VLOOKUP(ROW(),'Übersicht und Druck'!$I$7:$K$53,3,TRUE) -> 1
A200: =VLOOKUP(ROW(),'Übersicht und Druck'!$I$7:$K$53,3,TRUE) -> 1
... 1671 more rows

Sheet RS Grunddeckung (hidden)
B2: Gruppe | C2: Grundprämie | D2: AVRS
B3: =A20 -> Gruppe 1 | C3: =VLOOKUP($C$18,C23:N38,3,TRUE) -> 2.83 | D3: =IF(E18=0,0,VLOOKUP($C$18,C23:N38,HLOOKUP($E$18,F21:N22,2,FALSE),TRUE)) -> 0
B4: =A40 -> Gruppe 2 | C4: =VLOOKUP($C$18,C43:N58,3,TRUE) -> 5.65 | D4: =IF(E18=0,0,VLOOKUP($C$18,C43:N58,HLOOKUP($E$18,F41:N42,2,FALSE),TRUE)) -> 0
B5: =A60 -> Gruppe 3 | C5: =VLOOKUP($C$18,C63:N78,3,TRUE) -> 7.71 | D5: =IF(E18=0,0,VLOOKUP($C$18,C63:N78,HLOOKUP($E$18,F61:N62,2,FALSE),TRUE)) -> 0
B6: =A80 -> Gruppe 4 | C6: =VLOOKUP($C$18,C83:M98,3,TRUE) -> 5.01 | D6: =IF(E18=0,0,VLOOKUP($C$18,C83:M98,HLOOKUP($E$18,F81:M82,2,FALSE),TRUE)) -> 0
B7: =A100 -> Gruppe 5 | C7: =VLOOKUP($C$18,C103:M118,3,TRUE) -> 2.83 | D7: =IF(E18=0,0,VLOOKUP($C$18,C103:M118,HLOOKUP($E$18,F101:M102,2,FALSE),TRUE)) -> 0
B8: =A120 -> Gruppe 6 mit Kfz-Handel | C8: =VLOOKUP($C$18,C123:M139,3,TRUE) -> 6.67 | D8: =IF(E18=0,0,VLOOKUP($C$18,C123:M139,HLOOKUP($E$18,F121:M122,2,FALSE),TRUE)) -> 0
B9: =A141 -> Gruppe 6 ohne Kfz-Handel | C9: =VLOOKUP($C$18,C144:M160,3,TRUE) -> 6.67 | D9: =IF(E18=0,0,VLOOKUP($C$18,C144:M160,HLOOKUP($E$18,F142:M143,2,FALSE),TRUE)) -> 0 | E9: Differenz
B10: Gewählt | C10: =VLOOKUP(B15,B3:D9,2,FALSE) ->  | D10: =VLOOKUP(B15,B3:D9,3,FALSE) ->  | E10: =IF(D10=0,0,D10-C10) -> 
D13: Kfz-Handel
B14: Gruppe gewählt | C14: ='Berechnung Sparten'!R5 -> 0 | D14: =RS!AB35 -> ja
B15: =IF(AND(C14=6,D14="ja"),B8,IF(C14=6,B9,"Gruppe "&C14)) -> Gruppe 0
A17: RS
B18: MA-Anzahl | C18: =RS!E7 -> 0 | D18: Streitwert | E18: =IF(RS!Y41=RS!Y30,0,RS!Y41) -> 0
A20: Gruppe 1 | B20: Beschäftigte | E20: Grundprämie | F20: FI inkl. AVRS, Streitwert in € bis zu
E21: ohne AVRS | F21: 5000 | G21: 10000 | H21: 15000 | I21: 20000 | J21: 30000 | K21: 40000 | L21: 50000 | M21: 75000 | N21: 100000
C22: von | D22: bis | E22: in ‰ | F22: 4 | G22: 5 | H22: 6 | I22: 7 | J22: 8 | K22: 9 | L22: 10 | M22: 11 | N22: 12
B23: 0 - 5 | C23: =LEFT(B23,SEARCH("-",B23)-1)*1 -> 0 | D23: =RIGHT(B23,SEARCH("-",B23)-1)*1 -> 5 | E23: 2.83 | F23: 12.53 | G23: 15.44 | H23: 21.21 | I23: 27 | J23: 32.79 | K23: 38.57 | L23: 42.43 | M23: 45.82 | N23: 49.03
B24: 6 - 8 | C24: =LEFT(B24,SEARCH("-",B24)-1)*1 -> 6 | D24: 8 | E24: 3.93 | F24: 17.44 | G24: 21.47 | H24: 29.51 | I24: 37.57 | J24: 45.61 | K24: 53.65 | L24: 59.02 | M24: 63.74 | N24: 68.2
B25: 9 - 11 | C25: 9 | D25: 11 | E25: 4.91 | F25: 21.69 | G25: 26.72 | H25: 36.67 | I25: 46.68 | J25: 56.71 | K25: 66.67 | L25: 73.34 | M25: 79.2 | N25: 84.75
B26: 12 - 14 | C26: 12 | D26: 14 | E26: 6.12 | F26: 27.04 | G26: 33.32 | H26: 45.71 | I26: 58.13 | J26: 70.67 | K26: 83.11 | L26: 91.42 | M26: 98.73 | N26: 105.65
B27: 15 - 17 | C27: 15 | D27: 17 | E27: 7.53 | F27: 33.29 | G27: 41.01 | H27: 56.25 | I27: 71.55 | J27: 86.99 | K27: 102.28 | L27: 112.51 | M27: 121.51 | N27: 130.01
B28: 18 - 20 | C28: 18 | D28: 20 | E28: 8.95 | F28: 39.53 | G28: 48.71 | H28: 66.8 | I28: 84.97 | J28: 103.28 | K28: 121.47 | L28: 133.62 | M28: 144.31 | N28: 154.41
B29: 21 - 25 | C29: 21 | D29: 25 | E29: 10 | F29: 45.67 | G29: 56.33 | H29: 77.45 | I29: 95.05 | J29: 119.71 | K29: 136.44 | L29: 150.08 | M29: 162.09 | N29: 173.44
B30: 26 - 30 | C30: 26 | D30: 30 | E30: 11.84 | F30: 48.96 | G30: 60.2 | H30: 84.04 | I30: 105.44 | J30: 132.05 | K30: 152.8 | L30: 168.08 | M30: 181.53 | N30: 194.23
B31: 31 - 35 | C31: 31 | D31: 35 | E31: 12.85 | F31: 52.16 | G31: 64.07 | H31: 90.53 | I31: 115.81 | J31: 144.39 | K31: 169.17 | L31: 186.09 | M31: 200.97 | N31: 215.04
B32: 36 - 40 | C32: 36 | D32: 40 | E32: 14.15 | F32: 54.91 | G32: 67.93 | H32: 97.07 | I32: 126.2 | J32: 156.73 | K32: 185.52 | L32: 204.07 | M32: 220.4 | N32: 235.83
B33: 41 - 45 | C33: 41 | D33: 45 | E33: 16 | F33: 58.56 | G33: 71.8 | H33: 103.61 | I33: 136.59 | J33: 169.08 | K33: 201.91 | L33: 222.1 | M33: 239.87 | N33: 256.66
B34: 46 - 50 | C34: 46 | D34: 50 | E34: 16.95 | F34: 61.24 | G34: 74.47 | H34: 109.73 | I34: 144.39 | J34: 178.92 | K34: 213.61 | L34: 234.97 | M34: 253.77 | N34: 271.53
B35: 51 - 60 | C35: 51 | D35: 60 | E35: 19.88 | F35: 70.75 | G35: 85.79 | H35: 127.59 | I35: 167.61 | J35: 207.93 | K35: 248.2 | L35: 273.02 | M35: 294.86 | N35: 315.5
B36: 61 - 70 | C36: 61 | D36: 70 | E36: 22.39 | F36: 80.44 | G36: 98.81 | H36: 144.24 | I36: 190.25 | J36: 235.35 | K36: 280.79 | L36: 308.87 | M36: 333.58 | N36: 356.93
B37: 71 - 80 | C37: 71 | D37: =RIGHT(B37,SEARCH("-",B37)-1)*1 -> 80 | E37: 25.68 | F37: 90.52 | G37: 111.19 | H37: 162.32 | I37: 213.99 | J37: 264.75 | K37: 315.97 | L37: 347.57 | M37: 375.37 | N37: 401.65
B38: 81 - 100 | C38: 81 | D38: =RIGHT(B38,SEARCH("-",B38)-1)*1 -> 100 | E38: 29.92 | F38: 101.25 | G38: 124.47 | H38: 180.99 | I38: 240.21 | J38: 297 | K38: 353.87 | L38: 389.26 | M38: 420.4 | N38: 449.83
A40: Gruppe 2 | B40: Beschäftigte | E40: Grundprämie | F40: FI inkl. AVRS, Streitwert in € bis zu
E41: ohne AVRS | F41: 5000 | G41: 10000 | H41: 15000 | I41: 20000 | J41: 30000 | K41: 40000 | L41: 50000 | M41: 75000 | N41: 100000
C42: von | D42: bis | E42: in ‰ | F42: 4 | G42: 5 | H42: 6 | I42: 7 | J42: 8 | K42: 9 | L42: 10 | M42: 11 | N42: 12
B43: 0 - 5 | C43: =LEFT(B43,SEARCH("-",B43)-1)*1 -> 0 | D43: =RIGHT(B43,SEARCH("-",B43)-1)*1 -> 5 | E43: 5.65 | F43: 15.44 | G43: 18.32 | H43: 24.11 | I43: 29.91 | J43: 35.68 | K43: 41.47 | L43: 45.62 | M43: 49.27 | N43: 52.72
B44: 6 - 8 | C44: =LEFT(B44,SEARCH("-",B44)-1)*1 -> 6 | D44: 8 | E44: 7.87 | F44: 21.47 | G44: 25.51 | H44: 33.53 | I44: 41.6 | J44: 49.64 | K44: 57.67 | L44: 63.44 | M44: 68.51 | N44: 73.31
B45: 9 - 11 | C45: 9 | D45: 11 | E45: 9.81 | F45: 26.72 | G45: 31.73 | H45: 41.68 | I45: 51.71 | J45: 61.71 | K45: 71.69 | L45: 78.86 | M45: 85.17 | N45: 91.13
B46: 12 - 14 | C46: 12 | D46: 14 | E46: 12.4 | F46: 33.32 | G46: 39.59 | H46: 51.97 | I46: 64.4 | J46: 76.93 | K46: 89.37 | L46: 98.31 | M46: 106.17 | N46: 113.6
B47: 15 - 17 | C47: 15 | D47: 17 | E47: 15.08 | F47: 41.01 | G47: 48.72 | H47: 63.97 | I47: 79.28 | J47: 94.69 | K47: 109.99 | L47: 120.99 | M47: 130.67 | N47: 139.81
B48: 18 - 20 | C48: 18 | D48: 20 | E48: 17.91 | F48: 48.68 | G48: 57.85 | H48: 75.95 | I48: 94.13 | J48: 112.44 | K48: 130.63 | L48: 143.69 | M48: 155.19 | N48: 166.05
B49: 21 - 25 | C49: 21 | D49: 25 | E49: 20 | F49: 56 | G49: 66.55 | H49: 87.68 | I49: 105.28 | J49: 129.92 | K49: 146.68 | L49: 161.35 | M49: 174.26 | N49: 186.45
B50: 26 - 30 | C50: 26 | D50: 30 | E50: 23.69 | F50: 61.08 | G50: 72.32 | H50: 96.11 | I50: 117.55 | J50: 144.16 | K50: 164.92 | L50: 181.41 | M50: 195.92 | N50: 209.64
B51: 31 - 35 | C51: 31 | D51: 35 | E51: 25.72 | F51: 65.32 | G51: 77.21 | H51: 103.68 | I51: 128.97 | J51: 157.53 | K51: 182.32 | L51: 200.55 | M51: 216.6 | N51: 231.76
B52: 36 - 40 | C52: 36 | D52: 40 | E52: 28.28 | F52: 69.39 | G52: 82.39 | H52: 111.53 | I52: 140.67 | J52: 171.2 | K52: 200 | L52: 220 | M52: 237.6 | N52: 254.23
B53: 41 - 45 | C53: 41 | D53: 45 | E53: 32 | F53: 74.93 | G53: 88.17 | H53: 119.97 | I53: 152.95 | J53: 185.44 | K53: 218.25 | L53: 240.08 | M53: 259.28 | N53: 277.43
B54: 46 - 50 | C54: 46 | D54: 50 | E54: 33.88 | F54: 78.59 | G54: 91.79 | H54: 127.04 | I54: 161.72 | J54: 196.25 | K54: 230.95 | L54: 254.05 | M54: 274.37 | N54: 293.57
B55: 51 - 60 | C55: 51 | D55: 60 | E55: 39.75 | F55: 91.07 | G55: 106.12 | H55: 147.92 | I55: 187.93 | J55: 228.27 | K55: 268.53 | L55: 295.38 | M55: 319.01 | N55: 341.34
B56: 61 - 70 | C56: 61 | D56: 70 | E56: 44.77 | F56: 103.33 | G56: 121.72 | H56: 167.13 | I56: 213.08 | J56: 258.25 | K56: 303.68 | L56: 334.05 | M56: 360.77 | N56: 386.03
B57: 71 - 80 | C57: 71 | D57: =RIGHT(B57,SEARCH("-",B57)-1)*1 -> 80 | E57: 51.37 | F57: 116.79 | G57: 137.45 | H57: 188.59 | I57: 240.25 | J57: 291.03 | K57: 342.24 | L57: 376.46 | M57: 406.58 | N57: 435.04
B58: 81 - 100 | C58: 81 | D58: =RIGHT(B58,SEARCH("-",B58)-1)*1 -> 100 | E58: 59.83 | F58: 131.85 | G58: 155.05 | H58: 211.59 | I58: 270.81 | J58: 327.6 | K58: 384.47 | L58: 422.92 | M58: 456.75 | N58: 488.72
A60: Gruppe 3 | B60: Beschäftigte | E60: Grundprämie | F60: FI inkl. AVRS, Streitwert in € bis zu
E61: ohne AVRS | F61: 5000 | G61: 10000 | H61: 15000 | I61: 20000 | J61: 30000 | K61: 40000 | L61: 50000 | M61: 75000 | N61: 100000
C62: von | D62: bis | E62: in ‰ | F62: 4 | G62: 5 | H62: 6 | I62: 7 | J62: 8 | K62: 9 | L62: 10 | M62: 11 | N62: 12
B63: 0 - 5 | C63: =LEFT(B63,SEARCH("-",B63)-1)*1 -> 0 | D63: =RIGHT(B63,SEARCH("-",B63)-1)*1 -> 5 | E63: 7.71 | F63: 18.32 | G63: 21.21 | H63: 27 | I63: 32.77 | J63: 38.57 | K63: 44.35 | L63: 48.79 | M63: 52.69 | N63: 56.38
B64: 6 - 8 | C64: =LEFT(B64,SEARCH("-",B64)-1)*1 -> 6 | D64: 8 | E64: 10.73 | F64: 25.51 | G64: 29.52 | H64: 37.55 | I64: 45.68 | J64: 53.67 | K64: 61.68 | L64: 67.85 | M64: 73.28 | N64: 78.41
B65: 9 - 11 | C65: 9 | D65: 11 | E65: 13.37 | F65: 31.73 | G65: 36.75 | H65: 46.71 | I65: 56.72 | J65: 66.73 | K65: 76.71 | L65: 84.38 | M65: 91.13 | N65: 97.51
B66: 12 - 14 | C66: 12 | D66: 14 | E66: 16.72 | F66: 39.59 | G66: 45.85 | H66: 58.27 | I66: 70.67 | J66: 83.2 | K66: 95.64 | L66: 105.2 | M66: 113.62 | N66: 121.57
B67: 15 - 17 | C67: 15 | D67: 17 | E67: 20.56 | F67: 48.72 | G67: 56.44 | H67: 71.68 | I67: 86.99 | J67: 102.4 | K67: 117.71 | L67: 129.48 | M67: 139.84 | N67: 149.63
B68: 18 - 20 | C68: 18 | D68: 20 | E68: 24.41 | F68: 57.85 | G68: 67.01 | H68: 85.12 | I68: 103.28 | J68: 121.6 | K68: 139.77 | L68: 153.75 | M68: 166.05 | N68: 177.67
B69: 21 - 25 | C69: 21 | D69: 25 | E69: 27.27 | F69: 66.21 | G69: 74.12 | H69: 97.91 | I69: 115.52 | J69: 140.15 | K69: 156.91 | L69: 172.6 | M69: 186.41 | N69: 199.46
B70: 26 - 30 | C70: 26 | D70: 30 | E70: 32.31 | F70: 73.2 | G70: 84.41 | H70: 108.21 | I70: 129.67 | J70: 156.27 | K70: 177.04 | L70: 194.74 | M70: 210.32 | N70: 225.05
B71: 31 - 35 | C71: 31 | D71: 35 | E71: 35.07 | F71: 78.47 | G71: 90.37 | H71: 116.84 | I71: 142.12 | J71: 170.68 | K71: 195.47 | L71: 215.05 | M71: 232.22 | N71: 248.47
B72: 36 - 40 | C72: 36 | D72: 40 | E72: 38.57 | F72: 83.85 | G72: 96.85 | H72: 126 | I72: 155.12 | J72: 185.65 | K72: 214.45 | L72: 235.9 | M72: 254.77 | N72: 272.6
B73: 41 - 45 | C73: 41 | D73: 45 | E73: 43.64 | F73: 91.31 | G73: 104.53 | H73: 136.35 | I73: 169.31 | J73: 201.8 | K73: 234.61 | L73: 258.07 | M73: 278.72 | N73: 298.23
B74: 46 - 50 | C74: 46 | D74: 50 | E74: 46.21 | F74: 95.87 | G74: 109.12 | H74: 144.37 | I74: 179.05 | J74: 213.59 | K74: 248.27 | L74: 273.1 | M74: 294.94 | N74: 315.59
B75: 51 - 60 | C75: 51 | D75: 60 | E75: 54.21 | F75: 111.4 | G75: 126.44 | H75: 168.24 | I75: 208.27 | J75: 248.6 | K75: 288.85 | L75: 317.74 | M75: 343.15 | N75: 367.17
B76: 61 - 70 | C76: 61 | D76: 70 | E76: 60.8 | F76: 126.24 | G76: 144.61 | H76: 190.04 | I76: 235.97 | J76: 281.15 | K76: 326.59 | L76: 359.25 | M76: 387.99 | N76: 415.15
B77: 71 - 80 | C77: 71 | D77: =RIGHT(B77,SEARCH("-",B77)-1)*1 -> 80 | E77: 70.05 | F77: 143.05 | G77: 163.72 | H77: 214.87 | I77: 266.52 | J77: 317.28 | K77: 368.45 | L77: 405.3 | M77: 437.72 | N77: 468.36
B78: 81 - 100 | C78: 81 | D78: =RIGHT(B78,SEARCH("-",B78)-1)*1 -> 100 | E78: 81.59 | F78: 162.44 | G78: 185.65 | H78: 242.19 | I78: 301.41 | J78: 358.2 | K78: 415.07 | L78: 456.58 | M78: 493.1 | N78: 527.62
A80: Gruppe 4 | B80: Beschäftigte | E80: Grundprämie | F80: FI inkl. AVRS, Streitwert in € bis zu
E81: ohne AVRS | F81: 10000 | G81: 15000 | H81: 20000 | I81: 30000 | J81: 40000 | K81: 50000 | L81: 75000 | M81: 100000
C82: von | D82: bis | E82: in ‰ | F82: 4 | G82: 5 | H82: 6 | I82: 7 | J82: 8 | K82: 9 | L82: 10 | M82: 11
B83: 0 - 5 | C83: =LEFT(B83,SEARCH("-",B83)-1)*1 -> 0 | D83: =RIGHT(B83,SEARCH("-",B83)-1)*1 -> 5 | E83: 5.01 | F83: 18.52 | G83: 25.45 | H83: 32.4 | I83: 39.35 | J83: 46.28 | K83: 50.91 | L83: 54.98 | M83: 58.83
B84: 6 - 8 | C84: =LEFT(B84,SEARCH("-",B84)-1)*1 -> 6 | D84: 8 | E84: 6.97 | F84: 25.76 | G84: 35.4 | H84: 45.09 | I84: 54.73 | J84: 64.37 | K84: 70.81 | L84: 76.47 | M84: 81.82
B85: 9 - 11 | C85: 9 | D85: 11 | E85: 8.69 | F85: 32.05 | G85: 44 | H85: 56.01 | I85: 68.04 | J85: 80.01 | K85: 88.01 | L85: 95.05 | M85: 101.71
B86: 12 - 14 | C86: 12 | D86: 14 | E86: 10.87 | F86: 39.99 | G86: 54.84 | H86: 69.77 | I86: 84.8 | J86: 99.73 | K86: 109.7 | L86: 118.48 | M86: 126.77
B87: 15 - 17 | C87: 15 | D87: 17 | E87: 13.36 | F87: 49.21 | G87: 67.51 | H87: 85.87 | I87: 104.37 | J87: 122.73 | K87: 135 | L87: 145.8 | M87: 156.01
B88: 18 - 20 | C88: 18 | D88: 20 | E88: 15.88 | F88: 58.44 | G88: 80.16 | H88: 101.97 | I88: 123.95 | J88: 145.75 | K88: 160.33 | L88: 173.15 | M88: 185.27
B89: 21 - 25 | C89: 21 | D89: 25 | E89: 17.73 | F89: 67.6 | G89: 92.95 | H89: 114.07 | I89: 143.64 | J89: 163.73 | K89: 180.1 | L89: 194.51 | M89: 208.13
B90: 26 - 30 | C90: 26 | D90: 30 | E90: 21 | F90: 72.23 | G90: 100.79 | H90: 126.4 | I90: 158.44 | J90: 183.37 | K90: 201.71 | L90: 217.84 | M90: 233.09
B91: 31 - 35 | C91: 31 | D91: 35 | E91: 22.8 | F91: 76.88 | G91: 108.64 | H91: 138.97 | I91: 173.27 | J91: 203 | K91: 223.3 | L91: 241.16 | M91: 258.05
B92: 36 - 40 | C92: 36 | D92: 40 | E92: 25.07 | F92: 81.52 | G92: 116.48 | H92: 151.44 | I92: 188.08 | J92: 222.63 | K92: 244.89 | L92: 264.48 | M92: 283
B93: 41 - 45 | C93: 41 | D93: 45 | E93: 28.37 | F93: 86.16 | G93: 124.33 | H93: 163.89 | I93: 202.89 | J93: 242.27 | K93: 266.5 | L93: 287.82 | M93: 307.96
B94: 46 - 50 | C94: 46 | D94: 50 | E94: 30.04 | F94: 89.35 | G94: 131.65 | H94: 173.27 | I94: 214.71 | J94: 256.33 | K94: 281.96 | L94: 304.52 | M94: 325.84
B95: 51 - 60 | C95: 51 | D95: 60 | E95: 35.24 | F95: 102.84 | G95: 153.09 | H95: 201 | I95: 249.52 | J95: 297.84 | K95: 327.62 | L95: 353.83 | M95: 378.6
B96: 61 - 70 | C96: 61 | D96: 70 | E96: 39.69 | F96: 118.57 | G96: 173.09 | H96: 228.2 | I96: 282.43 | J96: 336.93 | K96: 370.62 | L96: 400.27 | M96: 428.29
B97: 71 - 80 | C97: 71 | D97: =RIGHT(B97,SEARCH("-",B97)-1)*1 -> 80 | E97: 45.53 | F97: 133.43 | G97: 194.79 | H97: 256.79 | I97: 317.71 | J97: 379.16 | K97: 417.08 | L97: 450.44 | M97: 481.97
B98: 81 - 100 | C98: 81 | D98: =RIGHT(B98,SEARCH("-",B98)-1)*1 -> 100 | E98: 53.04 | F98: 149.35 | G98: 217.17 | H98: 288.25 | I98: 356.4 | J98: 424.65 | K98: 467.12 | L98: 504.48 | M98: 539.8
A100: Gruppe 5 | B100: Beschäftigte | E100: Grundprämie | F100: FI inkl. AVRS, Streitwert in € bis zu
E101: ohne AVRS | F101: 10000 | G101: 15000 | H101: 20000 | I101: 30000 | J101: 40000 | K101: 50000 | L101: 75000 | M101: 100000
C102: von | D102: bis | E102: in ‰ | F102: 4 | G102: 5 | H102: 6 | I102: 7 | J102: 8 | K102: 9 | L102: 10 | M102: 11
B103: 0 - 5 | C103: =LEFT(B103,SEARCH("-",B103)-1)*1 -> 0 | D103: =RIGHT(B103,SEARCH("-",B103)-1)*1 -> 5 | E103: 2.83 | F103: 24.69 | G103: 33.95 | H103: 43.2 | I103: 52.47 | J103: 61.69 | K103: 67.86 | L103: 73.29 | M103: 78.42
B104: 6 - 8 | C104: =LEFT(B104,SEARCH("-",B104)-1)*1 -> 6 | D104: 8 | E104: 3.93 | F104: 34.35 | G104: 47.2 | H104: 60.11 | I104: 72.97 | J104: 85.83 | K104: 94.41 | L104: 101.97 | M104: 109.1
B105: 9 - 11 | C105: 9 | D105: 11 | E105: 4.91 | F105: 42.75 | G105: 58.67 | H105: 74.68 | I105: 90.72 | J105: 106.68 | K105: 117.35 | L105: 126.74 | M105: 135.61
B106: 12 - 14 | C106: 12 | D106: 14 | E106: 6.12 | F106: 53.31 | G106: 73.13 | H106: 93.03 | I106: 113.08 | J106: 132.97 | K106: 146.27 | L106: 157.97 | M106: 169.03
B107: 15 - 17 | C107: 15 | D107: 17 | E107: 7.53 | F107: 65.61 | G107: 90.01 | H107: 114.49 | I107: 139.17 | J107: 163.65 | K107: 180.02 | L107: 194.42 | M107: 208.03
B108: 18 - 20 | C108: 18 | D108: 20 | E108: 8.95 | F108: 77.92 | G108: 106.88 | H108: 135.96 | I108: 165.25 | J108: 194.33 | K108: 213.76 | L108: 230.86 | M108: 247.02
B109: 21 - 25 | C109: 21 | D109: 25 | E109: 10 | F109: 90.13 | G109: 123.93 | H109: 152.09 | I109: 191.51 | J109: 218.4 | K109: 240.24 | L109: 259.46 | M109: 277.62
B110: 26 - 30 | C110: 26 | D110: 30 | E110: 11.84 | F110: 96.32 | G110: 134.39 | H110: 168.68 | I110: 211.27 | J110: 244.49 | K110: 268.94 | L110: 290.45 | M110: 310.79
B111: 31 - 35 | C111: 31 | D111: 35 | E111: 12.85 | F111: 102.51 | G111: 144.84 | H111: 185.31 | I111: 231.01 | J111: 270.67 | K111: 297.74 | L111: 321.56 | M111: 344.06
B112: 36 - 40 | C112: 36 | D112: 40 | E112: 14.15 | F112: 108.69 | G112: 155.32 | H112: 201.92 | I112: 250.77 | J112: 296.84 | K112: 326.52 | L112: 352.65 | M112: 377.33
B113: 41 - 45 | C113: 41 | D113: 45 | E113: 16 | F113: 114.85 | G113: 165.79 | H113: 218.53 | I113: 270.52 | J113: 323.01 | K113: 355.31 | L113: 383.74 | M113: 410.6
B114: 46 - 50 | C114: 46 | D114: 50 | E114: 16.95 | F114: 119.13 | G114: 175.53 | H114: 231.03 | I114: 286.28 | J114: 341.79 | K114: 375.97 | L114: 406.05 | M114: 434.47
B115: 51 - 60 | C115: 51 | D115: 60 | E115: 19.88 | F115: 137.24 | G115: 204.12 | H115: 268.17 | I115: 332.69 | J115: 397.11 | K115: 436.82 | L115: 471.77 | M115: 504.79
B116: 61 - 70 | C116: 61 | D116: 70 | E116: 22.39 | F116: 158.09 | G116: 230.79 | H116: 304.27 | I116: 376.56 | J116: 449.25 | K116: 494.18 | L116: 533.71 | M116: 571.07
B117: 71 - 80 | C117: 71 | D117: =RIGHT(B117,SEARCH("-",B117)-1)*1 -> 80 | E117: 25.68 | F117: 177.89 | G117: 259.71 | H117: 342.37 | I117: 423.6 | J117: 505.55 | K117: 556.11 | L117: 600.59 | M117: 642.63
B118: 81 - 100 | C118: 81 | D118: =RIGHT(B118,SEARCH("-",B118)-1)*1 -> 100 | E118: 29.92 | F118: 199.13 | G118: 289.57 | H118: 384.35 | I118: 475.2 | J118: 566.2 | K118: 622.82 | L118: 672.65 | M118: 719.73
A120: Gruppe 6 mit Kfz-Handel | B120: Beschäftigte | E120: Grundprämie | F120: FI inkl. AVRS, Streitwert in € bis zu
E121: ohne AVRS | F121: 10000 | G121: 15000 | H121: 20000 | I121: 30000 | J121: 40000 | K121: 50000 | L121: 75000 | M121: 100000
C122: von | D122: bis | E122: in ‰ | F122: 4 | G122: 5 | H122: 6 | I122: 7 | J122: 8 | K122: 9 | L122: 10 | M122: 11
B123: 0 - 3 | C123: =LEFT(B123,SEARCH("-",B123)-1)*1 -> 0 | D123: =RIGHT(B123,SEARCH("-",B123)-1)*1 -> 3 | E123: 6.67 | F123: 29.96 | G123: 34.95 | H123: 39.95 | I123: 44.93 | J123: 49.88 | K123: 54.87 | L123: 59.26 | M123: 63.41
B124: 4 - 6 | C124: =LEFT(B124,SEARCH("-",B124)-1)*1 -> 4 | D124: 6 | E124: 7.64 | F124: 34.39 | G124: 40.12 | H124: 45.85 | I124: 51.59 | J124: 57.32 | K124: 63.05 | L124: 68.1 | M124: 72.86
B125: 7 - 9 | C125: 7 | D125: 9 | E125: 9.12 | F125: 41.03 | G125: 47.87 | H125: 54.69 | I125: 61.53 | J125: 68.37 | K125: 75.21 | L125: 81.22 | M125: 86.91
B126: 10 - 12 | C126: 10 | D126: 12 | E126: 10.59 | F126: 47.67 | G126: 55.6 | H126: 63.55 | I126: 71.49 | J126: 79.43 | K126: 87.37 | L126: 94.36 | M126: 100.97
B127: 13 - 15 | C127: 13 | D127: 15 | E127: 12.07 | F127: 54.29 | G127: 63.35 | H127: 72.39 | I127: 81.44 | J127: 90.49 | K127: 99.54 | L127: 107.5 | M127: 115.03
B128: 16 - 18 | C128: 16 | D128: 18 | E128: 13.55 | F128: 60.95 | G128: 71.11 | H128: 81.27 | I128: 91.43 | J128: 101.59 | K128: 111.75 | L128: 120.69 | M128: 129.14
B129: 19 - 21 | C129: 19 | D129: 21 | E129: 15.01 | F129: 67.59 | G129: 78.85 | H129: 90.11 | I129: 101.23 | J129: 112.64 | K129: 123.9 | L129: 133.82 | M129: 143.18
B130: 22 - 25 | C130: 22 | D130: 25 | E130: 16.75 | F130: 75.36 | G130: 87.91 | H130: 100.48 | I130: 113.03 | J130: 125.59 | K130: 138.15 | L130: 149.2 | M130: 159.64
B131: 26 - 30 | C131: 26 | D131: 30 | E131: 18.95 | F131: 85.28 | G131: 99.51 | H131: 113.71 | I131: 127.93 | J131: 142.13 | K131: 156.34 | L131: 168.85 | M131: 180.67
B132: 31 - 35 | C132: 31 | D132: 35 | E132: 21.41 | F132: 96.35 | G132: 112.41 | H132: 128.47 | I132: 144.52 | J132: 160.57 | K132: 176.63 | L132: 190.76 | M132: 204.11
B133: 36 - 40 | C133: 36 | D133: 40 | E133: 23.87 | F133: 107.41 | G133: 125.32 | H133: 143.23 | I133: 161.12 | J133: 179.03 | K133: 196.93 | L133: 212.69 | M133: 227.58
B134: 41 - 45 | C134: 41 | D134: 45 | E134: 26.32 | F134: 118.48 | G134: 138.23 | H134: 157.97 | I134: 177.72 | J134: 197.47 | K134: 217.22 | L134: 234.59 | M134: 251.02
B135: 46 - 50 | C135: 46 | D135: 50 | E135: 28.79 | F135: 129.55 | G135: 151.13 | H135: 172.73 | I135: 194.32 | J135: 215.91 | K135: 237.5 | L135: 256.5 | M135: 274.46
B136: 51 - 60 | C136: 51 | D136: 60 | E136: 32.48 | F136: 146.15 | G136: 170.51 | H136: 194.85 | I136: 219.21 | J136: 243.57 | K136: 267.93 | L136: 289.36 | M136: 309.62
B137: 61 - 70 | C137: 61 | D137: =RIGHT(B137,SEARCH("-",B137)-1)*1 -> 70 | E137: 37.4 | F137: 168.27 | G137: 196.32 | H137: 224.36 | I137: 252.41 | J137: 280.45 | K137: 308.5 | L137: 333.17 | M137: 356.5
B138: 71 - 80 | C138: 71 | D138: =RIGHT(B138,SEARCH("-",B138)-1)*1 -> 80 | E138: 42.31 | F138: 190.4 | G138: 221.33 | H138: 253.87 | I138: 285.61 | J138: 317.35 | K138: 349.09 | L138: 377.01 | M138: 403.4
B139: 81 - 100 | C139: 81 | D139: =RIGHT(B139,SEARCH("-",B139)-1)*1 -> 100 | E139: 52.2 | F139: 234.67 | G139: 273.77 | H139: 312.89 | I139: 352 | J139: 391.11 | K139: 430.22 | L139: 464.64 | M139: 497.16
A141: Gruppe 6 ohne Kfz-Handel | B141: Beschäftigte | E141: Grundprämie | F141: FI inkl. AVRS, Streitwert in € bis zu
E142: ohne AVRS | F142: 10000 | G142: 15000 | H142: 20000 | I142: 30000 | J142: 40000 | K142: 50000 | L142: 75000 | M142: 100000
C143: von | D143: bis | E143: in ‰ | F143: 4 | G143: 5 | H143: 6 | I143: 7 | J143: 8 | K143: 9 | L143: 10 | M143: 11
B144: 0 - 3 | C144: =LEFT(B144,SEARCH("-",B144)-1)*1 -> 0 | D144: =RIGHT(B144,SEARCH("-",B144)-1)*1 -> 3 | E144: 6.67 | F144: 19.97 | G144: 22.47 | H144: 24.96 | I144: 27.47 | J144: 29.96 | K144: 32.96 | L144: 35.59 | M144: 38.08
B145: 4 - 6 | C145: =LEFT(B145,SEARCH("-",B145)-1)*1 -> 4 | D145: 6 | E145: 7.64 | F145: 22.92 | G145: 25.79 | H145: 28.65 | I145: 31.52 | J145: 34.39 | K145: 37.83 | L145: 40.86 | M145: 43.72
B146: 7 - 9 | C146: 7 | D146: 9 | E146: 9.12 | F146: 27.35 | G146: 30.77 | H146: 34.19 | I146: 37.61 | J146: 41.03 | K146: 45.13 | L146: 48.74 | M146: 52.16
B147: 10 - 12 | C147: 10 | D147: 12 | E147: 10.59 | F147: 31.77 | G147: 35.75 | H147: 39.72 | I147: 43.68 | J147: 47.67 | K147: 52.44 | L147: 56.63 | M147: 60.6
B148: 13 - 15 | C148: 13 | D148: 15 | E148: 12.07 | F148: 36.2 | G148: 40.73 | H148: 45.25 | I148: 49.77 | J148: 54.29 | K148: 59.72 | L148: 64.5 | M148: 69.01
B149: 16 - 18 | C149: 16 | D149: 18 | E149: 13.55 | F149: 40.63 | G149: 45.72 | H149: 50.79 | I149: 55.87 | J149: 60.95 | K149: 67.05 | L149: 72.41 | M149: 77.48
B150: 19 - 21 | C150: 19 | D150: 21 | E150: 15.01 | F150: 45.07 | G150: 50.68 | H150: 56.32 | I150: 61.96 | J150: 67.59 | K150: 74.35 | L150: 80.3 | M150: 85.92
B151: 22 - 25 | C151: 22 | D151: 25 | E151: 16.75 | F151: 50.23 | G151: 56.52 | H151: 62.8 | I151: 69.08 | J151: 75.36 | K151: 82.9 | L151: 89.53 | M151: 95.79
B152: 26 - 30 | C152: 26 | D152: 30 | E152: 18.95 | F152: 56.85 | G152: 63.96 | H152: 71.07 | I152: 78.19 | J152: 85.28 | K152: 93.81 | L152: 101.31 | M152: 108.4
B153: 31 - 35 | C153: 31 | D153: 35 | E153: 21.41 | F153: 64.23 | G153: 72.27 | H153: 80.29 | I153: 88.32 | J153: 96.35 | K153: 105.99 | L153: 114.46 | M153: 122.48
B154: 36 - 40 | C154: 36 | D154: 40 | E154: 23.87 | F154: 71.6 | G154: 80.56 | H154: 89.51 | I154: 98.47 | J154: 107.41 | K154: 118.15 | L154: 127.6 | M154: 136.54
B155: 41 - 45 | C155: 41 | D155: 45 | E155: 26.32 | F155: 78.99 | G155: 88.87 | H155: 98.73 | I155: 108.61 | J155: 118.48 | K155: 130.33 | L155: 140.75 | M155: 150.61
B156: 46 - 50 | C156: 46 | D156: 50 | E156: 28.79 | F156: 86.36 | G156: 97.16 | H156: 107.96 | I156: 118.75 | J156: 129.55 | K156: 142.51 | L156: 153.91 | M156: 164.68
B157: 51 - 60 | C157: 51 | D157: 60 | E157: 32.48 | F157: 97.43 | G157: 109.61 | H157: 121.79 | I157: 133.96 | J157: 146.15 | K157: 160.77 | L157: 173.63 | M157: 185.78
B158: 61 - 70 | C158: 61 | D158: =RIGHT(B158,SEARCH("-",B158)-1)*1 -> 70 | E158: 37.4 | F158: 112.19 | G158: 126.2 | H158: 140.23 | I158: 154.25 | J158: 168.27 | K158: 185.1 | L158: 199.9 | M158: 213.9
B159: 71 - 80 | C159: 71 | D159: =RIGHT(B159,SEARCH("-",B159)-1)*1 -> 80 | E159: 42.31 | F159: 126.93 | G159: 142.8 | H159: 158.67 | I159: 174.55 | J159: 190.4 | K159: 209.44 | L159: 226.2 | M159: 242.03
B160: 81 - 100 | C160: 81 | D160: =RIGHT(B160,SEARCH("-",B160)-1)*1 -> 100 | E160: 52.2 | F160: 156.44 | G160: 176 | H160: 195.56 | I160: 215.11 | J160: 234.67 | K160: 258.14 | L160: 278.79 | M160: 298.3
B167: Versichertes Risiko | E167: Prämie in ‰
B168: 1 | C168: Motorräder, Motorfahrräder, Krafträder (auch mit Beiwagen), Kabinenroller, Invalidenkrafträder und vierrädrige Leichtfahrzeuge | E168: 0.67 | I168: Motor(fahr)räder, vierrädrige Leichtfahrzeuge | K168: =E168 -> 0.67
B169: 2 | C169: Personen- und Kombinationskraftwagen | I169: Pkw/Kombi Normaltarif | K169: =E170 -> 1.33
C170: a) Normaltarif | E170: 1.33 | I170: Pkw/Kombi mit gewerbsmäßiger Selbstfahrvermietung | K170: =K169*2.5 -> 3.325
C171: b) bei gewerbsmäßiger Vermietung an Selbstfahrer | E171: +150 % | I171: Pkw/Kombi: Taxi
C172: c) Taxi | E172: Anfrage VT | I172: Omnibusse | K172: =F173 -> 3.33
B173: 3 | C173: Omnibusse | F173: 3.33 | I173: Lkw bis 1,5 to Nutzlast | K173: =E174 -> 1.42
B174: 4 | C174: Lastkraftwagen bis 1,5 Tonne Nutzlast | E174: 1.42 | I174: Lkw über 1,5 to Nutzlast, Sattelzugfahrzeuge | K174: =E175 -> 1.81
B175: 5 | C175: Lastkraftwagen über 1,5 Tonne Nutzlast und Sattelzugfahrzeuge | E175: 1.81 | I175: Zugmaschinen | K175: =E176 -> 1.33
B176: 6 | C176: Zugmaschinen | E176: 1.33 | I176: Anhänger für Pkw/Kombi (außer Wohnwagen) | K176: =E178 -> 0.27
B177: 7 | C177: Anhänger: | I177: Wohnwagenanhänger | K177: =E180 -> 0.67
